Workbook

Sheet 00 Alimenta (hidden)
A2: PRG | B2: 4
A4: CE | B4: Conto | C4: Descrizione conto | D4: Esercizio 2017 | E4: Esercizio 2018
A5: AA0030 | B5: 0301010101 | C5: Contributi da Regione F.S. regionale indistinto per quota capitaria | D5: 535837429.2 | E5: 544141166.2
A6: AA0030 | B6: 0301010102 | C6: Contributi da Regione F.S. regionale indistinto per funzioni | D6: 11928457.37 | E6: 11338597.85
A7: AA0040 | B7: 0301010212 | C7: Quota per progetti di PSN L. 662/96 | D7: 14815465.59 | E7: 13751012.34
A8: AA0040 | B8: 0301010215 | C8: Quota per contributi da Regione per Emergenza Avicola L.205/2017 art.1 c.509 | D8: 0 | E8: 13789.5
A9: AA0070 | B9: 0301020101 | C9: Contributi da Regione (extra fondo) vincolati | D9: 123104.1 | E9: 410404.72
A10: AA0150 | B10: 0301020306 | C10: Contributi da altri enti pubblici - vincolati | D10: 156684.25 | E10: 168535.25
A11: AA0250 | B11: 0716010101 | C11: Rettifica contributi in c/esercizio per destinazione ad investimenti - da Regione per quota F.S. regionale | D11: -6506318.89 | E11: -4347846.81
A12: AA0280 | B12: 0302010102 | C12: Utilizzo fondi per quote inutilizzate contributi di esercizi precedenti da Regione per quota emersione extracomunitari L. 102/09 art. 1 ter, comma 17 e D.Lgs. 109/2012 art. 5, comma 16 | D12: 0 | E12: 618167.12
A13: AA0280 | B13: 0302010103 | C13: Utilizzo fondi per quote inutilizzate contributi di esercizi precedenti da Regione per quota medicina Penitenziaria D.Lgs 230/99 | D13: 94584 | E13: 47292
A14: AA0280 | B14: 0302010104 | C14: Utilizzo fondi per quote inutilizzate contributi di esercizi precedenti per quota Medicina Penitenziaria art. 2 comma 283 L. 244/07 | D14: 609546.18 | E14: 1278940.21
A15: AA0280 | B15: 0302010105 | C15: Utilizzo fondi per quote inutilizzate contributi di esercizi precedenti da Regione per quota hanseniani L. 31/86 | D15: 0 | E15: 0
A16: AA0280 | B16: 0302010107 | C16: Utilizzo fondi per quote inutilizzate contributi di esercizi precedenti da Regione per quota Extracomunitari irregolari L. 40/98 | D16: 280768.86 | E16: 0
A17: AA0280 | B17: 0302010108 | C17: Utilizzo fondi per quote inutilizzate contributi di esercizi precedenti da Regione per quota Fondo esclusività L 488/99 | D17: 0 | E17: 774519.17
A18: AA0280 | B18: 0302010111 | C18: Utilizzo fondi per quote inutilizzate contributi di esercizi precedenti da Regione per quota Aids L 135/90 | D18: 0 | E18: 291195.73
A19: AA0280 | B19: 0302010112 | C19: Utilizzo fondi per quote inutilizzate contributi di esercizi precedenti da Regione per quota Progetti di PSN L 662/96 | D19: 4696121.06 | E19: 4839865.09
A20: AA0280 | B20: 0302010117 | C20: Utilizzo fondi per quote inutilizzate contributi di esercizio precedente da Regione per quota gioco d'azzardo Patologico (GAP) Legge 190/2014 e ss.mm.ii. | D20: 0 | E20: 220805
A21: AA0290 | B21: 0302020101 | C21: Utilizzo fondi per quote inutilizzate contributi di esercizi precedenti da soggetti pubblici (extra fondo) vincolati | D21: 92452.46 | E21: 0
A22: AA0350 | B22: 0303010101 | C22: Prestazioni di ricovero | D22: 30585746.35 | E22: 31411147.64
A23: AA0350 | B23: 0303010102 | C23: Per assistenza ospedaliera (erogate da privato accreditato) | D23: 31524190.96 | E23: 32521005.16
A24: AA0360 | B24: 0303010103 | C24: Prestazioni di specialistica ambulatoriale | D24: 5751324.09 | E24: 6072102.47
A25: AA0360 | B25: 0303010105 | C25: Per altra assistenza specialistica ambulatoriale (erogate da privato accreditato) | D25: 2437190.17 | E25: 2423368.2
A26: AA0370 | B26: 0303010107 | C26: Prestazioni di psichiatria residenziale e semiresidenziale nelle Strutture Psicoriabilitative (erogate da privato accreditato) | D26: 4556497.31 | E26: 4667985.86
A27: AA0380 | B27: 0303010108 | C27: Prestazioni di File F | D27: 13565690.02 | E27: 13551276.25
A28: AA0390 | B28: 0303010109 | C28: Prestazioni servizi MMG, PLS, Continuità assistenziale | D28: 57455.65 | E28: 76930.02
A29: AA0400 | B29: 0303010110 | C29: Prestazioni servizi farmaceutica convenzionata | D29: 1531007.26 | E29: 1554303.34
A30: AA0410 | B30: 0303010112 | C30: per assistenza termale (erogate da privato accreditato) | D30: 1104099.89 | E30: 1071238.47
A31: AA0420 | B31: 0303010113 | C31: Prestazioni trasporto ambulanze ed elisoccorso | D31: 175653.51 | E31: 176712.63
A32: AA0430 | B32: 0303010118 | C32: Per assistenza riabilitativa schema tipo previsto ex art. 26 L. 833/78 | D32: 3470706.26 | E32: 3898231.58
A33: AA0430 | B33: 0303010119 | C33: Per prestazioni ad anziani non autosufficienti nei Centri Residenziali | D33: 151334.27 | E33: 154181.96
A34: AA0430 | B34: 0303010120 | C34: Per prestazioni ad anziani non autosufficienti nelle Residenze Sanitarie Assistite | D34: 1770163.85 | E34: 1931897.43
A35: AA0440 | B35: 0303010203 | C35: Altre prestazioni sanitarie e sociosanitarie a rilevanza sanitaria erogate ad altri soggetti pubblici | D35: 45364.98 | E35: 90381.5
A36: AA0460 | B36: 0303010301 | C36: Prestazioni di ricovero | D36: 1554681.22 | E36: 7320391.07
A37: AA0470 | B37: 0303010302 | C37: Prestazioni ambulatoriali | D37: 851774.85 | E37: 1477229.91
A38: AA0490 | B38: 0303010304 | C38: Prestazioni di File F | D38: 1604980.14 | E38: 2471453.08
A39: AA0500 | B39: 0303010305 | C39: Prestazioni servizi MMG, PLS, Continuità assistenziale Extraregione | D39: 119388.84 | E39: 56122.64
A40: AA0510 | B40: 0303010306 | C40: Prestazioni servizi farmaceutica convenzionata Extraregione | D40: 502038.11 | E40: 506661.23
A41: AA0520 | B41: 0303010307 | C41: Prestazioni termali Extraregione | D41: 172275.4 | E41: 180073.68
A42: AA0530 | B42: 0303010308 | C42: Prestazioni trasporto ambulanze ed elisoccorso Extraregione | D42: 512404.02 | E42: 469730.81
A43: AA0550 | B43: 0303010311 | C43: Ricavi per cessione di emocomponenti e cellule staminali Extraregione | D43: 174766.05 | E43: 0
A44: AA0590 | B44: 0303010314 | C44: Altre prestazioni sanitarie e socio-sanitarie a rilevanza sanitaria non soggette a compensazione Extraregione | D44: 1696.8 | E44: 2626.39
A45: AA0600 | B45: 0303010315 | C45: Altre prestazioni sanitarie a rilevanza sanitaria - Mobilità attiva Internazionale | D45: 0 | E45: 318967.76
A46: AA0620 | B46: 0303020101 | C46: Prestazioni di ricovero da privati Extraregione in compensazione (mobilità attiva) | D46: 11917704.07 | E46: 10285883.1
A47: AA0630 | B47: 0303020201 | C47: Prestazioni ambulatoriali da privati Extraregione in compensazione (mobilità attiva) | D47: 218419.7 | E47: 201606.44
A48: AA0660 | B48: 0303030101 | C48: Proventi per rilascio cartelle cliniche, radiografie e certificati | D48: 115699.42 | E48: 146436.08
A49: AA0660 | B49: 0303030102 | C49: Proventi per multe, ammende e contravvenzioni di vigili sanitari | D49: 44855.15 | E49: 2500
A50: AA0660 | B50: 0303030103 | C50: Proventi per sanzioni in materia di lavoro | D50: 0 | E50: 27593.38
A51: AA0660 | B51: 0303030104 | C51: Proventi per prestazioni di medicina del lavoro | D51: 1020.47 | E51: 540.64
A52: AA0660 | B52: 0303030105 | C52: Proventi per sanzioni sanità pubblica veterinaria | D52: 10077.74 | E52: 9396.75
A53: AA0660 | B53: 0303030106 | C53: Proventi per diritti veterinari ex art.3 D.lgs. 51/92 | D53: 312591.95 | E53: 327976.69
A54: AA0660 | B54: 0303030107 | C54: Proventi per sanzioni amministrative | D54: 88655.9 | E54: 140693.07
A55: AA0660 | B55: 0303030108 | C55: Proventi sperimentazioni farmaci e cliniche | D55: 80519.63 | E55: 143256.8
A56: AA0660 | B56: 0303030109 | C56: Proventi per servizi di medicina legale | D56: 577975.03 | E56: 551600.1
A57: AA0660 | B57: 0303030110 | C57: Ricavi per somministrazione di vaccini | D57: 262.6 | E57: 118766.74
A58: AA0660 | B58: 0303030111 | C58: Proventi per prestazioni di medicina sportiva | D58: 34421.3 | E58: 32128.55
A59: AA0660 | B59: 0303030114 | C59: Altri ricavi per prestazioni sanitarie erogate a soggetti privati | D59: 320299.61 | E59: 312040.17
A60: AA0660 | B60: 0303030115 | C60: Ricavi per prestazioni specialistiche ambulatoriali (a privati paganti) | D60: 1158003.14 | E60: 786234.17
A61: AA0660 | B61: 0303030116 | C61: Ricavi per ricovero ospedaliero | D61: 40542.93 | E61: 270609.04
A62: AA0660 | B62: 0303030117 | C62: Ricavi per prestazioni del dipartimento di prevenzione | D62: 766497.59 | E62: 401104.96
A63: AA0660 | B63: 0303030118 | C63: Ricavi per consulenze sanitarie mediche e veterinarie | D63: 14715.73 | E63: 11274.96
A64: AA0660 | B64: 0303030122 | C64: Ricavi cessione sangue ed emoderivati vs privati | D64: 3268.12 | E64: 338352.21
A65: AA0680 | B65: 0303040101 | C65: Ricavi per prestazioni sanitarie intramoenia - Area ospedaliera | D65: 50045.82 | E65: 80436.56
A66: AA0690 | B66: 0303040201 | C66: Ricavi per prestazioni sanitarie intramoenia - Area specialistica | D66: 3252006 | E66: 3326104
A67: AA0700 | B67: 0303040301 | C67: Ricavi per prestazioni sanitarie intramoenia - Area sanità pubblica | D67: 22414.54 | E67: 17534.57
A68: AA0710 | B68: 0303040401 | C68: Ricavi per prestazioni sanitarie intramoenia - Consulenze (ex art. 55 c. 1 lett. c), d) ed ex art. 57-58) | D68: 478823.7 | E68: 677848.85
A69: AA0730 | B69: 0303040601 | C69: Ricavi per prestazioni sanitarie intramoenia - Altro | D69: 97870.17 | E69: 130775.39
A70: AA0740 | B70: 0303040701 | C70: Ricavi per prestazioni sanitarie intramoenia - Altro (Aziende sanitarie pubbliche della Regione) | D70: 18272.1 | E70: 5779.7
A71: AA0760 | B71: 0304010101 | C71: Rimborsi assicurativi | D71: 166973.67 | E71: 151672.58
A72: AA0810 | B72: 0304030101 | C72: Rimborso degli oneri stipendiali del personale dipendente dell'azienda in posizione di comando presso Aziende sanitarie pubbliche della Regione | D72: 14346.46 | E72: 23253.72
A73: AA0830 | B73: 0304030301 | C73: Altri concorsi, recuperi e rimborsi da parte di Aziende sanitarie pubbliche della Regione | D73: 135883.64 | E73: 180596.98
A74: AA0850 | B74: 0304040101 | C74: Rimborso degli oneri stipendiali del personale dipendente dell'azienda in posizione di comando presso altri soggetti pubblici | D74: 114750.81 | E74: 150326.43
A75: AA0860 | B75: 0304040201 | C75: Rimborsi per acquisto beni sanitari v/altri Enti Pubblici | D75: 14709.64 | E75: 8374.78
A76: AA0870 | B76: 0304040303 | C76: Concorso da comuni per integr.rette RSA | D76: 87662 | E76: 81077.24
A77: AA0870 | B77: 0304040304 | C77: Altri concorsi, recuperi e rimborsi da parte di altri soggetti pubblici | D77: 70008.22 | E77: 13333.41
A78: AA0900 | B78: 0304050101 | C78: Pay-back per il superamento del tetto della spesa farmaceutica territoriale | D78: 0 | E78: 0
A79: AA0910 | B79: 0304050102 | C79: Pay-back per il superamento del tetto della spesa farmaceutica ospedaliera | D79: 20 | E79: 0
A80: AA0920 | B80: 0304050103 | C80: Ulteriore Pay-back | D80: 3426932.4 | E80: 2615698.91
A81: AA0930 | B81: 0304050201 | C81: Altri concorsi, recuperi e rimborsi da privati | D81: 866980.31 | E81: 634408.52
A82: AA0950 | B82: 0305010101 | C82: Compartecipazione alla spesa per prestazioni sanitarie - Ticket sulle prestazioni per visite specialistiche | D82: 3378962.08 | E82: 3159047.66
A83: AA0950 | B83: 0305010102 | C83: Compartecipazione alla spesa per prestazioni sanitarie - Ticket sulle prestazioni per diagnostica strumentale | D83: 1382098.47 | E83: 1443223.8
A84: AA0950 | B84: 0305010103 | C84: Compartecipazione alla spesa per prestazioni sanitarie - Ticket sulle prestazioni per analisi di laboratorio | D84: 1653708.77 | E84: 1940873.85
A85: AA0960 | B85: 0305020101 | C85: Compartecipazione alla spesa per prestazioni sanitarie - Ticket sul pronto soccorso | D85: 330322.76 | E85: 386661.64
A86: AA0990 | B86: 0306010101 | C86: Quota imputata all'esercizio dei finanziamenti per investimenti dallo Stato | D86: 48286.07 | E86: 54754.03
A87: AA1000 | B87: 0306020101 | C87: Quota imputata all'esercizio dei finanziamenti per investimenti da Regione | D87: 1468544.84 | E87: 1674245.68
A88: AA1010 | B88: 0306030101 | C88: Quota imputata all'esercizio dei finanziamenti per beni di prima dotazione | D88: 3577467.93 | E88: 3577467.93
A89: AA1020 | B89: 0306040101 | C89: Quota imputata all'esercizio dei contributi in c/esercizio FSR destinati ad investimenti | D89: 4730694.31 | E89: 5185207.28
A90: AA1070 | B90: 0308010102 | C90: Ricavi per consulenze, certificazioni e attestazioni non sanitarie | D90: 1820.06 | E90: 0
A91: AA1070 | B91: 0308010103 | C91: Ricavi per maggior comfort alberghiero | D91: 1203.6 | E91: 1738.6
A92: AA1080 | B92: 0308020101 | C92: Affitti attivi | D92: 221560.64 | E92: 186882.15
A93: AA1090 | B93: 0308030102 | C93: Proventi per multe, ammende e contravvenzioni (non sanitarie) | D93: 39513.47 | E93: 34071.35
A94: AA1090 | B94: 0308030104 | C94: Proventi per gestione distributori automatici di bibite | D94: 13350.83 | E94: 3934.44
A95: AA1090 | B95: 0308030105 | C95: Proventi per corsi di formazione | D95: 50820 | E95: 57821.38
A96: AA1090 | B96: 0308030109 | C96: Altri proventi non sanitari | D96: 294032.8 | E96: 266999.04
A97: BA0040 | B97: 0701010101 | C97: Medicinali con AIC | D97: -58058876.31 | E97: -70487643.32
A98: BA0040 | B98: 0701010102 | C98: Soluzioni infusionali con AIC | D98: -36070.95 | E98: -17397.05
A99: BA0040 | B99: 0701010103 | C99: Ossigeno con AIC | D99: -1784465.77 | E99: -1358852.21
A100: BA0040 | B100: 0701010104 | C100: Altri gas medicali con AIC | D100: -169365.48 | E100: -174947.81
A101: BA0040 | B101: 0701010105 | C101: Emoderivati con AIC | D101: -3209150.92 | E101: -2011801.43
A102: BA0040 | B102: 0701010108 | C102: Farmaci innovativi | D102: -5977880.04 | E102: -8485995.27
A103: BA0050 | B103: 0701010106 | C103: Medicinali senza AIC | D103: -722585.84 | E103: -752264.34
A104: BA0090 | B104: 0701010202 | C104: Sangue ed emocomponenti da pubblico (Aziende sanitarie pubbliche extra Regione) - Mobilità extraregionale | D104: -187348.99 | E104: -23080.75
A105: BA0220 | B105: 0701010301 | C105: Strumentazione per bioimmagini e radioterapia | D105: -177143.11 | E105: -81557.27
A106: BA0220 | B106: 0701010302 | C106: Materiale per sterilizzazione | D106: -129624.42 | E106: -46837.63
A107: BA0220 | B107: 0701010303 | C107: Dispositivi per chirurgia mini-invasiva ed elettrochirurgia | D107: -1449807.99 | E107: -1483448.22
A108: BA0220 | B108: 0701010304 | C108: Protesi ortopediche e mezzi per osteosintesi e sintesi tendineo-legamentosa | D108: -2805651.43 | E108: -3078145.23
A109: BA0220 | B109: 0701010305 | C109: Protesi oculistiche | D109: -204139.52 | E109: -232024.76
A110: BA0220 | B110: 0701010306 | C110: Protesi vascolari e cardiache | D110: -1648630.99 | E110: -1843129.03
A111: BA0220 | B111: 0701010307 | C111: Altri dispositivi protesici impiantabili e prodotti per osteosintesi | D111: -64076.91 | E111: -53882.09
A112: BA0220 | B112: 0701010308 | C112: Supporti e ausili tecnici per persone disabili | D112: -88676.58 | E112: -126750.9
A113: BA0220 | B113: 0701010309 | C113: Dispositivi per emotrasfusione ed ematologia | D113: -639214.71 | E113: -429955.11
A114: BA0220 | B114: 0701010310 | C114: Dispositivi per dialisi | D114: -1517787.64 | E114: -1649439.47
A115: BA0220 | B115: 0701010312 | C115: Dispositivi da somministrazione, prelievo e raccolta | D115: -3502487.78 | E115: -3688519.83
A116: BA0220 | B116: 0701010314 | C116: Strumentazione per esplorazioni funzionali ed interventi terapeutici | D116: -955175.28 | E116: -988781.88
A117: BA0220 | B117: 0701010315 | C117: Strumentazione per radiologia diagnostica ed interventistica | D117: -1054.08 | E117: -1609.85
A118: BA0220 | B118: 0701010316 | C118: Strumentario chirurgico pluriuso o riusabile | D118: -736677.23 | E118: -631469.93
A119: BA0220 | B119: 0701010317 | C119: Dispositivi protesici impiantabili - vari | D119: -201076.3 | E119: -196988.74
A120: BA0220 | B120: 0701010318 | C120: Dispositivi per sistema artero-venoso | D120: -1942531.26 | E120: -2170842.01
A121: BA0220 | B121: 0701010319 | C121: Guide per apparato cardiocircolatorio | D121: -436779.31 | E121: -374481.76
A122: BA0220 | B122: 0701010320 | C122: Altri dispositivi per apparato cardiocircolatorio | D122: -934868.19 | E122: -1021118.45
A123: BA0220 | B123: 0701010321 | C123: Disinfettanti, antisettici e proteolitici (D.Lgs. 46/97) | D123: -95830.94 | E123: -117827.27
A124: BA0220 | B124: 0701010322 | C124: Dispositivi per apparato gastrointestinale | D124: -345091.34 | E124: -362947.48
A125: BA0220 | B125: 0701010323 | C125: Dispositivi da sutura | D125: -1485021.04 | E125: -1286174
A126: BA0220 | B126: 0701010324 | C126: Dispositivi per sistema nervoso e midollare | D126: -79263.37 | E126: -120204.52
A127: BA0220 | B127: 0701010325 | C127: Dispositivi per odontoiatria, oftalmologoa e otorinolaringoiatria | D127: -364072.05 | E127: -544399.05
A128: BA0220 | B128: 0701010326 | C128: Dispositivi per apparato respiratorio e anestesia | D128: -505376.99 | E128: -602906.88
A129: BA0220 | B129: 0701010327 | C129: Dispositivi di protezione e ausili per incontinenza (D.Lgs. 46/97) | D129: -1642742.81 | E129: -2080336.8
A130: BA0220 | B130: 0701010328 | C130: Dispositivi per apparato urogenitale | D130: -204049.87 | E130: -177026.73
A131: BA0220 | B131: 0701010329 | C131: Dispositivi vari | D131: -1684981.19 | E131: -1728420.73
A132: BA0220 | B132: 0701010330 | C132: Dispositivi per medicazioni generali e specialistiche | D132: -1922863.46 | E132: -1894088.33
A133: BA0230 | B133: 0701010313 | C133: Dispositivi impiantabili attivi | D133: -3456008.28 | E133: -3071999.01
A134: BA0240 | B134: 0701010311 | C134: Dispositivi medico-diagnostici in vitro (D.Lgs. 332/2000) | D134: -11969007.5 | E134: -12786548.72
A135: BA0250 | B135: 0701010401 | C135: Prodotti dietetici | D135: -29236.46 | E135: -37219.06
A136: BA0250 | B136: 0701010402 | C136: Alimenti per nutrizione artificiale senza AIC | D136: -440409.28 | E136: -431741.6
A137: BA0260 | B137: 0701010502 | C137: Vaccini obbligatori | D137: -602023.59 | E137: -575429.16
A138: BA0260 | B138: 0701010503 | C138: Altri vaccini | D138: -1778838.97 | E138: -1647355.95
A139: BA0280 | B139: 0701010701 | C139: Medicinali ad uso veterinario | D139: -7133.98 | E139: -11791.41
A140: BA0280 | B140: 0701010702 | C140: Materiali chirurgici, sanitari e diagnostici per uso veterinario | D140: -718.82 | E140: -8845
A141: BA0290 | B141: 0701010801 | C141: Vetrerie e materiale plastico per laboratorio (senza CND) | D141: -49771.13 | E141: -54713.99
A142: BA0290 | B142: 0701010802 | C142: Altri materiali di consumo non specifici per strumentazione diagnostica (senza CND) | D142: -532760.96 | E142: -805000.83
A143: BA0290 | B143: 0701010803 | C143: Altri beni e prodotti sanitari (senza CND) | D143: -1352042.51 | E143: -1333791.77
A144: BA0320 | B144: 0701020101 | C144: Prodotti alimentari | D144: -250.58 | E144: -83.52
A145: BA0330 | B145: 0701020102 | C145: Materiali di guardaroba, di pulizia e di convivenza in genere | D145: -41796.38 | E145: -64306.42
A146: BA0340 | B146: 0701020103 | C146: Combustibili, carburanti e lubrificanti | D146: -135937.7 | E146: -172419.52
A147: BA0350 | B147: 0701020104 | C147: Supporti informatici | D147: -186697.36 | E147: -127864.8
A148: BA0350 | B148: 0701020105 | C148: Cancelleria e stampati | D148: -327030.51 | E148: -350110.1
A149: BA0360 | B149: 0701020106 | C149: Materiale per la manutenzione di immobili e loro pertinenze | D149: -181769.46 | E149: -188488.96
A150: BA0360 | B150: 0701020108 | C150: Materiale per la manutenzione di attrezzature tecnico scientifiche sanitarie | D150: -16225.33 | E150: -44936.27
A151: BA0360 | B151: 0701020110 | C151: Materiale per la manutenzione di altro | D151: -9788.74 | E151: -6459.14
A152: BA0370 | B152: 0701020111 | C152: Altri beni e prodotti non sanitari | D152: -48626.56 | E152: -45073.96
A153: BA0430 | B153: 0702010101 | C153: Costi per assistenza MMG | D153: -24328709.33 | E153: -24517314.75
A154: BA0440 | B154: 0702010102 | C154: Costi per assistenza PLS | D154: -6208374.4 | E154: -6415070.53
A155: BA0450 | B155: 0702010103 | C155: Costi per assistenza Continuità assistenziale | D155: -4008916.53 | E155: -3931463.93
A156: BA0460 | B156: 0702010104 | C156: Costi per assistenza Medici 118 | D156: -718220.61 | E156: -653212.61
A157: BA0460 | B157: 0702010105 | C157: Altro (medicina dei servizi, psicologi, etc¿) (esclusa IRAP) | D157: -171628.48 | E157: -136443.5
A158: BA0470 | B158: 0702010106 | C158: Costi per medicina di base da pubblico (Aziende sanitarie pubbliche della Regione) - Mobilità intraregionale | D158: -35057.19 | E158: -38671
A159: BA0480 | B159: 0702010107 | C159: Costi per medicina di base da pubblico (Aziende sanitarie pubbliche Extraregione) - Mobilità extraregionale | D159: -184748.58 | E159: -217107.5
A160: BA0500 | B160: 0702010201 | C160: Acquisti servizi sanitari per farmaceutica da convenzione | D160: -52796218.85 | E160: -50005470.41
A161: BA0500 | B161: 0702010202 | C161: Acquisti servizi sanitari sussidi Indennità per farmacie rurali ed altro | D161: -127926.67 | E161: -124207.82
A162: BA0510 | B162: 0702010203 | C162: Costi per farmaceutica da pubblico (Aziende sanitarie pubbliche della Regione)- Mobilità intraregionale | D162: -1251970.51 | E162: -1277628.07
A163: BA0520 | B163: 0702010204 | C163: Costi per farmaceutica da pubblico (Extraregione) | D163: -387832.02 | E163: -457054.73
A164: BA0540 | B164: 0702010301 | C164: Costi per assistenza specialistica ambulatoriale da pubblico (Aziende sanitarie pubbliche della Regione) | D164: -7681961.01 | E164: -7623510.4
A165: BA0540 | B165: 0702010302 | C165: Servizi sanitari da privato accreditato insito in Regione territorio extra ASL v/ cittadini residenti in territorio ASL - rientranti nei contratti negoziali (branche a visita) | D165: -82.34 | E165: -81.98
A166: BA0540 | B166: 0702010303 | C166: Servizi sanitari da case di cura private insite in Regione territorio extra ASL v/ cittadini residenti in territorio ASL - rientranti nei contratti negoziali (assistenza specialistica ambulatoriale) | D166: -1255932.25 | E166: -1200763.1
A167: BA0540 | B167: 0702010304 | C167: Servizi sanitari da altri soggetti privati insiti in Regione territorio extra ASL v/cittadini residenti nel territorio ASL rientranti nei contratti negoziali (assistenza specialistica ambulatoriale) | D167: -60146.51 | E167: -55004.09
A168: BA0550 | B168: 0702010305 | C168: Costi per assistenza specialistica ambulatoriale da pubblico (altri soggetti pubblici della Regione) | D168: -189344.67 | E168: -360209.89
A169: BA0560 | B169: 0702010306 | C169: Costi per assistenza specialistica ambulatoriale da pubblico (Extraregione) | D169: -4257839.75 | E169: -4000753.58
A170: BA0560 | B170: 0702010325 | C170: Costi per cessioni di emocomponenti e cellule staminali extraregione | D170: -202185.19 | E170: 0
A171: BA0570 | B171: 0702010307 | C171: Costi per assistenza specialistica ambulatoriale da privato - Medici SUMAI | D171: -4899151.05 | E171: -4486744.21
A172: BA0590 | B172: 0702010308 | C172: Servizi sanitari per assistenza specialistica da IRCCS privati e Policlinici privati | D172: -60978.73 | E172: -83336.34
A173: BA0610 | B173: 0309010805 | C173: Compartecipazione alla spesa per prestazioni sanitarie - Ticket sulle prestazioni assistenza specialistica ambulatoriale da Case di Cura private | D173: 1025595.31 | E173: 976058.35
A174: BA0610 | B174: 0309010806 | C174: Quota fissa di cui all¿art. 17, comma 6, del D.L. 98/2011 per assistenza specialistica ambulatoriale da Case di Cura private | D174: 352280 | E174: 337730
A175: BA0610 | B175: 0702010310 | C175: Servizi sanitari da case di cura private insite nel territorio ASL v/ cittadini residenti nel territorio ASL - rientranti nei contratti negoziali (assistenza specialistica ambulatoriale) | D175: -4475774.26 | E175: -4514981.5
A176: BA0610 | B176: 0702010311 | C176: Servizi sanitari da case di cura private insite nel territorio ASL v/cittadini residenti nella Regione in territorio extra ASL rientranti nei contratti negoziali (assist. specialistica ambulatoriale) | D176: -2312295.34 | E176: -2248145.51
A177: BA0610 | B177: 0702010313 | C177: Servizi sanitari da case di cura private - per cittadini residenti acquistate fuori contratti negoziali in strutture entro Regione (assistenza specialistica ambulatoriale) | D177: -2664.58 | E177: -14348.16
A178: BA0620 | B178: 0309010807 | C178: Compartecipazione alla spesa per prestazioni sanitarie - Ticket sulle prestazioni assistenza specialistica ambulatoriale da altri privati | D178: 216258.62 | E178: 188629.47
A179: BA0620 | B179: 0309010808 | C179: Quota fissa di cui all¿art. 17, comma 6, del D.L. 98/2011 per assistenza specialistica ambulatoriale da altri privati | D179: 18668 | E179: 58256.15
A180: BA0620 | B180: 0702010314 | C180: Servizi sanitari da privato accreditato insito nel territorio ASL v/ cittadini residenti in territorio ASL - rientranti nei contratti negoziali (branche a visita) | D180: -28717.88 | E180: -32601.73
A181: BA0620 | B181: 0702010315 | C181: Servizi sanitari da privato accreditato insito nel territorio ASL v/ cittadini residenti nella Regione in territorio extra ASL - rientranti nei contratti negoziali (branche a visita) | D181: -3499.07 | E181: -6587.94
A182: BA0620 | B182: 0702010316 | C182: Servizi sanitari da privato accreditato per cittadini residenti acquistate in strutture fuori Regione (branche a visita) | D182: 0 | E182: -3.2
A183: BA0620 | B183: 0702010318 | C183: Servizi sanitari da altri soggetti privati insiti nel Territorio ASL v/ cittadini residenti nel territorio ASL - rientranti nei contratti negoziali (assistenza specialistica ambulatoriale) | D183: -2993859.48 | E183: -3035421.56
A184: BA0620 | B184: 0702010319 | C184: Servizi sanitari da altri soggetti privati insiti nel territorio ASL v/cittadini residenti nella Regione in territorio extra ASL rientranti nei contratti negoziali (ass. specialistica ambulatoriale) | D184: -490557.54 | E184: -506050.07
A185: BA0620 | B185: 0702010321 | C185: Servizi sanitari da altri soggetti privati - per cittadini residenti acquistate fuori contratti negoziali in strutture entro Regione (assistenza specialistica ambulatoriale) | D185: -2298.15 | E185: -5003.97
A186: BA0630 | B186: 0309010809 | C186: Compartecipazione alla spesa per prestazioni sanitarie - Ticket sulle prestazioni assistenza specialistica ambulatoriale da privato per cittadini non residenti - Extraregione | D186: 3321.5 | E186: 3738.21
A187: BA0630 | B187: 0309010810 | C187: Quota fissa di cui all¿art. 17, comma 6, del D.L. 98/2011 per assistenza specialistica ambulatoriale da privato per cittadini non residenti - Extraregione | D187: 400 | E187: 1170
A188: BA0630 | B188: 0702010322 | C188: Servizi sanitari da privato accreditato v/ cittadini non residenti - extraregione (mobilità attiva in compensazione) (branche a visita) | D188: 0 | E188: -108.07
A189: BA0630 | B189: 0702010323 | C189: Servizi sanitari da case di cura private v/ cittadini non residenti - extraregione (mobilità attiva in compensazione) (assistenza specialistica ambulatoriale) | D189: -181939.89 | E189: -155652.49
A190: BA0630 | B190: 0702010324 | C190: Servizi sanitari da altri soggetti privati v/ cittadini non residenti - extraregione (mobilità attiva in compensazione) (assistenza specialistica ambulatoriale) | D190: -36479.81 | E190: -45845.88
A191: BA0650 | B191: 0702010402 | C191: Da privato accreditato insito in Regione territorio extra ASL v/ cittadini residenti in territorio ASL - rientranti nei contratti negoziali (riabilitazione ex art. 26) | D191: -4855060.17 | E191: -4832965.95
A192: BA0680 | B192: 0702010405 | C192: Da privato accreditato insito nel territorio ASL v/ cittadini residenti in territorio ASL - rientranti nei contratti negoziali (riabilitazione ex art. 26) | D192: -10990063.2 | E192: -10714220.15
A193: BA0680 | B193: 0702010406 | C193: Da privato accreditato insito nel territorio ASL v/ cittadini residenti nella Regione in territorio extra ASL - rientranti nei contratti negoziali (riabilitazione ex art. 26) | D193: -3470706.26 | E193: -3898231.58
A194: BA0690 | B194: 0702010408 | C194: Da privato accreditato per cittadini residenti acquistate in strutture fuori Regione (riabilitazione ex art. 26) | D194: -591378.35 | E194: -545484.88
A195: BA0740 | B195: 0702010504 | C195: Da privato per assistenza integrativa | D195: -1813040.82 | E195: -1802068.84
A196: BA0790 | B196: 0702010604 | C196: Da privato per assistenza protesica | D196: -4792096.16 | E196: -4852166.28
A197: BA0790 | B197: 0702010605 | C197: Da privato per materiale per incontinenza | D197: -1592199.38 | E197: -1451062.73
A198: BA0810 | B198: 0702010701 | C198: Da pubblico per assistenza ospedaliera (Aziende sanitarie pubbliche della Regione) | D198: -25677170 | E198: -23797587
A199: BA0810 | B199: 0702010702 | C199: Da privato accreditato per assistenza ospedaliera insito in Regione territorio extra ASL v/cittadini residenti in territorio ASL - rientranti nei contratti negoziali | D199: -2552921.68 | E199: -2683945.39
A200: BA0830 | B200: 0702010704 | C200: Da pubblico per assistenza ospedaliera (Extraregione) | D200: -23048879.05 | E200: -24057993.46
A201: BA0870 | B201: 0309010905 | C201: Compartecipazione alla spesa per prestazioni sanitarie - Ticket sulle sulle prestaz. trasferite dal regime di ricovero ordinario in regime ambulatoriale (DCA 50/2011) da Case di Cura private | D201: 70673.25 | E201: 75661.95
A202: BA0870 | B202: 0309010906 | C202: Quota fissa di cui all¿art. 17, comma 6, del D.L. 98/2011 per prestaz. trasferite dal regime di ricovero ordinario in regime ambulatoriale (DCA 50/2011) da Case di Cura private | D202: 19550 | E202: 20930
... 374 more rows

Sheet 00 Aggregatore
E2: ANNO | F2: 2018
A4: Aggr | B4: CE | C4: Descrizione CE | D4: C/R | E4: =IF($F$2="","Anno T-1","Esercizio "&$F$2-1) -> Esercizio 2017 | F4: =IF($F$2="","Anno T","Esercizio "&$F$2) -> Esercizio 2018
A5: =LEFT(B5,1)&D5 -> AR | B5: AA0030 | C5: Contributi da Regione o Provincia Autonoma per quota F.S. regionale indistinto | D5: R | E5: =IF('00 Aggregatore'!$D5="R",SUMIF('00 Alimenta'!$A:$A,$B5,'00 Alimenta'!D:D),SUMIF('00 Alimenta'!$A:$A,$B5,'00 Alimenta'!D:D)*-1) -> 547765886.6 | F5: =IF('00 Aggregatore'!$D5="R",SUMIF('00 Alimenta'!$A:$A,$B5,'00 Alimenta'!E:E),SUMIF('00 Alimenta'!$A:$A,$B5,'00 Alimenta'!E:E)*-1) -> 555479764
A6: =LEFT(B6,1)&D6 -> AR | B6: AA0040 | C6: Contributi da Regione o Provincia Autonoma per quota F.S. regionale vincolato | D6: R | E6: =IF('00 Aggregatore'!$D6="R",SUMIF('00 Alimenta'!$A:$A,$B6,'00 Alimenta'!D:D),SUMIF('00 Alimenta'!$A:$A,$B6,'00 Alimenta'!D:D)*-1) -> 14815465.59 | F6: =IF('00 Aggregatore'!$D6="R",SUMIF('00 Alimenta'!$A:$A,$B6,'00 Alimenta'!E:E),SUMIF('00 Alimenta'!$A:$A,$B6,'00 Alimenta'!E:E)*-1) -> 13764801.84
A7: AR | B7: AA0070 | C7: Contributi da Regione o Provincia Autonoma (extra fondo) - Vincolati | D7: R | E7: =IF('00 Aggregatore'!$D7="R",SUMIF('00 Alimenta'!$A:$A,$B7,'00 Alimenta'!D:D),SUMIF('00 Alimenta'!$A:$A,$B7,'00 Alimenta'!D:D)*-1) -> 123104.1 | F7: =IF('00 Aggregatore'!$D7="R",SUMIF('00 Alimenta'!$A:$A,$B7,'00 Alimenta'!E:E),SUMIF('00 Alimenta'!$A:$A,$B7,'00 Alimenta'!E:E)*-1) -> 410404.72
A8: AR | B8: AA0080 | C8: Contributi da Regione o Provincia Autonoma (extra fondo) - Risorse aggiuntive da bilancio regionale a titolo di copertura LEA | D8: R | E8: =IF('00 Aggregatore'!$D8="R",SUMIF('00 Alimenta'!$A:$A,$B8,'00 Alimenta'!D:D),SUMIF('00 Alimenta'!$A:$A,$B8,'00 Alimenta'!D:D)*-1) -> 0 | F8: =IF('00 Aggregatore'!$D8="R",SUMIF('00 Alimenta'!$A:$A,$B8,'00 Alimenta'!E:E),SUMIF('00 Alimenta'!$A:$A,$B8,'00 Alimenta'!E:E)*-1) -> 0
A9: AR | B9: AA0090 | C9: Contributi da Regione o Provincia Autonoma (extra fondo) - Risorse aggiuntive da bilancio regionale a titolo di copertura extra LEA | D9: R | E9: =IF('00 Aggregatore'!$D9="R",SUMIF('00 Alimenta'!$A:$A,$B9,'00 Alimenta'!D:D),SUMIF('00 Alimenta'!$A:$A,$B9,'00 Alimenta'!D:D)*-1) -> 0 | F9: =IF('00 Aggregatore'!$D9="R",SUMIF('00 Alimenta'!$A:$A,$B9,'00 Alimenta'!E:E),SUMIF('00 Alimenta'!$A:$A,$B9,'00 Alimenta'!E:E)*-1) -> 0
A10: AR | B10: AA0100 | C10: Contributi da Regione o Provincia Autonoma (extra fondo) - Altro | D10: R | E10: =IF('00 Aggregatore'!$D10="R",SUMIF('00 Alimenta'!$A:$A,$B10,'00 Alimenta'!D:D),SUMIF('00 Alimenta'!$A:$A,$B10,'00 Alimenta'!D:D)*-1) -> 0 | F10: =IF('00 Aggregatore'!$D10="R",SUMIF('00 Alimenta'!$A:$A,$B10,'00 Alimenta'!E:E),SUMIF('00 Alimenta'!$A:$A,$B10,'00 Alimenta'!E:E)*-1) -> 0
A11: AR | B11: AA0120 | C11: Contributi da Aziende sanitarie pubbliche della Regione o Provincia Autonoma (extra fondo) - Vincolati | D11: R | E11: =IF('00 Aggregatore'!$D11="R",SUMIF('00 Alimenta'!$A:$A,$B11,'00 Alimenta'!D:D),SUMIF('00 Alimenta'!$A:$A,$B11,'00 Alimenta'!D:D)*-1) -> 0 | F11: =IF('00 Aggregatore'!$D11="R",SUMIF('00 Alimenta'!$A:$A,$B11,'00 Alimenta'!E:E),SUMIF('00 Alimenta'!$A:$A,$B11,'00 Alimenta'!E:E)*-1) -> 0
A12: AR | B12: AA0130 | C12: Contributi da Aziende sanitarie pubbliche della Regione o Provincia Autonoma (extra fondo) - Altro | D12: R | E12: =IF('00 Aggregatore'!$D12="R",SUMIF('00 Alimenta'!$A:$A,$B12,'00 Alimenta'!D:D),SUMIF('00 Alimenta'!$A:$A,$B12,'00 Alimenta'!D:D)*-1) -> 0 | F12: =IF('00 Aggregatore'!$D12="R",SUMIF('00 Alimenta'!$A:$A,$B12,'00 Alimenta'!E:E),SUMIF('00 Alimenta'!$A:$A,$B12,'00 Alimenta'!E:E)*-1) -> 0
A13: AR | B13: AA0150 | C13: Contributi da altri soggetti pubblici (extra fondo) - Vincolati | D13: R | E13: =IF('00 Aggregatore'!$D13="R",SUMIF('00 Alimenta'!$A:$A,$B13,'00 Alimenta'!D:D),SUMIF('00 Alimenta'!$A:$A,$B13,'00 Alimenta'!D:D)*-1) -> 156684.25 | F13: =IF('00 Aggregatore'!$D13="R",SUMIF('00 Alimenta'!$A:$A,$B13,'00 Alimenta'!E:E),SUMIF('00 Alimenta'!$A:$A,$B13,'00 Alimenta'!E:E)*-1) -> 168535.25
A14: AR | B14: AA0160 | C14: Contributi da altri soggetti pubblici (extra fondo) - Legge 210/92 | D14: R | E14: =IF('00 Aggregatore'!$D14="R",SUMIF('00 Alimenta'!$A:$A,$B14,'00 Alimenta'!D:D),SUMIF('00 Alimenta'!$A:$A,$B14,'00 Alimenta'!D:D)*-1) -> 0 | F14: =IF('00 Aggregatore'!$D14="R",SUMIF('00 Alimenta'!$A:$A,$B14,'00 Alimenta'!E:E),SUMIF('00 Alimenta'!$A:$A,$B14,'00 Alimenta'!E:E)*-1) -> 0
A15: AR | B15: AA0170 | C15: Contributi da altri soggetti pubblici (extra fondo) - Altro | D15: R | E15: =IF('00 Aggregatore'!$D15="R",SUMIF('00 Alimenta'!$A:$A,$B15,'00 Alimenta'!D:D),SUMIF('00 Alimenta'!$A:$A,$B15,'00 Alimenta'!D:D)*-1) -> 0 | F15: =IF('00 Aggregatore'!$D15="R",SUMIF('00 Alimenta'!$A:$A,$B15,'00 Alimenta'!E:E),SUMIF('00 Alimenta'!$A:$A,$B15,'00 Alimenta'!E:E)*-1) -> 0
A16: AR | B16: AA0190 | C16: Contributi da Ministero della Salute per ricerca corrente | D16: R | E16: =IF('00 Aggregatore'!$D16="R",SUMIF('00 Alimenta'!$A:$A,$B16,'00 Alimenta'!D:D),SUMIF('00 Alimenta'!$A:$A,$B16,'00 Alimenta'!D:D)*-1) -> 0 | F16: =IF('00 Aggregatore'!$D16="R",SUMIF('00 Alimenta'!$A:$A,$B16,'00 Alimenta'!E:E),SUMIF('00 Alimenta'!$A:$A,$B16,'00 Alimenta'!E:E)*-1) -> 0
A17: AR | B17: AA0200 | C17: Contributi da Ministero della Salute per ricerca finalizzata | D17: R | E17: =IF('00 Aggregatore'!$D17="R",SUMIF('00 Alimenta'!$A:$A,$B17,'00 Alimenta'!D:D),SUMIF('00 Alimenta'!$A:$A,$B17,'00 Alimenta'!D:D)*-1) -> 0 | F17: =IF('00 Aggregatore'!$D17="R",SUMIF('00 Alimenta'!$A:$A,$B17,'00 Alimenta'!E:E),SUMIF('00 Alimenta'!$A:$A,$B17,'00 Alimenta'!E:E)*-1) -> 0
A18: AR | B18: AA0210 | C18: Contributi da Regione e altri soggetti pubblici per ricerca | D18: R | E18: =IF('00 Aggregatore'!$D18="R",SUMIF('00 Alimenta'!$A:$A,$B18,'00 Alimenta'!D:D),SUMIF('00 Alimenta'!$A:$A,$B18,'00 Alimenta'!D:D)*-1) -> 0 | F18: =IF('00 Aggregatore'!$D18="R",SUMIF('00 Alimenta'!$A:$A,$B18,'00 Alimenta'!E:E),SUMIF('00 Alimenta'!$A:$A,$B18,'00 Alimenta'!E:E)*-1) -> 0
A19: AR | B19: AA0220 | C19: Contributi da privati per ricerca | D19: R | E19: =IF('00 Aggregatore'!$D19="R",SUMIF('00 Alimenta'!$A:$A,$B19,'00 Alimenta'!D:D),SUMIF('00 Alimenta'!$A:$A,$B19,'00 Alimenta'!D:D)*-1) -> 0 | F19: =IF('00 Aggregatore'!$D19="R",SUMIF('00 Alimenta'!$A:$A,$B19,'00 Alimenta'!E:E),SUMIF('00 Alimenta'!$A:$A,$B19,'00 Alimenta'!E:E)*-1) -> 0
A20: AR | B20: AA0230 | C20: Contributi c/esercizio da privati | D20: R | E20: =IF('00 Aggregatore'!$D20="R",SUMIF('00 Alimenta'!$A:$A,$B20,'00 Alimenta'!D:D),SUMIF('00 Alimenta'!$A:$A,$B20,'00 Alimenta'!D:D)*-1) -> 0 | F20: =IF('00 Aggregatore'!$D20="R",SUMIF('00 Alimenta'!$A:$A,$B20,'00 Alimenta'!E:E),SUMIF('00 Alimenta'!$A:$A,$B20,'00 Alimenta'!E:E)*-1) -> 0
A21: AR | B21: AA0250 | C21: Rettifica contributi in c/esercizio per destinazione ad investimenti - da Regione o Provincia Autonoma per quota F.S. regionale | D21: R | E21: =IF('00 Aggregatore'!$D21="R",SUMIF('00 Alimenta'!$A:$A,$B21,'00 Alimenta'!D:D),SUMIF('00 Alimenta'!$A:$A,$B21,'00 Alimenta'!D:D)*-1) -> -6506318.89 | F21: =IF('00 Aggregatore'!$D21="R",SUMIF('00 Alimenta'!$A:$A,$B21,'00 Alimenta'!E:E),SUMIF('00 Alimenta'!$A:$A,$B21,'00 Alimenta'!E:E)*-1) -> -4347846.81
A22: AR | B22: AA0260 | C22: Rettifica contributi in c/esercizio per destinazione ad investimenti - Altri contributi | D22: R | E22: =IF('00 Aggregatore'!$D22="R",SUMIF('00 Alimenta'!$A:$A,$B22,'00 Alimenta'!D:D),SUMIF('00 Alimenta'!$A:$A,$B22,'00 Alimenta'!D:D)*-1) -> 0 | F22: =IF('00 Aggregatore'!$D22="R",SUMIF('00 Alimenta'!$A:$A,$B22,'00 Alimenta'!E:E),SUMIF('00 Alimenta'!$A:$A,$B22,'00 Alimenta'!E:E)*-1) -> 0
A23: AR | B23: AA0280 | C23: Utilizzo fondi per quote inutilizzate contributi di esercizi precedenti da Regione o Provincia Autonoma per quota F.S. regionale vincolato | D23: R | E23: =IF('00 Aggregatore'!$D23="R",SUMIF('00 Alimenta'!$A:$A,$B23,'00 Alimenta'!D:D),SUMIF('00 Alimenta'!$A:$A,$B23,'00 Alimenta'!D:D)*-1) -> 5681020.1 | F23: =IF('00 Aggregatore'!$D23="R",SUMIF('00 Alimenta'!$A:$A,$B23,'00 Alimenta'!E:E),SUMIF('00 Alimenta'!$A:$A,$B23,'00 Alimenta'!E:E)*-1) -> 8070784.32
A24: AR | B24: AA0290 | C24: Utilizzo fondi per quote inutilizzate contributi di esercizi precedenti da soggetti pubblici (extra fondo) vincolati | D24: R | E24: =IF('00 Aggregatore'!$D24="R",SUMIF('00 Alimenta'!$A:$A,$B24,'00 Alimenta'!D:D),SUMIF('00 Alimenta'!$A:$A,$B24,'00 Alimenta'!D:D)*-1) -> 92452.46 | F24: =IF('00 Aggregatore'!$D24="R",SUMIF('00 Alimenta'!$A:$A,$B24,'00 Alimenta'!E:E),SUMIF('00 Alimenta'!$A:$A,$B24,'00 Alimenta'!E:E)*-1) -> 0
A25: AR | B25: AA0300 | C25: Utilizzo fondi per quote inutilizzate contributi di esercizi precedenti per ricerca | D25: R | E25: =IF('00 Aggregatore'!$D25="R",SUMIF('00 Alimenta'!$A:$A,$B25,'00 Alimenta'!D:D),SUMIF('00 Alimenta'!$A:$A,$B25,'00 Alimenta'!D:D)*-1) -> 0 | F25: =IF('00 Aggregatore'!$D25="R",SUMIF('00 Alimenta'!$A:$A,$B25,'00 Alimenta'!E:E),SUMIF('00 Alimenta'!$A:$A,$B25,'00 Alimenta'!E:E)*-1) -> 0
A26: AR | B26: AA0310 | C26: Utilizzo fondi per quote inutilizzate contributi vincolati di esercizi precedenti da privati | D26: R | E26: =IF('00 Aggregatore'!$D26="R",SUMIF('00 Alimenta'!$A:$A,$B26,'00 Alimenta'!D:D),SUMIF('00 Alimenta'!$A:$A,$B26,'00 Alimenta'!D:D)*-1) -> 0 | F26: =IF('00 Aggregatore'!$D26="R",SUMIF('00 Alimenta'!$A:$A,$B26,'00 Alimenta'!E:E),SUMIF('00 Alimenta'!$A:$A,$B26,'00 Alimenta'!E:E)*-1) -> 0
A27: AR | B27: AA0350 | C27: Prestazioni di ricovero | D27: R | E27: =IF('00 Aggregatore'!$D27="R",SUMIF('00 Alimenta'!$A:$A,$B27,'00 Alimenta'!D:D),SUMIF('00 Alimenta'!$A:$A,$B27,'00 Alimenta'!D:D)*-1) -> 62109937.31 | F27: =IF('00 Aggregatore'!$D27="R",SUMIF('00 Alimenta'!$A:$A,$B27,'00 Alimenta'!E:E),SUMIF('00 Alimenta'!$A:$A,$B27,'00 Alimenta'!E:E)*-1) -> 63932152.8
A28: AR | B28: AA0360 | C28: Prestazioni di specialistica ambulatoriale | D28: R | E28: =IF('00 Aggregatore'!$D28="R",SUMIF('00 Alimenta'!$A:$A,$B28,'00 Alimenta'!D:D),SUMIF('00 Alimenta'!$A:$A,$B28,'00 Alimenta'!D:D)*-1) -> 8188514.26 | F28: =IF('00 Aggregatore'!$D28="R",SUMIF('00 Alimenta'!$A:$A,$B28,'00 Alimenta'!E:E),SUMIF('00 Alimenta'!$A:$A,$B28,'00 Alimenta'!E:E)*-1) -> 8495470.67
A29: AR | B29: AA0370 | C29: Prestazioni di psichiatria residenziale e semiresidenziale | D29: R | E29: =IF('00 Aggregatore'!$D29="R",SUMIF('00 Alimenta'!$A:$A,$B29,'00 Alimenta'!D:D),SUMIF('00 Alimenta'!$A:$A,$B29,'00 Alimenta'!D:D)*-1) -> 4556497.31 | F29: =IF('00 Aggregatore'!$D29="R",SUMIF('00 Alimenta'!$A:$A,$B29,'00 Alimenta'!E:E),SUMIF('00 Alimenta'!$A:$A,$B29,'00 Alimenta'!E:E)*-1) -> 4667985.86
A30: AR | B30: AA0380 | C30: Prestazioni di File F | D30: R | E30: =IF('00 Aggregatore'!$D30="R",SUMIF('00 Alimenta'!$A:$A,$B30,'00 Alimenta'!D:D),SUMIF('00 Alimenta'!$A:$A,$B30,'00 Alimenta'!D:D)*-1) -> 13565690.02 | F30: =IF('00 Aggregatore'!$D30="R",SUMIF('00 Alimenta'!$A:$A,$B30,'00 Alimenta'!E:E),SUMIF('00 Alimenta'!$A:$A,$B30,'00 Alimenta'!E:E)*-1) -> 13551276.25
A31: AR | B31: AA0390 | C31: Prestazioni servizi MMG, PLS, Continuità assistenziale | D31: R | E31: =IF('00 Aggregatore'!$D31="R",SUMIF('00 Alimenta'!$A:$A,$B31,'00 Alimenta'!D:D),SUMIF('00 Alimenta'!$A:$A,$B31,'00 Alimenta'!D:D)*-1) -> 57455.65 | F31: =IF('00 Aggregatore'!$D31="R",SUMIF('00 Alimenta'!$A:$A,$B31,'00 Alimenta'!E:E),SUMIF('00 Alimenta'!$A:$A,$B31,'00 Alimenta'!E:E)*-1) -> 76930.02
A32: AR | B32: AA0400 | C32: Prestazioni servizi farmaceutica convenzionata | D32: R | E32: =IF('00 Aggregatore'!$D32="R",SUMIF('00 Alimenta'!$A:$A,$B32,'00 Alimenta'!D:D),SUMIF('00 Alimenta'!$A:$A,$B32,'00 Alimenta'!D:D)*-1) -> 1531007.26 | F32: =IF('00 Aggregatore'!$D32="R",SUMIF('00 Alimenta'!$A:$A,$B32,'00 Alimenta'!E:E),SUMIF('00 Alimenta'!$A:$A,$B32,'00 Alimenta'!E:E)*-1) -> 1554303.34
A33: AR | B33: AA0410 | C33: Prestazioni termali | D33: R | E33: =IF('00 Aggregatore'!$D33="R",SUMIF('00 Alimenta'!$A:$A,$B33,'00 Alimenta'!D:D),SUMIF('00 Alimenta'!$A:$A,$B33,'00 Alimenta'!D:D)*-1) -> 1104099.89 | F33: =IF('00 Aggregatore'!$D33="R",SUMIF('00 Alimenta'!$A:$A,$B33,'00 Alimenta'!E:E),SUMIF('00 Alimenta'!$A:$A,$B33,'00 Alimenta'!E:E)*-1) -> 1071238.47
A34: AR | B34: AA0420 | C34: Prestazioni trasporto ambulanze ed elisoccorso | D34: R | E34: =IF('00 Aggregatore'!$D34="R",SUMIF('00 Alimenta'!$A:$A,$B34,'00 Alimenta'!D:D),SUMIF('00 Alimenta'!$A:$A,$B34,'00 Alimenta'!D:D)*-1) -> 175653.51 | F34: =IF('00 Aggregatore'!$D34="R",SUMIF('00 Alimenta'!$A:$A,$B34,'00 Alimenta'!E:E),SUMIF('00 Alimenta'!$A:$A,$B34,'00 Alimenta'!E:E)*-1) -> 176712.63
A35: AR | B35: AA0430 | C35: Altre prestazioni sanitarie e socio-sanitarie a rilevanza sanitaria | D35: R | E35: =IF('00 Aggregatore'!$D35="R",SUMIF('00 Alimenta'!$A:$A,$B35,'00 Alimenta'!D:D),SUMIF('00 Alimenta'!$A:$A,$B35,'00 Alimenta'!D:D)*-1) -> 5392204.38 | F35: =IF('00 Aggregatore'!$D35="R",SUMIF('00 Alimenta'!$A:$A,$B35,'00 Alimenta'!E:E),SUMIF('00 Alimenta'!$A:$A,$B35,'00 Alimenta'!E:E)*-1) -> 5984310.97
A36: AR | B36: AA0440 | C36: Ricavi per prestazioni sanitarie e socio-sanitarie a rilevanza sanitaria erogate ad altri soggetti pubblici | D36: R | E36: =IF('00 Aggregatore'!$D36="R",SUMIF('00 Alimenta'!$A:$A,$B36,'00 Alimenta'!D:D),SUMIF('00 Alimenta'!$A:$A,$B36,'00 Alimenta'!D:D)*-1) -> 45364.98 | F36: =IF('00 Aggregatore'!$D36="R",SUMIF('00 Alimenta'!$A:$A,$B36,'00 Alimenta'!E:E),SUMIF('00 Alimenta'!$A:$A,$B36,'00 Alimenta'!E:E)*-1) -> 90381.5
A37: AR | B37: AA0460 | C37: Prestazioni di ricovero | D37: R | E37: =IF('00 Aggregatore'!$D37="R",SUMIF('00 Alimenta'!$A:$A,$B37,'00 Alimenta'!D:D),SUMIF('00 Alimenta'!$A:$A,$B37,'00 Alimenta'!D:D)*-1) -> 1554681.22 | F37: =IF('00 Aggregatore'!$D37="R",SUMIF('00 Alimenta'!$A:$A,$B37,'00 Alimenta'!E:E),SUMIF('00 Alimenta'!$A:$A,$B37,'00 Alimenta'!E:E)*-1) -> 7320391.07
A38: AR | B38: AA0470 | C38: Prestazioni ambulatoriali | D38: R | E38: =IF('00 Aggregatore'!$D38="R",SUMIF('00 Alimenta'!$A:$A,$B38,'00 Alimenta'!D:D),SUMIF('00 Alimenta'!$A:$A,$B38,'00 Alimenta'!D:D)*-1) -> 851774.85 | F38: =IF('00 Aggregatore'!$D38="R",SUMIF('00 Alimenta'!$A:$A,$B38,'00 Alimenta'!E:E),SUMIF('00 Alimenta'!$A:$A,$B38,'00 Alimenta'!E:E)*-1) -> 1477229.91
A39: AR | B39: AA0480 | C39: Prestazioni di psichiatria non soggetta a compensazione (residenziale e semiresidenziale) | D39: R | E39: =IF('00 Aggregatore'!$D39="R",SUMIF('00 Alimenta'!$A:$A,$B39,'00 Alimenta'!D:D),SUMIF('00 Alimenta'!$A:$A,$B39,'00 Alimenta'!D:D)*-1) -> 0 | F39: =IF('00 Aggregatore'!$D39="R",SUMIF('00 Alimenta'!$A:$A,$B39,'00 Alimenta'!E:E),SUMIF('00 Alimenta'!$A:$A,$B39,'00 Alimenta'!E:E)*-1) -> 0
A40: AR | B40: AA0490 | C40: Prestazioni di File F | D40: R | E40: =IF('00 Aggregatore'!$D40="R",SUMIF('00 Alimenta'!$A:$A,$B40,'00 Alimenta'!D:D),SUMIF('00 Alimenta'!$A:$A,$B40,'00 Alimenta'!D:D)*-1) -> 1604980.14 | F40: =IF('00 Aggregatore'!$D40="R",SUMIF('00 Alimenta'!$A:$A,$B40,'00 Alimenta'!E:E),SUMIF('00 Alimenta'!$A:$A,$B40,'00 Alimenta'!E:E)*-1) -> 2471453.08
A41: AR | B41: AA0500 | C41: Prestazioni servizi MMG, PLS, Continuità assistenziale extra Regione | D41: R | E41: =IF('00 Aggregatore'!$D41="R",SUMIF('00 Alimenta'!$A:$A,$B41,'00 Alimenta'!D:D),SUMIF('00 Alimenta'!$A:$A,$B41,'00 Alimenta'!D:D)*-1) -> 119388.84 | F41: =IF('00 Aggregatore'!$D41="R",SUMIF('00 Alimenta'!$A:$A,$B41,'00 Alimenta'!E:E),SUMIF('00 Alimenta'!$A:$A,$B41,'00 Alimenta'!E:E)*-1) -> 56122.64
A42: AR | B42: AA0510 | C42: Prestazioni servizi farmaceutica convenzionata extra Regione | D42: R | E42: =IF('00 Aggregatore'!$D42="R",SUMIF('00 Alimenta'!$A:$A,$B42,'00 Alimenta'!D:D),SUMIF('00 Alimenta'!$A:$A,$B42,'00 Alimenta'!D:D)*-1) -> 502038.11 | F42: =IF('00 Aggregatore'!$D42="R",SUMIF('00 Alimenta'!$A:$A,$B42,'00 Alimenta'!E:E),SUMIF('00 Alimenta'!$A:$A,$B42,'00 Alimenta'!E:E)*-1) -> 506661.23
A43: AR | B43: AA0520 | C43: Prestazioni termali extra Regione | D43: R | E43: =IF('00 Aggregatore'!$D43="R",SUMIF('00 Alimenta'!$A:$A,$B43,'00 Alimenta'!D:D),SUMIF('00 Alimenta'!$A:$A,$B43,'00 Alimenta'!D:D)*-1) -> 172275.4 | F43: =IF('00 Aggregatore'!$D43="R",SUMIF('00 Alimenta'!$A:$A,$B43,'00 Alimenta'!E:E),SUMIF('00 Alimenta'!$A:$A,$B43,'00 Alimenta'!E:E)*-1) -> 180073.68
A44: AR | B44: AA0530 | C44: Prestazioni trasporto ambulanze ed elisoccorso extra Regione | D44: R | E44: =IF('00 Aggregatore'!$D44="R",SUMIF('00 Alimenta'!$A:$A,$B44,'00 Alimenta'!D:D),SUMIF('00 Alimenta'!$A:$A,$B44,'00 Alimenta'!D:D)*-1) -> 512404.02 | F44: =IF('00 Aggregatore'!$D44="R",SUMIF('00 Alimenta'!$A:$A,$B44,'00 Alimenta'!E:E),SUMIF('00 Alimenta'!$A:$A,$B44,'00 Alimenta'!E:E)*-1) -> 469730.81
A45: AR | B45: AA0540 | C45: Altre prestazioni sanitarie e socio-sanitarie a rilevanza sanitaria extra Regione | D45: R | E45: =IF('00 Aggregatore'!$D45="R",SUMIF('00 Alimenta'!$A:$A,$B45,'00 Alimenta'!D:D),SUMIF('00 Alimenta'!$A:$A,$B45,'00 Alimenta'!D:D)*-1) -> 0 | F45: =IF('00 Aggregatore'!$D45="R",SUMIF('00 Alimenta'!$A:$A,$B45,'00 Alimenta'!E:E),SUMIF('00 Alimenta'!$A:$A,$B45,'00 Alimenta'!E:E)*-1) -> 0
A46: AR | B46: AA0550 | C46: Ricavi per cessione di emocomponenti e cellule staminali extra Regione | D46: R | E46: =IF('00 Aggregatore'!$D46="R",SUMIF('00 Alimenta'!$A:$A,$B46,'00 Alimenta'!D:D),SUMIF('00 Alimenta'!$A:$A,$B46,'00 Alimenta'!D:D)*-1) -> 174766.05 | F46: =IF('00 Aggregatore'!$D46="R",SUMIF('00 Alimenta'!$A:$A,$B46,'00 Alimenta'!E:E),SUMIF('00 Alimenta'!$A:$A,$B46,'00 Alimenta'!E:E)*-1) -> 0
A47: AR | B47: AA0560 | C47: Ricavi per differenziale tariffe TUC | D47: R | E47: =IF('00 Aggregatore'!$D47="R",SUMIF('00 Alimenta'!$A:$A,$B47,'00 Alimenta'!D:D),SUMIF('00 Alimenta'!$A:$A,$B47,'00 Alimenta'!D:D)*-1) -> 0 | F47: =IF('00 Aggregatore'!$D47="R",SUMIF('00 Alimenta'!$A:$A,$B47,'00 Alimenta'!E:E),SUMIF('00 Alimenta'!$A:$A,$B47,'00 Alimenta'!E:E)*-1) -> 0
A48: AR | B48: AA0580 | C48: Prestazioni di assistenza riabilitativa non soggette a compensazione extra Regione | D48: R | E48: =IF('00 Aggregatore'!$D48="R",SUMIF('00 Alimenta'!$A:$A,$B48,'00 Alimenta'!D:D),SUMIF('00 Alimenta'!$A:$A,$B48,'00 Alimenta'!D:D)*-1) -> 0 | F48: =IF('00 Aggregatore'!$D48="R",SUMIF('00 Alimenta'!$A:$A,$B48,'00 Alimenta'!E:E),SUMIF('00 Alimenta'!$A:$A,$B48,'00 Alimenta'!E:E)*-1) -> 0
A49: AR | B49: AA0590 | C49: Altre prestazioni sanitarie e socio-sanitarie a rilevanza sanitaria non soggette a compensazione extra Regione | D49: R | E49: =IF('00 Aggregatore'!$D49="R",SUMIF('00 Alimenta'!$A:$A,$B49,'00 Alimenta'!D:D),SUMIF('00 Alimenta'!$A:$A,$B49,'00 Alimenta'!D:D)*-1) -> 1696.8 | F49: =IF('00 Aggregatore'!$D49="R",SUMIF('00 Alimenta'!$A:$A,$B49,'00 Alimenta'!E:E),SUMIF('00 Alimenta'!$A:$A,$B49,'00 Alimenta'!E:E)*-1) -> 2626.39
A50: AR | B50: AA0600 | C50: Altre prestazioni sanitarie a rilevanza sanitaria - Mobilità attiva internazionale | D50: R | E50: =IF('00 Aggregatore'!$D50="R",SUMIF('00 Alimenta'!$A:$A,$B50,'00 Alimenta'!D:D),SUMIF('00 Alimenta'!$A:$A,$B50,'00 Alimenta'!D:D)*-1) -> 0 | F50: =IF('00 Aggregatore'!$D50="R",SUMIF('00 Alimenta'!$A:$A,$B50,'00 Alimenta'!E:E),SUMIF('00 Alimenta'!$A:$A,$B50,'00 Alimenta'!E:E)*-1) -> 318967.76
A51: AR | B51: AA0620 | C51: Prestazioni di ricovero da privati extra Regione in compensazione (mobilità attiva) | D51: R | E51: =IF('00 Aggregatore'!$D51="R",SUMIF('00 Alimenta'!$A:$A,$B51,'00 Alimenta'!D:D),SUMIF('00 Alimenta'!$A:$A,$B51,'00 Alimenta'!D:D)*-1) -> 11917704.07 | F51: =IF('00 Aggregatore'!$D51="R",SUMIF('00 Alimenta'!$A:$A,$B51,'00 Alimenta'!E:E),SUMIF('00 Alimenta'!$A:$A,$B51,'00 Alimenta'!E:E)*-1) -> 10285883.1
A52: AR | B52: AA0630 | C52: Prestazioni ambulatoriali da privati extra Regione in compensazione (mobilità attiva) | D52: R | E52: =IF('00 Aggregatore'!$D52="R",SUMIF('00 Alimenta'!$A:$A,$B52,'00 Alimenta'!D:D),SUMIF('00 Alimenta'!$A:$A,$B52,'00 Alimenta'!D:D)*-1) -> 218419.7 | F52: =IF('00 Aggregatore'!$D52="R",SUMIF('00 Alimenta'!$A:$A,$B52,'00 Alimenta'!E:E),SUMIF('00 Alimenta'!$A:$A,$B52,'00 Alimenta'!E:E)*-1) -> 201606.44
A53: AR | B53: AA0640 | C53: Prestazioni di File F da privati extra Regione in compensazione (mobilità attiva) | D53: R | E53: =IF('00 Aggregatore'!$D53="R",SUMIF('00 Alimenta'!$A:$A,$B53,'00 Alimenta'!D:D),SUMIF('00 Alimenta'!$A:$A,$B53,'00 Alimenta'!D:D)*-1) -> 0 | F53: =IF('00 Aggregatore'!$D53="R",SUMIF('00 Alimenta'!$A:$A,$B53,'00 Alimenta'!E:E),SUMIF('00 Alimenta'!$A:$A,$B53,'00 Alimenta'!E:E)*-1) -> 0
A54: AR | B54: AA0650 | C54: Altre prestazioni sanitarie e socio-sanitarie a rilevanza sanitaria erogate da privati v/residenti extra Regione in compensazione (mobilità attiva) | D54: R | E54: =IF('00 Aggregatore'!$D54="R",SUMIF('00 Alimenta'!$A:$A,$B54,'00 Alimenta'!D:D),SUMIF('00 Alimenta'!$A:$A,$B54,'00 Alimenta'!D:D)*-1) -> 0 | F54: =IF('00 Aggregatore'!$D54="R",SUMIF('00 Alimenta'!$A:$A,$B54,'00 Alimenta'!E:E),SUMIF('00 Alimenta'!$A:$A,$B54,'00 Alimenta'!E:E)*-1) -> 0
A55: AR | B55: AA0660 | C55: Ricavi per prestazioni sanitarie e socio-sanitarie a rilevanza sanitaria erogate a privati | D55: R | E55: =IF('00 Aggregatore'!$D55="R",SUMIF('00 Alimenta'!$A:$A,$B55,'00 Alimenta'!D:D),SUMIF('00 Alimenta'!$A:$A,$B55,'00 Alimenta'!D:D)*-1) -> 3569406.31 | F55: =IF('00 Aggregatore'!$D55="R",SUMIF('00 Alimenta'!$A:$A,$B55,'00 Alimenta'!E:E),SUMIF('00 Alimenta'!$A:$A,$B55,'00 Alimenta'!E:E)*-1) -> 3620504.31
A56: AR | B56: AA0680 | C56: Ricavi per prestazioni sanitarie intramoenia - Area ospedaliera | D56: R | E56: =IF('00 Aggregatore'!$D56="R",SUMIF('00 Alimenta'!$A:$A,$B56,'00 Alimenta'!D:D),SUMIF('00 Alimenta'!$A:$A,$B56,'00 Alimenta'!D:D)*-1) -> 50045.82 | F56: =IF('00 Aggregatore'!$D56="R",SUMIF('00 Alimenta'!$A:$A,$B56,'00 Alimenta'!E:E),SUMIF('00 Alimenta'!$A:$A,$B56,'00 Alimenta'!E:E)*-1) -> 80436.56
A57: AR | B57: AA0690 | C57: Ricavi per prestazioni sanitarie intramoenia - Area specialistica | D57: R | E57: =IF('00 Aggregatore'!$D57="R",SUMIF('00 Alimenta'!$A:$A,$B57,'00 Alimenta'!D:D),SUMIF('00 Alimenta'!$A:$A,$B57,'00 Alimenta'!D:D)*-1) -> 3252006 | F57: =IF('00 Aggregatore'!$D57="R",SUMIF('00 Alimenta'!$A:$A,$B57,'00 Alimenta'!E:E),SUMIF('00 Alimenta'!$A:$A,$B57,'00 Alimenta'!E:E)*-1) -> 3326104
A58: AR | B58: AA0700 | C58: Ricavi per prestazioni sanitarie intramoenia - Area sanità pubblica | D58: R | E58: =IF('00 Aggregatore'!$D58="R",SUMIF('00 Alimenta'!$A:$A,$B58,'00 Alimenta'!D:D),SUMIF('00 Alimenta'!$A:$A,$B58,'00 Alimenta'!D:D)*-1) -> 22414.54 | F58: =IF('00 Aggregatore'!$D58="R",SUMIF('00 Alimenta'!$A:$A,$B58,'00 Alimenta'!E:E),SUMIF('00 Alimenta'!$A:$A,$B58,'00 Alimenta'!E:E)*-1) -> 17534.57
A59: AR | B59: AA0710 | C59: Ricavi per prestazioni sanitarie intramoenia - Consulenze (ex art. 55 c.1 lett. c), d) ed ex art. 57-58) | D59: R | E59: =IF('00 Aggregatore'!$D59="R",SUMIF('00 Alimenta'!$A:$A,$B59,'00 Alimenta'!D:D),SUMIF('00 Alimenta'!$A:$A,$B59,'00 Alimenta'!D:D)*-1) -> 478823.7 | F59: =IF('00 Aggregatore'!$D59="R",SUMIF('00 Alimenta'!$A:$A,$B59,'00 Alimenta'!E:E),SUMIF('00 Alimenta'!$A:$A,$B59,'00 Alimenta'!E:E)*-1) -> 677848.85
A60: AR | B60: AA0720 | C60: Ricavi per prestazioni sanitarie intramoenia - Consulenze (ex art. 55 c.1 lett. c), d) ed ex art. 57-58) (Aziende sanitarie pubbliche della Regione) | D60: R | E60: =IF('00 Aggregatore'!$D60="R",SUMIF('00 Alimenta'!$A:$A,$B60,'00 Alimenta'!D:D),SUMIF('00 Alimenta'!$A:$A,$B60,'00 Alimenta'!D:D)*-1) -> 0 | F60: =IF('00 Aggregatore'!$D60="R",SUMIF('00 Alimenta'!$A:$A,$B60,'00 Alimenta'!E:E),SUMIF('00 Alimenta'!$A:$A,$B60,'00 Alimenta'!E:E)*-1) -> 0
A61: AR | B61: AA0730 | C61: Ricavi per prestazioni sanitarie intramoenia - Altro | D61: R | E61: =IF('00 Aggregatore'!$D61="R",SUMIF('00 Alimenta'!$A:$A,$B61,'00 Alimenta'!D:D),SUMIF('00 Alimenta'!$A:$A,$B61,'00 Alimenta'!D:D)*-1) -> 97870.17 | F61: =IF('00 Aggregatore'!$D61="R",SUMIF('00 Alimenta'!$A:$A,$B61,'00 Alimenta'!E:E),SUMIF('00 Alimenta'!$A:$A,$B61,'00 Alimenta'!E:E)*-1) -> 130775.39
A62: AR | B62: AA0740 | C62: Ricavi per prestazioni sanitarie intramoenia - Altro (Aziende sanitarie pubbliche della Regione) | D62: R | E62: =IF('00 Aggregatore'!$D62="R",SUMIF('00 Alimenta'!$A:$A,$B62,'00 Alimenta'!D:D),SUMIF('00 Alimenta'!$A:$A,$B62,'00 Alimenta'!D:D)*-1) -> 18272.1 | F62: =IF('00 Aggregatore'!$D62="R",SUMIF('00 Alimenta'!$A:$A,$B62,'00 Alimenta'!E:E),SUMIF('00 Alimenta'!$A:$A,$B62,'00 Alimenta'!E:E)*-1) -> 5779.7
A63: AR | B63: AA0760 | C63: Rimborsi assicurativi | D63: R | E63: =IF('00 Aggregatore'!$D63="R",SUMIF('00 Alimenta'!$A:$A,$B63,'00 Alimenta'!D:D),SUMIF('00 Alimenta'!$A:$A,$B63,'00 Alimenta'!D:D)*-1) -> 166973.67 | F63: =IF('00 Aggregatore'!$D63="R",SUMIF('00 Alimenta'!$A:$A,$B63,'00 Alimenta'!E:E),SUMIF('00 Alimenta'!$A:$A,$B63,'00 Alimenta'!E:E)*-1) -> 151672.58
A64: AR | B64: AA0780 | C64: Rimborso degli oneri stipendiali del personale dell'Azienda in posizione di comando presso la Regione | D64: R | E64: =IF('00 Aggregatore'!$D64="R",SUMIF('00 Alimenta'!$A:$A,$B64,'00 Alimenta'!D:D),SUMIF('00 Alimenta'!$A:$A,$B64,'00 Alimenta'!D:D)*-1) -> 0 | F64: =IF('00 Aggregatore'!$D64="R",SUMIF('00 Alimenta'!$A:$A,$B64,'00 Alimenta'!E:E),SUMIF('00 Alimenta'!$A:$A,$B64,'00 Alimenta'!E:E)*-1) -> 0
A65: AR | B65: AA0790 | C65: Altri concorsi, recuperi e rimborsi da parte della Regione | D65: R | E65: =IF('00 Aggregatore'!$D65="R",SUMIF('00 Alimenta'!$A:$A,$B65,'00 Alimenta'!D:D),SUMIF('00 Alimenta'!$A:$A,$B65,'00 Alimenta'!D:D)*-1) -> 0 | F65: =IF('00 Aggregatore'!$D65="R",SUMIF('00 Alimenta'!$A:$A,$B65,'00 Alimenta'!E:E),SUMIF('00 Alimenta'!$A:$A,$B65,'00 Alimenta'!E:E)*-1) -> 0
A66: AR | B66: AA0810 | C66: Rimborso degli oneri stipendiali del personale dipendente dell'Azienda in posizione di comando presso Aziende sanitarie pubbliche della Regione | D66: R | E66: =IF('00 Aggregatore'!$D66="R",SUMIF('00 Alimenta'!$A:$A,$B66,'00 Alimenta'!D:D),SUMIF('00 Alimenta'!$A:$A,$B66,'00 Alimenta'!D:D)*-1) -> 14346.46 | F66: =IF('00 Aggregatore'!$D66="R",SUMIF('00 Alimenta'!$A:$A,$B66,'00 Alimenta'!E:E),SUMIF('00 Alimenta'!$A:$A,$B66,'00 Alimenta'!E:E)*-1) -> 23253.72
A67: AR | B67: AA0820 | C67: Rimborsi per acquisto beni da parte di Aziende sanitarie pubbliche della Regione | D67: R | E67: =IF('00 Aggregatore'!$D67="R",SUMIF('00 Alimenta'!$A:$A,$B67,'00 Alimenta'!D:D),SUMIF('00 Alimenta'!$A:$A,$B67,'00 Alimenta'!D:D)*-1) -> 0 | F67: =IF('00 Aggregatore'!$D67="R",SUMIF('00 Alimenta'!$A:$A,$B67,'00 Alimenta'!E:E),SUMIF('00 Alimenta'!$A:$A,$B67,'00 Alimenta'!E:E)*-1) -> 0
A68: AR | B68: AA0830 | C68: Altri concorsi, recuperi e rimborsi da parte di Aziende sanitarie pubbliche della Regione | D68: R | E68: =IF('00 Aggregatore'!$D68="R",SUMIF('00 Alimenta'!$A:$A,$B68,'00 Alimenta'!D:D),SUMIF('00 Alimenta'!$A:$A,$B68,'00 Alimenta'!D:D)*-1) -> 135883.64 | F68: =IF('00 Aggregatore'!$D68="R",SUMIF('00 Alimenta'!$A:$A,$B68,'00 Alimenta'!E:E),SUMIF('00 Alimenta'!$A:$A,$B68,'00 Alimenta'!E:E)*-1) -> 180596.98
A69: AR | B69: AA0850 | C69: Rimborso degli oneri stipendiali del personale dipendente dell'Azienda in posizione di comando presso altri soggetti pubblici | D69: R | E69: =IF('00 Aggregatore'!$D69="R",SUMIF('00 Alimenta'!$A:$A,$B69,'00 Alimenta'!D:D),SUMIF('00 Alimenta'!$A:$A,$B69,'00 Alimenta'!D:D)*-1) -> 114750.81 | F69: =IF('00 Aggregatore'!$D69="R",SUMIF('00 Alimenta'!$A:$A,$B69,'00 Alimenta'!E:E),SUMIF('00 Alimenta'!$A:$A,$B69,'00 Alimenta'!E:E)*-1) -> 150326.43
A70: =LEFT(B70,1)&D70 -> AR | B70: AA0860 | C70: Rimborsi per acquisto beni da parte di altri soggetti pubblici | D70: R | E70: =IF('00 Aggregatore'!$D70="R",SUMIF('00 Alimenta'!$A:$A,$B70,'00 Alimenta'!D:D),SUMIF('00 Alimenta'!$A:$A,$B70,'00 Alimenta'!D:D)*-1) -> 14709.64 | F70: =IF('00 Aggregatore'!$D70="R",SUMIF('00 Alimenta'!$A:$A,$B70,'00 Alimenta'!E:E),SUMIF('00 Alimenta'!$A:$A,$B70,'00 Alimenta'!E:E)*-1) -> 8374.78
A71: AR | B71: AA0870 | C71: Altri concorsi, recuperi e rimborsi da parte di altri soggetti pubblici | D71: R | E71: =IF('00 Aggregatore'!$D71="R",SUMIF('00 Alimenta'!$A:$A,$B71,'00 Alimenta'!D:D),SUMIF('00 Alimenta'!$A:$A,$B71,'00 Alimenta'!D:D)*-1) -> 157670.22 | F71: =IF('00 Aggregatore'!$D71="R",SUMIF('00 Alimenta'!$A:$A,$B71,'00 Alimenta'!E:E),SUMIF('00 Alimenta'!$A:$A,$B71,'00 Alimenta'!E:E)*-1) -> 94410.65
A72: AR | B72: AA0900 | C72: Pay-back per il superamento del tetto della spesa farmaceutica territoriale | D72: R | E72: =IF('00 Aggregatore'!$D72="R",SUMIF('00 Alimenta'!$A:$A,$B72,'00 Alimenta'!D:D),SUMIF('00 Alimenta'!$A:$A,$B72,'00 Alimenta'!D:D)*-1) -> 0 | F72: =IF('00 Aggregatore'!$D72="R",SUMIF('00 Alimenta'!$A:$A,$B72,'00 Alimenta'!E:E),SUMIF('00 Alimenta'!$A:$A,$B72,'00 Alimenta'!E:E)*-1) -> 0
A73: AR | B73: AA0910 | C73: Pay-back per superamento del tetto della spesa farmaceutica ospedaliera | D73: R | E73: =IF('00 Aggregatore'!$D73="R",SUMIF('00 Alimenta'!$A:$A,$B73,'00 Alimenta'!D:D),SUMIF('00 Alimenta'!$A:$A,$B73,'00 Alimenta'!D:D)*-1) -> 20 | F73: =IF('00 Aggregatore'!$D73="R",SUMIF('00 Alimenta'!$A:$A,$B73,'00 Alimenta'!E:E),SUMIF('00 Alimenta'!$A:$A,$B73,'00 Alimenta'!E:E)*-1) -> 0
A74: AR | B74: AA0920 | C74: Ulteriore Pay-back | D74: R | E74: =IF('00 Aggregatore'!$D74="R",SUMIF('00 Alimenta'!$A:$A,$B74,'00 Alimenta'!D:D),SUMIF('00 Alimenta'!$A:$A,$B74,'00 Alimenta'!D:D)*-1) -> 3426932.4 | F74: =IF('00 Aggregatore'!$D74="R",SUMIF('00 Alimenta'!$A:$A,$B74,'00 Alimenta'!E:E),SUMIF('00 Alimenta'!$A:$A,$B74,'00 Alimenta'!E:E)*-1) -> 2615698.91
A75: AR | B75: AA0930 | C75: Altri concorsi, recuperi e rimborsi da privati | D75: R | E75: =IF('00 Aggregatore'!$D75="R",SUMIF('00 Alimenta'!$A:$A,$B75,'00 Alimenta'!D:D),SUMIF('00 Alimenta'!$A:$A,$B75,'00 Alimenta'!D:D)*-1) -> 866980.31 | F75: =IF('00 Aggregatore'!$D75="R",SUMIF('00 Alimenta'!$A:$A,$B75,'00 Alimenta'!E:E),SUMIF('00 Alimenta'!$A:$A,$B75,'00 Alimenta'!E:E)*-1) -> 634408.52
A76: AR | B76: AA0950 | C76: Compartecipazione alla spesa per prestazioni sanitarie - Ticket sulle prestazioni di specialistica ambulatoriale | D76: R | E76: =IF('00 Aggregatore'!$D76="R",SUMIF('00 Alimenta'!$A:$A,$B76,'00 Alimenta'!D:D),SUMIF('00 Alimenta'!$A:$A,$B76,'00 Alimenta'!D:D)*-1) -> 6414769.32 | F76: =IF('00 Aggregatore'!$D76="R",SUMIF('00 Alimenta'!$A:$A,$B76,'00 Alimenta'!E:E),SUMIF('00 Alimenta'!$A:$A,$B76,'00 Alimenta'!E:E)*-1) -> 6543145.31
A77: AR | B77: AA0960 | C77: Compartecipazione alla spesa per prestazioni sanitarie - Ticket sul pronto soccorso | D77: R | E77: =IF('00 Aggregatore'!$D77="R",SUMIF('00 Alimenta'!$A:$A,$B77,'00 Alimenta'!D:D),SUMIF('00 Alimenta'!$A:$A,$B77,'00 Alimenta'!D:D)*-1) -> 330322.76 | F77: =IF('00 Aggregatore'!$D77="R",SUMIF('00 Alimenta'!$A:$A,$B77,'00 Alimenta'!E:E),SUMIF('00 Alimenta'!$A:$A,$B77,'00 Alimenta'!E:E)*-1) -> 386661.64
A78: AR | B78: AA0970 | C78: Compartecipazione alla spesa per prestazioni sanitarie (Ticket) - Altro | D78: R | E78: =IF('00 Aggregatore'!$D78="R",SUMIF('00 Alimenta'!$A:$A,$B78,'00 Alimenta'!D:D),SUMIF('00 Alimenta'!$A:$A,$B78,'00 Alimenta'!D:D)*-1) -> 0 | F78: =IF('00 Aggregatore'!$D78="R",SUMIF('00 Alimenta'!$A:$A,$B78,'00 Alimenta'!E:E),SUMIF('00 Alimenta'!$A:$A,$B78,'00 Alimenta'!E:E)*-1) -> 0
A79: AR | B79: AA0990 | C79: Quota imputata all'esercizio dei finanziamenti per investimenti dallo Stato | D79: R | E79: =IF('00 Aggregatore'!$D79="R",SUMIF('00 Alimenta'!$A:$A,$B79,'00 Alimenta'!D:D),SUMIF('00 Alimenta'!$A:$A,$B79,'00 Alimenta'!D:D)*-1) -> 48286.07 | F79: =IF('00 Aggregatore'!$D79="R",SUMIF('00 Alimenta'!$A:$A,$B79,'00 Alimenta'!E:E),SUMIF('00 Alimenta'!$A:$A,$B79,'00 Alimenta'!E:E)*-1) -> 54754.03
A80: AR | B80: AA1000 | C80: Quota imputata all'esercizio dei finanziamenti per investimenti da Regione | D80: R | E80: =IF('00 Aggregatore'!$D80="R",SUMIF('00 Alimenta'!$A:$A,$B80,'00 Alimenta'!D:D),SUMIF('00 Alimenta'!$A:$A,$B80,'00 Alimenta'!D:D)*-1) -> 1468544.84 | F80: =IF('00 Aggregatore'!$D80="R",SUMIF('00 Alimenta'!$A:$A,$B80,'00 Alimenta'!E:E),SUMIF('00 Alimenta'!$A:$A,$B80,'00 Alimenta'!E:E)*-1) -> 1674245.68
A81: AR | B81: AA1010 | C81: Quota imputata all'esercizio dei finanziamenti per beni di prima dotazione | D81: R | E81: =IF('00 Aggregatore'!$D81="R",SUMIF('00 Alimenta'!$A:$A,$B81,'00 Alimenta'!D:D),SUMIF('00 Alimenta'!$A:$A,$B81,'00 Alimenta'!D:D)*-1) -> 3577467.93 | F81: =IF('00 Aggregatore'!$D81="R",SUMIF('00 Alimenta'!$A:$A,$B81,'00 Alimenta'!E:E),SUMIF('00 Alimenta'!$A:$A,$B81,'00 Alimenta'!E:E)*-1) -> 3577467.93
A82: AR | B82: AA1020 | C82: Quota imputata all'esercizio dei contributi in c/esercizio FSR destinati ad investimenti | D82: R | E82: =IF('00 Aggregatore'!$D82="R",SUMIF('00 Alimenta'!$A:$A,$B82,'00 Alimenta'!D:D),SUMIF('00 Alimenta'!$A:$A,$B82,'00 Alimenta'!D:D)*-1) -> 4730694.31 | F82: =IF('00 Aggregatore'!$D82="R",SUMIF('00 Alimenta'!$A:$A,$B82,'00 Alimenta'!E:E),SUMIF('00 Alimenta'!$A:$A,$B82,'00 Alimenta'!E:E)*-1) -> 5185207.28
A83: AR | B83: AA1030 | C83: Quota imputata all'esercizio degli altri contributi in c/esercizio destinati ad investimenti | D83: R | E83: =IF('00 Aggregatore'!$D83="R",SUMIF('00 Alimenta'!$A:$A,$B83,'00 Alimenta'!D:D),SUMIF('00 Alimenta'!$A:$A,$B83,'00 Alimenta'!D:D)*-1) -> 0 | F83: =IF('00 Aggregatore'!$D83="R",SUMIF('00 Alimenta'!$A:$A,$B83,'00 Alimenta'!E:E),SUMIF('00 Alimenta'!$A:$A,$B83,'00 Alimenta'!E:E)*-1) -> 0
A84: AR | B84: AA1040 | C84: Quota imputata all'esercizio di altre poste del patrimonio netto | D84: R | E84: =IF('00 Aggregatore'!$D84="R",SUMIF('00 Alimenta'!$A:$A,$B84,'00 Alimenta'!D:D),SUMIF('00 Alimenta'!$A:$A,$B84,'00 Alimenta'!D:D)*-1) -> 0 | F84: =IF('00 Aggregatore'!$D84="R",SUMIF('00 Alimenta'!$A:$A,$B84,'00 Alimenta'!E:E),SUMIF('00 Alimenta'!$A:$A,$B84,'00 Alimenta'!E:E)*-1) -> 0
A85: AR | B85: AA1050 | C85: Incrementi delle immobilizzazioni per lavori interni | D85: R | E85: =IF('00 Aggregatore'!$D85="R",SUMIF('00 Alimenta'!$A:$A,$B85,'00 Alimenta'!D:D),SUMIF('00 Alimenta'!$A:$A,$B85,'00 Alimenta'!D:D)*-1) -> 0 | F85: =IF('00 Aggregatore'!$D85="R",SUMIF('00 Alimenta'!$A:$A,$B85,'00 Alimenta'!E:E),SUMIF('00 Alimenta'!$A:$A,$B85,'00 Alimenta'!E:E)*-1) -> 0
A86: AR | B86: AA1070 | C86: Ricavi per prestazioni non sanitarie | D86: R | E86: =IF('00 Aggregatore'!$D86="R",SUMIF('00 Alimenta'!$A:$A,$B86,'00 Alimenta'!D:D),SUMIF('00 Alimenta'!$A:$A,$B86,'00 Alimenta'!D:D)*-1) -> 3023.66 | F86: =IF('00 Aggregatore'!$D86="R",SUMIF('00 Alimenta'!$A:$A,$B86,'00 Alimenta'!E:E),SUMIF('00 Alimenta'!$A:$A,$B86,'00 Alimenta'!E:E)*-1) -> 1738.6
A87: AR | B87: AA1080 | C87: Fitti attivi e altri proventi da attività immobiliari | D87: R | E87: =IF('00 Aggregatore'!$D87="R",SUMIF('00 Alimenta'!$A:$A,$B87,'00 Alimenta'!D:D),SUMIF('00 Alimenta'!$A:$A,$B87,'00 Alimenta'!D:D)*-1) -> 221560.64 | F87: =IF('00 Aggregatore'!$D87="R",SUMIF('00 Alimenta'!$A:$A,$B87,'00 Alimenta'!E:E),SUMIF('00 Alimenta'!$A:$A,$B87,'00 Alimenta'!E:E)*-1) -> 186882.15
A88: AR | B88: AA1090 | C88: Altri proventi diversi | D88: R | E88: =IF('00 Aggregatore'!$D88="R",SUMIF('00 Alimenta'!$A:$A,$B88,'00 Alimenta'!D:D),SUMIF('00 Alimenta'!$A:$A,$B88,'00 Alimenta'!D:D)*-1) -> 397717.1 | F88: =IF('00 Aggregatore'!$D88="R",SUMIF('00 Alimenta'!$A:$A,$B88,'00 Alimenta'!E:E),SUMIF('00 Alimenta'!$A:$A,$B88,'00 Alimenta'!E:E)*-1) -> 362826.21
A89: BC | B89: BA0040 | C89: Medicinali con AIC, ad eccezione di vaccini ed emoderivati di produzione regionale | D89: C | E89: =IF('00 Aggregatore'!$D89="R",SUMIF('00 Alimenta'!$A:$A,$B89,'00 Alimenta'!D:D),SUMIF('00 Alimenta'!$A:$A,$B89,'00 Alimenta'!D:D)*-1) -> 69235809.47 | F89: =IF('00 Aggregatore'!$D89="R",SUMIF('00 Alimenta'!$A:$A,$B89,'00 Alimenta'!E:E),SUMIF('00 Alimenta'!$A:$A,$B89,'00 Alimenta'!E:E)*-1) -> 82536637.09
A90: BC | B90: BA0050 | C90: Medicinali senza AIC | D90: C | E90: =IF('00 Aggregatore'!$D90="R",SUMIF('00 Alimenta'!$A:$A,$B90,'00 Alimenta'!D:D),SUMIF('00 Alimenta'!$A:$A,$B90,'00 Alimenta'!D:D)*-1) -> 722585.84 | F90: =IF('00 Aggregatore'!$D90="R",SUMIF('00 Alimenta'!$A:$A,$B90,'00 Alimenta'!E:E),SUMIF('00 Alimenta'!$A:$A,$B90,'00 Alimenta'!E:E)*-1) -> 752264.34
A91: BC | B91: BA0060 | C91: Emoderivati di produzione regionale | D91: C | E91: =IF('00 Aggregatore'!$D91="R",SUMIF('00 Alimenta'!$A:$A,$B91,'00 Alimenta'!D:D),SUMIF('00 Alimenta'!$A:$A,$B91,'00 Alimenta'!D:D)*-1) -> 0 | F91: =IF('00 Aggregatore'!$D91="R",SUMIF('00 Alimenta'!$A:$A,$B91,'00 Alimenta'!E:E),SUMIF('00 Alimenta'!$A:$A,$B91,'00 Alimenta'!E:E)*-1) -> 0
A92: BC | B92: BA0080 | C92: da pubblico (Aziende sanitarie pubbliche della Regione) - Mobilità intraregionale | D92: C | E92: =IF('00 Aggregatore'!$D92="R",SUMIF('00 Alimenta'!$A:$A,$B92,'00 Alimenta'!D:D),SUMIF('00 Alimenta'!$A:$A,$B92,'00 Alimenta'!D:D)*-1) -> 0 | F92: =IF('00 Aggregatore'!$D92="R",SUMIF('00 Alimenta'!$A:$A,$B92,'00 Alimenta'!E:E),SUMIF('00 Alimenta'!$A:$A,$B92,'00 Alimenta'!E:E)*-1) -> 0
A93: BC | B93: BA0090 | C93: da pubblico (Aziende sanitarie pubbliche extra Regione) - Mobilità extraregionale | D93: C | E93: =IF('00 Aggregatore'!$D93="R",SUMIF('00 Alimenta'!$A:$A,$B93,'00 Alimenta'!D:D),SUMIF('00 Alimenta'!$A:$A,$B93,'00 Alimenta'!D:D)*-1) -> 187348.99 | F93: =IF('00 Aggregatore'!$D93="R",SUMIF('00 Alimenta'!$A:$A,$B93,'00 Alimenta'!E:E),SUMIF('00 Alimenta'!$A:$A,$B93,'00 Alimenta'!E:E)*-1) -> 23080.75
A94: BC | B94: BA0100 | C94: da altri soggetti | D94: C | E94: =IF('00 Aggregatore'!$D94="R",SUMIF('00 Alimenta'!$A:$A,$B94,'00 Alimenta'!D:D),SUMIF('00 Alimenta'!$A:$A,$B94,'00 Alimenta'!D:D)*-1) -> 0 | F94: =IF('00 Aggregatore'!$D94="R",SUMIF('00 Alimenta'!$A:$A,$B94,'00 Alimenta'!E:E),SUMIF('00 Alimenta'!$A:$A,$B94,'00 Alimenta'!E:E)*-1) -> 0
A95: BC | B95: BA0220 | C95: Dispositivi medici | D95: C | E95: =IF('00 Aggregatore'!$D95="R",SUMIF('00 Alimenta'!$A:$A,$B95,'00 Alimenta'!D:D),SUMIF('00 Alimenta'!$A:$A,$B95,'00 Alimenta'!D:D)*-1) -> 25764695.79 | F95: =IF('00 Aggregatore'!$D95="R",SUMIF('00 Alimenta'!$A:$A,$B95,'00 Alimenta'!E:E),SUMIF('00 Alimenta'!$A:$A,$B95,'00 Alimenta'!E:E)*-1) -> 27013313.95
A96: BC | B96: BA0230 | C96: Dispositivi medici impiantabili attivi | D96: C | E96: =IF('00 Aggregatore'!$D96="R",SUMIF('00 Alimenta'!$A:$A,$B96,'00 Alimenta'!D:D),SUMIF('00 Alimenta'!$A:$A,$B96,'00 Alimenta'!D:D)*-1) -> 3456008.28 | F96: =IF('00 Aggregatore'!$D96="R",SUMIF('00 Alimenta'!$A:$A,$B96,'00 Alimenta'!E:E),SUMIF('00 Alimenta'!$A:$A,$B96,'00 Alimenta'!E:E)*-1) -> 3071999.01
A97: BC | B97: BA0240 | C97: Dispositivi medico diagnostici in vitro (IVD) | D97: C | E97: =IF('00 Aggregatore'!$D97="R",SUMIF('00 Alimenta'!$A:$A,$B97,'00 Alimenta'!D:D),SUMIF('00 Alimenta'!$A:$A,$B97,'00 Alimenta'!D:D)*-1) -> 11969007.5 | F97: =IF('00 Aggregatore'!$D97="R",SUMIF('00 Alimenta'!$A:$A,$B97,'00 Alimenta'!E:E),SUMIF('00 Alimenta'!$A:$A,$B97,'00 Alimenta'!E:E)*-1) -> 12786548.72
A98: BC | B98: BA0250 | C98: Prodotti dietetici | D98: C | E98: =IF('00 Aggregatore'!$D98="R",SUMIF('00 Alimenta'!$A:$A,$B98,'00 Alimenta'!D:D),SUMIF('00 Alimenta'!$A:$A,$B98,'00 Alimenta'!D:D)*-1) -> 469645.74 | F98: =IF('00 Aggregatore'!$D98="R",SUMIF('00 Alimenta'!$A:$A,$B98,'00 Alimenta'!E:E),SUMIF('00 Alimenta'!$A:$A,$B98,'00 Alimenta'!E:E)*-1) -> 468960.66
A99: BC | B99: BA0260 | C99: Materiali per la profilassi (vaccini) | D99: C | E99: =IF('00 Aggregatore'!$D99="R",SUMIF('00 Alimenta'!$A:$A,$B99,'00 Alimenta'!D:D),SUMIF('00 Alimenta'!$A:$A,$B99,'00 Alimenta'!D:D)*-1) -> 2380862.56 | F99: =IF('00 Aggregatore'!$D99="R",SUMIF('00 Alimenta'!$A:$A,$B99,'00 Alimenta'!E:E),SUMIF('00 Alimenta'!$A:$A,$B99,'00 Alimenta'!E:E)*-1) -> 2222785.11
A100: BC | B100: BA0270 | C100: Prodotti chimici | D100: C | E100: =IF('00 Aggregatore'!$D100="R",SUMIF('00 Alimenta'!$A:$A,$B100,'00 Alimenta'!D:D),SUMIF('00 Alimenta'!$A:$A,$B100,'00 Alimenta'!D:D)*-1) -> 0 | F100: =IF('00 Aggregatore'!$D100="R",SUMIF('00 Alimenta'!$A:$A,$B100,'00 Alimenta'!E:E),SUMIF('00 Alimenta'!$A:$A,$B100,'00 Alimenta'!E:E)*-1) -> 0
A101: BC | B101: BA0280 | C101: Materiali e prodotti per uso veterinario | D101: C | E101: =IF('00 Aggregatore'!$D101="R",SUMIF('00 Alimenta'!$A:$A,$B101,'00 Alimenta'!D:D),SUMIF('00 Alimenta'!$A:$A,$B101,'00 Alimenta'!D:D)*-1) -> 7852.8 | F101: =IF('00 Aggregatore'!$D101="R",SUMIF('00 Alimenta'!$A:$A,$B101,'00 Alimenta'!E:E),SUMIF('00 Alimenta'!$A:$A,$B101,'00 Alimenta'!E:E)*-1) -> 20636.41
A102: BC | B102: BA0290 | C102: Altri beni e prodotti sanitari | D102: C | E102: =IF('00 Aggregatore'!$D102="R",SUMIF('00 Alimenta'!$A:$A,$B102,'00 Alimenta'!D:D),SUMIF('00 Alimenta'!$A:$A,$B102,'00 Alimenta'!D:D)*-1) -> 1934574.6 | F102: =IF('00 Aggregatore'!$D102="R",SUMIF('00 Alimenta'!$A:$A,$B102,'00 Alimenta'!E:E),SUMIF('00 Alimenta'!$A:$A,$B102,'00 Alimenta'!E:E)*-1) -> 2193506.59
A103: BC | B103: BA0300 | C103: Beni e prodotti sanitari da Aziende sanitarie pubbliche della Regione | D103: C | E103: =IF('00 Aggregatore'!$D103="R",SUMIF('00 Alimenta'!$A:$A,$B103,'00 Alimenta'!D:D),SUMIF('00 Alimenta'!$A:$A,$B103,'00 Alimenta'!D:D)*-1) -> 0 | F103: =IF('00 Aggregatore'!$D103="R",SUMIF('00 Alimenta'!$A:$A,$B103,'00 Alimenta'!E:E),SUMIF('00 Alimenta'!$A:$A,$B103,'00 Alimenta'!E:E)*-1) -> 0
A104: BC | B104: BA0320 | C104: Prodotti alimentari | D104: C | E104: =IF('00 Aggregatore'!$D104="R",SUMIF('00 Alimenta'!$A:$A,$B104,'00 Alimenta'!D:D),SUMIF('00 Alimenta'!$A:$A,$B104,'00 Alimenta'!D:D)*-1) -> 250.58 | F104: =IF('00 Aggregatore'!$D104="R",SUMIF('00 Alimenta'!$A:$A,$B104,'00 Alimenta'!E:E),SUMIF('00 Alimenta'!$A:$A,$B104,'00 Alimenta'!E:E)*-1) -> 83.52
A105: BC | B105: BA0330 | C105: Materiali di guardaroba, di pulizia e di convivenza in genere | D105: C | E105: =IF('00 Aggregatore'!$D105="R",SUMIF('00 Alimenta'!$A:$A,$B105,'00 Alimenta'!D:D),SUMIF('00 Alimenta'!$A:$A,$B105,'00 Alimenta'!D:D)*-1) -> 41796.38 | F105: =IF('00 Aggregatore'!$D105="R",SUMIF('00 Alimenta'!$A:$A,$B105,'00 Alimenta'!E:E),SUMIF('00 Alimenta'!$A:$A,$B105,'00 Alimenta'!E:E)*-1) -> 64306.42
A106: BC | B106: BA0340 | C106: Combustibili, carburanti e lubrificanti | D106: C | E106: =IF('00 Aggregatore'!$D106="R",SUMIF('00 Alimenta'!$A:$A,$B106,'00 Alimenta'!D:D),SUMIF('00 Alimenta'!$A:$A,$B106,'00 Alimenta'!D:D)*-1) -> 135937.7 | F106: =IF('00 Aggregatore'!$D106="R",SUMIF('00 Alimenta'!$A:$A,$B106,'00 Alimenta'!E:E),SUMIF('00 Alimenta'!$A:$A,$B106,'00 Alimenta'!E:E)*-1) -> 172419.52
A107: BC | B107: BA0350 | C107: Supporti informatici e cancelleria | D107: C | E107: =IF('00 Aggregatore'!$D107="R",SUMIF('00 Alimenta'!$A:$A,$B107,'00 Alimenta'!D:D),SUMIF('00 Alimenta'!$A:$A,$B107,'00 Alimenta'!D:D)*-1) -> 513727.87 | F107: =IF('00 Aggregatore'!$D107="R",SUMIF('00 Alimenta'!$A:$A,$B107,'00 Alimenta'!E:E),SUMIF('00 Alimenta'!$A:$A,$B107,'00 Alimenta'!E:E)*-1) -> 477974.9
A108: BC | B108: BA0360 | C108: Materiale per la manutenzione | D108: C | E108: =IF('00 Aggregatore'!$D108="R",SUMIF('00 Alimenta'!$A:$A,$B108,'00 Alimenta'!D:D),SUMIF('00 Alimenta'!$A:$A,$B108,'00 Alimenta'!D:D)*-1) -> 207783.53 | F108: =IF('00 Aggregatore'!$D108="R",SUMIF('00 Alimenta'!$A:$A,$B108,'00 Alimenta'!E:E),SUMIF('00 Alimenta'!$A:$A,$B108,'00 Alimenta'!E:E)*-1) -> 239884.37
A109: BC | B109: BA0370 | C109: Altri beni e prodotti non sanitari | D109: C | E109: =IF('00 Aggregatore'!$D109="R",SUMIF('00 Alimenta'!$A:$A,$B109,'00 Alimenta'!D:D),SUMIF('00 Alimenta'!$A:$A,$B109,'00 Alimenta'!D:D)*-1) -> 48626.56 | F109: =IF('00 Aggregatore'!$D109="R",SUMIF('00 Alimenta'!$A:$A,$B109,'00 Alimenta'!E:E),SUMIF('00 Alimenta'!$A:$A,$B109,'00 Alimenta'!E:E)*-1) -> 45073.96
A110: BC | B110: BA0380 | C110: Beni e prodotti non sanitari da Aziende sanitarie pubbliche della Regione | D110: C | E110: =IF('00 Aggregatore'!$D110="R",SUMIF('00 Alimenta'!$A:$A,$B110,'00 Alimenta'!D:D),SUMIF('00 Alimenta'!$A:$A,$B110,'00 Alimenta'!D:D)*-1) -> 0 | F110: =IF('00 Aggregatore'!$D110="R",SUMIF('00 Alimenta'!$A:$A,$B110,'00 Alimenta'!E:E),SUMIF('00 Alimenta'!$A:$A,$B110,'00 Alimenta'!E:E)*-1) -> 0
A111: BC | B111: BA0430 | C111: Costi per assistenza MMG | D111: C | E111: =IF('00 Aggregatore'!$D111="R",SUMIF('00 Alimenta'!$A:$A,$B111,'00 Alimenta'!D:D),SUMIF('00 Alimenta'!$A:$A,$B111,'00 Alimenta'!D:D)*-1) -> 24328709.33 | F111: =IF('00 Aggregatore'!$D111="R",SUMIF('00 Alimenta'!$A:$A,$B111,'00 Alimenta'!E:E),SUMIF('00 Alimenta'!$A:$A,$B111,'00 Alimenta'!E:E)*-1) -> 24517314.75
A112: BC | B112: BA0440 | C112: Costi per assistenza PLS | D112: C | E112: =IF('00 Aggregatore'!$D112="R",SUMIF('00 Alimenta'!$A:$A,$B112,'00 Alimenta'!D:D),SUMIF('00 Alimenta'!$A:$A,$B112,'00 Alimenta'!D:D)*-1) -> 6208374.4 | F112: =IF('00 Aggregatore'!$D112="R",SUMIF('00 Alimenta'!$A:$A,$B112,'00 Alimenta'!E:E),SUMIF('00 Alimenta'!$A:$A,$B112,'00 Alimenta'!E:E)*-1) -> 6415070.53
A113: BC | B113: BA0450 | C113: Costi per assistenza Continuità assistenziale | D113: C | E113: =IF('00 Aggregatore'!$D113="R",SUMIF('00 Alimenta'!$A:$A,$B113,'00 Alimenta'!D:D),SUMIF('00 Alimenta'!$A:$A,$B113,'00 Alimenta'!D:D)*-1) -> 4008916.53 | F113: =IF('00 Aggregatore'!$D113="R",SUMIF('00 Alimenta'!$A:$A,$B113,'00 Alimenta'!E:E),SUMIF('00 Alimenta'!$A:$A,$B113,'00 Alimenta'!E:E)*-1) -> 3931463.93
A114: BC | B114: BA0460 | C114: Altro (medicina dei servizi, psicologi, medici 118, ecc.) | D114: C | E114: =IF('00 Aggregatore'!$D114="R",SUMIF('00 Alimenta'!$A:$A,$B114,'00 Alimenta'!D:D),SUMIF('00 Alimenta'!$A:$A,$B114,'00 Alimenta'!D:D)*-1) -> 889849.09 | F114: =IF('00 Aggregatore'!$D114="R",SUMIF('00 Alimenta'!$A:$A,$B114,'00 Alimenta'!E:E),SUMIF('00 Alimenta'!$A:$A,$B114,'00 Alimenta'!E:E)*-1) -> 789656.11
A115: BC | B115: BA0470 | C115: da pubblico (Aziende sanitarie pubbliche della Regione) - Mobilità intraregionale | D115: C | E115: =IF('00 Aggregatore'!$D115="R",SUMIF('00 Alimenta'!$A:$A,$B115,'00 Alimenta'!D:D),SUMIF('00 Alimenta'!$A:$A,$B115,'00 Alimenta'!D:D)*-1) -> 35057.19 | F115: =IF('00 Aggregatore'!$D115="R",SUMIF('00 Alimenta'!$A:$A,$B115,'00 Alimenta'!E:E),SUMIF('00 Alimenta'!$A:$A,$B115,'00 Alimenta'!E:E)*-1) -> 38671
A116: BC | B116: BA0480 | C116: da pubblico (Aziende sanitarie pubbliche extra Regione) - Mobilità extraregionale | D116: C | E116: =IF('00 Aggregatore'!$D116="R",SUMIF('00 Alimenta'!$A:$A,$B116,'00 Alimenta'!D:D),SUMIF('00 Alimenta'!$A:$A,$B116,'00 Alimenta'!D:D)*-1) -> 184748.58 | F116: =IF('00 Aggregatore'!$D116="R",SUMIF('00 Alimenta'!$A:$A,$B116,'00 Alimenta'!E:E),SUMIF('00 Alimenta'!$A:$A,$B116,'00 Alimenta'!E:E)*-1) -> 217107.5
A117: BC | B117: BA0500 | C117: da convenzione | D117: C | E117: =IF('00 Aggregatore'!$D117="R",SUMIF('00 Alimenta'!$A:$A,$B117,'00 Alimenta'!D:D),SUMIF('00 Alimenta'!$A:$A,$B117,'00 Alimenta'!D:D)*-1) -> 52924145.52 | F117: =IF('00 Aggregatore'!$D117="R",SUMIF('00 Alimenta'!$A:$A,$B117,'00 Alimenta'!E:E),SUMIF('00 Alimenta'!$A:$A,$B117,'00 Alimenta'!E:E)*-1) -> 50129678.23
A118: BC | B118: BA0510 | C118: da pubblico (Aziende sanitarie pubbliche della Regione) - Mobilità intraregionale | D118: C | E118: =IF('00 Aggregatore'!$D118="R",SUMIF('00 Alimenta'!$A:$A,$B118,'00 Alimenta'!D:D),SUMIF('00 Alimenta'!$A:$A,$B118,'00 Alimenta'!D:D)*-1) -> 1251970.51 | F118: =IF('00 Aggregatore'!$D118="R",SUMIF('00 Alimenta'!$A:$A,$B118,'00 Alimenta'!E:E),SUMIF('00 Alimenta'!$A:$A,$B118,'00 Alimenta'!E:E)*-1) -> 1277628.07
A119: BC | B119: BA0520 | C119: da pubblico (extra Regione) | D119: C | E119: =IF('00 Aggregatore'!$D119="R",SUMIF('00 Alimenta'!$A:$A,$B119,'00 Alimenta'!D:D),SUMIF('00 Alimenta'!$A:$A,$B119,'00 Alimenta'!D:D)*-1) -> 387832.02 | F119: =IF('00 Aggregatore'!$D119="R",SUMIF('00 Alimenta'!$A:$A,$B119,'00 Alimenta'!E:E),SUMIF('00 Alimenta'!$A:$A,$B119,'00 Alimenta'!E:E)*-1) -> 457054.73
A120: BC | B120: BA0540 | C120: da pubblico (Aziende sanitarie pubbliche della Regione) | D120: C | E120: =IF('00 Aggregatore'!$D120="R",SUMIF('00 Alimenta'!$A:$A,$B120,'00 Alimenta'!D:D),SUMIF('00 Alimenta'!$A:$A,$B120,'00 Alimenta'!D:D)*-1) -> 8998122.11 | F120: =IF('00 Aggregatore'!$D120="R",SUMIF('00 Alimenta'!$A:$A,$B120,'00 Alimenta'!E:E),SUMIF('00 Alimenta'!$A:$A,$B120,'00 Alimenta'!E:E)*-1) -> 8879359.57
A121: BC | B121: BA0550 | C121: da pubblico (altri soggetti pubblici della Regione) | D121: C | E121: =IF('00 Aggregatore'!$D121="R",SUMIF('00 Alimenta'!$A:$A,$B121,'00 Alimenta'!D:D),SUMIF('00 Alimenta'!$A:$A,$B121,'00 Alimenta'!D:D)*-1) -> 189344.67 | F121: =IF('00 Aggregatore'!$D121="R",SUMIF('00 Alimenta'!$A:$A,$B121,'00 Alimenta'!E:E),SUMIF('00 Alimenta'!$A:$A,$B121,'00 Alimenta'!E:E)*-1) -> 360209.89
A122: BC | B122: BA0560 | C122: da pubblico (extra Regione) | D122: C | E122: =IF('00 Aggregatore'!$D122="R",SUMIF('00 Alimenta'!$A:$A,$B122,'00 Alimenta'!D:D),SUMIF('00 Alimenta'!$A:$A,$B122,'00 Alimenta'!D:D)*-1) -> 4460024.94 | F122: =IF('00 Aggregatore'!$D122="R",SUMIF('00 Alimenta'!$A:$A,$B122,'00 Alimenta'!E:E),SUMIF('00 Alimenta'!$A:$A,$B122,'00 Alimenta'!E:E)*-1) -> 4000753.58
A123: BC | B123: BA0570 | C123: da privato - Medici SUMAI | D123: C | E123: =IF('00 Aggregatore'!$D123="R",SUMIF('00 Alimenta'!$A:$A,$B123,'00 Alimenta'!D:D),SUMIF('00 Alimenta'!$A:$A,$B123,'00 Alimenta'!D:D)*-1) -> 4899151.05 | F123: =IF('00 Aggregatore'!$D123="R",SUMIF('00 Alimenta'!$A:$A,$B123,'00 Alimenta'!E:E),SUMIF('00 Alimenta'!$A:$A,$B123,'00 Alimenta'!E:E)*-1) -> 4486744.21
A124: BC | B124: BA0590 | C124: Servizi sanitari per assistenza specialistica da IRCCS privati e Policlinici privati | D124: C | E124: =IF('00 Aggregatore'!$D124="R",SUMIF('00 Alimenta'!$A:$A,$B124,'00 Alimenta'!D:D),SUMIF('00 Alimenta'!$A:$A,$B124,'00 Alimenta'!D:D)*-1) -> 60978.73 | F124: =IF('00 Aggregatore'!$D124="R",SUMIF('00 Alimenta'!$A:$A,$B124,'00 Alimenta'!E:E),SUMIF('00 Alimenta'!$A:$A,$B124,'00 Alimenta'!E:E)*-1) -> 83336.34
A125: BC | B125: BA0600 | C125: Servizi sanitari per assistenza specialistica da Ospedali Classificati privati | D125: C | E125: =IF('00 Aggregatore'!$D125="R",SUMIF('00 Alimenta'!$A:$A,$B125,'00 Alimenta'!D:D),SUMIF('00 Alimenta'!$A:$A,$B125,'00 Alimenta'!D:D)*-1) -> 0 | F125: =IF('00 Aggregatore'!$D125="R",SUMIF('00 Alimenta'!$A:$A,$B125,'00 Alimenta'!E:E),SUMIF('00 Alimenta'!$A:$A,$B125,'00 Alimenta'!E:E)*-1) -> 0
A126: BC | B126: BA0610 | C126: Servizi sanitari per assistenza specialistica da Case di Cura private | D126: C | E126: =IF('00 Aggregatore'!$D126="R",SUMIF('00 Alimenta'!$A:$A,$B126,'00 Alimenta'!D:D),SUMIF('00 Alimenta'!$A:$A,$B126,'00 Alimenta'!D:D)*-1) -> 5412858.87 | F126: =IF('00 Aggregatore'!$D126="R",SUMIF('00 Alimenta'!$A:$A,$B126,'00 Alimenta'!E:E),SUMIF('00 Alimenta'!$A:$A,$B126,'00 Alimenta'!E:E)*-1) -> 5463686.82
A127: BC | B127: BA0620 | C127: Servizi sanitari per assistenza specialistica da altri privati | D127: C | E127: =IF('00 Aggregatore'!$D127="R",SUMIF('00 Alimenta'!$A:$A,$B127,'00 Alimenta'!D:D),SUMIF('00 Alimenta'!$A:$A,$B127,'00 Alimenta'!D:D)*-1) -> 3284005.5 | F127: =IF('00 Aggregatore'!$D127="R",SUMIF('00 Alimenta'!$A:$A,$B127,'00 Alimenta'!E:E),SUMIF('00 Alimenta'!$A:$A,$B127,'00 Alimenta'!E:E)*-1) -> 3338782.85
A128: BC | B128: BA0630 | C128: da privato per cittadini non residenti - extra Regione (Mobilità attiva in compensazione) | D128: C | E128: =IF('00 Aggregatore'!$D128="R",SUMIF('00 Alimenta'!$A:$A,$B128,'00 Alimenta'!D:D),SUMIF('00 Alimenta'!$A:$A,$B128,'00 Alimenta'!D:D)*-1) -> 214698.2 | F128: =IF('00 Aggregatore'!$D128="R",SUMIF('00 Alimenta'!$A:$A,$B128,'00 Alimenta'!E:E),SUMIF('00 Alimenta'!$A:$A,$B128,'00 Alimenta'!E:E)*-1) -> 196698.23
A129: BC | B129: BA0650 | C129: da pubblico (Aziende sanitarie pubbliche della Regione) | D129: C | E129: =IF('00 Aggregatore'!$D129="R",SUMIF('00 Alimenta'!$A:$A,$B129,'00 Alimenta'!D:D),SUMIF('00 Alimenta'!$A:$A,$B129,'00 Alimenta'!D:D)*-1) -> 4855060.17 | F129: =IF('00 Aggregatore'!$D129="R",SUMIF('00 Alimenta'!$A:$A,$B129,'00 Alimenta'!E:E),SUMIF('00 Alimenta'!$A:$A,$B129,'00 Alimenta'!E:E)*-1) -> 4832965.95
A130: BC | B130: BA0660 | C130: da pubblico (altri soggetti pubblici della Regione) | D130: C | E130: =IF('00 Aggregatore'!$D130="R",SUMIF('00 Alimenta'!$A:$A,$B130,'00 Alimenta'!D:D),SUMIF('00 Alimenta'!$A:$A,$B130,'00 Alimenta'!D:D)*-1) -> 0 | F130: =IF('00 Aggregatore'!$D130="R",SUMIF('00 Alimenta'!$A:$A,$B130,'00 Alimenta'!E:E),SUMIF('00 Alimenta'!$A:$A,$B130,'00 Alimenta'!E:E)*-1) -> 0
A131: BC | B131: BA0670 | C131: da pubblico (extra Regione) non soggetti a compensazione | D131: C | E131: =IF('00 Aggregatore'!$D131="R",SUMIF('00 Alimenta'!$A:$A,$B131,'00 Alimenta'!D:D),SUMIF('00 Alimenta'!$A:$A,$B131,'00 Alimenta'!D:D)*-1) -> 0 | F131: =IF('00 Aggregatore'!$D131="R",SUMIF('00 Alimenta'!$A:$A,$B131,'00 Alimenta'!E:E),SUMIF('00 Alimenta'!$A:$A,$B131,'00 Alimenta'!E:E)*-1) -> 0
A132: BC | B132: BA0680 | C132: da privato (intraregionale) | D132: C | E132: =IF('00 Aggregatore'!$D132="R",SUMIF('00 Alimenta'!$A:$A,$B132,'00 Alimenta'!D:D),SUMIF('00 Alimenta'!$A:$A,$B132,'00 Alimenta'!D:D)*-1) -> 14460769.46 | F132: =IF('00 Aggregatore'!$D132="R",SUMIF('00 Alimenta'!$A:$A,$B132,'00 Alimenta'!E:E),SUMIF('00 Alimenta'!$A:$A,$B132,'00 Alimenta'!E:E)*-1) -> 14612451.73
A133: BC | B133: BA0690 | C133: da privato (extraregionale) | D133: C | E133: =IF('00 Aggregatore'!$D133="R",SUMIF('00 Alimenta'!$A:$A,$B133,'00 Alimenta'!D:D),SUMIF('00 Alimenta'!$A:$A,$B133,'00 Alimenta'!D:D)*-1) -> 591378.35 | F133: =IF('00 Aggregatore'!$D133="R",SUMIF('00 Alimenta'!$A:$A,$B133,'00 Alimenta'!E:E),SUMIF('00 Alimenta'!$A:$A,$B133,'00 Alimenta'!E:E)*-1) -> 545484.88
A134: =LEFT(B134,1)&D134 -> BC | B134: BA0710 | C134: da pubblico (Aziende sanitarie pubbliche della Regione) | D134: C | E134: =IF('00 Aggregatore'!$D134="R",SUMIF('00 Alimenta'!$A:$A,$B134,'00 Alimenta'!D:D),SUMIF('00 Alimenta'!$A:$A,$B134,'00 Alimenta'!D:D)*-1) -> 0 | F134: =IF('00 Aggregatore'!$D134="R",SUMIF('00 Alimenta'!$A:$A,$B134,'00 Alimenta'!E:E),SUMIF('00 Alimenta'!$A:$A,$B134,'00 Alimenta'!E:E)*-1) -> 0
A135: BC | B135: BA0720 | C135: da pubblico (altri soggetti pubblici della Regione) | D135: C | E135: =IF('00 Aggregatore'!$D135="R",SUMIF('00 Alimenta'!$A:$A,$B135,'00 Alimenta'!D:D),SUMIF('00 Alimenta'!$A:$A,$B135,'00 Alimenta'!D:D)*-1) -> 0 | F135: =IF('00 Aggregatore'!$D135="R",SUMIF('00 Alimenta'!$A:$A,$B135,'00 Alimenta'!E:E),SUMIF('00 Alimenta'!$A:$A,$B135,'00 Alimenta'!E:E)*-1) -> 0
A136: BC | B136: BA0730 | C136: da pubblico (extra Regione) | D136: C | E136: =IF('00 Aggregatore'!$D136="R",SUMIF('00 Alimenta'!$A:$A,$B136,'00 Alimenta'!D:D),SUMIF('00 Alimenta'!$A:$A,$B136,'00 Alimenta'!D:D)*-1) -> 0 | F136: =IF('00 Aggregatore'!$D136="R",SUMIF('00 Alimenta'!$A:$A,$B136,'00 Alimenta'!E:E),SUMIF('00 Alimenta'!$A:$A,$B136,'00 Alimenta'!E:E)*-1) -> 0
A137: BC | B137: BA0740 | C137: da privato | D137: C | E137: =IF('00 Aggregatore'!$D137="R",SUMIF('00 Alimenta'!$A:$A,$B137,'00 Alimenta'!D:D),SUMIF('00 Alimenta'!$A:$A,$B137,'00 Alimenta'!D:D)*-1) -> 1813040.82 | F137: =IF('00 Aggregatore'!$D137="R",SUMIF('00 Alimenta'!$A:$A,$B137,'00 Alimenta'!E:E),SUMIF('00 Alimenta'!$A:$A,$B137,'00 Alimenta'!E:E)*-1) -> 1802068.84
A138: BC | B138: BA0760 | C138: da pubblico (Aziende sanitarie pubbliche della Regione) | D138: C | E138: =IF('00 Aggregatore'!$D138="R",SUMIF('00 Alimenta'!$A:$A,$B138,'00 Alimenta'!D:D),SUMIF('00 Alimenta'!$A:$A,$B138,'00 Alimenta'!D:D)*-1) -> 0 | F138: =IF('00 Aggregatore'!$D138="R",SUMIF('00 Alimenta'!$A:$A,$B138,'00 Alimenta'!E:E),SUMIF('00 Alimenta'!$A:$A,$B138,'00 Alimenta'!E:E)*-1) -> 0
A139: BC | B139: BA0770 | C139: da pubblico (altri soggetti pubblici della Regione) | D139: C | E139: =IF('00 Aggregatore'!$D139="R",SUMIF('00 Alimenta'!$A:$A,$B139,'00 Alimenta'!D:D),SUMIF('00 Alimenta'!$A:$A,$B139,'00 Alimenta'!D:D)*-1) -> 0 | F139: =IF('00 Aggregatore'!$D139="R",SUMIF('00 Alimenta'!$A:$A,$B139,'00 Alimenta'!E:E),SUMIF('00 Alimenta'!$A:$A,$B139,'00 Alimenta'!E:E)*-1) -> 0
A140: BC | B140: BA0780 | C140: da pubblico (extra Regione) | D140: C | E140: =IF('00 Aggregatore'!$D140="R",SUMIF('00 Alimenta'!$A:$A,$B140,'00 Alimenta'!D:D),SUMIF('00 Alimenta'!$A:$A,$B140,'00 Alimenta'!D:D)*-1) -> 0 | F140: =IF('00 Aggregatore'!$D140="R",SUMIF('00 Alimenta'!$A:$A,$B140,'00 Alimenta'!E:E),SUMIF('00 Alimenta'!$A:$A,$B140,'00 Alimenta'!E:E)*-1) -> 0
A141: BC | B141: BA0790 | C141: da privato | D141: C | E141: =IF('00 Aggregatore'!$D141="R",SUMIF('00 Alimenta'!$A:$A,$B141,'00 Alimenta'!D:D),SUMIF('00 Alimenta'!$A:$A,$B141,'00 Alimenta'!D:D)*-1) -> 6384295.54 | F141: =IF('00 Aggregatore'!$D141="R",SUMIF('00 Alimenta'!$A:$A,$B141,'00 Alimenta'!E:E),SUMIF('00 Alimenta'!$A:$A,$B141,'00 Alimenta'!E:E)*-1) -> 6303229.01
A142: BC | B142: BA0810 | C142: da pubblico (Aziende sanitarie pubbliche della Regione) | D142: C | E142: =IF('00 Aggregatore'!$D142="R",SUMIF('00 Alimenta'!$A:$A,$B142,'00 Alimenta'!D:D),SUMIF('00 Alimenta'!$A:$A,$B142,'00 Alimenta'!D:D)*-1) -> 28230091.68 | F142: =IF('00 Aggregatore'!$D142="R",SUMIF('00 Alimenta'!$A:$A,$B142,'00 Alimenta'!E:E),SUMIF('00 Alimenta'!$A:$A,$B142,'00 Alimenta'!E:E)*-1) -> 26481532.39
A143: BC | B143: BA0820 | C143: da pubblico (altri soggetti pubblici della Regione) | D143: C | E143: =IF('00 Aggregatore'!$D143="R",SUMIF('00 Alimenta'!$A:$A,$B143,'00 Alimenta'!D:D),SUMIF('00 Alimenta'!$A:$A,$B143,'00 Alimenta'!D:D)*-1) -> 0 | F143: =IF('00 Aggregatore'!$D143="R",SUMIF('00 Alimenta'!$A:$A,$B143,'00 Alimenta'!E:E),SUMIF('00 Alimenta'!$A:$A,$B143,'00 Alimenta'!E:E)*-1) -> 0
A144: BC | B144: BA0830 | C144: da pubblico (extra Regione) | D144: C | E144: =IF('00 Aggregatore'!$D144="R",SUMIF('00 Alimenta'!$A:$A,$B144,'00 Alimenta'!D:D),SUMIF('00 Alimenta'!$A:$A,$B144,'00 Alimenta'!D:D)*-1) -> 23048879.05 | F144: =IF('00 Aggregatore'!$D144="R",SUMIF('00 Alimenta'!$A:$A,$B144,'00 Alimenta'!E:E),SUMIF('00 Alimenta'!$A:$A,$B144,'00 Alimenta'!E:E)*-1) -> 24057993.46
A145: BC | B145: BA0850 | C145: Servizi sanitari per assistenza ospedaliera da IRCCS privati e Policlinici privati | D145: C | E145: =IF('00 Aggregatore'!$D145="R",SUMIF('00 Alimenta'!$A:$A,$B145,'00 Alimenta'!D:D),SUMIF('00 Alimenta'!$A:$A,$B145,'00 Alimenta'!D:D)*-1) -> 0 | F145: =IF('00 Aggregatore'!$D145="R",SUMIF('00 Alimenta'!$A:$A,$B145,'00 Alimenta'!E:E),SUMIF('00 Alimenta'!$A:$A,$B145,'00 Alimenta'!E:E)*-1) -> 0
A146: BC | B146: BA0860 | C146: Servizi sanitari per assistenza ospedaliera da Ospedali Classificati privati | D146: C | E146: =IF('00 Aggregatore'!$D146="R",SUMIF('00 Alimenta'!$A:$A,$B146,'00 Alimenta'!D:D),SUMIF('00 Alimenta'!$A:$A,$B146,'00 Alimenta'!D:D)*-1) -> 0 | F146: =IF('00 Aggregatore'!$D146="R",SUMIF('00 Alimenta'!$A:$A,$B146,'00 Alimenta'!E:E),SUMIF('00 Alimenta'!$A:$A,$B146,'00 Alimenta'!E:E)*-1) -> 0
A147: BC | B147: BA0870 | C147: Servizi sanitari per assistenza ospedaliera da Case di Cura private | D147: C | E147: =IF('00 Aggregatore'!$D147="R",SUMIF('00 Alimenta'!$A:$A,$B147,'00 Alimenta'!D:D),SUMIF('00 Alimenta'!$A:$A,$B147,'00 Alimenta'!D:D)*-1) -> 61809764.72 | F147: =IF('00 Aggregatore'!$D147="R",SUMIF('00 Alimenta'!$A:$A,$B147,'00 Alimenta'!E:E),SUMIF('00 Alimenta'!$A:$A,$B147,'00 Alimenta'!E:E)*-1) -> 62664028.38
A148: BC | B148: BA0880 | C148: Servizi sanitari per assistenza ospedaliera da altri privati | D148: C | E148: =IF('00 Aggregatore'!$D148="R",SUMIF('00 Alimenta'!$A:$A,$B148,'00 Alimenta'!D:D),SUMIF('00 Alimenta'!$A:$A,$B148,'00 Alimenta'!D:D)*-1) -> 0 | F148: =IF('00 Aggregatore'!$D148="R",SUMIF('00 Alimenta'!$A:$A,$B148,'00 Alimenta'!E:E),SUMIF('00 Alimenta'!$A:$A,$B148,'00 Alimenta'!E:E)*-1) -> 0
A149: BC | B149: BA0890 | C149: da privato per cittadini non residenti - extra Regione (mobilità attiva in compensazione) | D149: C | E149: =IF('00 Aggregatore'!$D149="R",SUMIF('00 Alimenta'!$A:$A,$B149,'00 Alimenta'!D:D),SUMIF('00 Alimenta'!$A:$A,$B149,'00 Alimenta'!D:D)*-1) -> 11917704.07 | F149: =IF('00 Aggregatore'!$D149="R",SUMIF('00 Alimenta'!$A:$A,$B149,'00 Alimenta'!E:E),SUMIF('00 Alimenta'!$A:$A,$B149,'00 Alimenta'!E:E)*-1) -> 10285883.14
A150: BC | B150: BA0910 | C150: da pubblico (Aziende sanitarie pubbliche della Regione) | D150: C | E150: =IF('00 Aggregatore'!$D150="R",SUMIF('00 Alimenta'!$A:$A,$B150,'00 Alimenta'!D:D),SUMIF('00 Alimenta'!$A:$A,$B150,'00 Alimenta'!D:D)*-1) -> 1648164.66 | F150: =IF('00 Aggregatore'!$D150="R",SUMIF('00 Alimenta'!$A:$A,$B150,'00 Alimenta'!E:E),SUMIF('00 Alimenta'!$A:$A,$B150,'00 Alimenta'!E:E)*-1) -> 1551575.5
A151: BC | B151: BA0920 | C151: da pubblico (altri soggetti pubblici della Regione) | D151: C | E151: =IF('00 Aggregatore'!$D151="R",SUMIF('00 Alimenta'!$A:$A,$B151,'00 Alimenta'!D:D),SUMIF('00 Alimenta'!$A:$A,$B151,'00 Alimenta'!D:D)*-1) -> 0 | F151: =IF('00 Aggregatore'!$D151="R",SUMIF('00 Alimenta'!$A:$A,$B151,'00 Alimenta'!E:E),SUMIF('00 Alimenta'!$A:$A,$B151,'00 Alimenta'!E:E)*-1) -> 0
A152: BC | B152: BA0930 | C152: da pubblico (extra Regione) - Non soggette a compensazione | D152: C | E152: =IF('00 Aggregatore'!$D152="R",SUMIF('00 Alimenta'!$A:$A,$B152,'00 Alimenta'!D:D),SUMIF('00 Alimenta'!$A:$A,$B152,'00 Alimenta'!D:D)*-1) -> 6667 | F152: =IF('00 Aggregatore'!$D152="R",SUMIF('00 Alimenta'!$A:$A,$B152,'00 Alimenta'!E:E),SUMIF('00 Alimenta'!$A:$A,$B152,'00 Alimenta'!E:E)*-1) -> 81781.6
A153: BC | B153: BA0940 | C153: da privato (intraregionale) | D153: C | E153: =IF('00 Aggregatore'!$D153="R",SUMIF('00 Alimenta'!$A:$A,$B153,'00 Alimenta'!D:D),SUMIF('00 Alimenta'!$A:$A,$B153,'00 Alimenta'!D:D)*-1) -> 9671880.59 | F153: =IF('00 Aggregatore'!$D153="R",SUMIF('00 Alimenta'!$A:$A,$B153,'00 Alimenta'!E:E),SUMIF('00 Alimenta'!$A:$A,$B153,'00 Alimenta'!E:E)*-1) -> 9798519.84
A154: BC | B154: BA0950 | C154: da privato (extraregionale) | D154: C | E154: =IF('00 Aggregatore'!$D154="R",SUMIF('00 Alimenta'!$A:$A,$B154,'00 Alimenta'!D:D),SUMIF('00 Alimenta'!$A:$A,$B154,'00 Alimenta'!D:D)*-1) -> 1872398.81 | F154: =IF('00 Aggregatore'!$D154="R",SUMIF('00 Alimenta'!$A:$A,$B154,'00 Alimenta'!E:E),SUMIF('00 Alimenta'!$A:$A,$B154,'00 Alimenta'!E:E)*-1) -> 1589885.46
A155: BC | B155: BA0970 | C155: da pubblico (Aziende sanitarie pubbliche della Regione) - Mobilità intraregionale | D155: C | E155: =IF('00 Aggregatore'!$D155="R",SUMIF('00 Alimenta'!$A:$A,$B155,'00 Alimenta'!D:D),SUMIF('00 Alimenta'!$A:$A,$B155,'00 Alimenta'!D:D)*-1) -> 4391409.7 | F155: =IF('00 Aggregatore'!$D155="R",SUMIF('00 Alimenta'!$A:$A,$B155,'00 Alimenta'!E:E),SUMIF('00 Alimenta'!$A:$A,$B155,'00 Alimenta'!E:E)*-1) -> 4464112.37
A156: BC | B156: BA0980 | C156: da pubblico (altri soggetti pubblici della Regione) | D156: C | E156: =IF('00 Aggregatore'!$D156="R",SUMIF('00 Alimenta'!$A:$A,$B156,'00 Alimenta'!D:D),SUMIF('00 Alimenta'!$A:$A,$B156,'00 Alimenta'!D:D)*-1) -> 0 | F156: =IF('00 Aggregatore'!$D156="R",SUMIF('00 Alimenta'!$A:$A,$B156,'00 Alimenta'!E:E),SUMIF('00 Alimenta'!$A:$A,$B156,'00 Alimenta'!E:E)*-1) -> 0
A157: BC | B157: BA0990 | C157: da pubblico (extra Regione) | D157: C | E157: =IF('00 Aggregatore'!$D157="R",SUMIF('00 Alimenta'!$A:$A,$B157,'00 Alimenta'!D:D),SUMIF('00 Alimenta'!$A:$A,$B157,'00 Alimenta'!D:D)*-1) -> 1585422.33 | F157: =IF('00 Aggregatore'!$D157="R",SUMIF('00 Alimenta'!$A:$A,$B157,'00 Alimenta'!E:E),SUMIF('00 Alimenta'!$A:$A,$B157,'00 Alimenta'!E:E)*-1) -> 2195879.04
A158: BC | B158: BA1000 | C158: da privato (intraregionale) | D158: C | E158: =IF('00 Aggregatore'!$D158="R",SUMIF('00 Alimenta'!$A:$A,$B158,'00 Alimenta'!D:D),SUMIF('00 Alimenta'!$A:$A,$B158,'00 Alimenta'!D:D)*-1) -> 0 | F158: =IF('00 Aggregatore'!$D158="R",SUMIF('00 Alimenta'!$A:$A,$B158,'00 Alimenta'!E:E),SUMIF('00 Alimenta'!$A:$A,$B158,'00 Alimenta'!E:E)*-1) -> 432985.28
A159: BC | B159: BA1010 | C159: da privato (extraregionale) | D159: C | E159: =IF('00 Aggregatore'!$D159="R",SUMIF('00 Alimenta'!$A:$A,$B159,'00 Alimenta'!D:D),SUMIF('00 Alimenta'!$A:$A,$B159,'00 Alimenta'!D:D)*-1) -> 0 | F159: =IF('00 Aggregatore'!$D159="R",SUMIF('00 Alimenta'!$A:$A,$B159,'00 Alimenta'!E:E),SUMIF('00 Alimenta'!$A:$A,$B159,'00 Alimenta'!E:E)*-1) -> 0
A160: BC | B160: BA1020 | C160: da privato per cittadini non residenti - extra Regione (mobilità attiva in compensazione) | D160: C | E160: =IF('00 Aggregatore'!$D160="R",SUMIF('00 Alimenta'!$A:$A,$B160,'00 Alimenta'!D:D),SUMIF('00 Alimenta'!$A:$A,$B160,'00 Alimenta'!D:D)*-1) -> 0 | F160: =IF('00 Aggregatore'!$D160="R",SUMIF('00 Alimenta'!$A:$A,$B160,'00 Alimenta'!E:E),SUMIF('00 Alimenta'!$A:$A,$B160,'00 Alimenta'!E:E)*-1) -> 0
A161: BC | B161: BA1040 | C161: da pubblico (Aziende sanitarie pubbliche della Regione) - Mobilità intraregionale | D161: C | E161: =IF('00 Aggregatore'!$D161="R",SUMIF('00 Alimenta'!$A:$A,$B161,'00 Alimenta'!D:D),SUMIF('00 Alimenta'!$A:$A,$B161,'00 Alimenta'!D:D)*-1) -> 0 | F161: =IF('00 Aggregatore'!$D161="R",SUMIF('00 Alimenta'!$A:$A,$B161,'00 Alimenta'!E:E),SUMIF('00 Alimenta'!$A:$A,$B161,'00 Alimenta'!E:E)*-1) -> 0
A162: BC | B162: BA1050 | C162: da pubblico (altri soggetti pubblici della Regione) | D162: C | E162: =IF('00 Aggregatore'!$D162="R",SUMIF('00 Alimenta'!$A:$A,$B162,'00 Alimenta'!D:D),SUMIF('00 Alimenta'!$A:$A,$B162,'00 Alimenta'!D:D)*-1) -> 0 | F162: =IF('00 Aggregatore'!$D162="R",SUMIF('00 Alimenta'!$A:$A,$B162,'00 Alimenta'!E:E),SUMIF('00 Alimenta'!$A:$A,$B162,'00 Alimenta'!E:E)*-1) -> 0
A163: BC | B163: BA1060 | C163: da pubblico (extra Regione) | D163: C | E163: =IF('00 Aggregatore'!$D163="R",SUMIF('00 Alimenta'!$A:$A,$B163,'00 Alimenta'!D:D),SUMIF('00 Alimenta'!$A:$A,$B163,'00 Alimenta'!D:D)*-1) -> 159884.29 | F163: =IF('00 Aggregatore'!$D163="R",SUMIF('00 Alimenta'!$A:$A,$B163,'00 Alimenta'!E:E),SUMIF('00 Alimenta'!$A:$A,$B163,'00 Alimenta'!E:E)*-1) -> 95302.31
A164: BC | B164: BA1070 | C164: da privato | D164: C | E164: =IF('00 Aggregatore'!$D164="R",SUMIF('00 Alimenta'!$A:$A,$B164,'00 Alimenta'!D:D),SUMIF('00 Alimenta'!$A:$A,$B164,'00 Alimenta'!D:D)*-1) -> 1888589.97 | F164: =IF('00 Aggregatore'!$D164="R",SUMIF('00 Alimenta'!$A:$A,$B164,'00 Alimenta'!E:E),SUMIF('00 Alimenta'!$A:$A,$B164,'00 Alimenta'!E:E)*-1) -> 1821580.51
A165: BC | B165: BA1080 | C165: da privato per cittadini non residenti - extra Regione (mobilità attiva in compensazione) | D165: C | E165: =IF('00 Aggregatore'!$D165="R",SUMIF('00 Alimenta'!$A:$A,$B165,'00 Alimenta'!D:D),SUMIF('00 Alimenta'!$A:$A,$B165,'00 Alimenta'!D:D)*-1) -> 240189.57 | F165: =IF('00 Aggregatore'!$D165="R",SUMIF('00 Alimenta'!$A:$A,$B165,'00 Alimenta'!E:E),SUMIF('00 Alimenta'!$A:$A,$B165,'00 Alimenta'!E:E)*-1) -> 232622.89
A166: BC | B166: BA1100 | C166: da pubblico (Aziende sanitarie pubbliche della Regione) - Mobilità intraregionale | D166: C | E166: =IF('00 Aggregatore'!$D166="R",SUMIF('00 Alimenta'!$A:$A,$B166,'00 Alimenta'!D:D),SUMIF('00 Alimenta'!$A:$A,$B166,'00 Alimenta'!D:D)*-1) -> 124342.79 | F166: =IF('00 Aggregatore'!$D166="R",SUMIF('00 Alimenta'!$A:$A,$B166,'00 Alimenta'!E:E),SUMIF('00 Alimenta'!$A:$A,$B166,'00 Alimenta'!E:E)*-1) -> 103216
A167: BC | B167: BA1110 | C167: da pubblico (altri soggetti pubblici della Regione) | D167: C | E167: =IF('00 Aggregatore'!$D167="R",SUMIF('00 Alimenta'!$A:$A,$B167,'00 Alimenta'!D:D),SUMIF('00 Alimenta'!$A:$A,$B167,'00 Alimenta'!D:D)*-1) -> 0 | F167: =IF('00 Aggregatore'!$D167="R",SUMIF('00 Alimenta'!$A:$A,$B167,'00 Alimenta'!E:E),SUMIF('00 Alimenta'!$A:$A,$B167,'00 Alimenta'!E:E)*-1) -> 0
A168: BC | B168: BA1120 | C168: da pubblico (extra Regione) | D168: C | E168: =IF('00 Aggregatore'!$D168="R",SUMIF('00 Alimenta'!$A:$A,$B168,'00 Alimenta'!D:D),SUMIF('00 Alimenta'!$A:$A,$B168,'00 Alimenta'!D:D)*-1) -> 228483.68 | F168: =IF('00 Aggregatore'!$D168="R",SUMIF('00 Alimenta'!$A:$A,$B168,'00 Alimenta'!E:E),SUMIF('00 Alimenta'!$A:$A,$B168,'00 Alimenta'!E:E)*-1) -> 344124.9
A169: BC | B169: BA1130 | C169: da privato | D169: C | E169: =IF('00 Aggregatore'!$D169="R",SUMIF('00 Alimenta'!$A:$A,$B169,'00 Alimenta'!D:D),SUMIF('00 Alimenta'!$A:$A,$B169,'00 Alimenta'!D:D)*-1) -> 8159911.38 | F169: =IF('00 Aggregatore'!$D169="R",SUMIF('00 Alimenta'!$A:$A,$B169,'00 Alimenta'!E:E),SUMIF('00 Alimenta'!$A:$A,$B169,'00 Alimenta'!E:E)*-1) -> 8336001.56
A170: BC | B170: BA1150 | C170: da pubblico (Aziende sanitarie pubbliche della Regione) - Mobilità intraregionale | D170: C | E170: =IF('00 Aggregatore'!$D170="R",SUMIF('00 Alimenta'!$A:$A,$B170,'00 Alimenta'!D:D),SUMIF('00 Alimenta'!$A:$A,$B170,'00 Alimenta'!D:D)*-1) -> 1737461.12 | F170: =IF('00 Aggregatore'!$D170="R",SUMIF('00 Alimenta'!$A:$A,$B170,'00 Alimenta'!E:E),SUMIF('00 Alimenta'!$A:$A,$B170,'00 Alimenta'!E:E)*-1) -> 1758520.38
A171: BC | B171: BA1160 | C171: da pubblico (altri soggetti pubblici della Regione) | D171: C | E171: =IF('00 Aggregatore'!$D171="R",SUMIF('00 Alimenta'!$A:$A,$B171,'00 Alimenta'!D:D),SUMIF('00 Alimenta'!$A:$A,$B171,'00 Alimenta'!D:D)*-1) -> 0 | F171: =IF('00 Aggregatore'!$D171="R",SUMIF('00 Alimenta'!$A:$A,$B171,'00 Alimenta'!E:E),SUMIF('00 Alimenta'!$A:$A,$B171,'00 Alimenta'!E:E)*-1) -> 0
A172: BC | B172: BA1170 | C172: da pubblico (extra Regione) non soggette a compensazione | D172: C | E172: =IF('00 Aggregatore'!$D172="R",SUMIF('00 Alimenta'!$A:$A,$B172,'00 Alimenta'!D:D),SUMIF('00 Alimenta'!$A:$A,$B172,'00 Alimenta'!D:D)*-1) -> 168459.48 | F172: =IF('00 Aggregatore'!$D172="R",SUMIF('00 Alimenta'!$A:$A,$B172,'00 Alimenta'!E:E),SUMIF('00 Alimenta'!$A:$A,$B172,'00 Alimenta'!E:E)*-1) -> 160969.38
A173: BC | B173: BA1180 | C173: da privato (intraregionale) | D173: C | E173: =IF('00 Aggregatore'!$D173="R",SUMIF('00 Alimenta'!$A:$A,$B173,'00 Alimenta'!D:D),SUMIF('00 Alimenta'!$A:$A,$B173,'00 Alimenta'!D:D)*-1) -> 12551624.02 | F173: =IF('00 Aggregatore'!$D173="R",SUMIF('00 Alimenta'!$A:$A,$B173,'00 Alimenta'!E:E),SUMIF('00 Alimenta'!$A:$A,$B173,'00 Alimenta'!E:E)*-1) -> 12500635.9
A174: BC | B174: BA1190 | C174: da privato (extraregionale) | D174: C | E174: =IF('00 Aggregatore'!$D174="R",SUMIF('00 Alimenta'!$A:$A,$B174,'00 Alimenta'!D:D),SUMIF('00 Alimenta'!$A:$A,$B174,'00 Alimenta'!D:D)*-1) -> 1751767.75 | F174: =IF('00 Aggregatore'!$D174="R",SUMIF('00 Alimenta'!$A:$A,$B174,'00 Alimenta'!E:E),SUMIF('00 Alimenta'!$A:$A,$B174,'00 Alimenta'!E:E)*-1) -> 1887412.91
A175: BC | B175: BA1210 | C175: Compartecipazione al personale per attività libero professionale intramoenia - Area ospedaliera | D175: C | E175: =IF('00 Aggregatore'!$D175="R",SUMIF('00 Alimenta'!$A:$A,$B175,'00 Alimenta'!D:D),SUMIF('00 Alimenta'!$A:$A,$B175,'00 Alimenta'!D:D)*-1) -> 36801.34 | F175: =IF('00 Aggregatore'!$D175="R",SUMIF('00 Alimenta'!$A:$A,$B175,'00 Alimenta'!E:E),SUMIF('00 Alimenta'!$A:$A,$B175,'00 Alimenta'!E:E)*-1) -> 54218.1
A176: BC | B176: BA1220 | C176: Compartecipazione al personale per attività libero professionale intramoenia - Area specialistica | D176: C | E176: =IF('00 Aggregatore'!$D176="R",SUMIF('00 Alimenta'!$A:$A,$B176,'00 Alimenta'!D:D),SUMIF('00 Alimenta'!$A:$A,$B176,'00 Alimenta'!D:D)*-1) -> 2790651.77 | F176: =IF('00 Aggregatore'!$D176="R",SUMIF('00 Alimenta'!$A:$A,$B176,'00 Alimenta'!E:E),SUMIF('00 Alimenta'!$A:$A,$B176,'00 Alimenta'!E:E)*-1) -> 2563747.47
A177: BC | B177: BA1230 | C177: Compartecipazione al personale per attività libero professionale intramoenia - Area sanità pubblica | D177: C | E177: =IF('00 Aggregatore'!$D177="R",SUMIF('00 Alimenta'!$A:$A,$B177,'00 Alimenta'!D:D),SUMIF('00 Alimenta'!$A:$A,$B177,'00 Alimenta'!D:D)*-1) -> 19073.69 | F177: =IF('00 Aggregatore'!$D177="R",SUMIF('00 Alimenta'!$A:$A,$B177,'00 Alimenta'!E:E),SUMIF('00 Alimenta'!$A:$A,$B177,'00 Alimenta'!E:E)*-1) -> 15233.61
A178: BC | B178: BA1240 | C178: Compartecipazione al personale per attività libero professionale intramoenia - Consulenze (ex art.55 c.1 lett.c), d) ed ex art.57-58) | D178: C | E178: =IF('00 Aggregatore'!$D178="R",SUMIF('00 Alimenta'!$A:$A,$B178,'00 Alimenta'!D:D),SUMIF('00 Alimenta'!$A:$A,$B178,'00 Alimenta'!D:D)*-1) -> 371493.34 | F178: =IF('00 Aggregatore'!$D178="R",SUMIF('00 Alimenta'!$A:$A,$B178,'00 Alimenta'!E:E),SUMIF('00 Alimenta'!$A:$A,$B178,'00 Alimenta'!E:E)*-1) -> 579327.3
A179: BC | B179: BA1250 | C179: Compartecipazione al personale per attività libero prof.le intramoenia - Consulenze (ex art.55 c.1 lett.c), d) ed ex art.57-58) (Az.San.Pubbl.Regione) | D179: C | E179: =IF('00 Aggregatore'!$D179="R",SUMIF('00 Alimenta'!$A:$A,$B179,'00 Alimenta'!D:D),SUMIF('00 Alimenta'!$A:$A,$B179,'00 Alimenta'!D:D)*-1) -> 0 | F179: =IF('00 Aggregatore'!$D179="R",SUMIF('00 Alimenta'!$A:$A,$B179,'00 Alimenta'!E:E),SUMIF('00 Alimenta'!$A:$A,$B179,'00 Alimenta'!E:E)*-1) -> 0
A180: BC | B180: BA1260 | C180: Compartecipazione al personale per attività libero professionale intramoenia - Altro | D180: C | E180: =IF('00 Aggregatore'!$D180="R",SUMIF('00 Alimenta'!$A:$A,$B180,'00 Alimenta'!D:D),SUMIF('00 Alimenta'!$A:$A,$B180,'00 Alimenta'!D:D)*-1) -> 75468.47 | F180: =IF('00 Aggregatore'!$D180="R",SUMIF('00 Alimenta'!$A:$A,$B180,'00 Alimenta'!E:E),SUMIF('00 Alimenta'!$A:$A,$B180,'00 Alimenta'!E:E)*-1) -> 108504.84
A181: BC | B181: BA1270 | C181: Compartecipazione al personale per attività libero professionale intramoenia - Altro (Aziende sanitarie pubbliche della Regione) | D181: C | E181: =IF('00 Aggregatore'!$D181="R",SUMIF('00 Alimenta'!$A:$A,$B181,'00 Alimenta'!D:D),SUMIF('00 Alimenta'!$A:$A,$B181,'00 Alimenta'!D:D)*-1) -> 0 | F181: =IF('00 Aggregatore'!$D181="R",SUMIF('00 Alimenta'!$A:$A,$B181,'00 Alimenta'!E:E),SUMIF('00 Alimenta'!$A:$A,$B181,'00 Alimenta'!E:E)*-1) -> 0
A182: BC | B182: BA1290 | C182: Contributi ad associazioni di volontariato | D182: C | E182: =IF('00 Aggregatore'!$D182="R",SUMIF('00 Alimenta'!$A:$A,$B182,'00 Alimenta'!D:D),SUMIF('00 Alimenta'!$A:$A,$B182,'00 Alimenta'!D:D)*-1) -> 326600 | F182: =IF('00 Aggregatore'!$D182="R",SUMIF('00 Alimenta'!$A:$A,$B182,'00 Alimenta'!E:E),SUMIF('00 Alimenta'!$A:$A,$B182,'00 Alimenta'!E:E)*-1) -> 349365.76
A183: BC | B183: BA1300 | C183: Rimborsi per cure all'estero | D183: C | E183: =IF('00 Aggregatore'!$D183="R",SUMIF('00 Alimenta'!$A:$A,$B183,'00 Alimenta'!D:D),SUMIF('00 Alimenta'!$A:$A,$B183,'00 Alimenta'!D:D)*-1) -> 0 | F183: =IF('00 Aggregatore'!$D183="R",SUMIF('00 Alimenta'!$A:$A,$B183,'00 Alimenta'!E:E),SUMIF('00 Alimenta'!$A:$A,$B183,'00 Alimenta'!E:E)*-1) -> 2069.39
A184: BC | B184: BA1310 | C184: Contributi a società partecipate e/o enti dipendenti della Regione | D184: C | E184: =IF('00 Aggregatore'!$D184="R",SUMIF('00 Alimenta'!$A:$A,$B184,'00 Alimenta'!D:D),SUMIF('00 Alimenta'!$A:$A,$B184,'00 Alimenta'!D:D)*-1) -> 0 | F184: =IF('00 Aggregatore'!$D184="R",SUMIF('00 Alimenta'!$A:$A,$B184,'00 Alimenta'!E:E),SUMIF('00 Alimenta'!$A:$A,$B184,'00 Alimenta'!E:E)*-1) -> 0
A185: BC | B185: BA1320 | C185: Contributo Legge 210/92 | D185: C | E185: =IF('00 Aggregatore'!$D185="R",SUMIF('00 Alimenta'!$A:$A,$B185,'00 Alimenta'!D:D),SUMIF('00 Alimenta'!$A:$A,$B185,'00 Alimenta'!D:D)*-1) -> 0 | F185: =IF('00 Aggregatore'!$D185="R",SUMIF('00 Alimenta'!$A:$A,$B185,'00 Alimenta'!E:E),SUMIF('00 Alimenta'!$A:$A,$B185,'00 Alimenta'!E:E)*-1) -> 0
A186: BC | B186: BA1330 | C186: Altri rimborsi, assegni e contributi | D186: C | E186: =IF('00 Aggregatore'!$D186="R",SUMIF('00 Alimenta'!$A:$A,$B186,'00 Alimenta'!D:D),SUMIF('00 Alimenta'!$A:$A,$B186,'00 Alimenta'!D:D)*-1) -> 1424508.45 | F186: =IF('00 Aggregatore'!$D186="R",SUMIF('00 Alimenta'!$A:$A,$B186,'00 Alimenta'!E:E),SUMIF('00 Alimenta'!$A:$A,$B186,'00 Alimenta'!E:E)*-1) -> 1792525.63
A187: BC | B187: BA1340 | C187: Rimborsi, assegni e contributi v/Aziende sanitarie pubbliche della Regione | D187: C | E187: =IF('00 Aggregatore'!$D187="R",SUMIF('00 Alimenta'!$A:$A,$B187,'00 Alimenta'!D:D),SUMIF('00 Alimenta'!$A:$A,$B187,'00 Alimenta'!D:D)*-1) -> 80 | F187: =IF('00 Aggregatore'!$D187="R",SUMIF('00 Alimenta'!$A:$A,$B187,'00 Alimenta'!E:E),SUMIF('00 Alimenta'!$A:$A,$B187,'00 Alimenta'!E:E)*-1) -> 0
A188: BC | B188: BA1360 | C188: Consulenze sanitarie e socio-sanitarie da Aziende sanitarie pubbliche della Regione | D188: C | E188: =IF('00 Aggregatore'!$D188="R",SUMIF('00 Alimenta'!$A:$A,$B188,'00 Alimenta'!D:D),SUMIF('00 Alimenta'!$A:$A,$B188,'00 Alimenta'!D:D)*-1) -> 298526.69 | F188: =IF('00 Aggregatore'!$D188="R",SUMIF('00 Alimenta'!$A:$A,$B188,'00 Alimenta'!E:E),SUMIF('00 Alimenta'!$A:$A,$B188,'00 Alimenta'!E:E)*-1) -> 416373.3
A189: BC | B189: BA1370 | C189: Consulenze sanitarie e socio-sanitarie da terzi - Altri soggetti pubblici | D189: C | E189: =IF('00 Aggregatore'!$D189="R",SUMIF('00 Alimenta'!$A:$A,$B189,'00 Alimenta'!D:D),SUMIF('00 Alimenta'!$A:$A,$B189,'00 Alimenta'!D:D)*-1) -> 24433.75 | F189: =IF('00 Aggregatore'!$D189="R",SUMIF('00 Alimenta'!$A:$A,$B189,'00 Alimenta'!E:E),SUMIF('00 Alimenta'!$A:$A,$B189,'00 Alimenta'!E:E)*-1) -> 0
A190: BC | B190: BA1390 | C190: Consulenze sanitarie da privato - Articolo 55, comma 2, CCNL 8 giugno 2000 | D190: C | E190: =IF('00 Aggregatore'!$D190="R",SUMIF('00 Alimenta'!$A:$A,$B190,'00 Alimenta'!D:D),SUMIF('00 Alimenta'!$A:$A,$B190,'00 Alimenta'!D:D)*-1) -> 2372315.18 | F190: =IF('00 Aggregatore'!$D190="R",SUMIF('00 Alimenta'!$A:$A,$B190,'00 Alimenta'!E:E),SUMIF('00 Alimenta'!$A:$A,$B190,'00 Alimenta'!E:E)*-1) -> 2164804.17
A191: BC | B191: BA1400 | C191: Altre consulenze sanitarie e socio-sanitarie da privato | D191: C | E191: =IF('00 Aggregatore'!$D191="R",SUMIF('00 Alimenta'!$A:$A,$B191,'00 Alimenta'!D:D),SUMIF('00 Alimenta'!$A:$A,$B191,'00 Alimenta'!D:D)*-1) -> 8005.29 | F191: =IF('00 Aggregatore'!$D191="R",SUMIF('00 Alimenta'!$A:$A,$B191,'00 Alimenta'!E:E),SUMIF('00 Alimenta'!$A:$A,$B191,'00 Alimenta'!E:E)*-1) -> 4381.71
A192: BC | B192: BA1410 | C192: Collaborazioni coordinate e continuative sanitarie e socio-sanitarie da privato | D192: C | E192: =IF('00 Aggregatore'!$D192="R",SUMIF('00 Alimenta'!$A:$A,$B192,'00 Alimenta'!D:D),SUMIF('00 Alimenta'!$A:$A,$B192,'00 Alimenta'!D:D)*-1) -> 8413.12 | F192: =IF('00 Aggregatore'!$D192="R",SUMIF('00 Alimenta'!$A:$A,$B192,'00 Alimenta'!E:E),SUMIF('00 Alimenta'!$A:$A,$B192,'00 Alimenta'!E:E)*-1) -> 0
A193: BC | B193: BA1420 | C193: Indennità a personale universitario - Area sanitaria | D193: C | E193: =IF('00 Aggregatore'!$D193="R",SUMIF('00 Alimenta'!$A:$A,$B193,'00 Alimenta'!D:D),SUMIF('00 Alimenta'!$A:$A,$B193,'00 Alimenta'!D:D)*-1) -> 242210.34 | F193: =IF('00 Aggregatore'!$D193="R",SUMIF('00 Alimenta'!$A:$A,$B193,'00 Alimenta'!E:E),SUMIF('00 Alimenta'!$A:$A,$B193,'00 Alimenta'!E:E)*-1) -> 256736.03
A194: BC | B194: BA1430 | C194: Lavoro interinale - Area sanitaria | D194: C | E194: =IF('00 Aggregatore'!$D194="R",SUMIF('00 Alimenta'!$A:$A,$B194,'00 Alimenta'!D:D),SUMIF('00 Alimenta'!$A:$A,$B194,'00 Alimenta'!D:D)*-1) -> 2608784.9 | F194: =IF('00 Aggregatore'!$D194="R",SUMIF('00 Alimenta'!$A:$A,$B194,'00 Alimenta'!E:E),SUMIF('00 Alimenta'!$A:$A,$B194,'00 Alimenta'!E:E)*-1) -> 2862789.15
A195: BC | B195: BA1440 | C195: Altre collaborazioni e prestazioni di lavoro - Area sanitaria | D195: C | E195: =IF('00 Aggregatore'!$D195="R",SUMIF('00 Alimenta'!$A:$A,$B195,'00 Alimenta'!D:D),SUMIF('00 Alimenta'!$A:$A,$B195,'00 Alimenta'!D:D)*-1) -> 1150772.1 | F195: =IF('00 Aggregatore'!$D195="R",SUMIF('00 Alimenta'!$A:$A,$B195,'00 Alimenta'!E:E),SUMIF('00 Alimenta'!$A:$A,$B195,'00 Alimenta'!E:E)*-1) -> 815766.76
A196: BC | B196: BA1460 | C196: Rimborso oneri stipendiali personale sanitario in comando da Aziende sanitarie pubbliche della Regione | D196: C | E196: =IF('00 Aggregatore'!$D196="R",SUMIF('00 Alimenta'!$A:$A,$B196,'00 Alimenta'!D:D),SUMIF('00 Alimenta'!$A:$A,$B196,'00 Alimenta'!D:D)*-1) -> 0 | F196: =IF('00 Aggregatore'!$D196="R",SUMIF('00 Alimenta'!$A:$A,$B196,'00 Alimenta'!E:E),SUMIF('00 Alimenta'!$A:$A,$B196,'00 Alimenta'!E:E)*-1) -> 0
A197: BC | B197: BA1470 | C197: Rimborso oneri stipendiali personale sanitario in comando da Regioni, soggetti pubblici e da Università | D197: C | E197: =IF('00 Aggregatore'!$D197="R",SUMIF('00 Alimenta'!$A:$A,$B197,'00 Alimenta'!D:D),SUMIF('00 Alimenta'!$A:$A,$B197,'00 Alimenta'!D:D)*-1) -> 0 | F197: =IF('00 Aggregatore'!$D197="R",SUMIF('00 Alimenta'!$A:$A,$B197,'00 Alimenta'!E:E),SUMIF('00 Alimenta'!$A:$A,$B197,'00 Alimenta'!E:E)*-1) -> 0
A198: =LEFT(B198,1)&D198 -> BC | B198: BA1480 | C198: Rimborso oneri stipendiali personale sanitario in comando da Aziende di altre Regioni (extra Regione) | D198: C | E198: =IF('00 Aggregatore'!$D198="R",SUMIF('00 Alimenta'!$A:$A,$B198,'00 Alimenta'!D:D),SUMIF('00 Alimenta'!$A:$A,$B198,'00 Alimenta'!D:D)*-1) -> 9790.09 | F198: =IF('00 Aggregatore'!$D198="R",SUMIF('00 Alimenta'!$A:$A,$B198,'00 Alimenta'!E:E),SUMIF('00 Alimenta'!$A:$A,$B198,'00 Alimenta'!E:E)*-1) -> 53987.92
A199: BC | B199: BA1500 | C199: Altri servizi sanitari e sociosanitari a rilevanza sanitaria da pubblico - Aziende sanitarie pubbliche della Regione | D199: C | E199: =IF('00 Aggregatore'!$D199="R",SUMIF('00 Alimenta'!$A:$A,$B199,'00 Alimenta'!D:D),SUMIF('00 Alimenta'!$A:$A,$B199,'00 Alimenta'!D:D)*-1) -> 13109.54 | F199: =IF('00 Aggregatore'!$D199="R",SUMIF('00 Alimenta'!$A:$A,$B199,'00 Alimenta'!E:E),SUMIF('00 Alimenta'!$A:$A,$B199,'00 Alimenta'!E:E)*-1) -> 0
A200: BC | B200: BA1510 | C200: Altri servizi sanitari e sociosanitari a rilevanza sanitaria da pubblico - Altri soggetti pubblici della Regione | D200: C | E200: =IF('00 Aggregatore'!$D200="R",SUMIF('00 Alimenta'!$A:$A,$B200,'00 Alimenta'!D:D),SUMIF('00 Alimenta'!$A:$A,$B200,'00 Alimenta'!D:D)*-1) -> 0 | F200: =IF('00 Aggregatore'!$D200="R",SUMIF('00 Alimenta'!$A:$A,$B200,'00 Alimenta'!E:E),SUMIF('00 Alimenta'!$A:$A,$B200,'00 Alimenta'!E:E)*-1) -> 0
A201: BC | B201: BA1520 | C201: Altri servizi sanitari e sociosanitari a rilevanza sanitaria da pubblico (extra Regione) | D201: C | E201: =IF('00 Aggregatore'!$D201="R",SUMIF('00 Alimenta'!$A:$A,$B201,'00 Alimenta'!D:D),SUMIF('00 Alimenta'!$A:$A,$B201,'00 Alimenta'!D:D)*-1) -> 0 | F201: =IF('00 Aggregatore'!$D201="R",SUMIF('00 Alimenta'!$A:$A,$B201,'00 Alimenta'!E:E),SUMIF('00 Alimenta'!$A:$A,$B201,'00 Alimenta'!E:E)*-1) -> 0
A202: BC | B202: BA1530 | C202: Altri servizi sanitari da privato | D202: C | E202: =IF('00 Aggregatore'!$D202="R",SUMIF('00 Alimenta'!$A:$A,$B202,'00 Alimenta'!D:D),SUMIF('00 Alimenta'!$A:$A,$B202,'00 Alimenta'!D:D)*-1) -> 2741606.08 | F202: =IF('00 Aggregatore'!$D202="R",SUMIF('00 Alimenta'!$A:$A,$B202,'00 Alimenta'!E:E),SUMIF('00 Alimenta'!$A:$A,$B202,'00 Alimenta'!E:E)*-1) -> 3534647.28
... 172 more rows

Sheet 00 CE
A2: AGG | B2: CODICE | C2: VOCE MODELLO CE | F2: ='00 Aggregatore'!E4 -> Esercizio 2017 | G2: ='00 Aggregatore'!F4 -> Esercizio 2018
C3: A) Valore della produzione
B4: AA0010 | C4: A.1) Contributi in c/esercizio | D4: S | E4: AA0010 | F4: =F5+F8+F21+F26 -> 562861140.6 | G4: =G5+G8+G21+G26 -> 569823505.8
B5: AA0020 | C5: A.1.A) Contributi da Regione o Prov. Aut. per quota F.S. regionale | D5: S | E5: AA0020 | F5: =SUM(F6:F7) -> 562581352.2 | G5: =SUM(G6:G7) -> 569244565.9
B6: AA0030 | C6: A.1.A.1) da Regione o Prov. Aut. per quota F.S. regionale indistinto | E6: AA0030 | F6: =SUMIF('00 Aggregatore'!$B:$B,'00 CE'!$E6,'00 Aggregatore'!E:E) -> 547765886.6 | G6: =SUMIF('00 Aggregatore'!$B:$B,'00 CE'!$E6,'00 Aggregatore'!F:F) -> 555479764
B7: AA0040 | C7: A.1.A.2) da Regione o Prov. Aut. per quota F.S. regionale vincolato | E7: AA0040 | F7: =SUMIF('00 Aggregatore'!$B:$B,'00 CE'!$E7,'00 Aggregatore'!E:E) -> 14815465.59 | G7: =SUMIF('00 Aggregatore'!$B:$B,'00 CE'!$E7,'00 Aggregatore'!F:F) -> 13764801.84
B8: AA0050 | C8: A.1.B) Contributi c/esercizio (extra fondo) | D8: S | E8: AA0050 | F8: =F9+F14+F17 -> 279788.35 | G8: =G9+G14+G17 -> 578939.97
B9: AA0060 | C9: A.1.B.1) da Regione o Prov. Aut. (extra fondo) | D9: S | E9: AA0060 | F9: =SUM(F10:F13) -> 123104.1 | G9: =SUM(G10:G13) -> 410404.72
B10: AA0070 | C10: A.1.B.1.1) Contributi da Regione o Prov. Aut. (extra fondo) vincolati | E10: AA0070 | F10: =SUMIF('00 Aggregatore'!$B:$B,'00 CE'!$E10,'00 Aggregatore'!E:E) -> 123104.1 | G10: =SUMIF('00 Aggregatore'!$B:$B,'00 CE'!$E10,'00 Aggregatore'!F:F) -> 410404.72
B11: AA0080 | C11: A.1.B.1.2) Contributi da Regione o Prov. Aut. (extra fondo) - Risorse aggiuntive da bilancio regionale a titolo di copertura LEA | E11: AA0080 | F11: =SUMIF('00 Aggregatore'!$B:$B,'00 CE'!$E11,'00 Aggregatore'!E:E) -> 0 | G11: =SUMIF('00 Aggregatore'!$B:$B,'00 CE'!$E11,'00 Aggregatore'!F:F) -> 0
B12: AA0090 | C12: A.1.B.1.3) Contributi da Regione o Prov. Aut. (extra fondo) - Risorse aggiuntive da bilancio regionale a titolo di copertura extra LEA | E12: AA0090 | F12: =SUMIF('00 Aggregatore'!$B:$B,'00 CE'!$E12,'00 Aggregatore'!E:E) -> 0 | G12: =SUMIF('00 Aggregatore'!$B:$B,'00 CE'!$E12,'00 Aggregatore'!F:F) -> 0
B13: AA0100 | C13: A.1.B.1.4) Contributi da Regione o Prov. Aut. (extra fondo) - Altro | E13: AA0100 | F13: =SUMIF('00 Aggregatore'!$B:$B,'00 CE'!$E13,'00 Aggregatore'!E:E) -> 0 | G13: =SUMIF('00 Aggregatore'!$B:$B,'00 CE'!$E13,'00 Aggregatore'!F:F) -> 0
B14: AA0110 | C14: A.1.B.2) Contributi da Aziende sanitarie pubbliche della Regione o Prov. Aut. (extra fondo) | D14: S | E14: AA0110 | F14: =SUM(F15:F16) -> 0 | G14: =SUM(G15:G16) -> 0
B15: AA0120 | C15: A.1.B.2.1) Contributi da Aziende sanitarie pubbliche della Regione o Prov. Aut. (extra fondo) vincolati | E15: AA0120 | F15: =SUMIF('00 Aggregatore'!$B:$B,'00 CE'!$E15,'00 Aggregatore'!E:E) -> 0 | G15: =SUMIF('00 Aggregatore'!$B:$B,'00 CE'!$E15,'00 Aggregatore'!F:F) -> 0
B16: AA0130 | C16: A.1.B.2.2) Contributi da Aziende sanitarie pubbliche della Regione o Prov. Aut. (extra fondo) altro | E16: AA0130 | F16: =SUMIF('00 Aggregatore'!$B:$B,'00 CE'!$E16,'00 Aggregatore'!E:E) -> 0 | G16: =SUMIF('00 Aggregatore'!$B:$B,'00 CE'!$E16,'00 Aggregatore'!F:F) -> 0
B17: AA0140 | C17: A.1.B.3) Contributi da altri soggetti pubblici (extra fondo) | D17: S | E17: AA0140 | F17: =SUM(F18:F20) -> 156684.25 | G17: =SUM(G18:G20) -> 168535.25
B18: AA0150 | C18: A.1.B.3.1) Contributi da altri soggetti pubblici (extra fondo) vincolati | E18: AA0150 | F18: =SUMIF('00 Aggregatore'!$B:$B,'00 CE'!$E18,'00 Aggregatore'!E:E) -> 156684.25 | G18: =SUMIF('00 Aggregatore'!$B:$B,'00 CE'!$E18,'00 Aggregatore'!F:F) -> 168535.25
B19: AA0160 | C19: A.1.B.3.2) Contributi da altri soggetti pubblici (extra fondo) L. 210/92 | E19: AA0160 | F19: =SUMIF('00 Aggregatore'!$B:$B,'00 CE'!$E19,'00 Aggregatore'!E:E) -> 0 | G19: =SUMIF('00 Aggregatore'!$B:$B,'00 CE'!$E19,'00 Aggregatore'!F:F) -> 0
B20: AA0170 | C20: A.1.B.3.3) Contributi da altri soggetti pubblici (extra fondo) altro | E20: AA0170 | F20: =SUMIF('00 Aggregatore'!$B:$B,'00 CE'!$E20,'00 Aggregatore'!E:E) -> 0 | G20: =SUMIF('00 Aggregatore'!$B:$B,'00 CE'!$E20,'00 Aggregatore'!F:F) -> 0
B21: AA0180 | C21: A.1.C) Contributi c/esercizio per ricerca | D21: S | E21: AA0180 | F21: =SUM(F22:F25) -> 0 | G21: =SUM(G22:G25) -> 0
B22: AA0190 | C22: A.1.C.1) Contributi da Ministero della Salute per ricerca corrente | E22: AA0190 | F22: =SUMIF('00 Aggregatore'!$B:$B,'00 CE'!$E22,'00 Aggregatore'!E:E) -> 0 | G22: =SUMIF('00 Aggregatore'!$B:$B,'00 CE'!$E22,'00 Aggregatore'!F:F) -> 0
B23: AA0200 | C23: A.1.C.2) Contributi da Ministero della Salute per ricerca finalizzata | E23: AA0200 | F23: =SUMIF('00 Aggregatore'!$B:$B,'00 CE'!$E23,'00 Aggregatore'!E:E) -> 0 | G23: =SUMIF('00 Aggregatore'!$B:$B,'00 CE'!$E23,'00 Aggregatore'!F:F) -> 0
B24: AA0210 | C24: A.1.C.3) Contributi da Regione ed altri soggetti pubblici per ricerca | E24: AA0210 | F24: =SUMIF('00 Aggregatore'!$B:$B,'00 CE'!$E24,'00 Aggregatore'!E:E) -> 0 | G24: =SUMIF('00 Aggregatore'!$B:$B,'00 CE'!$E24,'00 Aggregatore'!F:F) -> 0
B25: AA0220 | C25: A.1.C.4) Contributi da privati per ricerca | E25: AA0220 | F25: =SUMIF('00 Aggregatore'!$B:$B,'00 CE'!$E25,'00 Aggregatore'!E:E) -> 0 | G25: =SUMIF('00 Aggregatore'!$B:$B,'00 CE'!$E25,'00 Aggregatore'!F:F) -> 0
B26: AA0230 | C26: A.1.D) Contributi c/esercizio da privati | E26: AA0230 | F26: =SUMIF('00 Aggregatore'!$B:$B,'00 CE'!$E26,'00 Aggregatore'!E:E) -> 0 | G26: =SUMIF('00 Aggregatore'!$B:$B,'00 CE'!$E26,'00 Aggregatore'!F:F) -> 0
B27: AA0240 | C27: A.2) Rettifica contributi c/esercizio per destinazione ad investimenti | D27: S | E27: AA0240 | F27: =SUM(F28:F29) -> -6506318.89 | G27: =SUM(G28:G29) -> -4347846.81
B28: AA0250 | C28: A.2.A) Rettifica contributi in c/esercizio per destinazione ad investimenti - da Regione o Prov. Aut. per quota F.S. regionale | E28: AA0250 | F28: =SUMIF('00 Aggregatore'!$B:$B,'00 CE'!$E28,'00 Aggregatore'!E:E) -> -6506318.89 | G28: =SUMIF('00 Aggregatore'!$B:$B,'00 CE'!$E28,'00 Aggregatore'!F:F) -> -4347846.81
B29: AA0260 | C29: A.2.B) Rettifica contributi in c/esercizio per destinazione ad investimenti - altri contributi | E29: AA0260 | F29: =SUMIF('00 Aggregatore'!$B:$B,'00 CE'!$E29,'00 Aggregatore'!E:E) -> 0 | G29: =SUMIF('00 Aggregatore'!$B:$B,'00 CE'!$E29,'00 Aggregatore'!F:F) -> 0
B30: AA0270 | C30: A.3) Utilizzo fondi per quote inutilizzate contributi vincolati di esercizi precedenti | D30: S | E30: AA0270 | F30: =SUM(F31:F34) -> 5773472.56 | G30: =SUM(G31:G34) -> 8070784.32
B31: AA0280 | C31: A.3.A) Utilizzo fondi per quote inutilizzate contributi di esercizi precedenti da Regione o Prov. Aut. per quota F.S. regionale vincolato | E31: AA0280 | F31: =SUMIF('00 Aggregatore'!$B:$B,'00 CE'!$E31,'00 Aggregatore'!E:E) -> 5681020.1 | G31: =SUMIF('00 Aggregatore'!$B:$B,'00 CE'!$E31,'00 Aggregatore'!F:F) -> 8070784.32
B32: AA0290 | C32: A.3.B) Utilizzo fondi per quote inutilizzate contributi di esercizi precedenti da soggetti pubblici (extra fondo) vincolati | E32: AA0290 | F32: =SUMIF('00 Aggregatore'!$B:$B,'00 CE'!$E32,'00 Aggregatore'!E:E) -> 92452.46 | G32: =SUMIF('00 Aggregatore'!$B:$B,'00 CE'!$E32,'00 Aggregatore'!F:F) -> 0
B33: AA0300 | C33: A.3.C) Utilizzo fondi per quote inutilizzate contributi di esercizi precedenti per ricerca | E33: AA0300 | F33: =SUMIF('00 Aggregatore'!$B:$B,'00 CE'!$E33,'00 Aggregatore'!E:E) -> 0 | G33: =SUMIF('00 Aggregatore'!$B:$B,'00 CE'!$E33,'00 Aggregatore'!F:F) -> 0
B34: AA0310 | C34: A.3.D) Utilizzo fondi per quote inutilizzate contributi vincolati di esercizi precedenti da privati | E34: AA0310 | F34: =SUMIF('00 Aggregatore'!$B:$B,'00 CE'!$E34,'00 Aggregatore'!E:E) -> 0 | G34: =SUMIF('00 Aggregatore'!$B:$B,'00 CE'!$E34,'00 Aggregatore'!F:F) -> 0
B35: AA0320 | C35: A.4) Ricavi per prestazioni sanitarie e sociosanitarie a rilevanza sanitaria | D35: S | E35: AA0320 | F35: =F36+F64+F69+F70 -> 121845392.4 | G35: =G36+G64+G69+G70 -> 130750492
B36: AA0330 | C36: A.4.A) Ricavi per prestazioni sanitarie e sociosanitarie a rilevanza sanitaria erogate a soggetti pubblici | D36: S | E36: AA0330 | F36: =F37+F47+F48 -> 102220430 | G36: =G37+G47+G48 -> 112404019.1
B37: AA0340 | C37: A.4.A.1) Ricavi per prestaz. sanitarie e sociosanitarie a rilevanza sanitaria erogate ad Aziende sanitarie pubbliche della Regione | D37: S | E37: AA0340 | F37: =SUM(F38:F46) -> 96681059.59 | G37: =SUM(G38:G46) -> 99510381.01
B38: AA0350 | C38: A.4.A.1.1) Prestazioni di ricovero | E38: AA0350 | F38: =SUMIF('00 Aggregatore'!$B:$B,'00 CE'!$E38,'00 Aggregatore'!E:E) -> 62109937.31 | G38: =SUMIF('00 Aggregatore'!$B:$B,'00 CE'!$E38,'00 Aggregatore'!F:F) -> 63932152.8
B39: AA0360 | C39: A.4.A.1.2) Prestazioni di specialistica ambulatoriale | E39: AA0360 | F39: =SUMIF('00 Aggregatore'!$B:$B,'00 CE'!$E39,'00 Aggregatore'!E:E) -> 8188514.26 | G39: =SUMIF('00 Aggregatore'!$B:$B,'00 CE'!$E39,'00 Aggregatore'!F:F) -> 8495470.67
B40: AA0370 | C40: A.4.A.1.3) Prestazioni di psichiatria residenziale e semiresidenziale | E40: AA0370 | F40: =SUMIF('00 Aggregatore'!$B:$B,'00 CE'!$E40,'00 Aggregatore'!E:E) -> 4556497.31 | G40: =SUMIF('00 Aggregatore'!$B:$B,'00 CE'!$E40,'00 Aggregatore'!F:F) -> 4667985.86
B41: AA0380 | C41: A.4.A.1.4) Prestazioni di File F | E41: AA0380 | F41: =SUMIF('00 Aggregatore'!$B:$B,'00 CE'!$E41,'00 Aggregatore'!E:E) -> 13565690.02 | G41: =SUMIF('00 Aggregatore'!$B:$B,'00 CE'!$E41,'00 Aggregatore'!F:F) -> 13551276.25
B42: AA0390 | C42: A.4.A.1.5) Prestazioni servizi MMG, PLS, Contin. assistenziale | E42: AA0390 | F42: =SUMIF('00 Aggregatore'!$B:$B,'00 CE'!$E42,'00 Aggregatore'!E:E) -> 57455.65 | G42: =SUMIF('00 Aggregatore'!$B:$B,'00 CE'!$E42,'00 Aggregatore'!F:F) -> 76930.02
B43: AA0400 | C43: A.4.A.1.6) Prestazioni servizi farmaceutica convenzionata | E43: AA0400 | F43: =SUMIF('00 Aggregatore'!$B:$B,'00 CE'!$E43,'00 Aggregatore'!E:E) -> 1531007.26 | G43: =SUMIF('00 Aggregatore'!$B:$B,'00 CE'!$E43,'00 Aggregatore'!F:F) -> 1554303.34
B44: AA0410 | C44: A.4.A.1.7) Prestazioni termali | E44: AA0410 | F44: =SUMIF('00 Aggregatore'!$B:$B,'00 CE'!$E44,'00 Aggregatore'!E:E) -> 1104099.89 | G44: =SUMIF('00 Aggregatore'!$B:$B,'00 CE'!$E44,'00 Aggregatore'!F:F) -> 1071238.47
B45: AA0420 | C45: A.4.A.1.8) Prestazioni trasporto ambulanze ed elisoccorso | E45: AA0420 | F45: =SUMIF('00 Aggregatore'!$B:$B,'00 CE'!$E45,'00 Aggregatore'!E:E) -> 175653.51 | G45: =SUMIF('00 Aggregatore'!$B:$B,'00 CE'!$E45,'00 Aggregatore'!F:F) -> 176712.63
B46: AA0430 | C46: A.4.A.1.9) Altre prestazioni sanitarie e socio-sanitarie a rilevanza sanitaria | E46: AA0430 | F46: =SUMIF('00 Aggregatore'!$B:$B,'00 CE'!$E46,'00 Aggregatore'!E:E) -> 5392204.38 | G46: =SUMIF('00 Aggregatore'!$B:$B,'00 CE'!$E46,'00 Aggregatore'!F:F) -> 5984310.97
B47: AA0440 | C47: A.4.A.2) Ricavi per prestaz. sanitarie e sociosanitarie a rilevanza sanitaria erogate ad altri soggetti pubblici | E47: AA0440 | F47: =SUMIF('00 Aggregatore'!$B:$B,'00 CE'!$E47,'00 Aggregatore'!E:E) -> 45364.98 | G47: =SUMIF('00 Aggregatore'!$B:$B,'00 CE'!$E47,'00 Aggregatore'!F:F) -> 90381.5
B48: AA0450 | C48: A.4.A.3) Ricavi per prestaz. sanitarie e sociosanitarie a rilevanza sanitaria erogate a soggetti pubblici Extraregione | D48: S | E48: AA0450 | F48: =SUM(F49:F60)+F63 -> 5494005.43 | G48: =SUM(G49:G60)+G63 -> 12803256.57
B49: AA0460 | C49: A.4.A.3.1) Prestazioni di ricovero | E49: AA0460 | F49: =SUMIF('00 Aggregatore'!$B:$B,'00 CE'!$E49,'00 Aggregatore'!E:E) -> 1554681.22 | G49: =SUMIF('00 Aggregatore'!$B:$B,'00 CE'!$E49,'00 Aggregatore'!F:F) -> 7320391.07
B50: AA0470 | C50: A.4.A.3.2) Prestazioni ambulatoriali | E50: AA0470 | F50: =SUMIF('00 Aggregatore'!$B:$B,'00 CE'!$E50,'00 Aggregatore'!E:E) -> 851774.85 | G50: =SUMIF('00 Aggregatore'!$B:$B,'00 CE'!$E50,'00 Aggregatore'!F:F) -> 1477229.91
B51: AA0480 | C51: A.4.A.3.3) Prestazioni di psichiatria non soggetta a compensazione (resid. e semiresid.) | E51: AA0480 | F51: =SUMIF('00 Aggregatore'!$B:$B,'00 CE'!$E51,'00 Aggregatore'!E:E) -> 0 | G51: =SUMIF('00 Aggregatore'!$B:$B,'00 CE'!$E51,'00 Aggregatore'!F:F) -> 0
B52: AA0490 | C52: A.4.A.3.4) Prestazioni di File F | E52: AA0490 | F52: =SUMIF('00 Aggregatore'!$B:$B,'00 CE'!$E52,'00 Aggregatore'!E:E) -> 1604980.14 | G52: =SUMIF('00 Aggregatore'!$B:$B,'00 CE'!$E52,'00 Aggregatore'!F:F) -> 2471453.08
B53: AA0500 | C53: A.4.A.3.5) Prestazioni servizi MMG, PLS, Contin. assistenziale Extraregione | E53: AA0500 | F53: =SUMIF('00 Aggregatore'!$B:$B,'00 CE'!$E53,'00 Aggregatore'!E:E) -> 119388.84 | G53: =SUMIF('00 Aggregatore'!$B:$B,'00 CE'!$E53,'00 Aggregatore'!F:F) -> 56122.64
B54: AA0510 | C54: A.4.A.3.6) Prestazioni servizi farmaceutica convenzionata Extraregione | E54: AA0510 | F54: =SUMIF('00 Aggregatore'!$B:$B,'00 CE'!$E54,'00 Aggregatore'!E:E) -> 502038.11 | G54: =SUMIF('00 Aggregatore'!$B:$B,'00 CE'!$E54,'00 Aggregatore'!F:F) -> 506661.23
B55: AA0520 | C55: A.4.A.3.7) Prestazioni termali Extraregione | E55: AA0520 | F55: =SUMIF('00 Aggregatore'!$B:$B,'00 CE'!$E55,'00 Aggregatore'!E:E) -> 172275.4 | G55: =SUMIF('00 Aggregatore'!$B:$B,'00 CE'!$E55,'00 Aggregatore'!F:F) -> 180073.68
B56: AA0530 | C56: A.4.A.3.8) Prestazioni trasporto ambulanze ed elisoccorso Extraregione | E56: AA0530 | F56: =SUMIF('00 Aggregatore'!$B:$B,'00 CE'!$E56,'00 Aggregatore'!E:E) -> 512404.02 | G56: =SUMIF('00 Aggregatore'!$B:$B,'00 CE'!$E56,'00 Aggregatore'!F:F) -> 469730.81
B57: AA0540 | C57: A.4.A.3.9) Altre prestazioni sanitarie e sociosanitarie a rilevanza sanitaria Extraregione | E57: AA0540 | F57: =SUMIF('00 Aggregatore'!$B:$B,'00 CE'!$E57,'00 Aggregatore'!E:E) -> 0 | G57: =SUMIF('00 Aggregatore'!$B:$B,'00 CE'!$E57,'00 Aggregatore'!F:F) -> 0
B58: AA0550 | C58: A.4.A.3.10) Ricavi per cessione di emocomponenti e cellule staminali Extraregione | E58: AA0550 | F58: =SUMIF('00 Aggregatore'!$B:$B,'00 CE'!$E58,'00 Aggregatore'!E:E) -> 174766.05 | G58: =SUMIF('00 Aggregatore'!$B:$B,'00 CE'!$E58,'00 Aggregatore'!F:F) -> 0
B59: AA0560 | C59: A.4.A.3.11) Ricavi per differenziale tariffe TUC | E59: AA0560 | F59: =SUMIF('00 Aggregatore'!$B:$B,'00 CE'!$E59,'00 Aggregatore'!E:E) -> 0 | G59: =SUMIF('00 Aggregatore'!$B:$B,'00 CE'!$E59,'00 Aggregatore'!F:F) -> 0
B60: AA0570 | C60: A.4.A.3.12) Altre prestazioni sanitarie e sociosanitarie a rilevanza sanitaria non soggette a compensazione Extraregione | D60: S | E60: AA0570 | F60: =SUM(F61:F62) -> 1696.8 | G60: =SUM(G61:G62) -> 2626.39
B61: AA0580 | C61: A.4.A.3.12.A) Prestazioni di assistenza riabilitativa non soggette a compensazione Extraregione | E61: AA0580 | F61: =SUMIF('00 Aggregatore'!$B:$B,'00 CE'!$E61,'00 Aggregatore'!E:E) -> 0 | G61: =SUMIF('00 Aggregatore'!$B:$B,'00 CE'!$E61,'00 Aggregatore'!F:F) -> 0
B62: AA0590 | C62: A.4.A.3.12.B) Altre prestazioni sanitarie e socio-sanitarie a rilevanza sanitaria non soggette a compensazione Extraregione | E62: AA0590 | F62: =SUMIF('00 Aggregatore'!$B:$B,'00 CE'!$E62,'00 Aggregatore'!E:E) -> 1696.8 | G62: =SUMIF('00 Aggregatore'!$B:$B,'00 CE'!$E62,'00 Aggregatore'!F:F) -> 2626.39
B63: AA0600 | C63: A.4.A.3.13) Altre prestazioni sanitarie a rilevanza sanitaria - Mobilità attiva Internazionale | E63: AA0600 | F63: =SUMIF('00 Aggregatore'!$B:$B,'00 CE'!$E63,'00 Aggregatore'!E:E) -> 0 | G63: =SUMIF('00 Aggregatore'!$B:$B,'00 CE'!$E63,'00 Aggregatore'!F:F) -> 318967.76
B64: AA0610 | C64: A.4.B) Ricavi per prestazioni sanitarie e sociosanitarie a rilevanza sanitaria erogate da privati v/residenti Extraregione in compensazione (mobilità attiva) | D64: S | E64: AA0610 | F64: =SUM(F65:F68) -> 12136123.77 | G64: =SUM(G65:G68) -> 10487489.54
B65: AA0620 | C65: A.4.B.1) Prestazioni di ricovero da priv. Extraregione in compensazione (mobilità attiva) | E65: AA0620 | F65: =SUMIF('00 Aggregatore'!$B:$B,'00 CE'!$E65,'00 Aggregatore'!E:E) -> 11917704.07 | G65: =SUMIF('00 Aggregatore'!$B:$B,'00 CE'!$E65,'00 Aggregatore'!F:F) -> 10285883.1
B66: AA0630 | C66: A.4.B.2) Prestazioni ambulatoriali da priv. Extraregione in compensazione (mobilità attiva) | E66: AA0630 | F66: =SUMIF('00 Aggregatore'!$B:$B,'00 CE'!$E66,'00 Aggregatore'!E:E) -> 218419.7 | G66: =SUMIF('00 Aggregatore'!$B:$B,'00 CE'!$E66,'00 Aggregatore'!F:F) -> 201606.44
B67: AA0640 | C67: A.4.B.3) Prestazioni di File F da priv. Extraregione in compensazione (mobilità attiva) | E67: AA0640 | F67: =SUMIF('00 Aggregatore'!$B:$B,'00 CE'!$E67,'00 Aggregatore'!E:E) -> 0 | G67: =SUMIF('00 Aggregatore'!$B:$B,'00 CE'!$E67,'00 Aggregatore'!F:F) -> 0
B68: AA0650 | C68: A.4.B.4) Altre prestazioni sanitarie e sociosanitarie a rilevanza sanitaria erogate da privati v/residenti Extraregione in compensazione (mobilità attiva) | E68: AA0650 | F68: =SUMIF('00 Aggregatore'!$B:$B,'00 CE'!$E68,'00 Aggregatore'!E:E) -> 0 | G68: =SUMIF('00 Aggregatore'!$B:$B,'00 CE'!$E68,'00 Aggregatore'!F:F) -> 0
B69: AA0660 | C69: A.4.C) Ricavi per prestazioni sanitarie e sociosanitarie a rilevanza sanitaria erogate a privati | E69: AA0660 | F69: =SUMIF('00 Aggregatore'!$B:$B,'00 CE'!$E69,'00 Aggregatore'!E:E) -> 3569406.31 | G69: =SUMIF('00 Aggregatore'!$B:$B,'00 CE'!$E69,'00 Aggregatore'!F:F) -> 3620504.31
B70: AA0670 | C70: A.4.D) Ricavi per prestazioni sanitarie erogate in regime di intramoenia | D70: S | E70: AA0670 | F70: =SUM(F71:F77) -> 3919432.33 | G70: =SUM(G71:G77) -> 4238479.07
B71: AA0680 | C71: A.4.D.1) Ricavi per prestazioni sanitarie intramoenia - Area ospedaliera | E71: AA0680 | F71: =SUMIF('00 Aggregatore'!$B:$B,'00 CE'!$E71,'00 Aggregatore'!E:E) -> 50045.82 | G71: =SUMIF('00 Aggregatore'!$B:$B,'00 CE'!$E71,'00 Aggregatore'!F:F) -> 80436.56
B72: AA0690 | C72: A.4.D.2) Ricavi per prestazioni sanitarie intramoenia - Area specialistica | E72: AA0690 | F72: =SUMIF('00 Aggregatore'!$B:$B,'00 CE'!$E72,'00 Aggregatore'!E:E) -> 3252006 | G72: =SUMIF('00 Aggregatore'!$B:$B,'00 CE'!$E72,'00 Aggregatore'!F:F) -> 3326104
B73: AA0700 | C73: A.4.D.3) Ricavi per prestazioni sanitarie intramoenia - Area sanità pubblica | E73: AA0700 | F73: =SUMIF('00 Aggregatore'!$B:$B,'00 CE'!$E73,'00 Aggregatore'!E:E) -> 22414.54 | G73: =SUMIF('00 Aggregatore'!$B:$B,'00 CE'!$E73,'00 Aggregatore'!F:F) -> 17534.57
B74: AA0710 | C74: A.4.D.4) Ricavi per prestazioni sanitarie intramoenia - Consulenze (ex art. 55 c.1 lett. c), d) ed ex art. 57-58) | E74: AA0710 | F74: =SUMIF('00 Aggregatore'!$B:$B,'00 CE'!$E74,'00 Aggregatore'!E:E) -> 478823.7 | G74: =SUMIF('00 Aggregatore'!$B:$B,'00 CE'!$E74,'00 Aggregatore'!F:F) -> 677848.85
B75: AA0720 | C75: A.4.D.5) Ricavi per prestazioni sanitarie intramoenia - Consulenze (ex art. 55 c.1 lett. c), d) ed ex art. 57-58) (Aziende sanitarie pubbliche della Regione) | E75: AA0720 | F75: =SUMIF('00 Aggregatore'!$B:$B,'00 CE'!$E75,'00 Aggregatore'!E:E) -> 0 | G75: =SUMIF('00 Aggregatore'!$B:$B,'00 CE'!$E75,'00 Aggregatore'!F:F) -> 0
B76: AA0730 | C76: A.4.D.6) Ricavi per prestazioni sanitarie intramoenia - Altro | E76: AA0730 | F76: =SUMIF('00 Aggregatore'!$B:$B,'00 CE'!$E76,'00 Aggregatore'!E:E) -> 97870.17 | G76: =SUMIF('00 Aggregatore'!$B:$B,'00 CE'!$E76,'00 Aggregatore'!F:F) -> 130775.39
B77: AA0740 | C77: A.4.D.7) Ricavi per prestazioni sanitarie intramoenia - Altro (Aziende sanitarie pubbliche della Regione) | E77: AA0740 | F77: =SUMIF('00 Aggregatore'!$B:$B,'00 CE'!$E77,'00 Aggregatore'!E:E) -> 18272.1 | G77: =SUMIF('00 Aggregatore'!$B:$B,'00 CE'!$E77,'00 Aggregatore'!F:F) -> 5779.7
B78: AA0750 | C78: A.5) Concorsi, recuperi e rimborsi | D78: S | E78: AA0750 | F78: =F79+F80+F83+F87+F91 -> 4898267.15 | G78: =G79+G80+G83+G87+G91 -> 3858742.57
B79: AA0760 | C79: A.5.A) Rimborsi assicurativi | E79: AA0760 | F79: =SUMIF('00 Aggregatore'!$B:$B,'00 CE'!$E79,'00 Aggregatore'!E:E) -> 166973.67 | G79: =SUMIF('00 Aggregatore'!$B:$B,'00 CE'!$E79,'00 Aggregatore'!F:F) -> 151672.58
B80: AA0770 | C80: A.5.B) Concorsi, recuperi e rimborsi da Regione | D80: S | E80: AA0770 | F80: =SUM(F81:F82) -> 0 | G80: =SUM(G81:G82) -> 0
B81: AA0780 | C81: A.5.B.1) Rimborso degli oneri stipendiali del personale dell'azienda in posizione di comando presso la Regione | E81: AA0780 | F81: =SUMIF('00 Aggregatore'!$B:$B,'00 CE'!$E81,'00 Aggregatore'!E:E) -> 0 | G81: =SUMIF('00 Aggregatore'!$B:$B,'00 CE'!$E81,'00 Aggregatore'!F:F) -> 0
B82: AA0790 | C82: A.5.B.2) Altri concorsi, recuperi e rimborsi da parte della Regione | E82: AA0790 | F82: =SUMIF('00 Aggregatore'!$B:$B,'00 CE'!$E82,'00 Aggregatore'!E:E) -> 0 | G82: =SUMIF('00 Aggregatore'!$B:$B,'00 CE'!$E82,'00 Aggregatore'!F:F) -> 0
B83: AA0800 | C83: A.5.C) Concorsi, recuperi e rimborsi da Aziende sanitarie pubbliche della Regione | D83: S | E83: AA0800 | F83: =SUM(F84:F86) -> 150230.1 | G83: =SUM(G84:G86) -> 203850.7
B84: AA0810 | C84: A.5.C.1) Rimborso degli oneri stipendiali del personale dipendente dell'azienda in posizione di comando presso Aziende sanitarie pubbliche della Regione | E84: AA0810 | F84: =SUMIF('00 Aggregatore'!$B:$B,'00 CE'!$E84,'00 Aggregatore'!E:E) -> 14346.46 | G84: =SUMIF('00 Aggregatore'!$B:$B,'00 CE'!$E84,'00 Aggregatore'!F:F) -> 23253.72
B85: AA0820 | C85: A.5.C.2) Rimborsi per acquisto beni da parte di Aziende sanitarie pubbliche della Regione | E85: AA0820 | F85: =SUMIF('00 Aggregatore'!$B:$B,'00 CE'!$E85,'00 Aggregatore'!E:E) -> 0 | G85: =SUMIF('00 Aggregatore'!$B:$B,'00 CE'!$E85,'00 Aggregatore'!F:F) -> 0
B86: AA0830 | C86: A.5.C.3) Altri concorsi, recuperi e rimborsi da parte di Aziende sanitarie pubbliche della Regione | E86: AA0830 | F86: =SUMIF('00 Aggregatore'!$B:$B,'00 CE'!$E86,'00 Aggregatore'!E:E) -> 135883.64 | G86: =SUMIF('00 Aggregatore'!$B:$B,'00 CE'!$E86,'00 Aggregatore'!F:F) -> 180596.98
B87: AA0840 | C87: A.5.D) Concorsi, recuperi e rimborsi da altri soggetti pubblici | D87: S | E87: AA0840 | F87: =SUM(F88:F90) -> 287130.67 | G87: =SUM(G88:G90) -> 253111.86
B88: AA0850 | C88: A.5.D.1) Rimborso degli oneri stipendiali del personale dipendente dell'azienda in posizione di comando presso altri soggetti pubblici | E88: AA0850 | F88: =SUMIF('00 Aggregatore'!$B:$B,'00 CE'!$E88,'00 Aggregatore'!E:E) -> 114750.81 | G88: =SUMIF('00 Aggregatore'!$B:$B,'00 CE'!$E88,'00 Aggregatore'!F:F) -> 150326.43
B89: AA0860 | C89: A.5.D.2) Rimborsi per acquisto beni da parte di altri soggetti pubblici | E89: AA0860 | F89: =SUMIF('00 Aggregatore'!$B:$B,'00 CE'!$E89,'00 Aggregatore'!E:E) -> 14709.64 | G89: =SUMIF('00 Aggregatore'!$B:$B,'00 CE'!$E89,'00 Aggregatore'!F:F) -> 8374.78
B90: AA0870 | C90: A.5.D.3) Altri concorsi, recuperi e rimborsi da parte di altri soggetti pubblici | E90: AA0870 | F90: =SUMIF('00 Aggregatore'!$B:$B,'00 CE'!$E90,'00 Aggregatore'!E:E) -> 157670.22 | G90: =SUMIF('00 Aggregatore'!$B:$B,'00 CE'!$E90,'00 Aggregatore'!F:F) -> 94410.65
B91: AA0880 | C91: A.5.E) Concorsi, recuperi e rimborsi da privati | D91: S | E91: AA0880 | F91: =F92+F96 -> 4293932.71 | G91: =G92+G96 -> 3250107.43
B92: AA0890 | C92: A.5.E.1) Rimborso da aziende farmaceutiche per Pay back | D92: S | E92: AA0890 | F92: =SUM(F93:F95) -> 3426952.4 | G92: =SUM(G93:G95) -> 2615698.91
B93: AA0900 | C93: A.5.E.1.1) Pay-back per il superamento del tetto della spesa farmaceutica territoriale | E93: AA0900 | F93: =SUMIF('00 Aggregatore'!$B:$B,'00 CE'!$E93,'00 Aggregatore'!E:E) -> 0 | G93: =SUMIF('00 Aggregatore'!$B:$B,'00 CE'!$E93,'00 Aggregatore'!F:F) -> 0
B94: AA0910 | C94: A.5.E.1.2) Pay-back per superamento del tetto della spesa farmaceutica ospedaliera | E94: AA0910 | F94: =SUMIF('00 Aggregatore'!$B:$B,'00 CE'!$E94,'00 Aggregatore'!E:E) -> 20 | G94: =SUMIF('00 Aggregatore'!$B:$B,'00 CE'!$E94,'00 Aggregatore'!F:F) -> 0
B95: AA0920 | C95: A.5.E.1.3) Ulteriore Pay-back | E95: AA0920 | F95: =SUMIF('00 Aggregatore'!$B:$B,'00 CE'!$E95,'00 Aggregatore'!E:E) -> 3426932.4 | G95: =SUMIF('00 Aggregatore'!$B:$B,'00 CE'!$E95,'00 Aggregatore'!F:F) -> 2615698.91
B96: AA0930 | C96: A.5.E.2) Altri concorsi, recuperi e rimborsi da privati | E96: AA0930 | F96: =SUMIF('00 Aggregatore'!$B:$B,'00 CE'!$E96,'00 Aggregatore'!E:E) -> 866980.31 | G96: =SUMIF('00 Aggregatore'!$B:$B,'00 CE'!$E96,'00 Aggregatore'!F:F) -> 634408.52
B97: AA0940 | C97: A.6) Compartecipazione alla spesa per prestazioni sanitarie (Ticket) | D97: S | E97: AA0940 | F97: =SUM(F98:F100) -> 6745092.08 | G97: =SUM(G98:G100) -> 6929806.95
B98: AA0950 | C98: A.6.A) Compartecipazione alla spesa per prestazioni sanitarie - Ticket sulle prestazioni di specialistica ambulatoriale | E98: AA0950 | F98: =SUMIF('00 Aggregatore'!$B:$B,'00 CE'!$E98,'00 Aggregatore'!E:E) -> 6414769.32 | G98: =SUMIF('00 Aggregatore'!$B:$B,'00 CE'!$E98,'00 Aggregatore'!F:F) -> 6543145.31
B99: AA0960 | C99: A.6.B) Compartecipazione alla spesa per prestazioni sanitarie - Ticket sul pronto soccorso | E99: AA0960 | F99: =SUMIF('00 Aggregatore'!$B:$B,'00 CE'!$E99,'00 Aggregatore'!E:E) -> 330322.76 | G99: =SUMIF('00 Aggregatore'!$B:$B,'00 CE'!$E99,'00 Aggregatore'!F:F) -> 386661.64
B100: AA0970 | C100: A.6.C) Compartecipazione alla spesa per prestazioni sanitarie (Ticket) - Altro | E100: AA0970 | F100: =SUMIF('00 Aggregatore'!$B:$B,'00 CE'!$E100,'00 Aggregatore'!E:E) -> 0 | G100: =SUMIF('00 Aggregatore'!$B:$B,'00 CE'!$E100,'00 Aggregatore'!F:F) -> 0
B101: AA0980 | C101: A.7) Quota contributi c/capitale imputata all'esercizio | D101: S | E101: AA0980 | F101: =SUM(F102:F107) -> 9824993.15 | G101: =SUM(G102:G107) -> 10491674.92
B102: AA0990 | C102: A.7.A) Quota imputata all'esercizio dei finanziamenti per investimenti dallo Stato | E102: AA0990 | F102: =SUMIF('00 Aggregatore'!$B:$B,'00 CE'!$E102,'00 Aggregatore'!E:E) -> 48286.07 | G102: =SUMIF('00 Aggregatore'!$B:$B,'00 CE'!$E102,'00 Aggregatore'!F:F) -> 54754.03
B103: AA1000 | C103: A.7.B) Quota imputata all'esercizio dei finanziamenti per investimenti da Regione | E103: AA1000 | F103: =SUMIF('00 Aggregatore'!$B:$B,'00 CE'!$E103,'00 Aggregatore'!E:E) -> 1468544.84 | G103: =SUMIF('00 Aggregatore'!$B:$B,'00 CE'!$E103,'00 Aggregatore'!F:F) -> 1674245.68
B104: AA1010 | C104: A.7.C) Quota imputata all'esercizio dei finanziamenti per beni di prima dotazione | E104: AA1010 | F104: =SUMIF('00 Aggregatore'!$B:$B,'00 CE'!$E104,'00 Aggregatore'!E:E) -> 3577467.93 | G104: =SUMIF('00 Aggregatore'!$B:$B,'00 CE'!$E104,'00 Aggregatore'!F:F) -> 3577467.93
B105: AA1020 | C105: A.7.D) Quota imputata all'esercizio dei contributi in c/ esercizio FSR destinati ad investimenti | E105: AA1020 | F105: =SUMIF('00 Aggregatore'!$B:$B,'00 CE'!$E105,'00 Aggregatore'!E:E) -> 4730694.31 | G105: =SUMIF('00 Aggregatore'!$B:$B,'00 CE'!$E105,'00 Aggregatore'!F:F) -> 5185207.28
B106: AA1030 | C106: A.7.E) Quota imputata all'esercizio degli altri contributi in c/ esercizio destinati ad investimenti | E106: AA1030 | F106: =SUMIF('00 Aggregatore'!$B:$B,'00 CE'!$E106,'00 Aggregatore'!E:E) -> 0 | G106: =SUMIF('00 Aggregatore'!$B:$B,'00 CE'!$E106,'00 Aggregatore'!F:F) -> 0
B107: AA1040 | C107: A.7.F) Quota imputata all'esercizio di altre poste del patrimonio netto | E107: AA1040 | F107: =SUMIF('00 Aggregatore'!$B:$B,'00 CE'!$E107,'00 Aggregatore'!E:E) -> 0 | G107: =SUMIF('00 Aggregatore'!$B:$B,'00 CE'!$E107,'00 Aggregatore'!F:F) -> 0
B108: AA1050 | C108: A.8) Incrementi delle immobilizzazioni per lavori interni | E108: AA1050 | F108: =SUMIF('00 Aggregatore'!$B:$B,'00 CE'!$E108,'00 Aggregatore'!E:E) -> 0 | G108: =SUMIF('00 Aggregatore'!$B:$B,'00 CE'!$E108,'00 Aggregatore'!F:F) -> 0
B109: AA1060 | C109: A.9) Altri ricavi e proventi | D109: S | E109: AA1060 | F109: =SUM(F110:F112) -> 622301.4 | G109: =SUM(G110:G112) -> 551446.96
B110: AA1070 | C110: A.9.A) Ricavi per prestazioni non sanitarie | E110: AA1070 | F110: =SUMIF('00 Aggregatore'!$B:$B,'00 CE'!$E110,'00 Aggregatore'!E:E) -> 3023.66 | G110: =SUMIF('00 Aggregatore'!$B:$B,'00 CE'!$E110,'00 Aggregatore'!F:F) -> 1738.6
B111: AA1080 | C111: A.9.B) Fitti attivi ed altri proventi da attività immobiliari | E111: AA1080 | F111: =SUMIF('00 Aggregatore'!$B:$B,'00 CE'!$E111,'00 Aggregatore'!E:E) -> 221560.64 | G111: =SUMIF('00 Aggregatore'!$B:$B,'00 CE'!$E111,'00 Aggregatore'!F:F) -> 186882.15
B112: AA1090 | C112: A.9.C) Altri proventi diversi | E112: AA1090 | F112: =SUMIF('00 Aggregatore'!$B:$B,'00 CE'!$E112,'00 Aggregatore'!E:E) -> 397717.1 | G112: =SUMIF('00 Aggregatore'!$B:$B,'00 CE'!$E112,'00 Aggregatore'!F:F) -> 362826.21
B113: AZ9999 | C113: Totale valore della produzione (A) | D113: S | E113: AZ9999 | F113: =F4+F27+F30+F35+F78+F97+F101+F108+F109 -> 706064340.4 | G113: =G4+G27+G30+G35+G78+G97+G101+G108+G109 -> 726128606.7
C114: B) Costi della produzione
B115: BA0010 | C115: B.1) Acquisti di beni | D115: S | E115: BA0010 | F115: =F116+F135 -> 117076514.2 | G115: =G116+G135 -> 132089475.3
B116: BA0020 | C116: B.1.A) Acquisti di beni sanitari | D116: S | E116: BA0020 | F116: =F117+F121+F125+SUM(F129:F134) -> 116128391.6 | G116: =G117+G121+G125+SUM(G129:G134) -> 131089732.6
B117: BA0030 | C117: B.1.A.1) Prodotti farmaceutici ed emoderivati | D117: S | E117: BA0030 | F117: =SUM(F118:F120) -> 69958395.31 | G117: =SUM(G118:G120) -> 83288901.43
B118: BA0040 | C118: B.1.A.1.1) Medicinali con AIC, ad eccezione di vaccini ed emoderivati di produzione regionale | E118: BA0040 | F118: =SUMIF('00 Aggregatore'!$B:$B,'00 CE'!$E118,'00 Aggregatore'!E:E) -> 69235809.47 | G118: =SUMIF('00 Aggregatore'!$B:$B,'00 CE'!$E118,'00 Aggregatore'!F:F) -> 82536637.09
B119: BA0050 | C119: B.1.A.1.2) Medicinali senza AIC | E119: BA0050 | F119: =SUMIF('00 Aggregatore'!$B:$B,'00 CE'!$E119,'00 Aggregatore'!E:E) -> 722585.84 | G119: =SUMIF('00 Aggregatore'!$B:$B,'00 CE'!$E119,'00 Aggregatore'!F:F) -> 752264.34
B120: BA0060 | C120: B.1.A.1.3) Emoderivati di produzione regionale | E120: BA0060 | F120: =SUMIF('00 Aggregatore'!$B:$B,'00 CE'!$E120,'00 Aggregatore'!E:E) -> 0 | G120: =SUMIF('00 Aggregatore'!$B:$B,'00 CE'!$E120,'00 Aggregatore'!F:F) -> 0
B121: BA0070 | C121: B.1.A.2) Sangue ed emocomponenti | D121: S | E121: BA0070 | F121: =SUM(F122:F124) -> 187348.99 | G121: =SUM(G122:G124) -> 23080.75
B122: BA0080 | C122: B.1.A.2.1) da pubblico (Aziende sanitarie pubbliche della Regione) – Mobilità intraregionale | E122: BA0080 | F122: =SUMIF('00 Aggregatore'!$B:$B,'00 CE'!$E122,'00 Aggregatore'!E:E) -> 0 | G122: =SUMIF('00 Aggregatore'!$B:$B,'00 CE'!$E122,'00 Aggregatore'!F:F) -> 0
B123: BA0090 | C123: B.1.A.2.2) da pubblico (Aziende sanitarie pubbliche extra Regione) – Mobilità extraregionale | E123: BA0090 | F123: =SUMIF('00 Aggregatore'!$B:$B,'00 CE'!$E123,'00 Aggregatore'!E:E) -> 187348.99 | G123: =SUMIF('00 Aggregatore'!$B:$B,'00 CE'!$E123,'00 Aggregatore'!F:F) -> 23080.75
B124: BA0100 | C124: B.1.A.2.3) da altri soggetti | E124: BA0100 | F124: =SUMIF('00 Aggregatore'!$B:$B,'00 CE'!$E124,'00 Aggregatore'!E:E) -> 0 | G124: =SUMIF('00 Aggregatore'!$B:$B,'00 CE'!$E124,'00 Aggregatore'!F:F) -> 0
B125: BA0210 | C125: B.1.A.3) Dispositivi medici | D125: S | E125: BA0210 | F125: =SUM(F126:F128) -> 41189711.57 | G125: =SUM(G126:G128) -> 42871861.68
B126: BA0220 | C126: B.1.A.3.1) Dispositivi medici | E126: BA0220 | F126: =SUMIF('00 Aggregatore'!$B:$B,'00 CE'!$E126,'00 Aggregatore'!E:E) -> 25764695.79 | G126: =SUMIF('00 Aggregatore'!$B:$B,'00 CE'!$E126,'00 Aggregatore'!F:F) -> 27013313.95
B127: BA0230 | C127: B.1.A.3.2) Dispositivi medici impiantabili attivi | E127: BA0230 | F127: =SUMIF('00 Aggregatore'!$B:$B,'00 CE'!$E127,'00 Aggregatore'!E:E) -> 3456008.28 | G127: =SUMIF('00 Aggregatore'!$B:$B,'00 CE'!$E127,'00 Aggregatore'!F:F) -> 3071999.01
B128: BA0240 | C128: B.1.A.3.3) Dispositivi medico diagnostici in vitro (IVD) | E128: BA0240 | F128: =SUMIF('00 Aggregatore'!$B:$B,'00 CE'!$E128,'00 Aggregatore'!E:E) -> 11969007.5 | G128: =SUMIF('00 Aggregatore'!$B:$B,'00 CE'!$E128,'00 Aggregatore'!F:F) -> 12786548.72
B129: BA0250 | C129: B.1.A.4) Prodotti dietetici | E129: BA0250 | F129: =SUMIF('00 Aggregatore'!$B:$B,'00 CE'!$E129,'00 Aggregatore'!E:E) -> 469645.74 | G129: =SUMIF('00 Aggregatore'!$B:$B,'00 CE'!$E129,'00 Aggregatore'!F:F) -> 468960.66
B130: BA0260 | C130: B.1.A.5) Materiali per la profilassi (vaccini) | E130: BA0260 | F130: =SUMIF('00 Aggregatore'!$B:$B,'00 CE'!$E130,'00 Aggregatore'!E:E) -> 2380862.56 | G130: =SUMIF('00 Aggregatore'!$B:$B,'00 CE'!$E130,'00 Aggregatore'!F:F) -> 2222785.11
B131: BA0270 | C131: B.1.A.6) Prodotti chimici | E131: BA0270 | F131: =SUMIF('00 Aggregatore'!$B:$B,'00 CE'!$E131,'00 Aggregatore'!E:E) -> 0 | G131: =SUMIF('00 Aggregatore'!$B:$B,'00 CE'!$E131,'00 Aggregatore'!F:F) -> 0
B132: BA0280 | C132: B.1.A.7) Materiali e prodotti per uso veterinario | E132: BA0280 | F132: =SUMIF('00 Aggregatore'!$B:$B,'00 CE'!$E132,'00 Aggregatore'!E:E) -> 7852.8 | G132: =SUMIF('00 Aggregatore'!$B:$B,'00 CE'!$E132,'00 Aggregatore'!F:F) -> 20636.41
B133: BA0290 | C133: B.1.A.8) Altri beni e prodotti sanitari | E133: BA0290 | F133: =SUMIF('00 Aggregatore'!$B:$B,'00 CE'!$E133,'00 Aggregatore'!E:E) -> 1934574.6 | G133: =SUMIF('00 Aggregatore'!$B:$B,'00 CE'!$E133,'00 Aggregatore'!F:F) -> 2193506.59
B134: BA0300 | C134: B.1.A.9) Beni e prodotti sanitari da Aziende sanitarie pubbliche della Regione | E134: BA0300 | F134: =SUMIF('00 Aggregatore'!$B:$B,'00 CE'!$E134,'00 Aggregatore'!E:E) -> 0 | G134: =SUMIF('00 Aggregatore'!$B:$B,'00 CE'!$E134,'00 Aggregatore'!F:F) -> 0
B135: BA0310 | C135: B.1.B) Acquisti di beni non sanitari | D135: S | E135: BA0310 | F135: =SUM(F136:F142) -> 948122.62 | G135: =SUM(G136:G142) -> 999742.69
B136: BA0320 | C136: B.1.B.1) Prodotti alimentari | E136: BA0320 | F136: =SUMIF('00 Aggregatore'!$B:$B,'00 CE'!$E136,'00 Aggregatore'!E:E) -> 250.58 | G136: =SUMIF('00 Aggregatore'!$B:$B,'00 CE'!$E136,'00 Aggregatore'!F:F) -> 83.52
B137: BA0330 | C137: B.1.B.2) Materiali di guardaroba, di pulizia e di convivenza in genere | E137: BA0330 | F137: =SUMIF('00 Aggregatore'!$B:$B,'00 CE'!$E137,'00 Aggregatore'!E:E) -> 41796.38 | G137: =SUMIF('00 Aggregatore'!$B:$B,'00 CE'!$E137,'00 Aggregatore'!F:F) -> 64306.42
B138: BA0340 | C138: B.1.B.3) Combustibili, carburanti e lubrificanti | E138: BA0340 | F138: =SUMIF('00 Aggregatore'!$B:$B,'00 CE'!$E138,'00 Aggregatore'!E:E) -> 135937.7 | G138: =SUMIF('00 Aggregatore'!$B:$B,'00 CE'!$E138,'00 Aggregatore'!F:F) -> 172419.52
B139: BA0350 | C139: B.1.B.4) Supporti informatici e cancelleria | E139: BA0350 | F139: =SUMIF('00 Aggregatore'!$B:$B,'00 CE'!$E139,'00 Aggregatore'!E:E) -> 513727.87 | G139: =SUMIF('00 Aggregatore'!$B:$B,'00 CE'!$E139,'00 Aggregatore'!F:F) -> 477974.9
B140: BA0360 | C140: B.1.B.5) Materiale per la manutenzione | E140: BA0360 | F140: =SUMIF('00 Aggregatore'!$B:$B,'00 CE'!$E140,'00 Aggregatore'!E:E) -> 207783.53 | G140: =SUMIF('00 Aggregatore'!$B:$B,'00 CE'!$E140,'00 Aggregatore'!F:F) -> 239884.37
B141: BA0370 | C141: B.1.B.6) Altri beni e prodotti non sanitari | E141: BA0370 | F141: =SUMIF('00 Aggregatore'!$B:$B,'00 CE'!$E141,'00 Aggregatore'!E:E) -> 48626.56 | G141: =SUMIF('00 Aggregatore'!$B:$B,'00 CE'!$E141,'00 Aggregatore'!F:F) -> 45073.96
B142: BA0380 | C142: B.1.B.7) Beni e prodotti non sanitari da Aziende sanitarie pubbliche della Regione | E142: BA0380 | F142: =SUMIF('00 Aggregatore'!$B:$B,'00 CE'!$E142,'00 Aggregatore'!E:E) -> 0 | G142: =SUMIF('00 Aggregatore'!$B:$B,'00 CE'!$E142,'00 Aggregatore'!F:F) -> 0
B143: BA0390 | C143: B.2) Acquisti di servizi | D143: S | E143: BA0390 | F143: =F144+F260 -> 368344821.9 | G143: =G144+G260 -> 368048523.8
B144: BA0400 | C144: B.2.A) Acquisti servizi sanitari | D144: S | E144: BA0400 | F144: =F145+F153+F157+F168+F174+F179+F184+F194+F200+F207+F213+F218+F224+F232+F239+F253+F259 -> 331559072.4 | G144: =G145+G153+G157+G168+G174+G179+G184+G194+G200+G207+G213+G218+G224+G232+G239+G253+G259 -> 331170827.9
B145: BA0410 | C145: B.2.A.1) Acquisti servizi sanitari per medicina di base | D145: S | E145: BA0410 | F145: =F146+F151+F152 -> 35655655.12 | G145: =G146+G151+G152 -> 35909283.82
B146: BA0420 | C146: B.2.A.1.1) - da convenzione | D146: S | E146: BA0420 | F146: =SUM(F147:F150) -> 35435849.35 | G146: =SUM(G147:G150) -> 35653505.32
B147: BA0430 | C147: B.2.A.1.1.A) Costi per assistenza MMG | E147: BA0430 | F147: =SUMIF('00 Aggregatore'!$B:$B,'00 CE'!$E147,'00 Aggregatore'!E:E) -> 24328709.33 | G147: =SUMIF('00 Aggregatore'!$B:$B,'00 CE'!$E147,'00 Aggregatore'!F:F) -> 24517314.75
B148: BA0440 | C148: B.2.A.1.1.B) Costi per assistenza PLS | E148: BA0440 | F148: =SUMIF('00 Aggregatore'!$B:$B,'00 CE'!$E148,'00 Aggregatore'!E:E) -> 6208374.4 | G148: =SUMIF('00 Aggregatore'!$B:$B,'00 CE'!$E148,'00 Aggregatore'!F:F) -> 6415070.53
B149: BA0450 | C149: B.2.A.1.1.C) Costi per assistenza Continuità assistenziale | E149: BA0450 | F149: =SUMIF('00 Aggregatore'!$B:$B,'00 CE'!$E149,'00 Aggregatore'!E:E) -> 4008916.53 | G149: =SUMIF('00 Aggregatore'!$B:$B,'00 CE'!$E149,'00 Aggregatore'!F:F) -> 3931463.93
B150: BA0460 | C150: B.2.A.1.1.D) Altro (medicina dei servizi, psicologi, medici 118, ecc) | E150: BA0460 | F150: =SUMIF('00 Aggregatore'!$B:$B,'00 CE'!$E150,'00 Aggregatore'!E:E) -> 889849.09 | G150: =SUMIF('00 Aggregatore'!$B:$B,'00 CE'!$E150,'00 Aggregatore'!F:F) -> 789656.11
B151: BA0470 | C151: B.2.A.1.2) - da pubblico (Aziende sanitarie pubbliche della Regione) - Mobilità intraregionale | E151: BA0470 | F151: =SUMIF('00 Aggregatore'!$B:$B,'00 CE'!$E151,'00 Aggregatore'!E:E) -> 35057.19 | G151: =SUMIF('00 Aggregatore'!$B:$B,'00 CE'!$E151,'00 Aggregatore'!F:F) -> 38671
B152: BA0480 | C152: B.2.A.1.3) - da pubblico (Aziende sanitarie pubbliche Extraregione) - Mobilità extraregionale | E152: BA0480 | F152: =SUMIF('00 Aggregatore'!$B:$B,'00 CE'!$E152,'00 Aggregatore'!E:E) -> 184748.58 | G152: =SUMIF('00 Aggregatore'!$B:$B,'00 CE'!$E152,'00 Aggregatore'!F:F) -> 217107.5
B153: BA0490 | C153: B.2.A.2) Acquisti servizi sanitari per farmaceutica | D153: S | E153: BA0490 | F153: =SUM(F154:F156) -> 54563948.05 | G153: =SUM(G154:G156) -> 51864361.03
B154: BA0500 | C154: B.2.A.2.1) - da convenzione | E154: BA0500 | F154: =SUMIF('00 Aggregatore'!$B:$B,'00 CE'!$E154,'00 Aggregatore'!E:E) -> 52924145.52 | G154: =SUMIF('00 Aggregatore'!$B:$B,'00 CE'!$E154,'00 Aggregatore'!F:F) -> 50129678.23
B155: BA0510 | C155: B.2.A.2.2) - da pubblico (Aziende sanitarie pubbliche della Regione)- Mobilità intraregionale | E155: BA0510 | F155: =SUMIF('00 Aggregatore'!$B:$B,'00 CE'!$E155,'00 Aggregatore'!E:E) -> 1251970.51 | G155: =SUMIF('00 Aggregatore'!$B:$B,'00 CE'!$E155,'00 Aggregatore'!F:F) -> 1277628.07
B156: BA0520 | C156: B.2.A.2.3) - da pubblico (Extraregione) | E156: BA0520 | F156: =SUMIF('00 Aggregatore'!$B:$B,'00 CE'!$E156,'00 Aggregatore'!E:E) -> 387832.02 | G156: =SUMIF('00 Aggregatore'!$B:$B,'00 CE'!$E156,'00 Aggregatore'!F:F) -> 457054.73
B157: BA0530 | C157: B.2.A.3) Acquisti servizi sanitari per assistenza specialistica ambulatoriale | D157: S | E157: BA0530 | F157: =SUM(F158:F162)+F167 -> 27519184.07 | G157: =SUM(G158:G162)+G167 -> 26809571.49
B158: BA0540 | C158: B.2.A.3.1) - da pubblico (Aziende sanitarie pubbliche della Regione) | E158: BA0540 | F158: =SUMIF('00 Aggregatore'!$B:$B,'00 CE'!$E158,'00 Aggregatore'!E:E) -> 8998122.11 | G158: =SUMIF('00 Aggregatore'!$B:$B,'00 CE'!$E158,'00 Aggregatore'!F:F) -> 8879359.57
B159: BA0550 | C159: B.2.A.3.2) - da pubblico (altri soggetti pubbl. della Regione) | E159: BA0550 | F159: =SUMIF('00 Aggregatore'!$B:$B,'00 CE'!$E159,'00 Aggregatore'!E:E) -> 189344.67 | G159: =SUMIF('00 Aggregatore'!$B:$B,'00 CE'!$E159,'00 Aggregatore'!F:F) -> 360209.89
B160: BA0560 | C160: B.2.A.3.3) - da pubblico (Extraregione) | E160: BA0560 | F160: =SUMIF('00 Aggregatore'!$B:$B,'00 CE'!$E160,'00 Aggregatore'!E:E) -> 4460024.94 | G160: =SUMIF('00 Aggregatore'!$B:$B,'00 CE'!$E160,'00 Aggregatore'!F:F) -> 4000753.58
B161: BA0570 | C161: B.2.A.3.4) - da privato - Medici SUMAI | E161: BA0570 | F161: =SUMIF('00 Aggregatore'!$B:$B,'00 CE'!$E161,'00 Aggregatore'!E:E) -> 4899151.05 | G161: =SUMIF('00 Aggregatore'!$B:$B,'00 CE'!$E161,'00 Aggregatore'!F:F) -> 4486744.21
B162: BA0580 | C162: B.2.A.3.5) - da privato | D162: S | E162: BA0580 | F162: =SUM(F163:F166) -> 8757843.1 | G162: =SUM(G163:G166) -> 8885806.01
B163: BA0590 | C163: B.2.A.3.5.A) Servizi sanitari per assistenza specialistica da IRCCS privati e Policlinici privati | E163: BA0590 | F163: =SUMIF('00 Aggregatore'!$B:$B,'00 CE'!$E163,'00 Aggregatore'!E:E) -> 60978.73 | G163: =SUMIF('00 Aggregatore'!$B:$B,'00 CE'!$E163,'00 Aggregatore'!F:F) -> 83336.34
B164: BA0600 | C164: B.2.A.3.5.B) Servizi sanitari per assistenza specialistica da Ospedali Classificati privati | E164: BA0600 | F164: =SUMIF('00 Aggregatore'!$B:$B,'00 CE'!$E164,'00 Aggregatore'!E:E) -> 0 | G164: =SUMIF('00 Aggregatore'!$B:$B,'00 CE'!$E164,'00 Aggregatore'!F:F) -> 0
B165: BA0610 | C165: B.2.A.3.5.C) Servizi sanitari per assistenza specialistica da Case di Cura private | E165: BA0610 | F165: =SUMIF('00 Aggregatore'!$B:$B,'00 CE'!$E165,'00 Aggregatore'!E:E) -> 5412858.87 | G165: =SUMIF('00 Aggregatore'!$B:$B,'00 CE'!$E165,'00 Aggregatore'!F:F) -> 5463686.82
B166: BA0620 | C166: B.2.A.3.5.D) Servizi sanitari per assistenza specialistica da altri privati | E166: BA0620 | F166: =SUMIF('00 Aggregatore'!$B:$B,'00 CE'!$E166,'00 Aggregatore'!E:E) -> 3284005.5 | G166: =SUMIF('00 Aggregatore'!$B:$B,'00 CE'!$E166,'00 Aggregatore'!F:F) -> 3338782.85
B167: BA0630 | C167: B.2.A.3.6) - da privato per cittadini non residenti - Extraregione (mobilità attiva in compensazione) | E167: BA0630 | F167: =SUMIF('00 Aggregatore'!$B:$B,'00 CE'!$E167,'00 Aggregatore'!E:E) -> 214698.2 | G167: =SUMIF('00 Aggregatore'!$B:$B,'00 CE'!$E167,'00 Aggregatore'!F:F) -> 196698.23
B168: BA0640 | C168: B.2.A.4) Acquisti servizi sanitari per assistenza riabilitativa | D168: S | E168: BA0640 | F168: =SUM(F169:F173) -> 19907207.98 | G168: =SUM(G169:G173) -> 19990902.56
B169: BA0650 | C169: B.2.A.4.1) - da pubblico (Aziende sanitarie pubbliche della Regione) | E169: BA0650 | F169: =SUMIF('00 Aggregatore'!$B:$B,'00 CE'!$E169,'00 Aggregatore'!E:E) -> 4855060.17 | G169: =SUMIF('00 Aggregatore'!$B:$B,'00 CE'!$E169,'00 Aggregatore'!F:F) -> 4832965.95
B170: BA0660 | C170: B.2.A.4.2) - da pubblico (altri soggetti pubbl. della Regione) | E170: BA0660 | F170: =SUMIF('00 Aggregatore'!$B:$B,'00 CE'!$E170,'00 Aggregatore'!E:E) -> 0 | G170: =SUMIF('00 Aggregatore'!$B:$B,'00 CE'!$E170,'00 Aggregatore'!F:F) -> 0
B171: BA0670 | C171: B.2.A.4.3) - da pubblico (Extraregione) non soggetti a compensazione | E171: BA0670 | F171: =SUMIF('00 Aggregatore'!$B:$B,'00 CE'!$E171,'00 Aggregatore'!E:E) -> 0 | G171: =SUMIF('00 Aggregatore'!$B:$B,'00 CE'!$E171,'00 Aggregatore'!F:F) -> 0
B172: BA0680 | C172: B.2.A.4.4) - da privato (intraregionale) | E172: BA0680 | F172: =SUMIF('00 Aggregatore'!$B:$B,'00 CE'!$E172,'00 Aggregatore'!E:E) -> 14460769.46 | G172: =SUMIF('00 Aggregatore'!$B:$B,'00 CE'!$E172,'00 Aggregatore'!F:F) -> 14612451.73
B173: BA0690 | C173: B.2.A.4.5) - da privato (extraregionale) | E173: BA0690 | F173: =SUMIF('00 Aggregatore'!$B:$B,'00 CE'!$E173,'00 Aggregatore'!E:E) -> 591378.35 | G173: =SUMIF('00 Aggregatore'!$B:$B,'00 CE'!$E173,'00 Aggregatore'!F:F) -> 545484.88
B174: BA0700 | C174: B.2.A.5) Acquisti servizi sanitari per assistenza integrativa | D174: S | E174: BA0700 | F174: =SUM(F175:F178) -> 1813040.82 | G174: =SUM(G175:G178) -> 1802068.84
B175: BA0710 | C175: B.2.A.5.1) - da pubblico (Aziende sanitarie pubbliche della Regione) | E175: BA0710 | F175: =SUMIF('00 Aggregatore'!$B:$B,'00 CE'!$E175,'00 Aggregatore'!E:E) -> 0 | G175: =SUMIF('00 Aggregatore'!$B:$B,'00 CE'!$E175,'00 Aggregatore'!F:F) -> 0
B176: BA0720 | C176: B.2.A.5.2) - da pubblico (altri soggetti pubbl. della Regione) | E176: BA0720 | F176: =SUMIF('00 Aggregatore'!$B:$B,'00 CE'!$E176,'00 Aggregatore'!E:E) -> 0 | G176: =SUMIF('00 Aggregatore'!$B:$B,'00 CE'!$E176,'00 Aggregatore'!F:F) -> 0
B177: BA0730 | C177: B.2.A.5.3) - da pubblico (Extraregione) | E177: BA0730 | F177: =SUMIF('00 Aggregatore'!$B:$B,'00 CE'!$E177,'00 Aggregatore'!E:E) -> 0 | G177: =SUMIF('00 Aggregatore'!$B:$B,'00 CE'!$E177,'00 Aggregatore'!F:F) -> 0
B178: BA0740 | C178: B.2.A.5.4) - da privato | E178: BA0740 | F178: =SUMIF('00 Aggregatore'!$B:$B,'00 CE'!$E178,'00 Aggregatore'!E:E) -> 1813040.82 | G178: =SUMIF('00 Aggregatore'!$B:$B,'00 CE'!$E178,'00 Aggregatore'!F:F) -> 1802068.84
B179: BA0750 | C179: B.2.A.6) Acquisti servizi sanitari per assistenza protesica | D179: S | E179: BA0750 | F179: =SUM(F180:F183) -> 6384295.54 | G179: =SUM(G180:G183) -> 6303229.01
B180: BA0760 | C180: B.2.A.6.1) - da pubblico (Aziende sanitarie pubbliche della Regione) | E180: BA0760 | F180: =SUMIF('00 Aggregatore'!$B:$B,'00 CE'!$E180,'00 Aggregatore'!E:E) -> 0 | G180: =SUMIF('00 Aggregatore'!$B:$B,'00 CE'!$E180,'00 Aggregatore'!F:F) -> 0
B181: BA0770 | C181: B.2.A.6.2) - da pubblico (altri soggetti pubbl. della Regione) | E181: BA0770 | F181: =SUMIF('00 Aggregatore'!$B:$B,'00 CE'!$E181,'00 Aggregatore'!E:E) -> 0 | G181: =SUMIF('00 Aggregatore'!$B:$B,'00 CE'!$E181,'00 Aggregatore'!F:F) -> 0
B182: BA0780 | C182: B.2.A.6.3) - da pubblico (Extraregione) | E182: BA0780 | F182: =SUMIF('00 Aggregatore'!$B:$B,'00 CE'!$E182,'00 Aggregatore'!E:E) -> 0 | G182: =SUMIF('00 Aggregatore'!$B:$B,'00 CE'!$E182,'00 Aggregatore'!F:F) -> 0
B183: BA0790 | C183: B.2.A.6.4) - da privato | E183: BA0790 | F183: =SUMIF('00 Aggregatore'!$B:$B,'00 CE'!$E183,'00 Aggregatore'!E:E) -> 6384295.54 | G183: =SUMIF('00 Aggregatore'!$B:$B,'00 CE'!$E183,'00 Aggregatore'!F:F) -> 6303229.01
B184: BA0800 | C184: B.2.A.7) Acquisti servizi sanitari per assistenza ospedaliera | D184: S | E184: BA0800 | F184: =SUM(F185:F188)+F193 -> 125006439.5 | G184: =SUM(G185:G188)+G193 -> 123489437.4
B185: BA0810 | C185: B.2.A.7.1) - da pubblico (Aziende sanitarie pubbliche della Regione) | E185: BA0810 | F185: =SUMIF('00 Aggregatore'!$B:$B,'00 CE'!$E185,'00 Aggregatore'!E:E) -> 28230091.68 | G185: =SUMIF('00 Aggregatore'!$B:$B,'00 CE'!$E185,'00 Aggregatore'!F:F) -> 26481532.39
B186: BA0820 | C186: B.2.A.7.2) - da pubblico (altri soggetti pubbl. della Regione) | E186: BA0820 | F186: =SUMIF('00 Aggregatore'!$B:$B,'00 CE'!$E186,'00 Aggregatore'!E:E) -> 0 | G186: =SUMIF('00 Aggregatore'!$B:$B,'00 CE'!$E186,'00 Aggregatore'!F:F) -> 0
B187: BA0830 | C187: B.2.A.7.3) - da pubblico (Extraregione) | E187: BA0830 | F187: =SUMIF('00 Aggregatore'!$B:$B,'00 CE'!$E187,'00 Aggregatore'!E:E) -> 23048879.05 | G187: =SUMIF('00 Aggregatore'!$B:$B,'00 CE'!$E187,'00 Aggregatore'!F:F) -> 24057993.46
B188: BA0840 | C188: B.2.A.7.4) - da privato | D188: S | E188: BA0840 | F188: =SUM(F189:F192) -> 61809764.72 | G188: =SUM(G189:G192) -> 62664028.38
B189: BA0850 | C189: B.2.A.7.4.A) Servizi sanitari per assistenza ospedaliera da IRCCS privati e Policlinici privati | E189: BA0850 | F189: =SUMIF('00 Aggregatore'!$B:$B,'00 CE'!$E189,'00 Aggregatore'!E:E) -> 0 | G189: =SUMIF('00 Aggregatore'!$B:$B,'00 CE'!$E189,'00 Aggregatore'!F:F) -> 0
B190: BA0860 | C190: B.2.A.7.4.B) Servizi sanitari per assistenza ospedaliera da Ospedali Classificati privati | E190: BA0860 | F190: =SUMIF('00 Aggregatore'!$B:$B,'00 CE'!$E190,'00 Aggregatore'!E:E) -> 0 | G190: =SUMIF('00 Aggregatore'!$B:$B,'00 CE'!$E190,'00 Aggregatore'!F:F) -> 0
B191: BA0870 | C191: B.2.A.7.4.C) Servizi sanitari per assistenza ospedaliera da Case di Cura private | E191: BA0870 | F191: =SUMIF('00 Aggregatore'!$B:$B,'00 CE'!$E191,'00 Aggregatore'!E:E) -> 61809764.72 | G191: =SUMIF('00 Aggregatore'!$B:$B,'00 CE'!$E191,'00 Aggregatore'!F:F) -> 62664028.38
B192: BA0880 | C192: B.2.A.7.4.D) Servizi sanitari per assistenza ospedaliera da altri privati | E192: BA0880 | F192: =SUMIF('00 Aggregatore'!$B:$B,'00 CE'!$E192,'00 Aggregatore'!E:E) -> 0 | G192: =SUMIF('00 Aggregatore'!$B:$B,'00 CE'!$E192,'00 Aggregatore'!F:F) -> 0
B193: BA0890 | C193: B.2.A.7.5) - da privato per cittadini non residenti - Extraregione (mobilità attiva in compensazione) | E193: BA0890 | F193: =SUMIF('00 Aggregatore'!$B:$B,'00 CE'!$E193,'00 Aggregatore'!E:E) -> 11917704.07 | G193: =SUMIF('00 Aggregatore'!$B:$B,'00 CE'!$E193,'00 Aggregatore'!F:F) -> 10285883.14
B194: BA0900 | C194: B.2.A.8) Acquisto prestazioni di psichiatria residenziale e semiresidenziale | D194: S | E194: BA0900 | F194: =SUM(F195:F199) -> 13199111.06 | G194: =SUM(G195:G199) -> 13021762.4
B195: BA0910 | C195: B.2.A.8.1) - da pubblico (Aziende sanitarie pubbliche della Regione) | E195: BA0910 | F195: =SUMIF('00 Aggregatore'!$B:$B,'00 CE'!$E195,'00 Aggregatore'!E:E) -> 1648164.66 | G195: =SUMIF('00 Aggregatore'!$B:$B,'00 CE'!$E195,'00 Aggregatore'!F:F) -> 1551575.5
B196: BA0920 | C196: B.2.A.8.2) - da pubblico (altri soggetti pubbl. della Regione) | E196: BA0920 | F196: =SUMIF('00 Aggregatore'!$B:$B,'00 CE'!$E196,'00 Aggregatore'!E:E) -> 0 | G196: =SUMIF('00 Aggregatore'!$B:$B,'00 CE'!$E196,'00 Aggregatore'!F:F) -> 0
B197: BA0930 | C197: B.2.A.8.3) - da pubblico (Extraregione) - non soggette a compensazione | E197: BA0930 | F197: =SUMIF('00 Aggregatore'!$B:$B,'00 CE'!$E197,'00 Aggregatore'!E:E) -> 6667 | G197: =SUMIF('00 Aggregatore'!$B:$B,'00 CE'!$E197,'00 Aggregatore'!F:F) -> 81781.6
B198: BA0940 | C198: B.2.A.8.4) - da privato (intraregionale) | E198: BA0940 | F198: =SUMIF('00 Aggregatore'!$B:$B,'00 CE'!$E198,'00 Aggregatore'!E:E) -> 9671880.59 | G198: =SUMIF('00 Aggregatore'!$B:$B,'00 CE'!$E198,'00 Aggregatore'!F:F) -> 9798519.84
B199: BA0950 | C199: B.2.A.8.5) - da privato (extraregionale) | E199: BA0950 | F199: =SUMIF('00 Aggregatore'!$B:$B,'00 CE'!$E199,'00 Aggregatore'!E:E) -> 1872398.81 | G199: =SUMIF('00 Aggregatore'!$B:$B,'00 CE'!$E199,'00 Aggregatore'!F:F) -> 1589885.46
B200: BA0960 | C200: B.2.A.9) Acquisto prestazioni di distribuzione farmaci File F | D200: S | E200: BA0960 | F200: =SUM(F201:F206) -> 5976832.03 | G200: =SUM(G201:G206) -> 7092976.69
B201: BA0970 | C201: B.2.A.9.1) - da pubblico (Aziende sanitarie pubbliche della Regione) - Mobilità intraregionale | E201: BA0970 | F201: =SUMIF('00 Aggregatore'!$B:$B,'00 CE'!$E201,'00 Aggregatore'!E:E) -> 4391409.7 | G201: =SUMIF('00 Aggregatore'!$B:$B,'00 CE'!$E201,'00 Aggregatore'!F:F) -> 4464112.37
... 287 more rows

Sheet Tab 50-51
A1: 17. Contributi in conto esercizio
B3: Tab. 50 – Dettagli contributi in conto esercizio
A4: CODICE MOD. CE | B4: CONTRIBUTI IN C/ESERCIZIO | C4: Quota Capitaria | D4: Funzioni | E4: Altro | F4: Note
A6: AA0030 | B6: Contributi da Regione o Prov. Aut. per quota F.S. regionale indistinto | C6: 544141166.2 | D6: 11338597.85 | E6: 0
A7: AA0080 | B7: Contributi da Regione o Prov. Aut. (extra fondo) - Risorse aggiuntive da bilancio regionale a titolo di copertura LEA | C7: 0 | D7: 0 | E7: 0
A8: AA0090 | B8: Contributi da Regione o Prov. Aut. (extra fondo) - Risorse aggiuntive da bilancio regionale a titolo di copertura extra LEA | C8: 0 | D8: 0 | E8: 0
B10: Tab. 51 – Informativa contributi in conto esercizio
A11: CODICE MOD. CE | B11: DETTAGLIO CONTRIBUTI IN C/ESERCIZIO | C11: Atto | F11: Data | G11: Oggetto | I11: Importo assegnato | J11: Importo utilizzato | K11: Codice conto
A14: AA0020 | B14: DA REGIONE O P.A. PER QUOTA F.S. REGIONALE: | I14: =I15+I20 -> 569244565.9
A15: AA0030 | B15: Quota F.S. regionale - indistinto | C15: Delibera di Giunta Regionale n. 376 del 01/07/2019 - Nota prot. n.RA/0122860/DPF012 del 19 aprile 2019 "Linee guida alla redazione del bilancio d'esercizio al 31/12/2018" | F15: 2019-04-19 | G15: Riparto delle disponibilità finanaziarie per il SSR anno 2018 a favore delle ASL e della GSA presso la Regione | I15: =544141166.16+11338597.85 -> 555479764 | K15: 03.01.01.01.01
K18: 03.01.01.01.02
A20: AA0040 | B20: Quota F.S. regionale - vincolato: | I20: =SUM(I21:I27) -> 13764801.84
B21: Rimborso farmaci innovativi 2018 - Obiettivi PSN | C21: Determina DPF003/205 del 28/12/2018, liquidata con DPF003/16 del 13/02/2019 (importo rettificato con nota prot. n. RA/93211/19 DPF003 del 26/03/2019) | F21: 2019-02-13 | G21: Legge 23 dicembre 1996, n. 662, c. 34 e 34-bis, art. 1 "Misure di razionalizzazione della finanza pubblica". Erogazione alle AASSLL della somma trasferita quale rimborso alle Regioni per l'acquisto dei farmaci innovativi - Anno 2018 | I21: 3183837.63 | K21: 03.01.01.02.12
B22: Rimborso farmaci innovativi oncologici 2018 - Obiettivi PSN | C22: Determina DPF003/204 del 28/12/2018, liquidata con DPF003/17 del 13/02/2019 (importo rettificato con nota prot. n. RA/93232/19 DPF003 del 26/03/2019) | F22: 2019-02-13 | G22: Legge 23 dicembre 1996, n. 662, c. 34 e 34-bis, art. 1 "Misure di razionalizzazione della finanza pubblica". Erogazione alle AASSLL della somma trasferita quale rimborso alle Regioni per l'acquisto dei farmaci innovativi oncologici - Anno 2018 | I22: 3350445.08
B23: Obiettivi di Piano 2018 art. 11 cc. 34 e 34bis L. 662/96 | C23: DPF/19 | F23: 2018-11-27 | G23: Obiettivi di Piano 2018 | I23: 4605324.66 | J23: 0
B24: Obiettivi di Piano 2018 art. 11 cc. 34 e 34bis L. 662/96 | C24: DPF010/32 | F24: 2018-12-06 | G24: Obiettivi di Piano 2018 Prevenzione | I24: 1848544.63 | J24: 0
B25: Sanità Penitenziaria - Acconto 2018 | C25: DPF015/78 del 31/12/2018, assegnata alle ASL con DPF015/19 del 21/03/2019 | F25: 2019-03-21 | G25: Attività sanitaria nei confronti dei detenuti internati e dei minorenni sottoposti a provvedimento penale ex DPCM 1 aprile 2008 | I25: 725026.74 | J25: 0
B26: Prevenzione e assistenza detenuti tossicodipendenti - Acconto 2018 | C26: DPF15/64 del 04/12/2018 e DPF15/74 del 20/12/2018 | F26: 2018-12-20 | G26: Finanziamento dello Stato per la prevenzione e l'assistenza dei detenuti tossicodipendenti | I26: 37833.6 | J26: 0
B27: Emergenza Avicola L.205/2017 art.1 c.509 | C27: DPF011/176 | F27: 2018-12-04 | G27: Influenza aviaria | I27: 13789.5 | J27: 13789.5 | K27: 03.01.01.02.15
A28: AA0050 | B28: EXTRA FONDO: | I28: =I29+I43+I46 -> 578939.97
A29: AA0070 | B29: Contributi da Regione o Prov. Aut. (extra fondo) vincolati: | I29: =SUM(I30:I36) -> 410404.72
B30: Piano di monitoraggio per la ricerca di diossine negli alimenti di origine animale | C30: DPF011/08 | F30: 2018-01-24 | G30: Diossine negli alimenti di origine animale | I30: 4078 | J30: 4078 | K30: 03.01.02.01.01
B31: Finanziamento 2018 Consultori familiari | C31: DPF015/34 | F31: 2018-05-30 | G31: Consultori familiari 2018 - DGR n. 289/2018 | I31: 85050.79 | J31: 85050.79
B32: Ricollocamento personale ESACRI presso ASL - II semestre 2017 | C32: DPF004/03 | F32: 2018-05-09 | G32: Ricollocamento personale ESACRI presso ASL - II semestre 2017 | I32: 153912.94 | J32: 153912.94
B33: Rimborso prestazioni sanitarie a favore di stranieri non in regola di cui all'art. 35, c. 6, D. Lgs. n. 286 del 25/07/1998 | C33: DPF015/51 | F33: 2018-10-04 | G33: Extracomunitari irregolari D. Lgs. 286/1998 - Acconto FSN 2017 | I33: 127091.97 | J33: 127091.97
B34: Miglioramento servizio informativo veterinario | C34: DPF011/178 | F34: 2018-12-13 | G34: D. Lgs. n. 194/2008 - Miglioramento servizio informativo veterinario | I34: 14143.05 | J34: 14143.05
B35: Protezione soggetti malati di celiachia - Anno 2015 | C35: DPF009/72 | F35: 2018-12-05 | G35: Protezione soggetti malati di celiachia - L. 123/2015 anno 2015 | I35: 5790.69 | J35: 5790.69
B36: Protezione soggetti malati di celiachia - Anno 2016 | C36: DPF009/72 | F36: 2018-12-05 | G36: Protezione soggetti malati di celiachia - L. 123/2015 anno 2016 | I36: 20337.28 | J36: 20337.28
A37: AA0080 | B37: Contributi da Regione o Prov. Aut. (extra fondo) - Risorse aggiuntive da bilancio regionale a titolo di copertura LEA | I37: 0
A38: AA0090 | B38: Contributi da Regione o Prov. Aut. (extra fondo) - Risorse aggiuntive da bilancio regionale a titolo di copertura extra LEA | I38: 0
A39: AA0100 | B39: Contributi da Regione o Prov. Aut. (extra fondo) - Altro | I39: 0
A40: AA0120 | B40: Contributi da Aziende sanitarie pubbliche della Regione o Prov. Aut. (extra fondo) vincolati: | I40: 0
B41: Progetto 1 | I41: 0
B42: Progetto …. | I42: 0
A43: AA0130 | B43: Contributi da Aziende sanitarie pubbliche (extra fondo) altro: | I43: =SUM(I44) -> 0
B44: Progetto 1 | I44: 0
B45: Progetto …. | I45: 0
A46: AA0150 | B46: Contributi da altri soggetti pubblici (extra fondo) vincolati: | I46: =SUM(I47:I50) -> 168535.25
B47: Potenziamento attività prelievo organi e tessuti - 2015 | C47: Provv. nn. 4364-4365 | F47: 2018-04-09 | G47: Potenziamento attività prelievo organi e tessuti - 2015 | I47: 121430.97 | J47: 92725.11 | K47: 03.01.02.03.06
B48: Contributo modifica strumenti di guida e autoveicoli privati - anno 2017 | C48: DPF009/21 | F48: 2018-05-14 | G48: Contributo modifica strumenti di guida e autoveicoli privati - anno 2017 | I48: 15472.26 | J48: 15472.26
B49: Contributo in favore portatori grave disabilità psichica e motoria - anno 2017 | C49: DPF013/88 | F49: 2018-07-31 | G49: Contributo in favore portatori grave disabilità psichica e motoria - anno 2017 | I49: 7232.02 | J49: 7232.02
B50: Fondi per acquisto attrezzature "Trapianto organi" | C50: Provv. n. 15351 | F50: 2018-12-05 | G50: Fondi per acquisto attrezzature "Trapianto organi" | I50: 24400 | J50: 0
A51: AA0160 | B51: Contributi da altri soggetti pubblici (extra fondo) L.210/92: | I51: 0
A52: AA0170 | B52: Contributi da altri soggetti pubblici (extra fondo) altro: | I52: 0
B53: …. | I53: 0
B54: PER RICERCA: | I54: 0
A55: AA0190 | B55: Contributi da Ministero della Salute per ricerca corrente: | I55: 0
B56: …. | I56: 0
A57: AA0200 | B57: Contributi da Ministero della Salute per ricerca finalizzata: | I57: 0
B58: Progetto …. | I58: 0
A59: AA0210 | B59: Contributi da Regione ed altri soggetti pubblici per ricerca: | I59: 0
B60: …. | I60: 0
A61: AA0220 | B61: Contributi da privati per ricerca: | I61: 0
B62: …. | I62: 0
A63: AA0230 | B63: CONTRIBUTI DA PRIVATI: | I63: 0
B64: …. | I64: 0
B65: …. | I65: 0
A67: TOTALE CONTRIBUTI IN C/ESERCIZIO | I67: =I14+I28 -> 569823505.8

Sheet Dettaglio voce AA0280
A2: Dettaglio somme vincolate anni precedenti rilevate nella voce AA0280
A6: Descrizione somma vincolata | B6: Anno di competenza | C6: Estremi Provvedimento | D6: Importo (in €)
A7: Prevenzione e assistenza detenuti tossicodipendenti - Acconto 2017 - D. Lgs. n. 230/1999 | B7: 2017 | C7: DPF015/01 del 04/01/2018 | D7: 37833.6
A8: Prevenzione e assistenza detenuti tossicodipendenti - Saldo 2017 - D. Lgs. n. 230/1999 | B8: 2017 | C8: DPF015/63 del 30/11/2018 | D8: 9458.4
A9: Sanità Penitenziaria Saldo 2015 | B9: 2015 | C9: DPF015/02 del 09/01/2018 | D9: 214122.7
A10: Sanità Penitenziaria Saldo 2016 | B10: 2016 | C10: DPF015/03 del 09/01/2018 | D10: 152386.59
A11: Sanità Penitenziaria 2017 | B11: 2017 | C11: DPF015/66 del 05/12/2018 | D11: 912430.92
A12: Fondo esclusività dirigenti ruolo sanitario L. 488//1998 - Anno 2013 | B12: 2013 | C12: DPF004/04 del 11/09/2018 | D12: 191892.75
A13: Fondo esclusività dirigenti ruolo sanitario L. 488//1998 - Anno 2014 | B13: 2014 | C13: DPF004/04 del 11/09/2018 | D13: 194871.74
A14: Fondo esclusività dirigenti ruolo sanitario L. 488//1998 - Anno 2015 | B14: 2015 | C14: DPF004/04 del 11/09/2018 | D14: 193877.34
A15: Fondo esclusività dirigenti ruolo sanitario L. 488//1998 - Anno 2016 | B15: 2016 | C15: DPF004/04 del 11/09/2018 | D15: 193877.34
A16: Trattamento domiciliare malati AIDS - FSN 2012 L. 135/1990 | B16: 2012 | C16: DPF010/07 del 06/02/2018 | D16: 106866.86
A17: Lotta contro AIDS - 24° corso formazione professionale | C17: DPF004/02 del 05/04/2018 | D17: 56899.99
A18: Screening neonatale per la diagnosi precoce di malattie metaboliche ereditarie | C18: DPF010/14 del 28/02/2018 | D18: 127428.88
A19: Finanziamento GAP | B19: 2017 | C19: DPF012/13 del 31/01/2017 | D19: 220805 | E19: a
A20: Emersione lavoratori stranieri irregolari D.Lgs. 109/2012 - anno 2012 | B20: 2012 | C20: DPF015/44 del 04/09/2018 | D20: 433204.73
A21: Emersione lavoratori stranieri irregolari D.Lgs. 109/2012 - anno 2013 | B21: 2013 | C21: DPF015/45 del 11/09/2018 | D21: 184962.39
A22: Obiettivi di piano 2009 | B22: 2009 | C22: DGR n. 246/2009 | D22: 202540.9 | E22: a
A23: Obiettivi di piano 2010 | B23: 2010 | C23: DGR N. 655 del 31/08/2010 | D23: 113685.18 | E23: a
A24: Obiettivi di piano 2011 | B24: 2011 | C24: DGR n. 412 del 15/06/2011 | D24: 64462.43 | E24: a
A25: Obiettivi di Piano 2012 | B25: 2012 | C25: DGR n. 8 del 14/01/2013 | D25: 385326.73 | E25: a
A26: Obiettivi di Piano 2013 | B26: 2013 | C26: DGR n. 269 del 14/04/2014 | D26: 2463759.73 | E26: a
C27: Piano della prevenzione 2013 - DG20/26 del 20/10/2014 | D27: 1245771.8 | E27: a
A28: Obiettivi di Piano 2014 | B28: 2014 | C28: DGR n. 812 del 29/09/2015 | D28: 1848234.18 | E28: a
A29: Obiettivi di Piano 2015 | B29: 2015 | C29: DGR n. 178 del 22/03/2016 | D29: 88638.65 | E29: a
A30: Piano della prevenzione 2013/2014/2016 | B30: 2013/2014/2016 | C30: Piano della prevenzione 2013/2014/2016 | D30: 362110.43 | E30: a
A31: Obiettivi di Piano 2016 | B31: 2016 | C31: DGR n. 260/2017 | D31: 204181.7 | E31: a
C32: Imputazione quota utilizzo 2018 progetti obiettivo per acquisto cespiti Piano Prevenzione | D32: -54089.57
C33: Imputazione quota utilizzo 2018 progetti obiettivo per acquisto ecografi | D33: -674660
C34: Imputazione quota utilizzo 2018 progetti obiettivo per lavori edili | D34: -644642.53
C35: Imputazione quota utilizzo 2018 Progetti Obiettivo per acquisto cespiti Piano triennale degli investimenti DG 179/2018 LP5/2014 | D35: -765454.54
A36: TOTALE | D36: 8070784.32
A40: Somma a Totale utilizzi contributi da Regione per quota FS vincolato | D40: =D19+D22+D23+D24+D25+D26+D27+D28+D29+D30+D31 -> 7199516.73 | E40: in accordo con Tabella 36

Sheet Tab 52
B1: Tab. 52 – Dettaglio rettifica contributi in conto esercizio per destinazione ad investimenti
A2: CODICE MOD. CE | B2: DETTAGLIO RETTIFICA CONTRIBUTI C/ESERCIZIO PER DESTINAZIONE AD INVESTIMENTI | C2: Contributo assegnato | D2: Quota destinata ad investimenti | E2: Incidenza %
A3: AA0020 | B3: Contributi in c/esercizio da Regione o P.A. per quota F.S. regionale | C3: 569244565.9 | D3: 4347846.81 | E3: =D3/C3 -> 0.007637924138
A4: AA0060 | B4: Contributi in c/esercizio da Regione o P.A. extra fondo | C4: 410404.72 | D4: 0 | E4: =D4/C4 -> 0
A5: AA0110 | B5: Contributi in c/esercizio da aziende sanitarie pubbliche (extra fondo) | C5: 0 | D5: 0
A6: AA0180 | B6: Contributi in c/esercizio per ricerca | C6: 0 | D6: 0
A7: AA0230 | B7: Contributi in c/esercizio da privati | C7: 0 | D7: 0
B8: Totale | C8: =SUM(C3:C7) -> 569654970.6 | D8: =SUM(D3:D7) -> 4347846.81 | E8: =D8/C8 -> 0.007632421439
A10: L'importo 2018 della "Rettifica contributi in c/esercizio per destinazione ad investimenti - da Regione o Provincia Autonoma per quota F.S. Regionale vicolato" è così determinato:
B11: Descrizione | C11: A | D11: B | E11: A*B
C12: % Rettifica | D12: Investimenti | E12: Importo
B13: Rettifica contributi FSR per acquisto beni anno 2018 | C13: 1 | D13: 4347846.81 | E13: =C13*D13 -> 4347846.81
B14: TOTALE | D14: =SUM(D13:D13) -> 4347846.81 | E14: =SUM(E13:E13) -> 4347846.81
A19: Altre informazioni relative a contributi in conto esercizio
A20: Informazione | C20: Caso presente in azienda? | E20: Se sì, illustrare
A21: CT01. Sono state rilevate significative variazioni rispetto all'esercizio precedente? | C21: SI | E21: L'ammontare dei contribuiti in c/esercizio (voce A1 del Conto Economico ex D.Lgs. 118/2011) subisce, rispetto al 2017, un incremento di circa €/mln 7.
E22: Tale aumento è dovuto essenzialmente alle maggiori somme assegnate nell'esercizio 2018 per quota FSR indistinta rispetto al 2017 (per circa €/mln 8), in parte compensate dalle minori assegnazioni per quota FSR vincolato (per circa -€/mln 1). In particolare, l'incremento della quota FSR indistinta è riconducibile all'aumento del finanziamento per quota capitaria, mentre la diminuzione del finanziamento vincolato è dovuto alla riduzione delle somme assegnate nel 2018 come Obiettivi di PSN 2018, nonchè per rimborso di farmaci innovativi e di farmaci innovativi oncologici.

Sheet Tab 52bis
A4: Ricavi per Payback consuntivo 2018
A6: PAY-BACK 2018 VOCE CE AA0920 "Ulteriore Pay-back" VOCE PDC 03.04.05.01.03
A7: DETERMINAZIONI | B7: ASL 203
A8: Determinazione AIFA del 29 settembre 2006 concernente “Manovra per il governo della spesa farmaceutica convenzionata e non convenzionata: Trasferimento da parte delle Aziende farmaceutiche delle somme dovute a titolo diPAY BACK- SPECIALITA' MEDICINALI VARIE' “ Impegnato con DPF003/175 DEL 04/12/2018. Liquidato con DPF003/199 del 20.12.2018. | B8: 837700.76
A9: Sconto 1,83% I° semestre 2018. Impegnato con DPF003/208 del 31/12/2018, modfiicata con nota prot. n. RA/0007850/19 del 10/01/2019. Liquidata con DPF003/11 del 11/02/2019. | B9: 555865.3847
A10: Pay Back 5% Impegnato con DPF003/207 del 31/12/2018. Liquidato con DPF003/12 del 11/02/2019. | B10: 629764.6575
A11: I semestre 2017 PB 1,83% Integrazione Impegnato con DPF003/097/2018. Liquidato con DPF003/101 del 08/08/2018. | B11: 82973.68
A12: II semestre 2017 PB 1,83%. Impegnato con DPF003/108/2018. Liquidato con DPF003/148/2018. | B12: 509394.43
A13: Totale voce CE AA0920 | B13: =SUM(B8:B12) -> 2615698.912
A16: I Ricavi per Pay-back 2018 sono stati contabilizzati nella voce CE AA0920 "Ulteriore Pay-Back"
A17: secondo gli importi comunicati dalla Regione nelle Linee Guida alla redazione del Bilancio
A18: di Esercizio 2018 (Nota prot. n. RA/0122860/DPF012 del 19/04/2019 - Allegato 4).
A20: Non sono stati iscritti nel 2018 ulteriori importi rispetto a quelli comunicati dalla Regione nelle
A21: Linee Guida alla redazione del Bilancio di Esercizio 2018.

Sheet Tab 53
A1: 18. Proventi e ricavi diversi
B3: Tab. 53 – Dettaglio ricavi per prestazioni sanitarie in mobilità
A4: CODICE MOD. CE | B4: DETTAGLIO RICAVI PER PRESTAZIONI SANITARIE IN MOBILITA' | C4: PUBBLICO | F4: PRIVATO | I4: TOTALE
C5: Avezzano-Sulmona-L'Aquila | D5: Lanciano-Vasto-Chieti | E5: Teramo | F5: Avezzano-Sulmona-L'Aquila | G5: Lanciano-Vasto-Chieti | H5: Teramo | K5: VALORE CE | L5: Diff | M5: Ctrl
B6: RICAVI DA MOBILITA' SANITARIA INFRAREGIONALE (A) | C6: =SUM(C7:C15) -> 10081623.08 | D6: 30566483.03 | E6: 12194365.77 | F6: 5443181.89 | G6: 29080855.3 | H6: 12143871.47 | I6: =I7+I8+I9+I10+I11+I12+I13+I14+I15 -> 99510381.01 | K6: =SUM(K7:K18) -> 99510381.01
A7: AA0350 | B7: Prestazioni di ricovero | C7: 6271288.74 | D7: 18599541.49 | E7: 6540317.41 | F7: 2824407.47 | G7: 20684551.55 | H7: 9012046.14 | I7: =SUMIF('00 CE'!B:B,'Tab 53'!A7,'00 CE'!G:G) -> 63932152.8 | K7: =SUMIF('00 CE'!B:B,'Tab 53'!A7,'00 CE'!G:G) -> 63932152.8 | L7: =I7-K7 -> 0 | M7: =IF(L7=0,"OK"," CTRL") -> OK
A8: AA0360 | B8: Prestazioni di specialistica ambulatoriale | C8: 1334805 | D8: 3180825 | E8: 1556472 | F8: 93566.23 | G8: 1378756.96 | H8: 951045.01 | I8: =SUMIF('00 CE'!B:B,'Tab 53'!A8,'00 CE'!G:G) -> 8495470.67 | K8: =SUMIF('00 CE'!B:B,'Tab 53'!A8,'00 CE'!G:G) -> 8495470.67 | L8: =I8-K8 -> 0 | M8: =IF(L8=0,"OK"," CTRL") -> OK
A9: AA0370 | B9: Prestazioni di psichiatria residenziale e semiresidenziale | C9: 0 | D9: 0 | E9: 0 | F9: 706431.69 | G9: 3083532.85 | H9: 878021.32 | I9: =SUMIF('00 CE'!B:B,'Tab 53'!A9,'00 CE'!G:G) -> 4667985.86 | K9: =SUMIF('00 CE'!B:B,'Tab 53'!A9,'00 CE'!G:G) -> 4667985.86 | L9: 0 | M9: OK
A10: AA0380 | B10: Prestazioni di File F | C10: 2101925.17 | D10: 7839259.96 | E10: 3610091.12 | F10: 0 | G10: 0 | H10: 0 | I10: =SUMIF('00 CE'!B:B,'Tab 53'!A10,'00 CE'!G:G) -> 13551276.25 | K10: =SUMIF('00 CE'!B:B,'Tab 53'!A10,'00 CE'!G:G) -> 13551276.25 | L10: 0 | M10: OK
A11: AA0390 | B11: Prestazioni servizi MMG, PLS, Contin. assistenziale | C11: 20777.58 | D11: 36973.89 | E11: 19178.55 | F11: 0 | G11: 0 | H11: 0 | I11: =SUMIF('00 CE'!B:B,'Tab 53'!A11,'00 CE'!G:G) -> 76930.02 | K11: =SUMIF('00 CE'!B:B,'Tab 53'!A11,'00 CE'!G:G) -> 76930.02 | L11: 0 | M11: OK
A12: AA0400 | B12: Prestazioni servizi farmaceutica convenzionata | C12: 317321.84 | D12: 807142.89 | E12: 429838.61 | F12: 0 | G12: 0 | H12: 0 | I12: =SUMIF('00 CE'!B:B,'Tab 53'!A12,'00 CE'!G:G) -> 1554303.34 | K12: =SUMIF('00 CE'!B:B,'Tab 53'!A12,'00 CE'!G:G) -> 1554303.34 | L12: 0 | M12: OK
A13: AA0410 | B13: Prestazioni termali | C13: 0 | D13: 0 | E13: 0 | F13: 381959.31 | G13: 534217.36 | H13: 155061.8 | I13: =SUMIF('00 CE'!B:B,'Tab 53'!A13,'00 CE'!G:G) -> 1071238.47 | K13: =SUMIF('00 CE'!B:B,'Tab 53'!A13,'00 CE'!G:G) -> 1071238.47 | L13: 0 | M13: OK
A14: AA0420 | B14: Prestazioni trasporto ambulanze ed elisoccorso | C14: 35504.75 | D14: 102739.8 | E14: 38468.08 | F14: 0 | G14: 0 | H14: 0 | I14: =SUMIF('00 CE'!B:B,'Tab 53'!A14,'00 CE'!G:G) -> 176712.63 | K14: =SUMIF('00 CE'!B:B,'Tab 53'!A14,'00 CE'!G:G) -> 176712.63 | L14: 0 | M14: OK
A15: AA0430 | B15: Altre prestazioni sanitarie e socio-sanitarie | C15: 0 | D15: 0 | E15: 0 | F15: 1436817.19 | G15: 3399796.58 | H15: 1147697.2 | I15: =SUMIF('00 CE'!B:B,'Tab 53'!A15,'00 CE'!G:G) -> 5984310.97 | K15: =SUMIF('00 CE'!B:B,'Tab 53'!A15,'00 CE'!G:G) -> 5984310.97 | L15: 0 | M15: OK
B17: RICAVI DA MOBILITA' SANITARIA EXTRAREGIONALE (B) | C17: =SUM(C18:C28) -> 0 | D17: 0 | E17: 0 | F17: 0 | G17: 0 | H17: 0 | I17: =I18+I19+I20+I21+I22+I23+I24+I25+I26+I27+I28 -> 12481662.42
A18: AA0460 | B18: Prestazioni di ricovero | I18: =SUMIF('00 CE'!B:B,'Tab 53'!A18,'00 CE'!G:G) -> 7320391.07
A19: AA0470 | B19: Prestazioni di specialistica ambulatoriale | I19: =SUMIF('00 CE'!B:B,'Tab 53'!A19,'00 CE'!G:G) -> 1477229.91
A20: AA0480 | B20: Prestazioni di psichiatria residenziale e semiresidenziale | I20: =SUMIF('00 CE'!B:B,'Tab 53'!A20,'00 CE'!G:G) -> 0
A21: AA0490 | B21: Prestazioni di File F | I21: =SUMIF('00 CE'!B:B,'Tab 53'!A21,'00 CE'!G:G) -> 2471453.08
A22: AA0500 | B22: Prestazioni servizi MMG, PLS, Contin. assistenziale | I22: =SUMIF('00 CE'!B:B,'Tab 53'!A22,'00 CE'!G:G) -> 56122.64
A23: AA0510 | B23: Prestazioni servizi farmaceutica convenzionata | I23: =SUMIF('00 CE'!B:B,'Tab 53'!A23,'00 CE'!G:G) -> 506661.23
A24: AA0520 | B24: Prestazioni termali | I24: =SUMIF('00 CE'!B:B,'Tab 53'!A24,'00 CE'!G:G) -> 180073.68
A25: AA0530 | B25: Prestazioni trasporto ambulanze ed elisoccorso | I25: =SUMIF('00 CE'!B:B,'Tab 53'!A25,'00 CE'!G:G) -> 469730.81
A26: AA0540 | B26: Altre prestazioni sanitarie e socio-sanitarie | I26: =SUMIF('00 CE'!B:B,'Tab 53'!A26,'00 CE'!G:G) -> 0
A27: AA0550 | B27: Ricavi per cessione di emocomponenti e cellule staminali | I27: =SUMIF('00 CE'!B:B,'Tab 53'!A27,'00 CE'!G:G) -> 0
A28: AA0560 | B28: Ricavi per differenziale tariffe TUC | I28: =SUMIF('00 CE'!B:B,'Tab 53'!A28,'00 CE'!G:G) -> 0
B30: TOTALE RICAVI DA MOBILITA' (A+B) | C30: =C6+C17 -> 10081623.08 | D30: =D6+D17 -> 30566483.03 | E30: 12194365.77 | F30: 5443181.89 | G30: 29080855.3 | H30: 12143871.47 | I30: =I6+I17 -> 111992043.4
B32: RICAVI PER PRESTAZIONI OGGETTO DI FATTURAZIONE DIRETTA INFRAREGIONALE (C) | C32: 89971.34 | D32: 133548.43 | E32: 7385.11 | F32: 0 | G32: 0 | H32: 0 | I32: =C32+D32+E32+F32+G32+H32 -> 230904.88
B34: RICAVI PER PREST. OGGETTO DI FATTUR. DIRETTA EXTRAREGIONALE (D) | I34: 2626.39
B36: TOTALE RICAVI PER PREST. OGGETTO DI FATTURAZ. DIRETTA (C+D) | C36: =C32+C34 -> 89971.34 | D36: 133548.43 | E36: 7385.11 | F36: 0 | G36: 0 | H36: 0 | I36: =I32+I34 -> 233531.27
B38: TOTALE RICAVI AZIENDE REGIONE (A+C) | C38: =C6+C32 -> 10171594.42 | D38: =D6+D32 -> 30700031.46 | E38: 12201750.88 | F38: 5443181.89 | G38: 29080855.3 | H38: 12143871.47 | I38: =I6+I32 -> 99741285.89
B39: TOTALE RICAVI AZIENDE EXTRA REGIONE (B+D) | I39: =I17+I34 -> 12484288.81
B40: TOTALE RICAVI AZIENDE SANITARIE PUBBLICHE (A+B+C+D) | C40: =C30+C32+C34 -> 10171594.42 | D40: 30700031.46 | E40: 12201750.88 | F40: 5443181.89 | G40: 29080855.3 | H40: 12143871.47 | I40: =I38+I39 -> 112225574.7
A43: Nella riga "Ricavi per prestazioni oggetto di fatturazione diretta infraregionale" sono stati inseriti i ricavi conseguiti dall'Azienda nei confronti delle AASSLL della Regione per prestazioni fuori mobilità, oggetto di fatturazione diretta. Tali valori sono stati riconciliati con le AASSLL della Regione alla data del 31/12/2018.
A47: TABELLA DI RACCORDO - DETTAGLIO PER PRESTAZIONI SANITARIE IN MOBILITA'
A48: Voce CE | B48: Descrizione | C48: Importo | D48: Voce CE D.Lgs. 118/2011
A49: AA0340 | B49: Ricavi da mobilità sanitaria infraregionale | C49: 99510381.01 | D49: A4 a) | E49: a
A50: AA0450 | B50: Ricavi da mobilità sanitaria extraregionale | C50: 12481662.42 | E50: a
A51: AA0450 | B51: Altre prestazioni sanitarie e sociosanitarie a rilevanza sanitaria non soggette a compensazione extraregione | C51: 2626.39
A52: AA0450 | B52: Altre prestazioni sanitarie a rilevanza sanitaria - Mobilità attiva internazionale | C52: 318967.76
A53: AA0610 | B53: Ricavi per prestazioni sanitarie e sociosanitarie a rilevanza sanitaria erogate da privati v/residenti extraregione in compensazione | C53: 10487489.54
A54: AA0670 | B54: Ricavi per prestazioni sanitarie erogate in regime intramoenia | C54: 4238479.07 | D54: A4 b)
A55: AA0440 | B55: Ricavi per prestazioni sanitarie e sociosanitarie a rilevanza sanitaria erogate ad altri soggetti pubblici | C55: 90381.5 | D55: A4 c)
A56: AA0660 | B56: Ricavi per prestazioni sanitarie e sociosanitarie a rilevanza sanitaria erogate a privati | C56: 3620504.31
A57: Totale ricavi per prestazioni sanitarie e sociosanitarie a rilevanza sanitaria | C57: =SUM(C49:C56) -> 130750492 | D57: A 4
A59: Somma a | B59: Totale ricavi da mobilità sanitaria | C59: =C49+C50 -> 111992043.4 | D59: in accordo con Tabella 53
A62: I ricavi di mobilità sono aumentati, rispetto al precedente esercizio, di circa 9.819 €/000. Detto incremento è stato determinato per €/000 2.829 dall'aumento dei ricavi per mobilità sanitaria infraregionale e per €/000 6.989 dall'aumento dei ricavi da mobilità sanitaria extraregionale. Nello specifico, la mobilità sanitaria infraregionale è aumentata nel corso del 2018 per effetto sia dell'incremento della mobilità sanitaria da pubblico, in particolare nei confronti della ASL di Lanciano-Vasto-Chieti con riferimento ai ricavi per prestazioni di ricovero (€/000 1.210), sia dell'incremento della mobilità sanitaria da privato, soprattutto a seguito dell'aumento dei ricavi per prestazioni di ricovero nei confronti della ASL di Avezzano-Sulmona-L'Aquila (€/000 473) e nei confronti della ASL di Teramo (€/000 1.089). L'incremento dei ricavi per mobilità sanitaria extraregionale è principalmente ascrivibile all'aumento dei ricavi per prestazioni di ricovero (per €/000 5.766), per prestazioni di servizi di assistenza sanitaria di base (€/000 866) e per prestazioni di assistenza specialistica ambulatoriale (€/000 625) erogate a cittadini residenti al di fuori del territorio regionale. E' opportuno precisare che la mobilità extra regionale viene contabilizzata con due anni di ritardo rispetto all'esercizio di competenza e, come stabilisce il D. Lgs. n. 118/2011, la rilevazione contabile vine e effettuata al netto (+ o -) degli eventuali conguagli.

Sheet Tab 54
B1: Tab. 54 – Dettaglio ricavi e costi per prestazioni sanitarie erogate in regime di intramoenia
A2: CODICE MOD. CE | B2: PRESTAZIONI SANITARIE EROGATE IN REGIME DI INTRAMOENIA | C2: ="Valore CE " &'00 Aggregatore'!$F$2 -> Valore CE 2018 | D2: ="Valore CE " &'00 Aggregatore'!$F$2 -1 -> Valore CE 2017 | E2: Variazioni importo | F2: %
A4: AA0680 | B4: Ricavi per prestazioni sanitarie intramoenia - Area ospedaliera | C4: =SUMIF('00 CE'!$B:$B,'Tab 54'!$A4,'00 CE'!G:G) -> 80436.56 | D4: =SUMIF('00 CE'!$B:$B,'Tab 54'!$A4,'00 CE'!F:F) -> 50045.82 | E4: =C4-D4 -> 30390.74 | F4: =IF(AND(C4=0,D4=0),0,IF(C4=0,"",IF(D4=0,"",E4/D4))) -> 0.6072583085
A5: AA0690 | B5: Ricavi per prestazioni sanitarie intramoenia - Area specialistica | C5: =SUMIF('00 CE'!$B:$B,'Tab 54'!$A5,'00 CE'!G:G) -> 3326104 | D5: =SUMIF('00 CE'!$B:$B,'Tab 54'!$A5,'00 CE'!F:F) -> 3252006 | E5: =C5-D5 -> 74098 | F5: =IF(AND(C5=0,D5=0),0,IF(C5=0,"",IF(D5=0,"",E5/D5))) -> 0.02278532081
A6: AA0700 | B6: Ricavi per prestazioni sanitarie intramoenia - Area sanità pubblica | C6: =SUMIF('00 CE'!$B:$B,'Tab 54'!$A6,'00 CE'!G:G) -> 17534.57 | D6: =SUMIF('00 CE'!$B:$B,'Tab 54'!$A6,'00 CE'!F:F) -> 22414.54 | E6: =C6-D6 -> -4879.97 | F6: -0.2177144835
A7: AA0710 | B7: Ricavi per prestazioni sanitarie intramoenia - Consulenze (ex art. 55 c.1 lett. c), d) ed ex art. 57-58) | C7: =SUMIF('00 CE'!$B:$B,'Tab 54'!$A7,'00 CE'!G:G) -> 677848.85 | D7: =SUMIF('00 CE'!$B:$B,'Tab 54'!$A7,'00 CE'!F:F) -> 478823.7 | E7: =C7-D7 -> 199025.15 | F7: 0.4156543421
A8: AA0720 | B8: Ricavi per prestazioni sanitarie intramoenia - Consulenze (ex art. 55 c.1 lett. c), d) ed ex art. 57-58) (Aziende sanitarie pubbliche della Regione) | C8: =SUMIF('00 CE'!$B:$B,'Tab 54'!$A8,'00 CE'!G:G) -> 0 | D8: =SUMIF('00 CE'!$B:$B,'Tab 54'!$A8,'00 CE'!F:F) -> 0 | E8: =C8-D8 -> 0 | F8: 0
A9: AA0730 | B9: Ricavi per prestazioni sanitarie intramoenia - Altro | C9: =SUMIF('00 CE'!$B:$B,'Tab 54'!$A9,'00 CE'!G:G) -> 130775.39 | D9: =SUMIF('00 CE'!$B:$B,'Tab 54'!$A9,'00 CE'!F:F) -> 97870.17 | E9: =C9-D9 -> 32905.22 | F9: 0.3362129646
A10: AA0740 | B10: Ricavi per prestazioni sanitarie intramoenia - Altro (Aziende sanitarie pubbliche della Regione) | C10: =SUMIF('00 CE'!$B:$B,'Tab 54'!$A10,'00 CE'!G:G) -> 5779.7 | D10: =SUMIF('00 CE'!$B:$B,'Tab 54'!$A10,'00 CE'!F:F) -> 18272.1 | E10: =C10-D10 -> -12492.4 | F10: -0.6836871514
B11: TOTALE RICAVI INTRAMOENIA | C11: =SUM(C4:C10) -> 4238479.07 | D11: =SUM(D4:D10) -> 3919432.33 | E11: 319046.74 | F11: 0.08140126251
A12: BA1210 | B12: Compartecipazione al personale per att. libero professionale intramoenia - Area ospedaliera | C12: =SUMIF('00 CE'!$B:$B,'Tab 54'!$A12,'00 CE'!G:G) -> 54218.1 | D12: =SUMIF('00 CE'!$B:$B,'Tab 54'!$A12,'00 CE'!F:F) -> 36801.34 | E12: 17416.76 | F12: 0.4732642887
A13: BA1220 | B13: Compartecipazione al personale per att. libero professionale intramoenia- Area specialistica | C13: =SUMIF('00 CE'!$B:$B,'Tab 54'!$A13,'00 CE'!G:G) -> 2563747.47 | D13: =SUMIF('00 CE'!$B:$B,'Tab 54'!$A13,'00 CE'!F:F) -> 2790651.77 | E13: -226904.3 | F13: -0.08130871162
A14: BA1230 | B14: Compartecipazione al personale per att. libero professionale intramoenia - Area sanità pubblica | C14: =SUMIF('00 CE'!$B:$B,'Tab 54'!$A14,'00 CE'!G:G) -> 15233.61 | D14: =SUMIF('00 CE'!$B:$B,'Tab 54'!$A14,'00 CE'!F:F) -> 19073.69 | E14: -3840.08 | F14: -0.2013286365
A15: BA1240 | B15: Compartecipazione al personale per att. libero professionale intramoenia - Consulenze (ex art. 55 c.1 lett. c), d) ed ex Art. 57-58) | C15: =SUMIF('00 CE'!$B:$B,'Tab 54'!$A15,'00 CE'!G:G) -> 579327.3 | D15: =SUMIF('00 CE'!$B:$B,'Tab 54'!$A15,'00 CE'!F:F) -> 371493.34 | E15: 207833.96 | F15: 0.5594554131
A16: BA1250 | B16: Compartecipazione al personale per att. libero professionale intramoenia- Consulenze (ex art. 55 c.1 lett. c), d) ed ex Art. 57-58) (Aziende sanitarie pubbliche della Regione) | C16: =SUMIF('00 CE'!$B:$B,'Tab 54'!$A16,'00 CE'!G:G) -> 0 | D16: =SUMIF('00 CE'!$B:$B,'Tab 54'!$A16,'00 CE'!F:F) -> 0 | E16: 0 | F16: 0
A17: BA1260 | B17: Compartecipazione al personale per att. libero professionale intramoenia - Altro | C17: =SUMIF('00 CE'!$B:$B,'Tab 54'!$A17,'00 CE'!G:G) -> 108504.84 | D17: =SUMIF('00 CE'!$B:$B,'Tab 54'!$A17,'00 CE'!F:F) -> 75468.47 | E17: 33036.37 | F17: 0.4377506262
A18: BA1270 | B18: Compartecipazione al personale per att. libero professionale intramoenia- Altro (Aziende sanitarie pubbliche della Regione) | C18: =SUMIF('00 CE'!$B:$B,'Tab 54'!$A18,'00 CE'!G:G) -> 0 | D18: =SUMIF('00 CE'!$B:$B,'Tab 54'!$A18,'00 CE'!F:F) -> 0 | E18: 0 | F18: 0
B19: TOTALE QUOTE RETROCESSE AL PERSONALE (ESCLUSO IRAP) | C19: =SUM(C12:C18) -> 3321031.32 | D19: =SUM(D12:D18) -> 3293488.61 | E19: 27542.71 | F19: 0.008362776758
B20: Indennità di esclusività medica per attività di libera professione | C20: 0 | D20: 0 | E20: 0 | F20: 0
A21: YA0040 | B21: IRAP relativa ad attività di libera professione (intramoenia) | C21: 261166.86 | D21: 275247.39 | E21: -14080.53 | F21: =IF(C21=0,0,ROUND(E21/C21,4)) -> -0.0539
B22: Costi diretti aziendali | D22: 305194 | F22: 0
B23: Costi generali aziendali | D23: 33116.93 | F23: 0
A24: ** | B24: Fondo di perequazione | D24: 0 | F24: 0
B25: TOTALE ALTRI COSTI INTRAMOENIA | C25: =SUM(C20:C24) -> 261166.86 | D25: =SUM(D20:D24) -> 613558.32 | F25: 0
B26: RICAVI - COSTI INTRAMOENIA | C26: =C11-(C19+C25) -> 656280.89 | D26: =D11-(D19+D25) -> 12385.4 | F26: 0
A29: YA0040 | B29: IRAP relativa ad attività di libera professione (intramoenia) | C29: 418750.77 | D29: 458072.41
A30: * | B30: Scostamento Voce CE vs Tabella 54 | C30: =C21-C29 -> -157583.91 | D30: =D21-D29 -> -182825.02
A32: * Lo scostamento evidenziato si riferisce al conto 1101030102 "IRAP libera professione relativa ad attività istituzionale (ex. art. 55 c. 2 CCNL)"
A33: ** Il valore del Fondo di Perequazione è contabilizzato nelle voci di CE relative al TOTALE QUOTE RETROCESSE AL PERSONALE (ESCLUSO IRAP) - Tab 54

Sheet Tab 55
B1: Tab. 55 – Dettaglio rimborsi da aziende sanitarie pubbliche della Regione per acquisti di beni
B2: DETTAGLIO RIMBORSI DA AZIENDE SANITARIE PUBBLICHE DELLA REGIONE PER ACQUISTI DI BENI | C2: Azienda … | D2: Azienda … | E2: Azienda … | F2: Azienda … | G2: TOTALE
B3: Prodotti farmaceutici ed emoderivati:
B4: Medicinali con AIC, ad eccezione di vaccini ed emoderivati di produzione regionale
B5: Medicinali senza AIC
B6: Emoderivati di produzione regionale
B7: Sangue ed emocomponenti
B8: Dispositivi medici:
B9: Dispositivi medici
B10: Dispositivi medici impiantabili attivi
B11: Dispositivi medico diagnostici in vitro (IVD)
B12: Prodotti dietetici
B13: Materiali per la profilassi (vaccini)
B14: Prodotti chimici
B15: Materiali e prodotti per uso veterinario
B16: Altri beni e prodotti sanitari
B17: Prodotti alimentari
B18: Materiali di guardaroba, di pulizia e di convivenza in genere
B19: Combustibili, carburanti e lubrificanti
B20: Supporti informatici e cancelleria
B21: Materiale per la manutenzione
B22: Altri beni e prodotti non sanitari
B23: TOTALE
A27: Altre informazioni relative a proventi e ricavi diversi
A28: Informazione | C28: Caso presente in azienda? | E28: Se sì, illustrare
A29: CT01. Sono state rilevate significative variazioni rispetto all'esercizio precedente? | D29: NO

Sheet Tab 56-57
A1: 19. Acquisti di beni
B3: Tab. 56 – Dettaglio acquisti di beni sanitari per tipologia di distribuzione
B4: DETTAGLIO ACQUISTI DI BENI SANITARI PER TIPOLOGIA DI DISTRIBUZIONE | C4: Distribuzione | E4: Consumi Ospedalieri | F4: TOTALE
C5: Diretta | D5: Per conto
B6: Prodotti farmaceutici ed emoderivati: | C6: 47809354.83 | D6: 8238869.52 | E6: 26488412.74 | F6: =C6+D6+E6 -> 82536637.09
B7: Medicinali con AIC, ad eccezione di vaccini ed emoderivati di produzione regionale | C7: 0 | D7: 0 | E7: 0 | F7: =C7+D7+E7 -> 0
B8: Medicinali senza AIC | C8: 0 | D8: 0 | E8: 752264.34 | F8: 752264.34
B9: Emoderivati di produzione regionale | C9: 0 | D9: 0 | E9: 0 | F9: 0
B10: Prodotti dietetici | C10: 0 | D10: 0 | E10: 0 | F10: 0
B11: TOTALE | C11: =SUM(C6:C10) -> 47809354.83 | D11: =SUM(D6:D10) -> 8238869.52 | E11: 27240677.08 | F11: 83288901.43
B14: Tab. 57 – Dettaglio acquisti di beni da aziende sanitarie pubbliche
A15: CODICE MOD. CE | B15: DETTAGLIO ACQUISTI DI BENI DA AZIENDE SANITARIE PUBBLICHE DELLA REGIONE | C15: Azienda … | D15: Azienda … | E15: Azienda … | F15: Azienda | G15: TOTALE
A16: BA0030 | B16: Prodotti farmaceutici ed emoderivati: | G16: =SUMIF('00 CE'!B:B,'Tab 56-57'!A16,'00 CE'!G:G) -> 83288901.43
A17: BA0040 | B17: Medicinali con AIC, ad eccezione di vaccini ed emoderivati di produzione regionale | G17: =SUMIF('00 CE'!B:B,'Tab 56-57'!A17,'00 CE'!G:G) -> 82536637.09
A18: BA0050 | B18: Medicinali senza AIC | G18: =SUMIF('00 CE'!B:B,'Tab 56-57'!A18,'00 CE'!G:G) -> 752264.34
A19: BA0060 | B19: Emoderivati di produzione regionale | G19: =SUMIF('00 CE'!B:B,'Tab 56-57'!A19,'00 CE'!G:G) -> 0
A20: BA0070 | B20: Sangue ed emocomponenti | G20: =SUMIF('00 CE'!B:B,'Tab 56-57'!A20,'00 CE'!G:G) -> 23080.75
A21: BA0210 | B21: Dispositivi medici: | G21: =SUMIF('00 CE'!B:B,'Tab 56-57'!A21,'00 CE'!G:G) -> 42871861.68
A22: BA0220 | B22: Dispositivi medici | G22: =SUMIF('00 CE'!B:B,'Tab 56-57'!A22,'00 CE'!G:G) -> 27013313.95
A23: BA0230 | B23: Dispositivi medici impiantabili attivi | G23: =SUMIF('00 CE'!B:B,'Tab 56-57'!A23,'00 CE'!G:G) -> 3071999.01
A24: BA0240 | B24: Dispositivi medico diagnostici in vitro (IVD) | G24: =SUMIF('00 CE'!B:B,'Tab 56-57'!A24,'00 CE'!G:G) -> 12786548.72
A25: BA0250 | B25: Prodotti dietetici | G25: =SUMIF('00 CE'!B:B,'Tab 56-57'!A25,'00 CE'!G:G) -> 468960.66
A26: BA0260 | B26: Materiali per la profilassi (vaccini) | G26: =SUMIF('00 CE'!B:B,'Tab 56-57'!A26,'00 CE'!G:G) -> 2222785.11
A27: BA0270 | B27: Prodotti chimici | G27: =SUMIF('00 CE'!B:B,'Tab 56-57'!A27,'00 CE'!G:G) -> 0
A28: BA0280 | B28: Materiali e prodotti per uso veterinario | G28: =SUMIF('00 CE'!B:B,'Tab 56-57'!A28,'00 CE'!G:G) -> 20636.41
A29: BA0290 | B29: Altri beni e prodotti sanitari | G29: =SUMIF('00 CE'!B:B,'Tab 56-57'!A29,'00 CE'!G:G) -> 2193506.59
A30: BA0300 | B30: Beni e prodotti sanitari da Aziende sanitarie pubbliche della Regione | G30: =SUMIF('00 CE'!B:B,'Tab 56-57'!A30,'00 CE'!G:G) -> 0
A31: BA0320 | B31: Prodotti alimentari | G31: =SUMIF('00 CE'!B:B,'Tab 56-57'!A31,'00 CE'!G:G) -> 83.52
A32: BA0330 | B32: Materiali di guardaroba, di pulizia e di convivenza in genere | G32: =SUMIF('00 CE'!B:B,'Tab 56-57'!A32,'00 CE'!G:G) -> 64306.42
A33: BA0340 | B33: Combustibili, carburanti e lubrificanti | G33: =SUMIF('00 CE'!B:B,'Tab 56-57'!A33,'00 CE'!G:G) -> 172419.52
A34: BA0350 | B34: Supporti informatici e cancelleria | G34: =SUMIF('00 CE'!B:B,'Tab 56-57'!A34,'00 CE'!G:G) -> 477974.9
A35: BA0360 | B35: Materiale per la manutenzione | G35: =SUMIF('00 CE'!B:B,'Tab 56-57'!A35,'00 CE'!G:G) -> 239884.37
A36: BA0370 | B36: Altri beni e prodotti non sanitari | G36: =SUMIF('00 CE'!B:B,'Tab 56-57'!A36,'00 CE'!G:G) -> 45073.96
A37: BA0380 | B37: Beni e prodotti non sanitari da Aziende sanitarie pubbliche della Regione | G37: =SUMIF('00 CE'!B:B,'Tab 56-57'!A37,'00 CE'!G:G) -> 0
B38: TOTALE | G38: =G16+G20+G21+G25+G26+G27+G28+G29+G30+G32+G31+G33+G34+G35+G36 -> 132089475.3

Sheet AB01-02-03
A1: AB01 - Acquisti di beni
A2: AB01 | B2: Ciascuna tipologia di bene, compreso nelle voci relative agli acquisti di beni sanitari e non sanitari, è monitorata attraverso il sistema gestionale del magazzino, che rileva ogni tipologia di movimento, in entrata e in uscita.
A4: Altre informazioni relative agli acquisti di beni
A5: Informazione | C5: Caso presente in azienda? | E5: Se SI, illustrare
A6: AB02. Sono stati rilevati costi per acquisto di beni da altre Aziende Sanitarie della Regione? Se sì, di quali tipologie di beni si tratta? | D6: NO
A7: AB03. Sono state rilevate significative variazioni rispetto all'esercizio precedente? | D7: SI | E7: Si veda commento sottostante.
A10: Il costo per acquisti di beni ha subito un incremento del 13% rispetto all'esercizio precedente ( circa 15 €/mln). Tale variazione è dovuta sostanzialmente all'incremento delle seguenti voci:
A12: - i costi di acquisto di prodotti farmaceutici ed emoderivati, in particolare dei medicinali con AIC (+ €/mln 13,3);
A13: - i costi di acquisto dei dispositivi medici (+ €/mln 1,7).
A14: Per il commento di tali variazioni, si fa riferimento, tra l'altro, a quanto comunicato dal Direttore della UOC Farmacia Ospedaliera con e-mail del 03/07/2019.
A15: Con riferimento all'incremento del costo per l'acquisto dei farmaci, di circa €/mln 13,3, esso è stato determinato sia dall'inserimento in Prontuario Ospedaliero di nuovi farmaci, sia dallo spostamento delle prescrizioni verso farmaci più costosi (Effetto mix).
A16: In particolare, nel periodo Settembre 2016-Dicembre 2018 sono stati inseriti in Prontuario Ospedaliero nuovi farmaci ad alto costo.
A17: Tra i farmaci di nuova introduzione e a maggiore impatto di spesa si segnala il "mepolizumab" (Nucala) e l'"omalizumab" (Xolair), che sono farmaci che non ricadono nella categoria dei farmaci innovativi e quindi non possono essere ammessi al rimborso dello specifico Fondo nazionale.
A18: La disponibilità in commercio di nuovi e più costosi farmaci ha determinato un aumento della spesa non soltanto per i nuovi pazienti, ma anche per quelli già trattati, per cui vi è uno spostamento delle prescrizioni verso farmaci più costosi all'interno della stessa categoria terapeutica (Effetto mix).
A19: Inoltre, l'incremento della spesa farmaceutica è stato anche determinato dall'estensione delle indicazioni terapeutiche dei farmaci esistenti. Tale fenomeno è particolarmente presente nell'area ematologica. A tal proposito, presso la ASL di Pescara opera l'unico Dipartimento di Ematologia regionale, su cui, a seguito del depotenziamento di alcune realtà periferiche, confluiscono molti pazienti che venivano precedentemente curati negli altri punti della rete regionale. Nel campo ematologico molti farmaci già in uso nel 2017 hanno avuto recentemente una estensione delle indicazioni da parte di AIFA.
A20: L'aumento della spesa è stato altresì determinato dalla progressiva introduzione di nuove terapie, specialmente in campo oncologico, che prevedono l'utilizzo di farmaci già in uso, ma in associazione tra loro.
A21: Infine, all'incremento della spesa farmaceutica ha contribuito l'avvio, dal mese di Agosto 2018, della DPC che ha avuto il duplice effetto, da un lato, di incrementare la spesa farmaceutica ospedaliera, dall'altro di ridurre quella per la farmaceutica convenzionata.
A22: Con riferimento ai dispositivi medici, l'incremento di spesa è imputabile sia ai nuovi acquisti della UOC Neurochirurgia, sia alle nuove acquisizioni per i reparti di Ginecologia, Blocco Operatorio, Radiologia, Anestesia e Laboratorio Analisi attraverso la Commissione Terapeutica Aziendale.

Sheet Tab. 57bis
J2: Tab. 57-bis
B4: Farmaci | G4: Costo CE | H4: Prezzi medi di acquisto Consuntivo 2018 | I4: Importo payback/note di credito ricevute direttamente dalla ASL (prezzo/volume, capping ed altri accordi) Consuntivo 2018
A5: Fondo Inn. | B5: AIC | C5: Denominazione e Confezione | D5: Principio attivo | E5: Data Efficacia | F5: Data Scadenza | G5: Consuntivo 2018 | I5: Riferito ad acquisti 2018 | J5: Riferito ad acquisti 2017 | K5: Riferito ad acquisti anni precedenti
A6: I | B6: 043441029 | C6: OLYSIO*28CPS 150MG | D6: simeprevir | E6: 2015-06-27 | F6: 2018-02-23 | G6: 0 | H6: 0 | I6: 0 | J6: 0 | K6: 0
A7: I | B7: 043441017 | C7: OLYSIO*7CPS 150MG | D7: simeprevir | E7: 2015-06-27 | F7: 2018-02-23 | G7: 0 | H7: 0 | I7: 0 | J7: 0 | K7: 0
A8: I | B8: 043841016 | C8: VIEKIRAX*56CPR 12,5+75+50MG | D8: ombitasvir, paritaprevir e ritonavir | E8: 2015-05-24 | F8: 2018-05-23 | G8: 0 | H8: 0 | I8: 0 | J8: 0 | K8: 0
A9: I | B9: 043840014 | C9: EXVIERA*56CPR RIV 250MG | D9: dasabuvir | E9: 2015-05-24 | F9: 2018-05-23 | G9: 0 | H9: 0 | I9: 0 | J9: 0 | K9: 0
A10: I | B10: 043542012 | C10: DAKLINZA*28CPR RIV 30MG | D10: daclatasvir | E10: 2015-05-05 | F10: 2018-05-04 | G10: 0 | H10: 0 | I10: 0 | J10: 0 | K10: 0
A11: I | B11: 043542036 | C11: DAKLINZA*28CPR RIV 60MG | D11: daclatasvir | E11: 2015-05-05 | F11: 2018-05-04 | G11: 0 | H11: 0 | I11: 9900 | J11: 78666.64 | K11: 0
A12: I | B12: 043519026 | C12: KALYDECO*56CPR RIV 150MG | D12: ivacaftor | E12: 2015-05-05 | F12: 2018-05-04 | G12: 0 | H12: 0 | I12: 0 | J12: 0 | K12: 0
A13: I | B13: 044928012 | C13: EPCLUSA 1FL 28CPR 400+100MG | D13: sofosbuvir/velpatasvir | E13: 2017-04-27 | F13: 2020-04-26 | G13: 3079999.78 | H13: 654.76 | I13: 2829043.65 | J13: 0 | K13: 0
A14: I | B14: 044929014 | C14: ZEPATIER 28CPR RIV 50MG+100MG | D14: elbasvir/grazoprevir | E14: 2017-02-04 | F14: 2020-02-03 | G14: 324133.66 | H14: 82.69 | I14: 22733.34 | J14: 0 | K14: 0
A15: I | B15: 044880019 | C15: STRIMVELIS EV 1-10MILIONI CELL | D15: cellule autologhe CD34+ | E15: 2016-08-16 | F15: 2019-08-15 | G15: 0 | H15: 0 | I15: 0 | J15: 0 | K15: 0
A16: I | B16: 045426018 | C16: SPINRAZA*1FL 12MG 5ML 2,4MG/ML | D16: nusinersen | E16: 2017-09-28 | F16: 2020-09-27 | G16: 229460 | H16: 57365 | I16: 77000 | J16: 0 | K16: 0
A17: I | B17: 045445018 | C17: MAVIRET*84CPR RIV 100MG+40MG | D17: glecaprevir/pibrentasvir | E17: 2017-09-28 | F17: 2020-04-26 | G17: 1024616.22 | H17: 45.68 | I17: 118705.18 | J17: 0 | K17: 0
A18: I | B18: 045383015 | C18: OXERVATE*COLL 7FL 20MCG/ML 1ML | D18: cenegermin | E18: 2018-01-24 | F18: 2021-01-23 | G18: 0 | H18: 0 | I18: 0 | J18: 0 | K18: 0
A19: I | B19: 045494010 | C19: VOSEVI*28CPR 400+100+100MG FL | D19: sofosbuvir/velpatasvir/voxilaprevir | E19: 2018-04-19 | F19: 2020-04-26 | G19: 125885.69 | H19: 642.27 | I19: 99705.69 | J19: 0 | K19: 0
B20: 045676069 | C20: DUPIXENT*2SIR 300MG 2ML | D20: dupilumab | E20: 2018-09-08 | F20: 2021-09-07 | G20: 11897.6 | H20: 457.6 | I20: 0 | J20: 0 | K20: 0
B21: 046130023 | C21: HEMLIBRA*SC 150MG/ML 0,4ML | D21: emicizumab | E21: 2018-12-07 | F21: 2021-12-06 | G21: 0 | H21: 0 | I21: 0 | J21: 0 | K21: 0
B22: 046130035 | C22: HEMLIBRA*SC 150MG/ML 0,7ML | D22: emicizumab | E22: 2018-12-07 | F22: 2021-12-06 | G22: 0 | H22: 0 | I22: 0 | J22: 0 | K22: 0
B23: 046130047 | C23: HEMLIBRA*SC 150MG/ML 1ML | D23: emicizumab | E23: 2018-12-07 | F23: 2021-12-06 | G23: 0 | H23: 0 | I23: 0 | J23: 0 | K23: 0
B24: 046130011 | C24: HEMLIBRA*SC 30MG/ML 1ML | D24: emicizumab | E24: 2018-12-07 | F24: 2021-12-06 | G24: 0 | H24: 0 | I24: 0 | J24: 0 | K24: 0
B25: 045890011 | C25: PREVYMIS*28CPR RIV 240MG | D25: letermovir | E25: 2018-09-18 | F25: 2021-09-17 | G25: 0 | H25: 0 | I25: 0 | J25: 0 | K25: 0
B26: 045890023 | C26: PREVYMIS*28CPR RIV 480MG | D26: letermovir | E26: 2018-09-18 | F26: 2021-09-17 | G26: 0 | H26: 0 | I26: 0 | J26: 0 | K26: 0
A27: FONDO INNOVATIVI NON ONCOLOGICI | G27: =SUM(G6:G26) -> 4795992.95 | I27: =SUM(I6:I26) -> 3157087.86 | J27: 78666.64 | K27: 0
A28: IO | B28: 039399011 | C28: ABRAXANE*INF 100MG 5MG/ML | D28: paclitaxel | E28: 2015-02-21 | F28: 2018-02-20 | G28: 173499.77 | H28: 237.67 | I28: 3398.39 | J28: 0 | K28: 0
A29: IO | B29: 043620018 | C29: ZYDELIG*FL 60CPR RIV 100MG | D29: idelalisib | E29: 2015-09-11 | F29: 2018-09-10 | G29: 29598.71 | H29: 49.33 | I29: 0 | J29: 0 | K29: 0
A30: IO | B30: 043620020 | C30: ZYDELIG*FL 60CPR RIV 150MG | D30: idelalisib | E30: 2015-09-11 | F30: 2018-09-10 | G30: 101417.02 | H30: 49.71 | I30: 0 | J30: 0 | K30: 0
A31: IO | B31: 043693023 | C31: IMBRUVICA*FL 120CPS 140MG | D31: ibrutinib | E31: 2016-01-05 | F31: 2019-01-04 | G31: 0 | H31: 0 | I31: 0 | J31: 0 | K31: 0
A32: IO | B32: 043693011 | C32: IMBRUVICA*FL 90CPS 140MG | D32: ibrutinib | E32: 2016-01-05 | F32: 2019-01-04 | G32: 574696.59 | H32: 49.12 | I32: 0 | J32: 0 | K32: 0
A33: IO | B33: 044291021 | C33: OPDIVO*INFUS 1F 10ML 10MG/ML | D33: nivolumab | E33: 2016-03-25 | F33: 2019-03-24 | G33: 914760 | H33: 1169.77 | I33: 0 | J33: 0 | K33: 0
A34: IO | B34: 044291019 | C34: OPDIVO*INFUS 1F 4ML 10MG/ML | D34: nivolumab | E34: 2016-03-25 | F34: 2019-03-24 | G34: 183162.1 | H34: 469.65 | I34: 0 | J34: 0 | K34: 0
A35: IO | B35: 044386011 | C35: KEYTRUDA*1FL POLV EV 50MG/ML | D35: pembrolizumab | E35: 2016-05-11 | F35: 2019-05-10 | G35: 268669.5 | H35: 1414.05 | I35: 0 | J35: 0 | K35: 0
A36: IO | B36: 044386023 | C36: KEYTRUDA*1FL 4ML 25MG/ML | D36: pembrolizumab | E36: 2016-05-11 | F36: 2019-05-10 | G36: 1117099.5 | H36: 2828.1 | I36: 0 | J36: 0 | K36: 0
A37: IO | B37: 042927018 | C37: IMNOVID*21CPS 1MG | D37: pomalidomide | E37: 2018-02-21 | F37: 2018-08-19 | G37: 0 | H37: 0 | I37: 0 | J37: 0 | K37: 0
A38: IO | B38: 042927020 | C38: IMNOVID*21CPS 2MG | D38: pomalidomide | E38: 2018-02-21 | F38: 2018-08-19 | G38: 22770.6 | H38: 361.44 | I38: 0 | J38: 0 | K38: 0
A39: IO | B39: 042927032 | C39: IMNOVID*21CPS 3MG | D39: pomalidomide | E39: 2018-02-21 | F39: 2018-08-19 | G39: 22770.6 | H39: 361.44 | I39: 0 | J39: 0 | K39: 0
A40: IO | B40: 042927044 | C40: IMNOVID*21CPS 4MG | D40: pomalidomide | E40: 2018-02-21 | F40: 2018-08-19 | G40: 164447.45 | H40: 372.9 | I40: 0 | J40: 0 | K40: 0
A41: IO | B41: 044885022 | C41: DARZALEX*EV 1FL 20ML 20MG/ML | D41: daratumumab | E41: 2018-04-19 | F41: 2019-04-18 | G41: 460120.24 | H41: 1870.41 | I41: 31123.82 | J41: 0 | K41: 0
A42: IO | B42: 044885010 | C42: DARZALEX*EV 1FL 5ML 20MG/ML | D42: daratumumab | E42: 2018-04-19 | F42: 2019-04-18 | G42: 89311.52 | H42: 467.6 | I42: 7111.94 | J42: 0 | K42: 0
B43: 045267010 | C43: ALECENSA*224CPS 150MG | D43: alectinib | E43: 2018-08-01 | F43: 2020-01-31 | G43: 38884.03 | H43: 21.7 | I43: 0 | J43: 0 | K43: 0
B44: 045427010 | C44: QARZIBA*1FL 4,5ML 4,5MG/ML | D44: dinutuximab beta | E44: 2018-08-01 | F44: 2021-07-31 | G44: 0 | H44: 0 | I44: 0 | J44: 0 | K44: 0
B45: 045612013 | C45: RYDAPT*112CPS MOLLI 25MG | D45: midostaurina | E45: 2018-08-17 | F45: 2021-08-16 | G45: 9983.96 | H45: 89.14 | I45: 0 | J45: 0 | K45: 0
B46: 045590015 | C46: TECENTRIQ*INFUS 60MG/ML 20ML | D46: atezolizumab | E46: 2018-07-15 | F46: 2019-03-24 | G46: 6278.16 | H46: 3139.08 | I46: 0 | J46: 0 | K46: 0
A47: FONDO INNOVATIVI ONCOLOGICI | G47: =SUM(G28:G46) -> 4177469.75 | I47: =SUM(I28:I46) -> 41634.15 | J47: 0 | K47: 0
A48: TOTALE GENERALE | G48: =SUM(G47,G27) -> 8973462.7 | I48: =SUM(I47,I27) -> 3198722.01 | J48: 78666.64 | K48: 0
C50: FONDO INNOVATIVI NETTO
C51: Fondo innovativi non oncologici | G51: =G27-(I27+J27) -> 1560238.45
C52: Fondo innovativi oncologici | G52: =G47-(I47+K47) -> 4135835.6
C53: TOTALE GENERALE | G53: =SUM(G51:G52) -> 5696074.05
A55: NOTA: Come specificato dal Dirigente dell'UOSD Controllo di Gestione con e-mail del 02 Luglio 2019, la tabella 57-bis è redatta in base ai dati dell’evaso e non delle fatture, anche perché dalle fatture non sarebbe desumibile il costo medio di acquisto.

Sheet Tab 58
A1: 20. Acquisti di servizi
B3: Tab. 58 – Dettaglio acquisti di servizi sanitari in mobilità
A4: CODICE MOD. CE | B4: DETTAGLIO ACQUISTI DI SERVIZI SANITARI IN MOBILITA' | C4: PUBBLICO | F4: PRIVATO | I4: TOTALE
C5: Avezzano-Sulmona-L'Aquila | D5: Lanciano-Vasto-Chieti | E5: Teramo | F5: Avezzano-Sulmona-L'Aquila | G5: Lanciano-Vasto-Chieti | H5: Teramo | K5: VALORE CE | L5: Diff | M5: Ctrl
B6: COSTI DA MOBILITA' SANITARIA INFRAREGIONALE (A) | C6: =SUM(C7:C18) -> 3680762.67 | D6: 28263793.58 | E6: 5360168.11 | F6: 1705586.09 | G6: 8031763.67 | H6: 2345506.63 | I6: 49387581.23 | K6: 49387581.23
A7: BA0470 | B7: Acquisti servizi sanitari per medicina di base | C7: 6337.26 | D7: 24927.21 | E7: 7406.55 | F7: 0 | G7: 0 | H7: 0 | I7: =SUMIF('00 CE'!B:B,'Tab 58'!A7,'00 CE'!G:G) -> 38671 | K7: =SUMIF('00 CE'!B:B,'Tab 58'!A7,'00 CE'!G:G) -> 38671 | L7: =I7-K7 -> 0 | M7: =IF(L7=0,"OK"," CTRL") -> OK
A8: BA0510 | B8: Acquisti servizi sanitari per farmaceutica | C8: 224285.24 | D8: 896880.25 | E8: 156462.58 | F8: 0 | G8: 0 | H8: 0 | I8: =SUMIF('00 CE'!B:B,'Tab 58'!A8,'00 CE'!G:G) -> 1277628.07 | K8: =SUMIF('00 CE'!B:B,'Tab 58'!A8,'00 CE'!G:G) -> 1277628.07 | L8: =I8-K8 -> 0 | M8: =IF(L8=0,"OK"," CTRL") -> OK
A9: BA0540 | B9: Acquisti servizi sanitari per assistenza specialistica ambulatoriale | C9: 615759 | D9: 5975232 | E9: 1032519 | F9: 44634.72 | G9: 1207930.36 | H9: 3284.09 | I9: =SUMIF('00 CE'!B:B,'Tab 58'!A9,'00 CE'!G:G) -> 8879359.57 | K9: =SUMIF('00 CE'!B:B,'Tab 58'!A9,'00 CE'!G:G) -> 8879359.57 | L9: 0 | M9: OK
A10: BA0650 | B10: Acquisti servizi sanitari per assistenza riabilitativa | C10: 0 | D10: 0 | E10: 0 | F10: 122620.66 | G10: 2392039.63 | H10: 2318305.66 | I10: =SUMIF('00 CE'!B:B,'Tab 58'!A10,'00 CE'!G:G) -> 4832965.95 | K10: =SUMIF('00 CE'!B:B,'Tab 58'!A10,'00 CE'!G:G) -> 4832965.95 | L10: 0 | M10: OK
A11: BA0710 | B11: Acquisti servizi sanitari per assistenza integrativa | C11: 0 | D11: 0 | E11: 0 | F11: 0 | G11: 0 | H11: 0 | I11: =SUMIF('00 CE'!B:B,'Tab 58'!A11,'00 CE'!G:G) -> 0 | K11: =SUMIF('00 CE'!B:B,'Tab 58'!A11,'00 CE'!G:G) -> 0 | L11: 0 | M11: OK
A12: BA0760 | B12: Acquisti servizi sanitari per assistenza protesica | C12: 0 | D12: 0 | E12: 0 | F12: 0 | G12: 0 | H12: 0 | I12: =SUMIF('00 CE'!B:B,'Tab 58'!A12,'00 CE'!G:G) -> 0 | K12: =SUMIF('00 CE'!B:B,'Tab 58'!A12,'00 CE'!G:G) -> 0 | L12: 0 | M12: OK
A13: BA0810 | B13: Acquisti servizi sanitari per assistenza ospedaliera | C13: 2695124.36 | D13: 17202456.41 | E13: 3900006.16 | F13: 968473.52 | G13: 1715471.87 | H13: 0 | I13: =SUMIF('00 CE'!B:B,'Tab 58'!A13,'00 CE'!G:G) -> 26481532.39 | K13: =SUMIF('00 CE'!B:B,'Tab 58'!A13,'00 CE'!G:G) -> 26481532.39 | L13: 0 | M13: OK
A14: BA0910 | B14: Acquisto prestazioni di psichiatria residenziale e semiresidenziale | C14: 0 | D14: 0 | E14: 0 | F14: 527515.46 | G14: 1024060.04 | H14: 0 | I14: =SUMIF('00 CE'!B:B,'Tab 58'!A14,'00 CE'!G:G) -> 1551575.5 | K14: =SUMIF('00 CE'!B:B,'Tab 58'!A14,'00 CE'!G:G) -> 1551575.5 | L14: 0 | M14: OK
A15: BA0970 | B15: Acquisto prestazioni di distribuzione farmaci File F | C15: 123093.52 | D15: 4088699.33 | E15: 252319.52 | F15: 0 | G15: 0 | H15: 0 | I15: =SUMIF('00 CE'!B:B,'Tab 58'!A15,'00 CE'!G:G) -> 4464112.37 | K15: =SUMIF('00 CE'!B:B,'Tab 58'!A15,'00 CE'!G:G) -> 4464112.37 | L15: 0 | M15: OK
A16: BA1040 | B16: Acquisto prestazioni termali in convenzione | C16: 0 | D16: 0 | E16: 0 | F16: 0 | G16: 0 | H16: 0 | I16: =SUMIF('00 CE'!B:B,'Tab 58'!A16,'00 CE'!G:G) -> 0 | K16: =SUMIF('00 CE'!B:B,'Tab 58'!A16,'00 CE'!G:G) -> 0 | L16: 0 | M16: OK
A17: BA1100 | B17: Acquisto prestazioni trasporto sanitario | C17: 16163.29 | D17: 75598.38 | E17: 11454.3 | F17: 0 | G17: 0 | H17: 0 | I17: =SUMIF('00 CE'!B:B,'Tab 58'!A17,'00 CE'!G:G) -> 103216 | K17: =SUMIF('00 CE'!B:B,'Tab 58'!A17,'00 CE'!G:G) -> 103216 | L17: 0 | M17: OK
A18: BA1150 | B18: Acquisto prestazioni Socio-Sanitarie a rilevanza sanitaria | C18: 0 | D18: 0 | E18: 0 | F18: 42341.73 | G18: 1692261.77 | H18: 23916.88 | I18: =SUMIF('00 CE'!B:B,'Tab 58'!A18,'00 CE'!G:G) -> 1758520.38 | K18: =SUMIF('00 CE'!B:B,'Tab 58'!A18,'00 CE'!G:G) -> 1758520.38 | L18: 0 | M18: OK
B20: COSTI DA MOBILITA' SANITARIA EXTRAREGIONALE (B) | C20: =SUM(C21:C29) -> 0 | D20: 0 | E20: 0 | F20: 0 | G20: 0 | H20: 0 | I20: =SUM(I21:I29) -> 31368215.52
A21: BA0480 | B21: Acquisti servizi sanitari per medicina di base | I21: =SUMIF('00 CE'!B:B,'Tab 58'!A21,'00 CE'!G:G) -> 217107.5
A22: BA0520 | B22: Acquisti servizi sanitari per farmaceutica | I22: =SUMIF('00 CE'!B:B,'Tab 58'!A22,'00 CE'!G:G) -> 457054.73
A23: BA0560 | B23: Acquisti servizi sanitari per assistenza specialistica ambulatoriale | I23: =SUMIF('00 CE'!B:B,'Tab 58'!A23,'00 CE'!G:G) -> 4000753.58
A24: BA0730 | B24: Acquisti servizi sanitari per assistenza integrativa | I24: =SUMIF('00 CE'!B:B,'Tab 58'!A24,'00 CE'!G:G) -> 0
A25: BA0780 | B25: Acquisti servizi sanitari per assistenza protesica | I25: =SUMIF('00 CE'!B:B,'Tab 58'!A25,'00 CE'!G:G) -> 0
A26: BA0830 | B26: Acquisti servizi sanitari per assistenza ospedaliera | I26: =SUMIF('00 CE'!B:B,'Tab 58'!A26,'00 CE'!G:G) -> 24057993.46
A27: BA0990 | B27: Acquisto prestazioni di distribuzione farmaci e File F | I27: =SUMIF('00 CE'!B:B,'Tab 58'!A27,'00 CE'!G:G) -> 2195879.04
A28: BA1060 | B28: Acquisto prestazioni termali in convenzione | I28: =SUMIF('00 CE'!B:B,'Tab 58'!A28,'00 CE'!G:G) -> 95302.31
A29: BA1120 | B29: Acquisto prestazioni trasporto sanitario | I29: =SUMIF('00 CE'!B:B,'Tab 58'!A29,'00 CE'!G:G) -> 344124.9
B31: TOTALE COSTI DA MOBILITA' (A+B) | C31: =C6+C20 -> 3680762.67 | D31: =D6+D20 -> 28263793.58 | E31: 5360168.11 | F31: 1705586.09 | G31: 8031763.67 | H31: 2345506.63 | I31: =I6+I20 -> 80755796.75
B33: COSTI PER PRESTAZIONI OGGETTO DI FATTURAZIONE DIRETTA INFRAREGIONALE (C) | C33: 347130 | D33: 42621 | E33: 149491.81 | F33: 0 | G33: 0 | H33: 0 | I33: =SUM(C33:H33) -> 539242.81
B35: COSTI PER PREST. OGGETTO DI FATTUR. DIRETTA EXTRAREGIONALE (D) | I35: 326087.32
B37: TOTALE COSTI PER PREST. OGGETTO DI FATTURAZ. DIRETTA (C+D) | C37: =C33+C35 -> 347130 | D37: 42621 | E37: 149491.81 | F37: 0 | G37: 0 | H37: 0 | I37: =SUM(C37:H37)+I35 -> 865330.13
B39: TOTALE COSTI AZIENDE REGIONE (A+C) | C39: =C33+C6 -> 4027892.67 | D39: 28306414.58 | E39: 5509659.92 | F39: 1705586.09 | G39: 8031763.67 | H39: 2345506.63 | I39: =I33+I6 -> 49926824.04
B40: TOTALE COSTI AZIENDE EXTRA REGIONE (B+D) | I40: =I20+I35 -> 31694302.84
B41: TOTALE COSTI AZIENDE SANITARIE PUBBLICHE (A+B+C+D) | C41: =C31+C33+C35 -> 4027892.67 | D41: 28306414.58 | E41: 5509659.92 | F41: 1705586.09 | G41: 8031763.67 | H41: =H31+H33+H35 -> 2345506.63 | I41: =I31+I33+I35 -> 81621126.88
A45: Nella riga "Costi per prestazioni oggetto di fatturazione diretta infraregionale" sono stati inseriti i costi sostenuti dall'Azienda nei confronti delle AASSLL della Regione per prestazioni fuori mobilità, oggetto di fatturazione diretta. Tali valori sono stati riconciliati con le AASSLL della Regione alla data del 31/12/2018.
A48: I costi di mobilità passiva sono diminuiti, rispetto al precedente esercizio, di circa €/000 571. Detta variazione è stata determinata dalla riduzione dei costi per mobilità sanitaria infraregionale (-€/000 1.884), parzialmente compensata dall'incremento dei costi per mobilità sanitaria extraregionale (+ €/000 1.313). Nello specifico, i saldi della mobilità passiva infraregionale sono migliorati soprattutto a causa dei minori costi di acquisto di servizi sanitari per assistenza ospedaliera (per - €/000 1.748) rispetto al 2017, in particolare nei confronti della ASL di Lanciano-Vasto-Chieti. I costi per mobilità sanitaria extraregionale sono aumentati nel corso del 2018 principalmente per effetto dell'incremento dei costi per acquisti di servizi sanitari per assistenza ospedaliera (per €/000 1.009) e per acquisto prestazioni di distribuzione farmaci e File F (€/000 610). Tali incrementi sono stati parzialmente compensati dalla riduzione dei costi per acquisti di servizi sanitari per assistenza ambulatoriale (per €/000 - 459). In merito alla mobilità sanitaria extra regionale va precisato, ad ogni buon conto, che essa, ai sensi del D. Lgs. 118/2011, viene contabilizzata con due anni di ritardo rispetto all'esercizio di competenza e, come stabilisce il citato decreto, la rilevazione contabile viene effettuata al netto degli eventuali conguagli (+ o -) dei due esercizi precedenti.

Sheet Tab 58 bis
A1: Tab. 58 bis - Tabella di raccordo - DETTAGLIO ACQUISTI DI SERVIZI SANITARI IN MOBILITA'
A3: Voce CE | B3: Descrizione | D3: Importo | E3: Voce CE D.Lgs. 118/2011
A4: BA0410 | B4: B.2.A.1) Acquisti servizi sanitari per medicina di base | D4: =SUM(D5:D7) -> 35909283.82 | E4: B 2) a)
A5: BA0420 | B5: B.2.A.1.1) - da convenzione | D5: =SUMIF('00 CE'!B:B,'Tab 58 bis'!A5,'00 CE'!G:G) -> 35653505.32
A6: BA0470 | B6: B.2.A.1.2) - da pubblico (Aziende sanitarie pubbliche della Regione) - Mobilità intraregionale | C6: a | D6: =SUMIF('00 CE'!B:B,'Tab 58 bis'!A6,'00 CE'!G:G) -> 38671
A7: BA0480 | B7: B.2.A.1.3) - da pubblico (Aziende sanitarie pubbliche Extraregione) - Mobilità extraregionale | C7: b | D7: =SUMIF('00 CE'!B:B,'Tab 58 bis'!A7,'00 CE'!G:G) -> 217107.5
A8: BA0490 | B8: B.2.A.2) Acquisti servizi sanitari per farmaceutica | D8: =SUM(D9:D11) -> 51864361.03 | E8: B 2) b)
A9: BA0500 | B9: B.2.A.2.1) - da convenzione | D9: =SUMIF('00 CE'!B:B,'Tab 58 bis'!A9,'00 CE'!G:G) -> 50129678.23
A10: BA0510 | B10: B.2.A.2.2) - da pubblico (Aziende sanitarie pubbliche della Regione)- Mobilità intraregionale | C10: a | D10: =SUMIF('00 CE'!B:B,'Tab 58 bis'!A10,'00 CE'!G:G) -> 1277628.07
A11: BA0520 | B11: B.2.A.2.3) - da pubblico (Extraregione) | C11: b | D11: =SUMIF('00 CE'!B:B,'Tab 58 bis'!A11,'00 CE'!G:G) -> 457054.73
A12: BA0530 | B12: B.2.A.3) Acquisti servizi sanitari per assistenza specialistica ambulatoriale | D12: =SUM(D13:D18) -> 26809571.49 | E12: B 2) c)
A13: BA0540 | B13: B.2.A.3.1) - da pubblico (Aziende sanitarie pubbliche della Regione) | C13: a | D13: =SUMIF('00 CE'!B:B,'Tab 58 bis'!A13,'00 CE'!G:G) -> 8879359.57
A14: BA0550 | B14: B.2.A.3.2) - da pubblico (altri soggetti pubbl. della Regione) | D14: =SUMIF('00 CE'!B:B,'Tab 58 bis'!A14,'00 CE'!G:G) -> 360209.89
A15: BA0560 | B15: B.2.A.3.3) - da pubblico (Extraregione) | C15: b | D15: =SUMIF('00 CE'!B:B,'Tab 58 bis'!A15,'00 CE'!G:G) -> 4000753.58
A16: BA0570 | B16: B.2.A.3.4) - da privato - Medici SUMAI | D16: =SUMIF('00 CE'!B:B,'Tab 58 bis'!A16,'00 CE'!G:G) -> 4486744.21
A17: BA0580 | B17: B.2.A.3.5) - da privato | D17: =SUMIF('00 CE'!B:B,'Tab 58 bis'!A17,'00 CE'!G:G) -> 8885806.01
A18: BA0630 | B18: B.2.A.3.6) - da privato per cittadini non residenti - Extraregione (mobilità attiva in compensazione) | D18: =SUMIF('00 CE'!B:B,'Tab 58 bis'!A18,'00 CE'!G:G) -> 196698.23
A19: BA0640 | B19: B.2.A.4) Acquisti servizi sanitari per assistenza riabilitativa | D19: =SUM(D20:D23) -> 19990902.56 | E19: B 2) d)
A20: BA0650 | B20: B.2.A.4.1) - da pubblico (Aziende sanitarie pubbliche della Regione) | C20: a | D20: =SUMIF('00 CE'!B:B,'Tab 58 bis'!A20,'00 CE'!G:G) -> 4832965.95
A21: BA0670 | B21: B.2.A.4.3) - da pubblico (Extraregione) non soggetti a compensazione | D21: =SUMIF('00 CE'!B:B,'Tab 58 bis'!A21,'00 CE'!G:G) -> 0
A22: BA0680 | B22: B.2.A.4.4) - da privato (intraregionale) | D22: =SUMIF('00 CE'!B:B,'Tab 58 bis'!A22,'00 CE'!G:G) -> 14612451.73
A23: BA0690 | B23: B.2.A.4.5) - da privato (extraregionale) | D23: =SUMIF('00 CE'!B:B,'Tab 58 bis'!A23,'00 CE'!G:G) -> 545484.88
A24: BA0700 | B24: B.2.A.5) Acquisti servizi sanitari per assistenza integrativa | D24: =SUM(D25:D25) -> 1802068.84 | E24: B 2) e)
A25: BA0740 | B25: B.2.A.5.4) - da privato | D25: =SUMIF('00 CE'!B:B,'Tab 58 bis'!A25,'00 CE'!G:G) -> 1802068.84
A26: BA0750 | B26: B.2.A.6) Acquisti servizi sanitari per assistenza protesica | D26: =SUM(D27) -> 6303229.01 | E26: B 2) f)
A27: BA0790 | B27: B.2.A.6.4) - da privato | D27: =SUMIF('00 CE'!B:B,'Tab 58 bis'!A27,'00 CE'!G:G) -> 6303229.01
A28: BA0800 | B28: B.2.A.7) Acquisti servizi sanitari per assistenza ospedaliera | D28: =SUM(D29:D32) -> 123489437.4 | E28: B 2) g)
A29: BA0810 | B29: B.2.A.7.1) - da pubblico (Aziende sanitarie pubbliche della Regione) | C29: a | D29: =SUMIF('00 CE'!B:B,'Tab 58 bis'!A29,'00 CE'!G:G) -> 26481532.39
A30: BA0830 | B30: B.2.A.7.3) - da pubblico (Extraregione) | C30: b | D30: =SUMIF('00 CE'!B:B,'Tab 58 bis'!A30,'00 CE'!G:G) -> 24057993.46
A31: BA0840 | B31: B.2.A.7.4) - da privato | D31: =SUMIF('00 CE'!B:B,'Tab 58 bis'!A31,'00 CE'!G:G) -> 62664028.38
A32: BA0890 | B32: B.2.A.7.5) - da privato per cittadini non residenti - Extraregione (mobilità attiva in compensazione) | D32: =SUMIF('00 CE'!B:B,'Tab 58 bis'!A32,'00 CE'!G:G) -> 10285883.14
A33: BA0900 | B33: B.2.A.8) Acquisto prestazioni di psichiatria residenziale e semiresidenziale | D33: =SUM(D34:D38) -> 13021762.4 | E33: B 2) h)
A34: BA0910 | B34: B.2.A.8.1) - da pubblico (Aziende sanitarie pubbliche della Regione) | C34: a | D34: =SUMIF('00 CE'!B:B,'Tab 58 bis'!A34,'00 CE'!G:G) -> 1551575.5
A35: BA0920 | B35: B.2.A.8.2) - da pubblico (altri soggetti pubbl. della Regione) | D35: =SUMIF('00 CE'!B:B,'Tab 58 bis'!A35,'00 CE'!G:G) -> 0
A36: BA0930 | B36: B.2.A.8.3) - da pubblico (Extraregione) - non soggette a compensazione | D36: =SUMIF('00 CE'!B:B,'Tab 58 bis'!A36,'00 CE'!G:G) -> 81781.6
A37: BA0940 | B37: B.2.A.8.4) - da privato (intraregionale) | D37: =SUMIF('00 CE'!B:B,'Tab 58 bis'!A37,'00 CE'!G:G) -> 9798519.84
A38: BA0950 | B38: B.2.A.8.5) - da privato (extraregionale) | D38: =SUMIF('00 CE'!B:B,'Tab 58 bis'!A38,'00 CE'!G:G) -> 1589885.46
A39: BA0960 | B39: B.2.A.9) Acquisto prestazioni di distribuzione farmaci File F | D39: =SUM(D40:D42) -> 7092976.69 | E39: B 2) i)
A40: BA0970 | B40: B.2.A.9.1) - da pubblico (Aziende sanitarie pubbliche della Regione) - Mobilità intraregionale | C40: a | D40: =SUMIF('00 CE'!B:B,'Tab 58 bis'!A40,'00 CE'!G:G) -> 4464112.37
A41: BA0990 | B41: B.2.A.9.3) - da pubblico (Extraregione) | C41: b | D41: =SUMIF('00 CE'!B:B,'Tab 58 bis'!A41,'00 CE'!G:G) -> 2195879.04
A42: BA1000 | B42: B.2.A.9.4) - da privato (intraregionale) | D42: =SUMIF('00 CE'!B:B,'Tab 58 bis'!A42,'00 CE'!G:G) -> 432985.28
A43: BA1030 | B43: B.2.A.10) Acquisto prestazioni termali in convenzione | D43: =SUM(D44:D47) -> 2149505.71 | E43: B 2) j)
A44: BA1040 | B44: B.2.A.10.1) - da pubblico (Aziende sanitarie pubbliche della Regione) - Mobilità intraregionale | C44: a | D44: =SUMIF('00 CE'!B:B,'Tab 58 bis'!A44,'00 CE'!G:G) -> 0
A45: BA1060 | B45: B.2.A.10.3) - da pubblico (Extraregione) | C45: b | D45: =SUMIF('00 CE'!B:B,'Tab 58 bis'!A45,'00 CE'!G:G) -> 95302.31
A46: BA1070 | B46: B.2.A.10.4) - da privato | D46: =SUMIF('00 CE'!B:B,'Tab 58 bis'!A46,'00 CE'!G:G) -> 1821580.51
A47: BA1080 | B47: B.2.A.10.5) - da privato per cittadini non residenti - Extraregione (mobilità attiva in compensazione) | D47: =SUMIF('00 CE'!B:B,'Tab 58 bis'!A47,'00 CE'!G:G) -> 232622.89
A48: BA1090 | B48: B.2.A.11) Acquisto prestazioni di trasporto sanitario | D48: =SUM(D49:D51) -> 8783342.46 | E48: B 2) k)
A49: BA1100 | B49: B.2.A.11.1) - da pubblico (Aziende sanitarie pubbliche della Regione) - Mobilità intraregionale | C49: a | D49: =SUMIF('00 CE'!B:B,'Tab 58 bis'!A49,'00 CE'!G:G) -> 103216
A50: BA1120 | B50: B.2.A.11.3) - da pubblico (Extraregione) | C50: b | D50: =SUMIF('00 CE'!B:B,'Tab 58 bis'!A50,'00 CE'!G:G) -> 344124.9
A51: BA1130 | B51: B.2.A.11.4) - da privato | D51: =SUMIF('00 CE'!B:B,'Tab 58 bis'!A51,'00 CE'!G:G) -> 8336001.56
A52: BA1140 | B52: B.2.A.12) Acquisto prestazioni Socio-Sanitarie a rilevanza sanitaria | D52: =SUM(D53:D57) -> 16307538.57 | E52: B 2) l)
A53: BA1150 | B53: B.2.A.12.1) - da pubblico (Aziende sanitarie pubbliche della Regione) - Mobilità intraregionale | C53: a | D53: =SUMIF('00 CE'!B:B,'Tab 58 bis'!A53,'00 CE'!G:G) -> 1758520.38
A54: BA1160 | B54: B.2.A.12.2) - da pubblico (altri soggetti pubblici della Regione) | D54: =SUMIF('00 CE'!B:B,'Tab 58 bis'!A54,'00 CE'!G:G) -> 0
A55: BA1170 | B55: B.2.A.12.3) - da pubblico (Extraregione) non soggette a compensazione | D55: =SUMIF('00 CE'!B:B,'Tab 58 bis'!A55,'00 CE'!G:G) -> 160969.38
A56: BA1180 | B56: B.2.A.12.4) - da privato (intraregionale) | D56: =SUMIF('00 CE'!B:B,'Tab 58 bis'!A56,'00 CE'!G:G) -> 12500635.9
A57: BA1190 | B57: B.2.A.12.5) - da privato (extraregionale) | D57: =SUMIF('00 CE'!B:B,'Tab 58 bis'!A57,'00 CE'!G:G) -> 1887412.91
A58: BA1200 | B58: B.2.A.13) Compartecipazione al personale per att. libero-prof. (intramoenia) | D58: =SUM(D59:D65) -> 3321031.32 | E58: B 2) m)
A59: BA1210 | B59: B.2.A.13.1) Compartecipazione al personale per att. libero professionale intramoenia - Area ospedaliera | D59: =SUMIF('00 CE'!B:B,'Tab 58 bis'!A59,'00 CE'!G:G) -> 54218.1
A60: BA1220 | B60: B.2.A.13.2) Compartecipazione al personale per att. libero professionale intramoenia- Area specialistica | D60: =SUMIF('00 CE'!B:B,'Tab 58 bis'!A60,'00 CE'!G:G) -> 2563747.47
A61: BA1230 | B61: B.2.A.13.3) Compartecipazione al personale per att. libero professionale intramoenia - Area sanità pubblica | D61: =SUMIF('00 CE'!B:B,'Tab 58 bis'!A61,'00 CE'!G:G) -> 15233.61
A62: BA1240 | B62: B.2.A.13.4) Compartecipazione al personale per att. libero professionale intramoenia - Consulenze (ex art. 55 c.1 lett. c), d) ed ex Art. 57-58) | D62: =SUMIF('00 CE'!B:B,'Tab 58 bis'!A62,'00 CE'!G:G) -> 579327.3
A63: BA1250 | B63: B.2.A.13.5) Compartecipazione al personale per att. libero professionale intramoenia - Consulenze (ex art. 55 c.1 lett. c), d) ed ex Art. 57-58) (Aziende sanitarie pubbliche della Regione) | D63: =SUMIF('00 CE'!B:B,'Tab 58 bis'!A63,'00 CE'!G:G) -> 0
A64: BA1260 | B64: B.2.A.13.6) Compartecipazione al personale per att. libero professionale intramoenia - Altro | D64: =SUMIF('00 CE'!B:B,'Tab 58 bis'!A64,'00 CE'!G:G) -> 108504.84
A65: BA1270 | B65: B.2.A.13.7) Compartecipazione al personale per att. libero professionale intramoenia - Altro (Aziende sanitarie pubbliche della Regione) | D65: =SUMIF('00 CE'!B:B,'Tab 58 bis'!A65,'00 CE'!G:G) -> 0
A66: BA1280 | B66: B.2.A.14) Rimborsi, assegni e contributi sanitari | D66: =SUM(D67:D70) -> 2143960.78 | E66: B 2) n)
A67: BA1290 | B67: B.2.A.14.1) Contributi ad associazioni di volontariato | D67: =SUMIF('00 CE'!B:B,'Tab 58 bis'!A67,'00 CE'!G:G) -> 349365.76
A68: BA1300 | B68: B.2.A.14.2) Rimborsi per cure all'estero | D68: =SUMIF('00 CE'!B:B,'Tab 58 bis'!A68,'00 CE'!G:G) -> 2069.39
A69: BA1330 | B69: B.2.A.14.5) Altri rimborsi, assegni e contributi | D69: =SUMIF('00 CE'!B:B,'Tab 58 bis'!A69,'00 CE'!G:G) -> 1792525.63
A70: BA1340 | B70: B.2.A.14.6) Rimborsi, assegni e contributi v/Aziende sanitarie pubbliche della Regione | D70: =SUMIF('00 CE'!B:B,'Tab 58 bis'!A70,'00 CE'!G:G) -> 0
A71: BA1350 | B71: B.2.A.15) Consulenze, Collaborazioni, Interinale e altre prestazioni di lavoro sanitarie e sociosanitarie | D71: =SUMIF('00 CE'!B:B,'Tab 58 bis'!A71,'00 CE'!G:G) -> 6574839.04 | E71: B 2) o)
A72: BA1490 | B72: B.2.A.16) Altri servizi sanitari e sociosanitari a rilevanza sanitaria | D72: =SUMIF('00 CE'!B:B,'Tab 58 bis'!A72,'00 CE'!G:G) -> 5607016.78 | E72: B 2) p)
A74: BA0400 | B74: Totale Acquisti servizi sanitari | D74: =D4+D8+D12+D19+D24+D26+D28+D33+D39+D43+D48+D52+D58+D66+D71+D72 -> 331170827.9 | E74: B.2
A76: Somma a | B76: Costi da mobilità sanitaria infraregionale | D76: =D6+D10+D13+D20+D29+D34+D40+D44+D49+D53 -> 49387581.23
A77: Somma b | B77: Costi da mobilità sanitaria extraregionale | D77: =D7+D11+D15+D30+D41+D45+D50 -> 31368215.52
A79: TOTALE COSTI DA MOBILITA' SANITARIA | D79: =D76+D77 -> 80755796.75 | E79: in accordo con Tabella n. 58

Sheet Tab 59-60
B1: Tab. 59 – Dettaglio acquisti di servizi sanitari – I parte
A2: CODICE MOD. CE | B2: DETTAGLIO ACQUISTI DI SERVIZI SANITARI | C2: ="Valore CE " &'00 Aggregatore'!$F$2 -> Valore CE 2018 | D2: ="Valore CE " &'00 Aggregatore'!$F$2 -1 -> Valore CE 2017 | E2: Variazioni importo | F2: Variazioni %
B4: ACQUISTI DI SERVIZI SANITARI - MEDICINA DI BASE | C4: =C5+C10+C11 -> 35909283.82 | D4: =D5+D10+D11 -> 35655655.12 | E4: =C4-D4 -> 253628.7 | F4: =IF(AND(C4=0,D4=0),0,IF(C4=0,"",IF(D4=0,"",E4/D4))) -> 0.007113281165
A5: BA0420 | B5: - da convenzione | C5: =SUMIF('00 CE'!$B:$B,$A5,'00 CE'!G:G) -> 35653505.32 | D5: =SUMIF('00 CE'!$B:$B,$A5,'00 CE'!F:F) -> 35435849.35 | E5: =C5-D5 -> 217655.97 | F5: =IF(AND(C5=0,D5=0),0,IF(C5=0,"",IF(D5=0,"",E5/D5))) -> 0.006142253509
A6: BA0430 | B6: Costi per assistenza MMG | C6: =SUMIF('00 CE'!$B:$B,$A6,'00 CE'!G:G) -> 24517314.75 | D6: =SUMIF('00 CE'!$B:$B,$A6,'00 CE'!F:F) -> 24328709.33 | E6: =C6-D6 -> 188605.42 | F6: 0.007752380837
A7: BA0440 | B7: Costi per assistenza PLS | C7: =SUMIF('00 CE'!$B:$B,$A7,'00 CE'!G:G) -> 6415070.53 | D7: =SUMIF('00 CE'!$B:$B,$A7,'00 CE'!F:F) -> 6208374.4 | E7: 206696.13 | F7: 0.03329311615
A8: BA0450 | B8: Costi per assistenza Continuità assistenziale | C8: =SUMIF('00 CE'!$B:$B,$A8,'00 CE'!G:G) -> 3931463.93 | D8: =SUMIF('00 CE'!$B:$B,$A8,'00 CE'!F:F) -> 4008916.53 | E8: -77452.6 | F8: -0.01932008298
A9: BA0460 | B9: Altro (medicina dei servizi, psicologi, medici 118, ecc) | C9: =SUMIF('00 CE'!$B:$B,$A9,'00 CE'!G:G) -> 789656.11 | D9: =SUMIF('00 CE'!$B:$B,$A9,'00 CE'!F:F) -> 889849.09 | E9: -100192.98 | F9: -0.1125954739
A10: BA0470 | B10: - da pubblico (Aziende sanitarie pubbliche della Regione) - Mobilità intraregionale | C10: =SUMIF('00 CE'!$B:$B,$A10,'00 CE'!G:G) -> 38671 | D10: =SUMIF('00 CE'!$B:$B,$A10,'00 CE'!F:F) -> 35057.19 | E10: 3613.81 | F10: 0.1030832762
A11: BA0480 | B11: - da pubblico (Aziende sanitarie pubbliche Extraregione) - Mobilità extraregionale | C11: =SUMIF('00 CE'!$B:$B,$A11,'00 CE'!G:G) -> 217107.5 | D11: =SUMIF('00 CE'!$B:$B,$A11,'00 CE'!F:F) -> 184748.58 | E11: 32358.92 | F11: 0.1751511162
B12: ACQUISTI DI SERVIZI SANITARI - FARMACEUTICA | C12: =SUM(C13:C15) -> 51864361.03 | D12: =SUM(D13:D15) -> 54563948.05 | E12: =SUM(E13:E15) -> -2699587.02 | F12: -0.0494756541
A13: BA0500 | B13: - da convenzione | C13: =SUMIF('00 CE'!$B:$B,$A13,'00 CE'!G:G) -> 50129678.23 | D13: =SUMIF('00 CE'!$B:$B,$A13,'00 CE'!F:F) -> 52924145.52 | E13: =C13-D13 -> -2794467.29 | F13: -0.05280136812
A14: BA0510 | B14: - da pubblico (Aziende sanitarie pubbliche della Regione)- Mobilità intraregionale | C14: =SUMIF('00 CE'!$B:$B,$A14,'00 CE'!G:G) -> 1277628.07 | D14: =SUMIF('00 CE'!$B:$B,$A14,'00 CE'!F:F) -> 1251970.51 | E14: =C14-D14 -> 25657.56 | F14: 0.0204937415
A15: BA0520 | B15: - da pubblico (Extraregione) | C15: =SUMIF('00 CE'!$B:$B,$A15,'00 CE'!G:G) -> 457054.73 | D15: =SUMIF('00 CE'!$B:$B,$A15,'00 CE'!F:F) -> 387832.02 | E15: =C15-D15 -> 69222.71 | F15: 0.1784863199
B16: ACQUISTI DI SERVIZI SANITARI PER ASSITENZA SPECIALISTICA AMBULATORIALE | C16: =C17+C18+C19+C20+C21+C26 -> 26809571.49 | D16: =D17+D18+D19+D20+D21+D26 -> 27519184.07 | E16: =C16-D16 -> -709612.58 | F16: -0.02578610537
A17: BA0540 | B17: - da pubblico (Aziende sanitarie pubbliche della Regione) | C17: =SUMIF('00 CE'!$B:$B,$A17,'00 CE'!G:G) -> 8879359.57 | D17: =SUMIF('00 CE'!$B:$B,$A17,'00 CE'!F:F) -> 8998122.11 | E17: -118762.54 | F17: -0.01319859172
A18: BA0550 | B18: - da pubblico (altri soggetti pubbl. della Regione) | C18: =SUMIF('00 CE'!$B:$B,$A18,'00 CE'!G:G) -> 360209.89 | D18: =SUMIF('00 CE'!$B:$B,$A18,'00 CE'!F:F) -> 189344.67 | E18: 170865.22 | F18: 0.9024031149
A19: BA0560 | B19: - da pubblico (Extraregione) | C19: =SUMIF('00 CE'!$B:$B,$A19,'00 CE'!G:G) -> 4000753.58 | D19: =SUMIF('00 CE'!$B:$B,$A19,'00 CE'!F:F) -> 4460024.94 | E19: -459271.36 | F19: -0.1029750654
A20: BA0570 | B20: - da privato - Medici SUMAI | C20: =SUMIF('00 CE'!$B:$B,$A20,'00 CE'!G:G) -> 4486744.21 | D20: =SUMIF('00 CE'!$B:$B,$A20,'00 CE'!F:F) -> 4899151.05 | E20: -412406.84 | F20: -0.08417924571
A21: BA0580 | B21: - da privato | C21: =SUMIF('00 CE'!$B:$B,$A21,'00 CE'!G:G) -> 8885806.01 | D21: =SUMIF('00 CE'!$B:$B,$A21,'00 CE'!F:F) -> 8757843.1 | E21: 127962.91 | F21: 0.01461123573
A22: BA0590 | B22: Servizi sanitari per assistenza specialistica da IRCCS privati e Policlinici privati | C22: =SUMIF('00 CE'!$B:$B,$A22,'00 CE'!G:G) -> 83336.34 | D22: =SUMIF('00 CE'!$B:$B,$A22,'00 CE'!F:F) -> 60978.73 | E22: 22357.61 | F22: 0.366646042
A23: BA0600 | B23: Servizi sanitari per assistenza specialistica da Ospedali Classificati privati | C23: =SUMIF('00 CE'!$B:$B,$A23,'00 CE'!G:G) -> 0 | D23: =SUMIF('00 CE'!$B:$B,$A23,'00 CE'!F:F) -> 0 | E23: 0 | F23: 0
A24: BA0610 | B24: Servizi sanitari per assistenza specialistica da Case di Cura private | C24: =SUMIF('00 CE'!$B:$B,$A24,'00 CE'!G:G) -> 5463686.82 | D24: =SUMIF('00 CE'!$B:$B,$A24,'00 CE'!F:F) -> 5412858.87 | E24: 50827.95 | F24: 0.009390222657
A25: BA0620 | B25: Servizi sanitari per assistenza specialistica da altri privati | C25: =SUMIF('00 CE'!$B:$B,$A25,'00 CE'!G:G) -> 3338782.85 | D25: =SUMIF('00 CE'!$B:$B,$A25,'00 CE'!F:F) -> 3284005.5 | E25: 54777.35 | F25: 0.0166800421
A26: BA0630 | B26: - da privato per cittadini non residenti - Extraregione (mobilità attiva in compensazione) | C26: =SUMIF('00 CE'!$B:$B,$A26,'00 CE'!G:G) -> 196698.23 | D26: =SUMIF('00 CE'!$B:$B,$A26,'00 CE'!F:F) -> 214698.2 | E26: -17999.97 | F26: -0.08383847652
B27: ACQUISTI DI SERVIZI SANITARI PER ASSISTENZA RIABILITATIVA | C27: =SUM(C28:C32) -> 19990902.56 | D27: =SUM(D28:D32) -> 19907207.98 | E27: 83694.58 | F27: 0.004204234973
A28: BA0650 | B28: - da pubblico (Aziende sanitarie pubbliche della Regione) | C28: =SUMIF('00 CE'!$B:$B,$A28,'00 CE'!G:G) -> 4832965.95 | D28: =SUMIF('00 CE'!$B:$B,$A28,'00 CE'!F:F) -> 4855060.17 | E28: -22094.22 | F28: -0.004550761314
A29: BA0660 | B29: - da pubblico (altri soggetti pubbl. della Regione) | C29: =SUMIF('00 CE'!$B:$B,$A29,'00 CE'!G:G) -> 0 | D29: =SUMIF('00 CE'!$B:$B,$A29,'00 CE'!F:F) -> 0 | E29: 0 | F29: 0
A30: BA0670 | B30: - da pubblico (Extraregione) non soggetti a compensazione | C30: =SUMIF('00 CE'!$B:$B,$A30,'00 CE'!G:G) -> 0 | D30: =SUMIF('00 CE'!$B:$B,$A30,'00 CE'!F:F) -> 0 | E30: 0 | F30: 0
A31: BA0680 | B31: - da privato (intraregionale) | C31: =SUMIF('00 CE'!$B:$B,$A31,'00 CE'!G:G) -> 14612451.73 | D31: =SUMIF('00 CE'!$B:$B,$A31,'00 CE'!F:F) -> 14460769.46 | E31: 151682.27 | F31: 0.01048922538
A32: BA0690 | B32: - da privato (extraregionale) | C32: =SUMIF('00 CE'!$B:$B,$A32,'00 CE'!G:G) -> 545484.88 | D32: =SUMIF('00 CE'!$B:$B,$A32,'00 CE'!F:F) -> 591378.35 | E32: -45893.47 | F32: -0.07760424439
B33: ACQUISTI DI SERVIZI SANITARI PER ASSISTENZA INTEGRATIVA | C33: =SUM(C34:C37) -> 1802068.84 | D33: =SUM(D34:D37) -> 1813040.82 | E33: -10971.98 | F33: -0.00605170048
A34: BA0710 | B34: - da pubblico (Aziende sanitarie pubbliche della Regione) | C34: =SUMIF('00 CE'!$B:$B,$A34,'00 CE'!G:G) -> 0 | D34: =SUMIF('00 CE'!$B:$B,$A34,'00 CE'!F:F) -> 0 | E34: 0 | F34: 0
A35: BA0720 | B35: - da pubblico (altri soggetti pubbl. della Regione) | C35: =SUMIF('00 CE'!$B:$B,$A35,'00 CE'!G:G) -> 0 | D35: =SUMIF('00 CE'!$B:$B,$A35,'00 CE'!F:F) -> 0 | E35: 0 | F35: 0
A36: BA0730 | B36: - da pubblico (Extraregione) | C36: =SUMIF('00 CE'!$B:$B,$A36,'00 CE'!G:G) -> 0 | D36: =SUMIF('00 CE'!$B:$B,$A36,'00 CE'!F:F) -> 0 | E36: 0 | F36: 0
A37: BA0740 | B37: - da privato | C37: =SUMIF('00 CE'!$B:$B,$A37,'00 CE'!G:G) -> 1802068.84 | D37: =SUMIF('00 CE'!$B:$B,$A37,'00 CE'!F:F) -> 1813040.82 | E37: -10971.98 | F37: -0.00605170048
B38: ACQUISTI DI SERVIZI SANITARI PER ASSISTENZA PROTESICA | C38: =SUM(C39:C42) -> 6303229.01 | D38: =SUM(D39:D42) -> 6384295.54 | E38: -81066.53 | F38: -0.01269780346
A39: BA0760 | B39: - da pubblico (Aziende sanitarie pubbliche della Regione) | C39: =SUMIF('00 CE'!$B:$B,$A39,'00 CE'!G:G) -> 0 | D39: =SUMIF('00 CE'!$B:$B,$A39,'00 CE'!F:F) -> 0 | E39: 0 | F39: 0
A40: BA0770 | B40: - da pubblico (altri soggetti pubbl. della Regione) | C40: =SUMIF('00 CE'!$B:$B,$A40,'00 CE'!G:G) -> 0 | D40: =SUMIF('00 CE'!$B:$B,$A40,'00 CE'!F:F) -> 0 | E40: 0 | F40: 0
A41: BA0780 | B41: - da pubblico (Extraregione) | C41: =SUMIF('00 CE'!$B:$B,$A41,'00 CE'!G:G) -> 0 | D41: =SUMIF('00 CE'!$B:$B,$A41,'00 CE'!F:F) -> 0 | E41: 0 | F41: 0
A42: BA0790 | B42: - da privato | C42: =SUMIF('00 CE'!$B:$B,$A42,'00 CE'!G:G) -> 6303229.01 | D42: =SUMIF('00 CE'!$B:$B,$A42,'00 CE'!F:F) -> 6384295.54 | E42: -81066.53 | F42: -0.01269780346
B43: ACQUISTI DI SERVIZI SANITARI PER ASSISTENZA OSPEDALIERA | C43: =C44+C45+C46+C47+C52 -> 123489437.4 | D43: =D44+D45+D46+D47+D52 -> 125006439.5 | E43: -1517002.15 | F43: -0.01213539203
A44: BA0810 | B44: - da pubblico (Aziende sanitarie pubbliche della Regione) | C44: =SUMIF('00 CE'!$B:$B,$A44,'00 CE'!G:G) -> 26481532.39 | D44: =SUMIF('00 CE'!$B:$B,$A44,'00 CE'!F:F) -> 28230091.68 | E44: -1748559.29 | F44: -0.06193955407
A45: BA0820 | B45: - da pubblico (altri soggetti pubbl. della Regione) | C45: =SUMIF('00 CE'!$B:$B,$A45,'00 CE'!G:G) -> 0 | D45: =SUMIF('00 CE'!$B:$B,$A45,'00 CE'!F:F) -> 0 | E45: 0 | F45: 0
A46: BA0830 | B46: - da pubblico (Extraregione) | C46: =SUMIF('00 CE'!$B:$B,$A46,'00 CE'!G:G) -> 24057993.46 | D46: =SUMIF('00 CE'!$B:$B,$A46,'00 CE'!F:F) -> 23048879.05 | E46: 1009114.41 | F46: 0.04378149618
A47: BA0840 | B47: - da privato | C47: =SUMIF('00 CE'!$B:$B,$A47,'00 CE'!G:G) -> 62664028.38 | D47: =SUMIF('00 CE'!$B:$B,$A47,'00 CE'!F:F) -> 61809764.72 | E47: 854263.66 | F47: 0.0138208528
A48: BA0850 | B48: Servizi sanitari per assistenza ospedaliera da IRCCS privati e Policlinici privati | C48: =SUMIF('00 CE'!$B:$B,$A48,'00 CE'!G:G) -> 0 | D48: =SUMIF('00 CE'!$B:$B,$A48,'00 CE'!F:F) -> 0 | E48: 0 | F48: 0
A49: BA0860 | B49: Servizi sanitari per assistenza ospedaliera da Ospedali Classificati privati | C49: =SUMIF('00 CE'!$B:$B,$A49,'00 CE'!G:G) -> 0 | D49: =SUMIF('00 CE'!$B:$B,$A49,'00 CE'!F:F) -> 0 | E49: 0 | F49: 0
A50: BA0870 | B50: Servizi sanitari per assistenza ospedaliera da Case di Cura private | C50: =SUMIF('00 CE'!$B:$B,$A50,'00 CE'!G:G) -> 62664028.38 | D50: =SUMIF('00 CE'!$B:$B,$A50,'00 CE'!F:F) -> 61809764.72 | E50: 854263.66 | F50: 0.0138208528
A51: BA0880 | B51: Servizi sanitari per assistenza ospedaliera da altri privati | C51: =SUMIF('00 CE'!$B:$B,$A51,'00 CE'!G:G) -> 0 | D51: =SUMIF('00 CE'!$B:$B,$A51,'00 CE'!F:F) -> 0 | E51: 0 | F51: 0
A52: BA0890 | B52: - da privato per cittadini non residenti - Extraregione (mobilità attiva in compensazione) | C52: =SUMIF('00 CE'!$B:$B,$A52,'00 CE'!G:G) -> 10285883.14 | D52: =SUMIF('00 CE'!$B:$B,$A52,'00 CE'!F:F) -> 11917704.07 | E52: -1631820.93 | F52: -0.1369241022
B53: ACQUISTI PRESTAZIONI DI PSICHIATRICA RESIDENZIALE E SEMIRESIDENZIALE | C53: =SUM(C54:C58) -> 13021762.4 | D53: =SUM(D54:D58) -> 13199111.06 | E53: -177348.66 | F53: -0.01343640941
A54: BA0910 | B54: - da pubblico (Aziende sanitarie pubbliche della Regione) | C54: =SUMIF('00 CE'!$B:$B,$A54,'00 CE'!G:G) -> 1551575.5 | D54: =SUMIF('00 CE'!$B:$B,$A54,'00 CE'!F:F) -> 1648164.66 | E54: -96589.16 | F54: -0.05860407176
A55: BA0920 | B55: - da pubblico (altri soggetti pubbl. della Regione) | C55: =SUMIF('00 CE'!$B:$B,$A55,'00 CE'!G:G) -> 0 | D55: =SUMIF('00 CE'!$B:$B,$A55,'00 CE'!F:F) -> 0 | E55: 0 | F55: 0
A56: BA0930 | B56: - da pubblico (Extraregione) - non soggette a compensazione | C56: =SUMIF('00 CE'!$B:$B,$A56,'00 CE'!G:G) -> 81781.6 | D56: =SUMIF('00 CE'!$B:$B,$A56,'00 CE'!F:F) -> 6667 | E56: 75114.6 | F56: 11.26662667
A57: BA0940 | B57: - da privato (intraregionale) | C57: =SUMIF('00 CE'!$B:$B,$A57,'00 CE'!G:G) -> 9798519.84 | D57: =SUMIF('00 CE'!$B:$B,$A57,'00 CE'!F:F) -> 9671880.59 | E57: 126639.25 | F57: 0.01309354978
A58: BA0950 | B58: - da privato (extraregionale) | C58: =SUMIF('00 CE'!$B:$B,$A58,'00 CE'!G:G) -> 1589885.46 | D58: =SUMIF('00 CE'!$B:$B,$A58,'00 CE'!F:F) -> 1872398.81 | E58: -282513.35 | F58: -0.150883107
B59: ACQUISTI PRESTAZIONI DI DISTRIBUZIONE FARMACI FILE F | C59: =SUM(C60:C65) -> 7092976.69 | D59: =SUM(D60:D65) -> 5976832.03 | E59: 1116144.66 | F59: 0.1867451945
A60: BA0970 | B60: - da pubblico (Aziende sanitarie pubbliche della Regione) - Mobilità intraregionale | C60: =SUMIF('00 CE'!$B:$B,$A60,'00 CE'!G:G) -> 4464112.37 | D60: =SUMIF('00 CE'!$B:$B,$A60,'00 CE'!F:F) -> 4391409.7 | E60: 72702.67 | F60: 0.01655565638
A61: BA0980 | B61: - da pubblico (altri soggetti pubbl. della Regione) | C61: =SUMIF('00 CE'!$B:$B,$A61,'00 CE'!G:G) -> 0 | D61: =SUMIF('00 CE'!$B:$B,$A61,'00 CE'!F:F) -> 0 | E61: 0 | F61: 0
A62: BA0990 | B62: - da pubblico (Extraregione) | C62: =SUMIF('00 CE'!$B:$B,$A62,'00 CE'!G:G) -> 2195879.04 | D62: =SUMIF('00 CE'!$B:$B,$A62,'00 CE'!F:F) -> 1585422.33 | E62: 610456.71 | F62: 0.3850435928
A63: BA1000 | B63: - da privato (intraregionale) | C63: =SUMIF('00 CE'!$B:$B,$A63,'00 CE'!G:G) -> 432985.28 | D63: =SUMIF('00 CE'!$B:$B,$A63,'00 CE'!F:F) -> 0 | E63: 432985.28
A64: BA1010 | B64: - da privato (extraregionale) | C64: =SUMIF('00 CE'!$B:$B,$A64,'00 CE'!G:G) -> 0 | D64: =SUMIF('00 CE'!$B:$B,$A64,'00 CE'!F:F) -> 0 | E64: 0 | F64: 0
A65: BA1020 | B65: - da privato per cittadini non residenti - Extraregione (mobilità attiva in compensazione) | C65: =SUMIF('00 CE'!$B:$B,$A65,'00 CE'!G:G) -> 0 | D65: =SUMIF('00 CE'!$B:$B,$A65,'00 CE'!F:F) -> 0 | E65: 0 | F65: 0
B66: ACQUISTI PRESTAZIONI TERMALI IN CONVENZIONE | C66: =SUM(C67:C71) -> 2149505.71 | D66: =SUM(D67:D71) -> 2288663.83 | E66: -139158.12 | F66: -0.06080321547
A67: BA1040 | B67: - da pubblico (Aziende sanitarie pubbliche della Regione) - Mobilità intraregionale | C67: =SUMIF('00 CE'!$B:$B,$A67,'00 CE'!G:G) -> 0 | D67: =SUMIF('00 CE'!$B:$B,$A67,'00 CE'!F:F) -> 0 | E67: 0 | F67: 0
A68: BA1050 | B68: - da pubblico (altri soggetti pubbl. della Regione) | C68: =SUMIF('00 CE'!$B:$B,$A68,'00 CE'!G:G) -> 0 | D68: =SUMIF('00 CE'!$B:$B,$A68,'00 CE'!F:F) -> 0 | E68: 0 | F68: 0
A69: BA1060 | B69: - da pubblico (Extraregione) | C69: =SUMIF('00 CE'!$B:$B,$A69,'00 CE'!G:G) -> 95302.31 | D69: =SUMIF('00 CE'!$B:$B,$A69,'00 CE'!F:F) -> 159884.29 | E69: =C69-D69 -> -64581.98 | F69: =IF(AND(C69=0,D69=0),0,IF(C69=0,"",IF(D69=0,"",E69/D69))) -> -0.4039294918
A70: BA1070 | B70: - da privato | C70: =SUMIF('00 CE'!$B:$B,$A70,'00 CE'!G:G) -> 1821580.51 | D70: =SUMIF('00 CE'!$B:$B,$A70,'00 CE'!F:F) -> 1888589.97 | E70: =C70-D70 -> -67009.46 | F70: -0.03548121141
A71: BA1080 | B71: - da privato per cittadini non residenti - Extraregione (mobilità attiva in compensazione) | C71: =SUMIF('00 CE'!$B:$B,$A71,'00 CE'!G:G) -> 232622.89 | D71: =SUMIF('00 CE'!$B:$B,$A71,'00 CE'!F:F) -> 240189.57 | E71: =C71-D71 -> -7566.68 | F71: -0.03150294994
B73: Tab. 60 – Dettaglio acquisti di servizi sanitari – II parte
A74: CODICE MOD. CE | B74: DETTAGLIO ACQUISTI DI SERVIZI SANITARI | C74: ="Valore CE " &'00 Aggregatore'!$F$2 -> Valore CE 2018 | D74: ="Valore CE " &'00 Aggregatore'!$F$2 -1 -> Valore CE 2017 | E74: Variazioni importo | F74: Variazioni %
B76: ACQUISTI PRESTAZIONI DI TRASPORTO SANITARIO | C76: =SUM(C77:C80) -> 8783342.46 | D76: =SUM(D77:D80) -> 8512737.85 | E76: =C76-D76 -> 270604.61 | F76: =IF(AND(C76=0,D76=0),0,IF(C76=0,"",IF(D76=0,"",E76/D76))) -> 0.03178819961
A77: BA1100 | B77: - da pubblico (Aziende sanitarie pubbliche della Regione) - Mobilità intraregionale | C77: =SUMIF('00 CE'!$B:$B,$A77,'00 CE'!G:G) -> 103216 | D77: =SUMIF('00 CE'!$B:$B,$A77,'00 CE'!F:F) -> 124342.79 | E77: -21126.79 | F77: -0.16990764
A78: BA1110 | B78: - da pubblico (altri soggetti pubbl. della Regione) | C78: =SUMIF('00 CE'!$B:$B,$A78,'00 CE'!G:G) -> 0 | D78: =SUMIF('00 CE'!$B:$B,$A78,'00 CE'!F:F) -> 0 | E78: 0 | F78: 0
A79: BA1120 | B79: - da pubblico (Extraregione) | C79: =SUMIF('00 CE'!$B:$B,$A79,'00 CE'!G:G) -> 344124.9 | D79: =SUMIF('00 CE'!$B:$B,$A79,'00 CE'!F:F) -> 228483.68 | E79: 115641.22 | F79: 0.5061246387
A80: BA1130 | B80: - da privato | C80: =SUMIF('00 CE'!$B:$B,$A80,'00 CE'!G:G) -> 8336001.56 | D80: =SUMIF('00 CE'!$B:$B,$A80,'00 CE'!F:F) -> 8159911.38 | E80: 176090.18 | F80: 0.02157991329
B81: ACQUISTI PRESTAZIONI SOCIO-SANITARIE A RILEVANZA SANITARIA | C81: =SUM(C82:C86) -> 16307538.57 | D81: =SUM(D82:D86) -> 16209312.37 | E81: 98226.2 | F81: 0.006059862242
A82: BA1150 | B82: - da pubblico (Aziende sanitarie pubbliche della Regione) - Mobilità intraregionale | C82: =SUMIF('00 CE'!$B:$B,$A82,'00 CE'!G:G) -> 1758520.38 | D82: =SUMIF('00 CE'!$B:$B,$A82,'00 CE'!F:F) -> 1737461.12 | E82: 21059.26 | F82: 0.01212070863
A83: BA1160 | B83: - da pubblico (altri soggetti pubblici della Regione) | C83: =SUMIF('00 CE'!$B:$B,$A83,'00 CE'!G:G) -> 0 | D83: =SUMIF('00 CE'!$B:$B,$A83,'00 CE'!F:F) -> 0 | E83: 0 | F83: 0
A84: BA1170 | B84: - da pubblico (Extraregione) non soggette a compensazione | C84: =SUMIF('00 CE'!$B:$B,$A84,'00 CE'!G:G) -> 160969.38 | D84: =SUMIF('00 CE'!$B:$B,$A84,'00 CE'!F:F) -> 168459.48 | E84: -7490.1 | F84: -0.04446232411
A85: BA1180 | B85: - da privato (intraregionale) | C85: =SUMIF('00 CE'!$B:$B,$A85,'00 CE'!G:G) -> 12500635.9 | D85: =SUMIF('00 CE'!$B:$B,$A85,'00 CE'!F:F) -> 12551624.02 | E85: -50988.12 | F85: -0.004062272732
A86: BA1190 | B86: - da privato (extraregionale) | C86: =SUMIF('00 CE'!$B:$B,$A86,'00 CE'!G:G) -> 1887412.91 | D86: =SUMIF('00 CE'!$B:$B,$A86,'00 CE'!F:F) -> 1751767.75 | E86: 135645.16 | F86: 0.0774333013
A87: BA1200 | B87: COMPARTECIPAZIONE AL PERSONALE PER ATT. LIBERO-PROF. (INTRAMOENIA) | C87: =SUMIF('00 CE'!$B:$B,$A87,'00 CE'!G:G) -> 3321031.32 | D87: =SUMIF('00 CE'!$B:$B,$A87,'00 CE'!F:F) -> 3293488.61 | E87: =C87-D87 -> 27542.71 | F87: 0.008362776758
B88: RIMBORSI ASSEGNI E CONTRIBUTI SANITARI | C88: =SUM(C89:C94) -> 2143960.78 | D88: =SUM(D89:D94) -> 1751188.45 | E88: 392772.33 | F88: 0.2242890136
A89: BA1290 | B89: Contributi ad associazioni di volontariato | C89: =SUMIF('00 CE'!$B:$B,$A89,'00 CE'!G:G) -> 349365.76 | D89: =SUMIF('00 CE'!$B:$B,$A89,'00 CE'!F:F) -> 326600 | E89: 22765.76 | F89: 0.06970532762
A90: BA1300 | B90: Rimborsi per cure all'estero | C90: =SUMIF('00 CE'!$B:$B,$A90,'00 CE'!G:G) -> 2069.39 | D90: =SUMIF('00 CE'!$B:$B,$A90,'00 CE'!F:F) -> 0 | E90: 2069.39
A91: BA1310 | B91: Contributi a società partecipate e/o enti dipendenti della Regione | C91: =SUMIF('00 CE'!$B:$B,$A91,'00 CE'!G:G) -> 0 | D91: =SUMIF('00 CE'!$B:$B,$A91,'00 CE'!F:F) -> 0 | E91: 0 | F91: 0
A92: BA1320 | B92: Contributo Legge 210/92 | C92: =SUMIF('00 CE'!$B:$B,$A92,'00 CE'!G:G) -> 0 | D92: =SUMIF('00 CE'!$B:$B,$A92,'00 CE'!F:F) -> 0 | E92: 0 | F92: 0
A93: BA1330 | B93: Altri rimborsi, assegni e contributi | C93: =SUMIF('00 CE'!$B:$B,$A93,'00 CE'!G:G) -> 1792525.63 | D93: =SUMIF('00 CE'!$B:$B,$A93,'00 CE'!F:F) -> 1424508.45 | E93: 368017.18 | F93: 0.2583467862
A94: BA1340 | B94: Rimborsi, assegni e contributi v/Aziende sanitarie pubbliche della Regione | C94: =SUMIF('00 CE'!$B:$B,$A94,'00 CE'!G:G) -> 0 | D94: =SUMIF('00 CE'!$B:$B,$A94,'00 CE'!F:F) -> 80 | E94: -80
B95: CONSULENZE, COLLABORAZIONI, INTERINALE, ALTRE PRESTAZIONI DI LAVORO SANITARIE E SOCIOSANITARIE | C95: =SUM(C96:C98)+C108 -> 6574839.04 | D95: =SUM(D96:D98)+D108 -> 6723251.46 | E95: =SUM(E96:E98)+E108 -> -148412.42 | F95: -0.02207450084
A96: BA1360 | B96: Consulenze sanitarie e sociosan. da Aziende sanitarie pubbliche della Regione | C96: =SUMIF('00 CE'!$B:$B,$A96,'00 CE'!G:G) -> 416373.3 | D96: =SUMIF('00 CE'!$B:$B,$A96,'00 CE'!F:F) -> 298526.69 | E96: 117846.61 | F96: 0.3947607164
A97: BA1370 | B97: Consulenze sanitarie e sociosanit. da terzi - Altri soggetti pubblici | C97: =SUMIF('00 CE'!$B:$B,$A97,'00 CE'!G:G) -> 0 | D97: =SUMIF('00 CE'!$B:$B,$A97,'00 CE'!F:F) -> 24433.75 | E97: -24433.75
A98: BA1380 | B98: Consulenze, Collaborazioni, Interinale e altre prestazioni di lavoro sanitarie e socios. da privato | C98: =SUMIF('00 CE'!$B:$B,$A98,'00 CE'!G:G) -> 6104477.82 | D98: =SUMIF('00 CE'!$B:$B,$A98,'00 CE'!F:F) -> 6390500.93 | E98: -286023.11 | F98: -0.04475754141
A99: BA1390 | B99: Consulenze sanitarie da privato - articolo 55, comma 2, CCNL 8 giugno 2000 | C99: =SUMIF('00 CE'!$B:$B,$A99,'00 CE'!G:G) -> 2164804.17 | D99: =SUMIF('00 CE'!$B:$B,$A99,'00 CE'!F:F) -> 2372315.18 | E99: -207511.01 | F99: -0.08747193954
A100: BA1400 | B100: Altre consulenze sanitarie e sociosanitarie da privato | C100: =SUMIF('00 CE'!$B:$B,$A100,'00 CE'!G:G) -> 4381.71 | D100: =SUMIF('00 CE'!$B:$B,$A100,'00 CE'!F:F) -> 8005.29 | E100: -3623.58 | F100: -0.4526481864
A101: BA1410 | B101: Collaborazioni coordinate e continuative sanitarie e socios. da privato | C101: =SUMIF('00 CE'!$B:$B,$A101,'00 CE'!G:G) -> 0 | D101: =SUMIF('00 CE'!$B:$B,$A101,'00 CE'!F:F) -> 8413.12 | E101: -8413.12
A102: BA1420 | B102: Indennità a personale universitario - area sanitaria | C102: =SUMIF('00 CE'!$B:$B,$A102,'00 CE'!G:G) -> 256736.03 | D102: =SUMIF('00 CE'!$B:$B,$A102,'00 CE'!F:F) -> 242210.34 | E102: 14525.69 | F102: 0.05997138685
A103: BA1430 | B103: Lavoro interinale - area sanitaria | C103: =SUMIF('00 CE'!$B:$B,$A103,'00 CE'!G:G) -> 2862789.15 | D103: =SUMIF('00 CE'!$B:$B,$A103,'00 CE'!F:F) -> 2608784.9 | E103: 254004.25 | F103: 0.09736496482
A104: BA1440 | B104: Altre collaborazioni e prestazioni di lavoro - area sanitaria | C104: =SUMIF('00 CE'!$B:$B,$A104,'00 CE'!G:G) -> 815766.76 | D104: =SUMIF('00 CE'!$B:$B,$A104,'00 CE'!F:F) -> 1150772.1 | E104: -335005.34 | F104: -0.2911135402
A105: BA1450 | B105: Rimborso oneri stipendiali del personale sanitario in comando | C105: =SUMIF('00 CE'!$B:$B,$A105,'00 CE'!G:G) -> 53987.92 | D105: =SUMIF('00 CE'!$B:$B,$A105,'00 CE'!F:F) -> 9790.09 | E105: 44197.83 | F105: 4.514547874
A106: BA1460 | B106: Rimborso oneri stipendiali personale sanitario in comando da Aziende sanitarie pubbliche della Regione | C106: =SUMIF('00 CE'!$B:$B,$A106,'00 CE'!G:G) -> 0 | D106: =SUMIF('00 CE'!$B:$B,$A106,'00 CE'!F:F) -> 0 | E106: 0 | F106: 0
A107: BA1470 | B107: Rimborso oneri stipendiali personale sanitario in comando da Regioni, soggetti pubblici e da Università | C107: =SUMIF('00 CE'!$B:$B,$A107,'00 CE'!G:G) -> 0 | D107: =SUMIF('00 CE'!$B:$B,$A107,'00 CE'!F:F) -> 0 | E107: 0 | F107: 0
A108: BA1480 | B108: Rimborso oneri stipendiali personale sanitario in comando da aziende di altre Regioni (Extraregione) | C108: =SUMIF('00 CE'!$B:$B,$A108,'00 CE'!G:G) -> 53987.92 | D108: =SUMIF('00 CE'!$B:$B,$A108,'00 CE'!F:F) -> 9790.09 | E108: 44197.83 | F108: 4.514547874
B109: ALTRI SERVIZI SANITARI E SOCIOSANITARI A RILEVANZA SANITARIA | C109: =SUM(C110:C114) -> 5607016.78 | D109: =SUM(D110:D114) -> 2754715.62 | E109: 2852301.16 | F109: 1.035424905
A110: BA1500 | B110: Altri servizi sanitari e sociosanitari a rilevanza sanitaria da pubblico - Aziende sanitarie pubbliche della Regione | C110: =SUMIF('00 CE'!$B:$B,$A110,'00 CE'!G:G) -> 0 | D110: =SUMIF('00 CE'!$B:$B,$A110,'00 CE'!F:F) -> 13109.54 | E110: -13109.54
A111: BA1510 | B111: Altri servizi sanitari e sociosanitari a rilevanza sanitaria da pubblico - Altri soggetti pubblici della Regione | C111: =SUMIF('00 CE'!$B:$B,$A111,'00 CE'!G:G) -> 0 | D111: =SUMIF('00 CE'!$B:$B,$A111,'00 CE'!F:F) -> 0 | E111: 0 | F111: 0
A112: BA1520 | B112: Altri servizi sanitari e sociosanitari a rilevanza sanitaria da pubblico (Extraregione) | C112: =SUMIF('00 CE'!$B:$B,$A112,'00 CE'!G:G) -> 0 | D112: =SUMIF('00 CE'!$B:$B,$A112,'00 CE'!F:F) -> 0 | E112: 0 | F112: 0
A113: BA1530 | B113: Altri servizi sanitari da privato | C113: =SUMIF('00 CE'!$B:$B,$A113,'00 CE'!G:G) -> 3534647.28 | D113: =SUMIF('00 CE'!$B:$B,$A113,'00 CE'!F:F) -> 2741606.08 | E113: 793041.2 | F113: 0.2892615412
A114: BA1540 | B114: Costi per servizi sanitari - Mobilità internazionale passiva | C114: =SUMIF('00 CE'!$B:$B,$A114,'00 CE'!G:G) -> 2072369.5 | D114: =SUMIF('00 CE'!$B:$B,$A114,'00 CE'!F:F) -> 0 | E114: 2072369.5
A115: BA1550 | B115: COSTI PER DIFFERENZIALE TARIFFE TUC | C115: =SUMIF('00 CE'!$B:$B,$A115,'00 CE'!G:G) -> 0 | D115: =SUMIF('00 CE'!$B:$B,$A115,'00 CE'!F:F) -> 0 | E115: 0 | F115: 0
B116: TOTALE | C116: =C66+C59+C53+C43+C38+C33+C27+C16+C12+C4+C76+C81+C87+C88+C95+C109+C115 -> 331170827.9 | D116: =D66+D59+D53+D43+D38+D33+D27+D16+D12+D4+D76+D81+D87+D88+D95+D109+D115 -> 331559072.4 | E116: -388244.51 | F116: -0.00117096633

Sheet Farmaceutica Convenzionata
A1: DETTAGLIO SPESA FARMACEUTICA CONVENZIONATA
A5: Spesa Farmaceutica Convenzionata Consuntivo 2018
A6: Spesa farmaceutica netta | B6: 49975066.65
A7: Contributo ENFAP | B7: 30403.76
A8: Contributi a farmacie rurali | B8: 124207.82
A9: Altro (*)
A10: TOTALE | B10: =SUM(B6:B9) -> 50129678.23
A11: valori in €

Sheet AS01-AS02
A1: Altre informazioni relative a acquisti di servizi
A3: Informazione | C3: Caso presente in azienda? | E3: Se sì, illustrare
A4: AS01. Sono state rilevate significative variazioni rispetto all'esercizio precedente? | D4: SI | E4: Si veda commento sottostante.
A6: Complessivamente, il costo totale per l'acquisto di servizi sanitari ha subito un decremento di €/000 388. Le variazioni più significative hanno riguardato:
A7: Il costo per acquisti di servizi sanitari per assistenza farmaceutica si è ridotto rispetto al 2017 di - €/000 2.700. Tale variazione è riconducibile alla minore spesa per farmaceutica convenzionata in ragione dell’avvio della DPC, a partire dal mese di Agosto 2018.
A8: Il costo per acquisti di servizi sanitari - assistenza ospedaliera si è ridotto rispetto al 2017 di complessivi - €/000 1.517. Tale variazione è ascrivibile in parte alla riduzione del costo di acquisto di prestazioni di assistenza ospedaliera da aziende sanitarie pubbliche della Regione (mobilità passiva infraregionale), per -€/000 1.748, ed in parte alla riduzione del costo di acquisto di prestazioni ospedaliere rese da privato accreditato nei confronti di pazienti residenti in territorio extraregionale (per - €/000 1.632. Tale riduzione trova in parte giustificazione nel fatto che nel 2017 erano state fatturate prestazioni in extrabudget per €/000 660, di cui si attendono le richieste note di credito). Tali variazioni sono state compensate in parte dall'incremento dei costi di acquisto di prestazioni ospedaliere da aziende sanitarie pubbliche site al di fuori del territorio regionale (mobilità passiva extraregionale), per €/000 1.009, ed in parte all'aumento del costo di acquisto di prestazioni ospedaliere rese da strutture private accreditate nei confronti di cittadini residenti nella Regione in territorio extra ASL, per €/000 1.000.
A9: Il costo per acquisti di prestazioni di distribuzione farmaci File F è aumentato di circa €/000 1.116. In particolare, detta variazione è dovuta sia all'aumento dei costi per l'acquisto di prestazioni di distribuzione farmaci File F da pubblico extraregione (per €/000 610), sia ai costi per il servizio di distribuzione farmaci PHT (DPC) da parte delle farmacie (€/000 433), non esistenti nel 2017.
A10: Il costo per acquisti di altri servizi sanitari e sociosanitari a rilevanza sanitaria è aumentato di circa €/000 2.852, soprattutto per effetto del costo per mobilità internazionale passiva, rilevata in contabilità sulla base di quanto comunicato dalla Regione nelle Linee Guida al Bilancio di esercizio 2018 (Allegato 7 alla nota prot. n. 0122860/DPF012 del 19/04/2019).
A18: Si rappresenta di seguito la suddivisione del costo medici SUMAI tra le varie tipologie specialistiche:
B22: Costo medici SUMAI CONSUNTIVO 2018
B23: Tipologia
B24: Medici | C24: 4006135.53
B25: Veterinari | C25: 319777.41
B26: Psicologi | C26: 160831.27
B27: Penitenziaria | C27: 0
B28: Sert | C28: 0
B29: TOTALE | C29: =SUM(C24:C28) -> 4486744.21
A31: Si precisa che nel costo della Specialistica ambulatoriale è compresa anche la spesa sostenuta per la Penitenziaria ed il Sert, in quanto queste ultime prestazioni vengono rese dagli stessi medici specialisti che contemporaneamente lavorano presso i Distretti.
A56: AS02 - Costi per prestazioni sanitarie da privato
A59: AS02 - Costi per prestazioni sanitarie da privato
A60: AS02 - SI | B60: Con riferimento ai costi per acquisto da privati accreditati di prestazioni sanitarie si evidenzia per l’anno 2018 un volume complessivo del fatturato prodotto leggermente inferiore ai tetti di spesa assegnati. Le prestazioni per Ricoveri Ospedalieri, Ambulatoriali Branche a Visita e Termali presentano un fatturato complessivo entro i tetti di spesa annuale assegnati; per le prestazioni in R.A. si è già provveduto al saldo finale di liquidazione con il pieno rispetto del Budget assegnato; le prestazioni di Psico- riabilitazione, Ambulatoriali e Riabilitative presentano un surplus di fatturato rispetto al budget assegnato che, al momento della liquidazione del saldo anno 2018, dovrà essere riassorbito a seguito dell'emissione di apposite note di credito da parte delle strutture interessate. Al riguardo, solo per le prestazioni in RSA si è provveduto al calcolo definitivo dell'extra budget con l'iscrizione di apposite note di credito da ricevere.
B63: DETTAGLIO SCOSTAMENTI FATTURATO/BUDGET PER SPECIALITA'
B65: Tipologia | C65: Fatturato | D65: Budget | E65: Scostamento
B67: RICOVERI | C67: 73046503 | D67: 73127326 | E67: =C67-D67 -> -80823
B68: RES. PROT. | C68: 8976023.71 | D68: 8578336 | E68: =C68-D68 -> 397687.71
B69: R.S.A. | C69: 5022017 | D69: 5001203 | E69: 20814
B70: R.A. | C70: 772776 | D70: 772776 | E70: 0
B71: TERMALI | C71: 2546565.6 | D71: 3286169 | E71: -739603.4
B72: RIABILITAZIONE | C72: 14612451.73 | D72: 14535122 | E72: 77329.73
B73: AMB. C.D.C. | C73: 6918779.5 | D73: 6806648 | E73: 112131.5
B74: AMB. PRIV. | C74: 3587317.51 | D74: 3527428 | E74: 59889.51
B75: BRAN. A VISIT. | C75: 35902.49 | D75: 45260 | E75: -9357.51
B76: TOTALE GENERALE | C76: =SUM(C67:C75) -> 115518336.5 | D76: 115680268 | E76: =SUM(E67:E75) -> -161931.46

Sheet Tab 60-bis
A1: Tabella 60-bis - Consulenze sanitarie da privato - articolo 55, comma2, CCNL 8 giugno 2000
A3: Si riporta di seguito il dettaglio dei costi per Consulenze sanitarie da privato - articolo 55, comma2, CCNL 8 giugno 2000, contabilizzate nella voce di conto 0702011503.
A5: Dettaglio composizione voce BA1390 Consulenze Sanitarie da Privato CONSUNTIVO 2018
A6: Medici | B6: Sede di appartenenza | C6: Linee di attività | D6: Motivazione | E6: Sede di Erogazione della prestazione | F6: Importo | G6: Irap | H6: Totale | I6: Note
A9: Dirigenza Medica | B9: UOC Centro Trasfusionale | C9: Attività Ambulatoriale | D9: Raccolta Sangue | E9: PO Pescara - PO Penne - PO Popoli | F9: 168322.43 | G9: 14307.41 | H9: 182629.84
A10: Dirigenza Medica | B10: UOC Nefrologia e Dialisi | C10: Trattamenti Dialitici | D10: 3° Turno di Dialisi | E10: PO Pescara | F10: 94740 | G10: 8052.88 | H10: 102792.88
A11: Dirigenza Medica | B11: UOC Ematologia | C11: Attività Domiciliare | D11: Deospedalizzazione | E11: PO Pescara | F11: 40082 | G11: 3406.99 | H11: 43488.99
A12: Dirigenza Medica | B12: UOS Assistenza Intermedia | C12: Attività Domiciliare | D12: Deospedalizzazione | E12: PO Pescara | F12: 16950 | G12: 1440.74 | H12: 18390.74
A13: Dirigenza Medica | B13: UOC Servizio Territoriale 118 | C13: Turni Guardia Notturna | D13: Carenza Personale | E13: Area Territoriale Asl Pescara | F13: 221280 | G13: 18808.8 | H13: 240088.8
A14: Dirigenza Medica | B14: UO varie | C14: Attività Ambulatoriale | D14: Riduzione Liste d'Attesa | E14: PO Pescara - PO Penne - PO Popoli | F14: 14377.78 | G14: 935.37 | H14: 15313.15
A15: Dirigenza Medica | B15: UOC Pronto Soccorso | C15: Turni Guardia Notturna | D15: Carenza Personale | E15: PO Pescara - PO Penne - PO Popoli | F15: 23520 | G15: 1999.21 | H15: 25519.21
A16: Dirigenza Medica | B16: UOC Laboratorio Analisi | C16: Attività Ambulatoriale | D16: Convenzione Forze Ordine | E16: PO Pescara | F16: 20687.35 | G16: 1519.07 | H16: 22206.42
A17: Dirigenza Medica | B17: UO varie Area Chirurgica | C17: Sedute Operatorie | D17: Riduzione Liste d'Attesa | E17: PO Pescara - PO Penne - PO Popoli | F17: 319530 | G17: 27159.96 | H17: 346689.96
A18: Dirigenza Medica | B18: UO Malattie Infettive | C18: Attività Ambulatoriale | D18: Monitoraggio HIV | E18: PO Pescara | F18: 22779.68 | G18: 1936.27 | H18: 24715.95
A19: Dirigenza Medica | B19: UO varie | C19: Attività Ambulatoriale | D19: Riduzione Liste d'Attesa | E19: PO Pescara | F19: 67607.12 | G19: 4645.31 | H19: 72252.43
A25: Totale (A) | F25: 1009876.36 | G25: 84212.01 | H25: 1094088.37
A27: Altre Qualifiche Professionali (Specificare) | B27: Sede di appartenenza | C27: Linee di attività | D27: Motivazione | E27: Sede di Erogazione della prestazione | F27: Importo | G27: Irap | H27: Totale | I27: Note
A30: Personale di Equipe | B30: UOC Centro Trasfusionale | C30: Attività Ambulatoriale | D30: Raccolta Sangue | E30: PO Pescara - PO Penne - PO Popoli | F30: 248310.09 | G30: 17048.44 | H30: 265358.53
A31: Personale di Equipe | B31: UOC Nefrologia e Dialisi | C31: Trattamenti Dialitici | D31: 3° Turno di Dialisi | E31: PO Pescara | F31: 312168.11 | G31: 21433.31 | H31: 333601.42
A32: Personale di Equipe | B32: UO varie | C32: Turni Guardia Notturna | D32: Carenza Personale | E32: PO Pescara - PO Penne - PO Popoli | F32: 46480 | G32: 3950.8 | H32: 50430.8
A33: Personale di Equipe | B33: UOC Ematologia | C33: Attività Domiciliare | D33: Deospedalizzazione | E33: PO Pescara | F33: 25107.81 | G33: 1723.92 | H33: 26831.73
A34: Personale di Equipe | B34: UOS Assistenza Intermedia | C34: Attività Domiciliare | D34: Deospedalizzazione | E34: PO Pescara | F34: 12049.42 | G34: 827.3 | H34: 12876.72
A35: Personale di Equipe | B35: UOC Centro Trasfusionale | C35: Attività Ambulatoriale | D35: Raccolta Sangue | E35: PO Pescara - PO Penne - PO Popoli | F35: 39483.78 | G35: 3356.1 | H35: 42839.88
A36: Personale di Equipe | B36: UO varie | C36: Attività Ambulatoriale | D36: Riduzione Liste d'Attesa | E36: PO Pescara - PO Penne - PO Popoli | F36: 22233.91 | G36: 1231.93 | H36: 23465.84
A37: Personale di Equipe | B37: UO Malattie Infettive | C37: Attività Ambulatoriale | D37: Monitoraggio HIV | E37: PO Pescara | F37: 43816.01 | G37: 3006.21 | H37: 46822.22
A38: Personale di Equipe | B38: UOC Laboratorio Analisi | C38: Attività Ambulatoriale | D38: Convenzione Forze Ordine | E38: PO Pescara | F38: 91904.09 | G38: 5753.4 | H38: 97657.49
A39: Personale di Equipe | B39: UO varie Area Chirurgica | C39: Sedute Operatorie | D39: Riduzione Liste d'Attesa | E39: PO Pescara - PO Penne - PO Popoli | F39: 267147.48 | G39: 15869.78 | H39: 283017.26
A40: Personale di Equipe | B40: UO varie | C40: Attività Ambulatoriale | D40: Riduzione Liste d'Attesa | E40: PO Pescara | F40: 38249.99 | G40: 1802.23 | H40: 40052.22
A41: Personale di Equipe | B41: UO varie | C41: Sperimentazione | D41: Convenzione Enti Diversi | E41: PO Pescara | F41: 7977.12 | G41: 244.56 | H41: 8221.68
A46: Totale (B) | F46: 1154927.81 | G46: 76247.98 | H46: 1231175.79
A47: TOTALE ( A+B) | F47: 2164804.17 | G47: 160459.99 | H47: 2325264.16

Sheet Tab 61
A1: Tab. 61 – Dettaglio acquisti di servizi sanitari da privato
A2: DETTAGLIO ACQUISTI DI SERVIZI SANITARI - DA PRIVATO | B2: Codice Struttura da classificazione NSIS | C2: Partita IVA (o Codice Fiscale) | D2: Tipologia di prestazione | E2: Anno di competenza | F2: Importo fatturato | H2: Budget / Tetto annuale | I2: Importo liquidato/ certificato | J2: Importo Rilevato in Co.Ge. | K2: Importo delle note di credito richieste | L2: Importo delle note di credito ricevute | M2: Importo pagato
B3: Codice Struttura Sts11 | C3: Partita Iva | H3: Valore Considerato A Budget Nella Fase Di Liquidazione - Per L'Anno 2008 E Ante Indicare La Parte Residua, Ovvero Il Delta Rilevato Tra Importo Fatturato (Al Netto Di Eventuali Note Di Credito) Ed Il Budget Di Riferimento. | J3: Importo Rilevato In Coge | K3: Importo Delle Note Di Credito Richieste | L3: Importo Delle Note Di Credito Richieste
A4: C.D.C. VILLA SERENA | B4: 130024 | C4: 1220790685 | D4: Ricoveri | E4: 2018 | F4: Regionale | G4: 33477145.79 | H4: 37973805 | I4: =M4+M5 -> 36380161.62 | J4: =G4+G5 -> 37892615.62 | L4: 0 | M4: 32546789.69
F5: Extra-regionale | G5: 4415469.83 | M5: 3833371.93
A6: C.D.C. SYNERGO | B6: 130022 | C6: 62520689 | D6: Ricoveri | E6: 2018 | F6: Regionale | G6: 29283474.54 | H6: 35153521 | I6: =M6+M7 -> 33416879.57 | J6: =G6+G7 -> 35153887.85 | K6: 0 | L6: 0 | M6: 27793229.72
F7: Extra-regionale | G7: 5870413.31 | M7: 5623649.85
A8: C.D.C. VILLA SERENA | B8: 001302 - 001312 | C8: 1220790685 | D8: Residenze protette | E8: 2018 | F8: Regionale | G8: 8976023.71 | H8: 8578336.34 | I8: =M8+M9 -> 8575911.71 | J8: =G8+G9 -> 8976023.71 | K8: 0 | L8: 0 | M8: 8575911.71
F9: Extra-regionale | G9: 0 | M9: 0
A10: C.D.C. VILLA SERENA | B10: 001313 | C10: 1220790685 | D10: R.S.A. | E10: 2018 | F10: Regionale | G10: 2133877.55 | H10: 1861701 | I10: =M10+M11 -> 1861700.75 | J10: =G10+G11-K10 -> 1861700.75 | K10: 272176.8 | L10: 272177 | M10: 1861700.75
F11: Extra-regionale | G11: 0 | M11: 0
A12: C.I.S.E. | B12: 130119 | C12: 1741480683 | D12: R.S.A. | E12: 2018 | F12: Regionale | G12: 618158.62 | H12: 737495.64 | I12: =M12+M13 -> 618158.62 | J12: =G12+G13 -> 618158.62 | K12: 0 | L12: 0 | M12: 618158.62
F13: Extra-regionale | G13: 0 | M13: 0
A14: CASA DI CURA MEDAGLIA D'ORO DE CESARIS S.P.A. | B14: 006246 | C14: 00117030684 | D14: R.S.A. | E14: 2018 | F14: Regionale | G14: 2269981.04 | H14: 2402007 | I14: =M14+M15 -> 2269981.04 | J14: =G14+G15 -> 2269981.04 | K14: 0 | L14: 0 | M14: 2269981.04
F15: Extra-regionale | G15: 0 | K15: 0 | L15: 0 | M15: 0
A16: IL GIARDINO | B16: 130108 | C16: 1562130680 | D16: R.A. | E16: 2018 | F16: Regionale | G16: 772775.72 | H16: 772775.72 | I16: =M16+M17 -> 772775.72 | J16: =G16+G17 -> 772775.72 | K16: 24647.57 | L16: 24647.57 | M16: 772775.72
F17: Extra-regionale | G17: 0
A18: TERME DI POPOLI | B18: 018101 | C18: 1125990687 | D18: Termali | E18: 2018 | F18: Regionale | G18: 623138.82 | H18: 769864 | I18: =M18+M19 -> 657216.95 | J18: =G18+G19 -> 657216.95 | K18: 1221.28 | L18: 1221.28 | M18: 623138.82
F19: Extra-regionale | G19: 34078.13 | M19: 34078.13
A20: TERME DI CARAMANICO | B20: 018001 | C20: 1113020687 | D20: Termali | E20: 2018 | F20: Regionale | G20: 1635181.79 | H20: 2516305 | I20: =M20+M21 -> 1889348.65 | J20: =G20+G21 -> 1889348.65 | K20: 11393.66 | L20: 11393.66 | M20: 1635181.79
F21: Extra-regionale | G21: 254166.86 | M21: 254166.86
A22: IST. DON ORIONE | B22: 130063 | C22: 1105681009 | D22: Riabilitazione | E22: 2018 | F22: Regionale | G22: 4041021.11 | H22: 3919657.15 | I22: =M22+M23 -> 3917943 | J22: =G22+G23 -> 4041021.11 | K22: 123078.41 | L22: 123078.41 | M22: 3917943
F23: Extra-regionale
A24: FOND. PAPA PAOLO VI | B24: 130060/64/65/79/80/81/82 | C24: 1127170684 | D24: Riabilitazione | E24: 2018 | F24: Regionale | G24: 8714519.39 | H24: 8723716.88 | I24: =M24+M25 -> 7078664.84 | J24: =G24+G25 -> 8714519.39 | K24: 0 | L24: 0 | M24: 7078664.84
F25: Extra-regionale
A26: SAN STEF AR SRL | B26: 130061-130062 | C26: 2014620682 | D26: Riabilitazione | E26: 2018 | F26: Regionale | G26: 1703822.35 | H26: 1703625 | I26: =M26+M27 -> 1703481 | J26: =G26+G27 -> 1703822.35 | K26: 341.35 | L26: 341.35 | M26: 1703481
F27: Extra-regionale
A28: CENTRO DI SOLIDARIETA' ASS.GRUP.S. ONLUS | B28: 130777 | C28: 91002370681 | D28: Riabilitazione | E28: 2018 | F28: Regionale | G28: 153088.88 | H28: 188123.32 | I28: =M28+M29 -> 153089 | J28: =G28+G29 -> 153088.88 | K28: 539.63 | L28: 539.63 | M28: 153089
F29: Extra-regionale
A30: C.D.C. VILLA SERENA | B30: 001301-001314-001315 | C30: 1220790685 | D30: Ambulatoriale Case di Cura | E30: 2018 | F30: Regionale | G30: 3727002.53 | H30: 3706204 | I30: =M30+M31 -> 3766449.13 | J30: =G30+G31 -> 3818335.5 | K30: In corso conteggio per richiesta N.C. | L30: 0 | M30: 3676208.3
F31: Extra-regionale | G31: 91332.97 | M31: 90240.83
A32: C.D.C. SYNERGO | B32: 000501-000502-000503 | C32: 62520689 | D32: Ambulatoriale Case di Cura | E32: 2018 | F32: Regionale | G32: 3036124.48 | H32: 3100444 | I32: =M32+M33 -> 3023375.4 | J32: =G32+G33 -> 3100444 | K32: 0 | L32: 0 | M32: 2960408.43
F33: Extra-regionale | G33: 64319.52 | M33: 62966.97
A34: ISTITUTO DON ORIONE | B34: 003101 | C34: 1105681009 | D34: Ambulatoriale Altri Privati | E34: 2018 | F34: Regionale | G34: 146547.86 | H34: 141137 | I34: =M34+M35 -> 136816.67 | J34: =G34+G35 -> 146680.48 | K34: 5667.44 | L34: 5667.44 | M34: 136733.55
F35: Extra-regionale | G35: 132.62 | M35: 83.12
A36: CENTRO FISIOCHINESITERAPICO DELLA DOT.MASCI GIOVANNA & C. S.A.S. | B36: 003801 | C36: 1103910681 | D36: Ambulatoriale Altri Privati | E36: 2018 | F36: Regionale | G36: 271938.42 | H36: 274626 | I36: =M36+M37 -> 261454.15 | J36: =G36+G37 -> 275407.28 | K36: 803.28 | L36: 803.28 | M36: 258085.89
F37: Extra-regionale | G37: 3468.86 | M37: 3368.26
A38: VUZA MARIA & C S.A.S. | B38: 003601 | C38: 1107760686 | D38: Ambulatoriale Altri Privati | E38: 2018 | F38: Regionale | G38: 217212.22 | H38: 218182 | I38: =M38+M39 -> 211799.09 | J38: =G38+G39 -> 221099.95 | K38: 0 | L38: 0 | M38: 208071.35
F39: Extra-regionale | G39: 3887.73 | M39: 3727.74
A40: FISIOTER S.A.S. | B40: 003401 | C40: 944790682 | D40: Ambulatoriale Altri Privati | E40: 2018 | F40: Regionale | G40: 395005.85 | H40: 403623 | I40: 379443.89 | J40: =G40+G41 -> 403632.13 | K40: 0 | L40: 0 | M40: 371018.02
F41: Extra-regionale | G41: 8626.28 | M41: 8425.87
A42: CLINITEST S.R.L. | B42: 010501 | C42: 200370682 | D42: Ambulatoriale Altri Privati | E42: 2018 | F42: Regionale | G42: 51746.83 | H42: 51611 | I42: 42320.48 | J42: =G42+G43 -> 51883.58 | K42: 0 | L42: 0 | M42: 42214.21
F43: Extra-regionale | G43: 136.75 | M43: 106.27
A44: CO.PAN SAS ISTITUTO DI FISIOKINESITERAPIA | B44: 009151 | C44: 908760689 | D44: Ambulatoriale Altri Privati | E44: 2018 | F44: Regionale | G44: 143104.59 | H44: 135987 | I44: 135499.71 | J44: =G44+G45 -> 143894.82 | K44: 8007.72 | L44: 8007.72 | M44: 134714.29
F45: Extra-regionale | G45: 790.23 | M45: 785.42
A46: 4R SNC STUDIO DI RADIOLOGIA MEDICA | B46: 003701 | C46: 307580688 | D46: Ambulatoriale Altri Privati | E46: 2018 | F46: Regionale | G46: 74406.06 | H46: 75011 | I46: 71969.46 | J46: =G46+G47 -> 74686.72 | K46: 0 | L46: 0 | M46: 71691.65
F47: Extra-regionale | G47: 280.66 | M47: 277.81
A48: COLAROSSI ROBERTO & C. SAS | B48: 004201 | C48: 1339250688 | D48: Ambulatoriale Altri Privati | E48: 2018 | F48: Regionale | G48: 109539.83 | H48: 109575 | I48: 104617.67 | J48: =G48+G49 -> 109539.83 | K48: 0 | L48: 0 | M48: 104617.67
F49: Extra-regionale | G49: 0 | M49: 0
A50: RADIOLOGIA MEDICA REGINA MARGHERITA | B50: 010801 | C50: 322520685 | D50: Ambulatoriale Altri Privati | E50: 2018 | F50: Regionale | G50: 113984.56 | H50: 112961 | I50: 92902.07 | J50: =G50+G51 -> 114550.32 | K50: 0 | L50: 0 | M50: 92440.83
F51: Extra-regionale | G51: 565.76 | M51: 461.24
A52: BLEU SRL RADIOLOGIA | B52: 004501 | C52: 997880687 | D52: Ambulatoriale Altri Privati | E52: 2018 | F52: Regionale | G52: 392239.66 | H52: =176290+189573 -> 365863 | I52: 337501.13 | J52: =G52+G53 -> 396387.28 | K52: 30681.71 | L52: 30681.71 | M52: 333764
F53: Extra-regionale | G53: 4147.62 | M53: 3737.13
A54: DOTT. ROLANDO COLLEVECCHIO | B54: 009601 | C54: 1093440681 | D54: Ambulatoriale Altri Privati | E54: 2018 | F54: Regionale | G54: 30970.89 | H54: 23833 | I54: 15167.18 | J54: =G54+G55 -> 31216.85 | K54: 0 | L54: 0 | M54: 14984.85
F55: Extra-regionale | G55: 245.96 | M55: 182.33
A56: CONSORZIO GRUPPO ATQ | C56: 1959880681 | D56: Ambulatoriale Altri Privati | E56: 2018 | F56: Regionale | G56: 1026009.06 | H56: 1035060 | I56: 811077.56 | J56: =G56+G57 -> 1037831.44 | K56: 0 | L56: 0 | M56: 801785.62
F57: Extra-regionale | G57: 11822.38 | M57: 9291.94
A58: LIFECARE S.R.L. | C58: 3435870286 | D58: Ambulatoriale Altri Privati | E58: 2018 | F58: Regionale | G58: 568765.8 | H58: 579959 | I58: 451402.51 | J58: =G58+G59 -> 580506.83 | K58: 0 | L58: 0 | M58: 442369.35
F59: Extra-regionale | G59: 11741.03 | L59: 0 | M59: 9033.16
A60: DOTT.SSA ORLANDI | B60: 014401 | C60: 1212420689 | D60: Branche a visita | E60: 2018 | F60: Regionale | G60: 16404.07 | H60: 22554 | I60: 13178.41 | J60: =G60+G61 -> 16404.07 | K60: 0 | L60: 0 | M60: 13178.41
F61: Extra-regionale | G61: 0 | M61: 0
A62: DOTT. MINICUCCI | B62: 006001 | C62: 1887300687 | D62: Branche a visita | E62: 2018 | F62: Regionale | G62: 19392.53 | H62: 22706 | I62: 12813.18 | J62: =G62+G63 -> 19498.42 | K62: 0 | L62: 0 | M62: 12727.19
F63: Extra-regionale | G63: 105.89 | M63: 85.99

Sheet Tab 61bis
C2: Tabella 61-bis
A3: Dettaglio acquisti da privato di prestazioni non rientranti nei contratti negoziali (Acquisti Diretti)
A4: Struttura privata erogante | B4: Tipologia assistenza/prestazione | C4: Totale prestazione al 31/12/18
A5: SYNERGO CASA DI CURA PRIVATA PIERANGELISRL | B5: Specialistica ambulatoriale | C5: 3934.84
A6: VILLA SERENA DR.L.PETRUZZI S.R.L. | B6: Specialistica ambulatoriale | C6: 10413.32
A7: CONTO 0702010313 - Servizi sanitari da case di cura private - per cittadini residenti acquistate fuori contratti negoziali in strutture entro Regione (Assistenza Specialistica Ambulatoriale) | C7: =SUM(C5:C6) -> 14348.16
A8: LIFECARE S.R.L. | B8: Specialistica ambulatoriale | C8: 5004
A9: CONTO 0702010321 - Servizi sanitari da altri soggetti privati - per cittadini residenti acquistate fuori contratti negoziali in strutture entro Regione (Assistenza Specialistica Ambulatoriale) | C9: =SUM(C8) -> 5004
A10: LEGA DEL FILO D'ORO | B10: Riabilitazione ex art. 26 | C10: 22849.32
A11: OPERA PIA ESSA G.MANCINELLIMONTELPARO | B11: Riabilitazione ex art. 26 | C11: 81485.98
A12: KOS CARE S.R.L.(EX IST. RIAB. SANTO STEFANO) | B12: Riabilitazione ex art. 26 | C12: 80518.75
A13: COOP. LUCE SUL MARE SOC. COOP.SOCIALECENTRO DI RIABILITAZIONE PRIVATO | B13: Riabilitazione ex art. 26 | C13: 61152
A14: IST. DI RIAB. C.A.R.S.I.C. | B14: Riabilitazione ex art. 26 | C14: 51688
A15: UNIVERSO SALUTE S.R.L. | B15: Riabilitazione ex art. 26 | C15: 238943.43
A16: CENTRO RIABILITAZIONE MOTORIA PADRE PIO | B16: Riabilitazione ex art. 26 | C16: 8847.4
A17: CONTO 0702010408 - Da privato accreditato per cittadini residenti acquistate in strutture fuori Regione (Riabilitazione ex art. 26) | C17: =SUM(C10:C16) -> 545484.88
A18: CONSORZIO COOPERATIVE SOCIALI S.G.S. | B18: Assistenza psichiatrica | C18: 822496.13
A19: CONTO 0702010807 - Da privato accreditato per cittadini residenti acquistate fuori contratti negoziali in strutture entro Regione (Strutture Psicoriabilitative) (intraregionale) | C19: =SUM(C18) -> 822496.13
A20: INVESTIMENTI CERESIO | B20: Assistenza psichiatrica | C20: 5859
A21: GNOSIS S.C.R.L. | B21: Assistenza psichiatrica | C21: 60782.03
A22: COOPERATIVA ARL RAYMOND GLEDHILL ONLUS | B22: Assistenza psichiatrica | C22: 34133.4
A23: IL PORTO - ONLUS ASSOCIAZIONE | B23: Assistenza psichiatrica | C23: 50142.96
A24: GESTI-VAR SRL | B24: Assistenza psichiatrica | C24: 8002
A25: SOGEPI S.R.L. | B25: Assistenza psichiatrica | C25: 87823.2
A26: LA GOCCIA SOC.COOP.SOCIALE | B26: Assistenza psichiatrica | C26: 218448.67
A27: SERENITY HOUSE EAGLES SRLCASA DI RIPOSO-CASA PROTETTA- | B27: Assistenza psichiatrica | C27: 81760
A28: ATENA SRL | B28: Assistenza psichiatrica | C28: 545760.8
A29: ITALIAN HOSPITAL GROUP | B29: Assistenza psichiatrica | C29: 46678.2
A30: SUORE OSPEDALIERE | B30: Assistenza psichiatrica | C30: 25160
A31: ABITARE IL TEMPO SRL | B31: Assistenza psichiatrica | C31: 1750
A32: SERENI ORIZZONTI SPA | B32: Assistenza psichiatrica | C32: 372363.3
A33: FONDAZIONE GRUBER ONLUS | B33: Assistenza psichiatrica | C33: 20971.4
A34: COOPERATIVA SOC.TRAGITTI SOC.COOP.ONLUS | B34: Assistenza psichiatrica | C34: 30250.5
A35: CONTO 0702010809 - Da privato accreditato per cittadini residenti acquistate in strutture fuori Regione (Strutture Psicoriabilitative) (extraregionale) | C35: =SUM(C20:C34) -> 1589885.46
A36: DIAVERUM ITALIA SRL | B36: Assistenza geriatrica | C36: 693177.29
A37: CONTO 0702011225 - Altre prestazioni socio sanitarie a rilevanza sanitaria da privato (intraregionale e extraregionale) | C37: =SUM(C36) -> 693177.29
A38: A.S.P. PAOLO RICCI AZ.PUBBLICA DI SERVIZ | B38: Assistenza geriatrica | C38: 19158.8
A39: A.N.F.F.A.S. ONLUS CONERO | B39: Assistenza geriatrica | C39: 38363.89
A40: CONTO 0702011226 - Da privato accreditato per assistenza geriatrica per cittadini residenti acquistate in strutture fuori Regione (Centri Residenziali) | C40: =SUM(C38:C39) -> 57522.69
A41: OPERA PIA ESSA G.MANCINELLIMONTELPARO | B41: Assistenza geriatrica | C41: 20630
A42: CONGREG.PICCOLE SUORE MISSIONARIE DELLACARITA' PICCOLO COTTOLENGO DI DON ORIONE | B42: Assistenza geriatrica | C42: 36198
A43: CONTO 0702011227 - Da privato accreditato per assistenza geriatrica per cittadini residenti acquistate in strutture fuori Regione (Residenze Sanitarie Assistite) | C43: =SUM(C41:C42) -> 56828
A44: TOTALE GENERALE | C44: =C7+C9+C17+C19+C35+C37+C40+C43 -> 3784746.61

Sheet AS03
A1: AS03 - Consulenze, Collaborazioni, Interinale e altre prestazioni di lavoro sanitarie e sociosanitarie
A3: AS03 - SI | B3: Nell'esercizio sono stati rilevati costi per consulenze, collaborazioni, interinale e altre prestazioni di lavoro sanitarie e sociosanitarie. Si veda dettaglio sottostante per tipologia di prestazione, soggetto fornitore e importo.
A5: Cod. Conto | B5: Descrizione | C5: Fornitore | E5: Importo
A6: 0702011503 | B6: Consulenze sanitarie da privato - articolo 55, comma 2, CCNL 8 giugno 2000 | C6: PERSONALE - VARIE QUALIFICHE | E6: 2164804.17
A7: 0702011503 | B7: Consulenze sanitarie da privato - articolo 55, comma 2, CCNL 8 giugno 2000 | E7: =SUM(E6) -> 2164804.17 | F7: IMPORTO DETTAGLIATO ALLA TABELLA 60-bis
A8: 0702011504 | B8: Altre consulenze sanitarie e sociosanitarie da privato | C8: MEDICI SPECIALISTICI AMBULATORIALI INTERNI | E8: 864.76
A9: 0702011504 | B9: Altre consulenze sanitarie e sociosanitarie da privato | E9: =SUM(E8) -> 864.76
A10: 0702011505 | B10: Consulenze sanitarie e sociosanitarie da privato | C10: SANTURBANO VALERIANO | E10: 2159.62
A11: 0702011505 | B11: Consulenze sanitarie e sociosanitarie da privato | C11: SANTONE CELESTE | D11: DE CINQUE GIUSEPPE | E11: 1357.33
A12: 0702011505 | B12: Totale consulenze sanitarie e sociosanitarie da privato | E12: =SUM(E10:E11) -> 3516.95
A13: 0702011510 | B13: Indennità a personale universitario - area sanitaria | C13: Università G. d'Annunzio di Chieti | E13: 256736.03
A14: 0702011510 | B14: Totale Indennità a personale universitario - area sanitaria | E14: =SUM(E13) -> 256736.03
A15: 0702011511 | B15: Lavoro interinale - area sanitaria | C15: MANPOWER SRL | E15: 2862789.15
A16: 0702011511 | B16: Totale lavoro interinale - area sanitaria | E16: =SUM(E15) -> 2862789.15
A17: 0702011515 | B17: Altre collaborazioni e prestazioni di lavoro - area sanitaria | C17: MEDICI SPECIAL AMBULATORIALI INTERNI TIT | E17: 86.13
A18: 0702011515 | B18: Totale Altre collaborazioni e prestazioni di lavoro - area sanitaria | E18: =SUM(E17) -> 86.13
A19: 0702011516 | B19: Personale tirocinante compresi oneri riflessi | C19: MORETTA SILVIA | E19: 900
A20: 0702011516 | B20: Personale tirocinante compresi oneri riflessi | C20: CECI LORENZO | E20: 900
A21: 0702011516 | B21: Personale tirocinante compresi oneri riflessi | C21: PALUMBO CARLO | E21: 900
A22: 0702011516 | B22: Personale tirocinante compresi oneri riflessi | C22: LEPORATI LUCA | E22: 1200
A23: 0702011516 | B23: Personale tirocinante compresi oneri riflessi | C23: INAIL PESCARA | E23: 395.41
A24: 0702011516 | C24: Totale personale tirocinante compresi oneri riflessi | E24: =SUM(E19:E23) -> 4295.41
A25: 0702011517 | B25: Borsisti compresi oneri riflessi | C25: DI CENSO ERICA | E25: 16250.8
A26: 0702011517 | B26: Borsisti compresi oneri riflessi | C26: TARABORRELLI MERILDA | E26: 20648.03
A27: 0702011517 | B27: Borsisti compresi oneri riflessi | C27: FANTASIA DONATELLA | E27: 8475.52
A28: 0702011517 | B28: Borsisti compresi oneri riflessi | C28: SCIACCA ANTONINA | E28: 11382.11
A29: 0702011517 | B29: Borsisti compresi oneri riflessi | C29: MARANI TORO PATRIZIA | E29: 11471.08
A30: 0702011517 | B30: Borsisti compresi oneri riflessi | C30: BRATTELLI ANTONELLO | E30: 23905.41
A31: 0702011517 | B31: Borsisti compresi oneri riflessi | C31: SORGENTONE SIMONA | E31: 5068.47
A32: 0702011517 | B32: Borsisti compresi oneri riflessi | C32: RANUCCI ELENA | E32: 11930.26
A33: 0702011517 | B33: Borsisti compresi oneri riflessi | C33: TARICANI STEFANO | E33: 6591.92
A34: 0702011517 | B34: Borsisti compresi oneri riflessi | C34: ZACCAGNINI ALEXIA | E34: 14760.15
A35: 0702011517 | B35: Borsisti compresi oneri riflessi | C35: PERSICO ALESSIA | E35: 3569.91
A36: 0702011517 | B36: Borsisti compresi oneri riflessi | C36: D'ALOISIO MARIANNA | E36: 9177.33
A37: 0702011517 | B37: Borsisti compresi oneri riflessi | C37: DELL'ORLETTA ELEONORA | E37: 15941.1
A38: 0702011517 | B38: Borsisti compresi oneri riflessi | C38: PASCALE SILVIA | E38: 9176.43
A39: 0702011517 | B39: Borsisti compresi oneri riflessi | C39: VITULLO FELICE | E39: 27530.3
A40: 0702011517 | B40: Borsisti compresi oneri riflessi | C40: LUCIANI STEFANIA | E40: 21245.78
A41: 0702011517 | B41: Borsisti compresi oneri riflessi | C41: SBARAGLIA VALENTINA | E41: 13658.56
A42: 0702011517 | B42: Borsisti compresi oneri riflessi | C42: DE THOMASIS VALENTINA | E42: 12977.06
A43: 0702011517 | B43: Borsisti compresi oneri riflessi | C43: ANTONUCCI MARIANGELA | E43: 2845.75
A44: 0702011517 | B44: Borsisti compresi oneri riflessi | C44: SCIARRA PIERPAOLA | E44: 2752.9
A45: 0702011517 | B45: Borsisti compresi oneri riflessi | C45: MIRRA NOEMI | E45: 1307.16
A46: 0702011517 | B46: Borsisti compresi oneri riflessi | C46: D'ADDARIO DORA | E46: 4129.94
A47: 0702011517 | B47: Borsisti compresi oneri riflessi | C47: ESPOSITO ANNALISA | E47: 8503.66
A48: 0702011517 | B48: Borsisti compresi oneri riflessi | C48: PERROTTA ELEONORA | E48: 13658.21
A49: 0702011517 | B49: Borsisti compresi oneri riflessi | C49: PETACCIA VALENTINA | E49: 13657.89
A50: 0702011517 | B50: Borsisti compresi oneri riflessi | C50: DONATO SIMONE | E50: 15521.21
A51: 0702011517 | B51: Borsisti compresi oneri riflessi | C51: CAPORALE MARTA | E51: 11471.02
A52: 0702011517 | B52: Borsisti compresi oneri riflessi | C52: ZARA FEDERICA | E52: 4015.05
A53: 0702011517 | B53: Borsisti compresi oneri riflessi | C53: D'ALESSANDRO MASSIMO | E53: 16518.08
A54: 0702011517 | B54: Borsisti compresi oneri riflessi | C54: DI CARLO SIMONA | E54: 12899.2
A55: 0702011517 | B55: Borsisti compresi oneri riflessi | C55: AMICANTONIO ALESSANDRA | E55: 12899.67
A56: 0702011517 | B56: Borsisti compresi oneri riflessi | C56: DI NICOLA LORELLA | E56: 16549.02
A57: 0702011517 | B57: Borsisti compresi oneri riflessi | C57: LAURITA FILOMENA | E57: 1307.07
A58: 0702011517 | B58: Borsisti compresi oneri riflessi | C58: LO STERZO ROSA | E58: 13765.52
A59: 0702011517 | B59: Borsisti compresi oneri riflessi | C59: PELINO LAURA | E59: 20188.75
A60: 0702011517 | B60: Borsisti compresi oneri riflessi | C60: CUCCHIARELLI SILVIA | E60: 10323.9
A61: 0702011517 | B61: Borsisti compresi oneri riflessi | C61: DI LISO ELISABETTA | E61: 3135.34
A62: 0702011517 | B62: Borsisti compresi oneri riflessi | C62: RANALLI PAOLA | E62: 7953.25
A63: 0702011517 | B63: Borsisti compresi oneri riflessi | C63: MASCIA MANLIO | E63: 19765.72
A64: 0702011517 | B64: Borsisti compresi oneri riflessi | C64: IANNELLI TIZIANA | E64: 23374.89
A65: 0702011517 | B65: Borsisti compresi oneri riflessi | C65: CLEMENTE KATIA | E65: 12328.22
A66: 0702011517 | B66: Borsisti compresi oneri riflessi | C66: RINCHI ALICE | E66: 11012.14
A67: 0702011517 | B67: Borsisti compresi oneri riflessi | C67: SANTONE CELESTE | E67: 21246.64
A68: 0702011517 | B68: Borsisti compresi oneri riflessi | C68: NARDI IRENE | E68: 9010.23
A69: 0702011517 | B69: Borsisti compresi oneri riflessi | C69: DI GIAMBATTISTA MONICA | E69: 15830.47
A70: 0702011517 | B70: Borsisti compresi oneri riflessi | C70: TRAVAGLINI MARIA MADDALENA | E70: 7571.79
A71: 0702011517 | B71: Borsisti compresi oneri riflessi | C71: SASSO ELENA | E71: 15830.47
A72: 0702011517 | B72: Borsisti compresi oneri riflessi | C72: DRAGANI MARIA GRAZIA ANIA | E72: 13089.32
A73: 0702011517 | B73: Borsisti compresi oneri riflessi | C73: DI BERARDINO ALESSANDRA | E73: 6509.98
A74: 0702011517 | B74: Borsisti compresi oneri riflessi | C74: MINISTERO DELLE FINANZE | E74: 1646.61
A75: 0702011517 | B75: Borsisti compresi oneri riflessi | C75: I.N.P.S. | E75: 62805.75
A76: 0702011517 | B76: Borsisti compresi oneri riflessi | C76: IRAP | E76: 47773.03
A77: 0702011517 | B77: Borsisti compresi oneri riflessi | E77: =SUM(E25:E76) -> 704958.07
A78: 0702011518 | B78: Personale religioso adibito a mansioni umanitarie | C78: BENEFICIARI DIVERSI PERSONALE DIPENDENTE | E78: 31891.62
A79: 0702011518 | B79: Personale religioso adibito a mansioni umanitarie | C79: MINISTERO DELLE FINANZE | D79: 24055.46 | E79: 2573.72
A80: 0702011518 | B80: Personale religioso adibito a mansioni umanitarie | E80: =SUM(E78:E79) -> 34465.34
A81: 0702011519 | B81: Medicina penitenziaria | C81: MEDICI ADDETTI ALLA GUARDIA MEDICA FESTIVA | E81: 70142.58
A82: 0702011519 | B82: Medicina penitenziaria | C82: DODI IDA MADDALENA | E82: 1819.23
A83: 0702011519 | B83: Totale Medicina penitenziaria | E83: =SUM(E81:E82) -> 71961.81
A84: VOCE BA 1380 - TOTALE CONSULENZE, COLLABORAZIONI, INTERINALE, ALTRE PRESTAZIONI DI LAVORO SANITARIE E SOCIO-SANITARIE DA PRIVATO | E84: =E7+E9+E12+E14+E16+E18+E24+E77+E80+E83 -> 6104477.82
A88: La voce di CE BA1380 "Consulenze , collaborazioni, interinale e altre prestazioni di lavoro sanitarie e sociosanitarie da privato" ammonta, al 31/12/2018, ad €/000 6.104 ed è diminuita, rispetto al 2017, di circa - €/000 286. Tale variazione è stata determinata:
A89: - dalla riduzione dei costi per consulenze sanitarie da privato ex art. 55, comma 2, CCNL 8 giugno 2000, per €/000 - 207, a cui l'Azienda fa ricorso per fronteggiare le urgenze o per potenziare alcuni servizi sanitari;
A90: - dall'incremento dei costi per lavoro interinale (€/000 + 254), in parte finanziati con fondi da Progetti Obiettivo, dovuti al fatto che l'Azienda nel 2018 ha fatto maggiore ricorso a tale tipologia di contratto di lavoro rispetto al 2017;
A91: - dalla riduzione dei costi per borsisti (- €/000 319), dovuta al fatto che l'Azienda nel 2018 ha fatto minore ricorso a tale tipologia di rapporto rispetto al 2017 soprattutto per la realizzazione dei progetti obiettivo, privilegiando altre tipologie contrattuali.

Sheet AS04
A1: AS04 - Consulenze, Collaborazioni, Interinale e altre prestazioni di lavoro non sanitarie
A3: AS04 - SI | B3: Nell'esercizio sono stati rilevati costi per consulenze, collaborazioni, interinale e altre prestazioni di lavoro non sanitarie. Si veda dettaglio sottostante per tipologia prestazione, soggetto fornitore e importo.
A5: ="Dettaglio composizione voce BA1790 Consulenze non sanitarie da privato "& [1]Intro!B7 -> Dettaglio composizione voce BA1790 Consulenze non sanitarie da privato Dott.ssa FACCIA FEDERICA
A6: TIPOLOGIA | B6: DURATA CONTRATTO | C6: DECORRENZA | D6: IMPORTO AL 31/12/2018
A7: Consulenze tecniche | B7: Incarico professionale a prestazione unica | D7: 70269.51
A8: Consulenze legali | B8: Incarico professionale a prestazione unica | D8: 327809.81
A9: Altre consulenze | B9: Incarico professionale a prestazione unica | D9: 34447.33
A10: Totale voce BA1790 al 31/12/2018 | D10: =SUM(D7:D9) -> 432526.65
A12: DETTAGLIO VOCE CE BA1780 - "CONSULENZE, COLLABORAZIONI, INTERINALE E ALTRE PRESTAZIONI DI LAVORO NON SANITARIE DA PRIVATO"
A14: Cod. Conto | B14: Descrizione | C14: Fornitore | D14: Importo
A15: 0702020204 | B15: Consulenze tecniche | C15: CHIOLA CARLA | D15: 16330.97
A16: 0702020204 | B16: Consulenze tecniche | C16: AGENZIA DELLE ENTRATE - PESCARA | D16: 1988.1
A17: 0702020204 | B17: Consulenze tecniche | C17: ST.INGEGNERIA BAGAGLI ANDREA | D17: 19769.66
A18: 0702020204 | B18: Consulenze tecniche | C18: EMMECI' STUDIO CACCIALUPI MARCELLO | D18: 15206.42
A19: 0702020204 | B19: Consulenze tecniche | C19: MARRELLI ALFONSO | D19: 250
A20: 0702020204 | B20: Consulenze tecniche | C20: DE GREGORIO LUCIANO | D20: 16724.36
A21: 0702020204 | B21: Totale consulenze tecniche | D21: =SUM(D15:D20) -> 70269.51
A22: 0702020205 | B22: Consulenze legali | C22: CERCEO GIULIO STUDIO LEGALE | D22: 6496.31
A23: 0702020205 | B23: Consulenze legali | C23: RUSSI AVV. DOMENICO | D23: 10418.36
A24: 0702020205 | B24: Consulenze legali | C24: STUDIO LEGALE AVV.TI TENAGLIA | D24: 7745.55
A25: 0702020205 | B25: Consulenze legali | C25: CIOFANI CARMINE | D25: 3044.74
A26: 0702020205 | B26: Consulenze legali | C26: MARCHESE TOMMASO | D26: 173663.93
A27: 0702020205 | B27: Consulenze legali | C27: DEL PIZZO ANTONIO CARMINE | D27: 8905.06
A28: 0702020205 | B28: Consulenze legali | C28: MODESTI ANDREA | D28: 5455.13
A29: 0702020205 | B29: Consulenze legali | C29: ANGIOLELLI DANTE AVV. | D29: 33895.36
A30: 0702020205 | B30: Consulenze legali | C30: ALESSANDRINI PIETRO | D30: 1605.03
A31: 0702020205 | B31: Consulenze legali | C31: MANGIA GIOVANNI AVV. | D31: 27723.28
A32: 0702020205 | B32: Consulenze legali | C32: ANTONUCCI VINCENZO AVV. | D32: 11239.62
A33: 0702020205 | B33: Consulenze legali | C33: LUPO TIMINI LORENZO | D33: 729.56
A34: 0702020205 | B34: Consulenze legali | C34: FAIETA ANTONELLA | D34: 3159.7
A35: 0702020205 | B35: Consulenze legali | C35: DELLA ROCCA SERGIO | D35: 6417.33
A36: 0702020205 | B36: Consulenze legali | C36: GENTILINI FEDERICO | D36: 9998.66
A37: 0702020205 | B37: Consulenze legali | C37: PACE FEDERICO | D37: 1094.34
A38: 0702020205 | B38: Consulenze legali | C38: CAMILLI SIMONA | D38: 881
A39: 0702020205 | B39: Consulenze legali | C39: MUNDO CARLA | D39: 4902.64
A40: 0702020205 | B40: Consulenze legali | C40: RIEZZO IRENE | D40: 2821.41
A41: 0702020205 | B41: Consulenze legali | C41: STS BALIETTI E CESARONEASSOCIAZIONE PROFESSIONALE | D41: 7612.8
A42: 0702020205 | B42: Totale consulenze legali | D42: =SUM(D22:D41) -> 327809.81
A43: 0702020206 | B43: Altre consulenze | C43: EBMT EUROPEAN GROUP FOR BLOOD AND MARROW | D43: 20252
A44: 0702020206 | B44: Altre consulenze | C44: NEMESI SOCIETA' COOPERATIVA | D44: 14195.33
A45: 0702020206 | B45: Totale altre consulenze | D45: =SUM(D43:D44) -> 34447.33
A46: TOTALE CONSULENZE NON SANITARIE DA PRIVATO (Voce BA1790) | D46: =D21+D42+D45 -> 432526.65
A47: 0702020215 | B47: Collaborazioni coordinate e continuative non sanitarie da privato - ruolo amministrativo | C47: BACI RICCARDO | D47: 8608.83
A48: 0702020215 | B48: Collaborazioni coordinate e continuative non sanitarie da privato - ruolo amministrativo | C48: BALDASSARRE IPPOLITO | D48: 8479.91
A49: 0702020215 | B49: Collaborazioni coordinate e continuative non sanitarie da privato - ruolo amministrativo | C49: MANZOLI LAMBERTO | D49: 6978.91
A50: 0702020215 | B50: Collaborazioni coordinate e continuative non sanitarie da privato - ruolo amministrativo | C50: INPS | D50: 7110.69
A51: 0702020215 | B51: Collaborazioni coordinate e continuative non sanitarie da privato - ruolo amministrativo | D51: =SUM(D47:D50) -> 31178.34
A52: TOTALE COLLABORAZIONI COORDINATE E CONTINUATIVE NON SANITARIE DA PRIVATO (Voce BA1800) | D52: =D51 -> 31178.34
A53: 0702020223 | B53: Personale religioso adibito a mansioni non sanitarie | C53: PROBI MARIO | D53: 22869.46
A54: 0702020223 | B54: Personale religioso adibito a mansioni non sanitarie | C54: CURIA METROPOLITANA PESCARA-PENNE | D54: 6000
A55: 0702020223 | B55: Personale religioso adibito a mansioni non sanitarie | C55: SEDOGO WENDE GOUDA ALBERT | D55: 17099.75
A56: 0702020223 | B56: Personale religioso adibito a mansioni non sanitarie | C56: LIBAKATA BOIKANI | D56: 17099.52
A57: 0702020223 | B57: Personale religioso adibito a mansioni non sanitarie | C57: DIOCESI SULMONA-VALVA | D57: 3300
A58: 0702020223 | B58: Personale religioso adibito a mansioni non sanitarie | C58: MANDELLI GIANCARLO | D58: 22869.87
A59: 0702020223 | B59: Personale religioso adibito a mansioni non sanitarie | C59: KAFANDO RELBAMBA ROGER | D59: 5769.1
A60: 0702020223 | B60: Personale religioso adibito a mansioni non sanitarie | C60: YELYAORE RELEWENDE LAZARE | D60: 5769.1
A61: 0702020223 | B61: Personale religioso adibito a mansioni non sanitarie | C61: INPS | D61: 20661.23
A62: 0702020223 | B62: Personale religioso adibito a mansioni non sanitarie | C62: IRAP | D62: 6859.38
A63: 0702020223 | B63: Totale personale religioso adibito a mansioni non sanitarie | D63: =SUM(D53:D62) -> 128297.41
A64: ALTRE COLLABORAZIONI E PRESTAZIONI DI LAVORO - AREA NON SANITARIA (Voce BA1830) | D64: =D63 -> 128297.41
A65: VOCE BA 1780 - TOTALE CONSULENZE, COLLABORAZIONI, INTERINALE E ALTRE PRESTAZIONI DI LAVORO NON SANITARIE DA PRIVATO | D65: =D46+D52+D64 -> 592002.4
A67: La voce di CE BA1780 "Consulenze , collaborazioni, interinale e altre prestazioni di lavoro non sanitarie da privato" ammonta, al 31/12/2018, ad €/000 592 e si è ridotta, rispetto al 2017, di circa €/000 58. Tale scostamento è dovuto principalmente alla riduzione dei costi per consulenze legali (- €/000 154), il cui ammontare può subire alcune variazioni, da un anno all'altro, in relazione al numero ed all'esito dei contenziosi conclusi nel corso dell'esercizio. Tale decremento di spesa è stato parzialmente compensato da lievi incrementi di costi relativi ad altre tipologie di consulenze non sanitarie, in particolare: l'aumento dei costi per consulenze tecniche (+ €/000 33), per collaborazioni coordinate e continuative da privato di tipo amministrativo (+ €/000 17), per altre consulenze (+ €/000 34) e del costo per personale religioso adibito a mansioni non sanitarie (+ €/000 11).

Sheet Tab 62
B1: Tab. 62 – Dettaglio acquisti di servizi non sanitari
A2: CODICE MOD. CE | B2: DETTAGLIO ACQUISTI DI SERVIZI NON SANITARI | C2: ="Valore CE " &'00 Aggregatore'!$F$2 -> Valore CE 2018 | D2: ="Valore CE " &'00 Aggregatore'!$F$2 -1 -> Valore CE 2017 | E2: Variazioni importo | F2: %
B4: SERVIZI NON SANITARI | C4: =SUM(C5:C18) -> 35624428.47 | D4: =SUM(D5:D18) -> 35538780.36 | E4: =C4-D4 -> 85648.11 | F4: =IF(AND(C4=0,D4=0),0,IF(C4=0,"",IF(D4=0,"",E4/D4))) -> 0.002409990133
A5: BA1580 | B5: Lavanderia | C5: =SUMIF('00 CE'!$B:$B,'Tab 62'!$A5,'00 CE'!G:G) -> 4633285.64 | D5: =SUMIF('00 CE'!$B:$B,'Tab 62'!$A5,'00 CE'!F:F) -> 5274953.32 | E5: =C5-D5 -> -641667.68 | F5: =IF(AND(C5=0,D5=0),0,IF(C5=0,"",IF(D5=0,"",E5/D5))) -> -0.1216442386
A6: BA1590 | B6: Pulizia | C6: =SUMIF('00 CE'!$B:$B,'Tab 62'!$A6,'00 CE'!G:G) -> 6110953.9 | D6: =SUMIF('00 CE'!$B:$B,'Tab 62'!$A6,'00 CE'!F:F) -> 6089443.34 | E6: =C6-D6 -> 21510.56 | F6: 0.003532434543
A7: BA1600 | B7: Mensa | C7: =SUMIF('00 CE'!$B:$B,'Tab 62'!$A7,'00 CE'!G:G) -> 4253494.91 | D7: =SUMIF('00 CE'!$B:$B,'Tab 62'!$A7,'00 CE'!F:F) -> 4117793.49 | E7: 135701.42 | F7: 0.03295488721
A8: BA1610 | B8: Riscaldamento | C8: =SUMIF('00 CE'!$B:$B,'Tab 62'!$A8,'00 CE'!G:G) -> 912590.81 | D8: =SUMIF('00 CE'!$B:$B,'Tab 62'!$A8,'00 CE'!F:F) -> 1064233.96 | E8: -151643.15 | F8: -0.1424904257
A9: BA1620 | B9: Servizi di assistenza informatica | C9: =SUMIF('00 CE'!$B:$B,'Tab 62'!$A9,'00 CE'!G:G) -> 1812783.81 | D9: =SUMIF('00 CE'!$B:$B,'Tab 62'!$A9,'00 CE'!F:F) -> 1666759.65 | E9: 146024.16 | F9: 0.08760960826
A10: BA1630 | B10: Servizi trasporti (non sanitari) | C10: =SUMIF('00 CE'!$B:$B,'Tab 62'!$A10,'00 CE'!G:G) -> 5892.6 | D10: =SUMIF('00 CE'!$B:$B,'Tab 62'!$A10,'00 CE'!F:F) -> 9272 | E10: -3379.4 | F10: -0.3644736842
A11: BA1640 | B11: Smaltimento rifiuti | C11: =SUMIF('00 CE'!$B:$B,'Tab 62'!$A11,'00 CE'!G:G) -> 1392025.82 | D11: =SUMIF('00 CE'!$B:$B,'Tab 62'!$A11,'00 CE'!F:F) -> 1384638.63 | E11: 7387.19 | F11: 0.00533510321
A12: BA1650 | B12: Utenze telefoniche | C12: =SUMIF('00 CE'!$B:$B,'Tab 62'!$A12,'00 CE'!G:G) -> 940270.67 | D12: =SUMIF('00 CE'!$B:$B,'Tab 62'!$A12,'00 CE'!F:F) -> 524835.7 | E12: 415434.97 | F12: 0.791552423
A13: BA1660 | B13: Utenze elettricità | C13: =SUMIF('00 CE'!$B:$B,'Tab 62'!$A13,'00 CE'!G:G) -> 3337366.78 | D13: =SUMIF('00 CE'!$B:$B,'Tab 62'!$A13,'00 CE'!F:F) -> 3156167.9 | E13: 181198.88 | F13: 0.05741103951
A14: BA1670 | B14: Altre utenze | C14: =SUMIF('00 CE'!$B:$B,'Tab 62'!$A14,'00 CE'!G:G) -> 875740.52 | D14: =SUMIF('00 CE'!$B:$B,'Tab 62'!$A14,'00 CE'!F:F) -> 705877.73 | E14: 169862.79 | F14: 0.2406405285
A15: BA1680 | B15: Premi di assicurazione | C15: =SUMIF('00 CE'!$B:$B,'Tab 62'!$A15,'00 CE'!G:G) -> 4728617.1 | D15: =SUMIF('00 CE'!$B:$B,'Tab 62'!$A15,'00 CE'!F:F) -> 4810016.04 | E15: -81398.94 | F15: -0.01692280012
A16: BA1720 | B16: Altri servizi non sanitari da pubblico (Aziende sanitarie pubbliche della Regione) | C16: =SUMIF('00 CE'!$B:$B,'Tab 62'!$A16,'00 CE'!G:G) -> 0 | D16: =SUMIF('00 CE'!$B:$B,'Tab 62'!$A16,'00 CE'!F:F) -> 0 | E16: 0 | F16: 0
A17: BA1730 | B17: Altri servizi non sanitari da altri soggetti pubblici | C17: =SUMIF('00 CE'!$B:$B,'Tab 62'!$A17,'00 CE'!G:G) -> 0 | D17: =SUMIF('00 CE'!$B:$B,'Tab 62'!$A17,'00 CE'!F:F) -> 0 | E17: 0 | F17: 0
A18: BA1740 | B18: Altri servizi non sanitari da privato | C18: =SUMIF('00 CE'!$B:$B,'Tab 62'!$A18,'00 CE'!G:G) -> 6621405.91 | D18: =SUMIF('00 CE'!$B:$B,'Tab 62'!$A18,'00 CE'!F:F) -> 6734788.6 | E18: -113382.69 | F18: -0.01683537476
A19: 0702020118 | B19: Vigilanza | C19: 1895343.19 | D19: 1862266.45 | E19: 33076.74 | F19: 0.01776155072
A20: 0702020119 | B20: Altri servizi appaltati | C20: 4138097.74 | D20: 4379343.09 | E20: -241245.35 | F20: -0.05508710897
A21: 0702020120 | B21: Spese di rappresentanza | C21: 181 | D21: 949 | E21: -768 | F21: -0.8092729189
A22: 0702020121 | B22: Spese postali | C22: 354747.32 | D22: 251509.11 | E22: 103238.21 | F22: 0.4104750321
A23: 0702020122 | B23: Quote per spese condominiali | C23: 32959.09 | D23: 21247.49 | E23: 11711.6 | F23: 0.551199224
A24: 0702020123 | B24: Spese legali | C24: 77880.8 | D24: 85408.79 | E24: -7527.99 | F24: -0.08814069372
A25: 0702020124 | B25: Bolli e marchi | C25: 55127.95 | D25: 58649.21 | E25: -3521.26 | F25: -0.06003934239
A26: 0702020125 | B26: Abbonamenti, riviste e libri | C26: 21856.82 | D26: 37522.53 | E26: -15665.71 | F26: -0.4175014318
A27: 0702020126 | B27: Spese per liti, arbitraggi e risarcimenti | C27: 72 | D27: 0 | E27: 72
A28: 0702020127 | B28: Altri servizi non sanitari da privato | C28: 45140 | D28: 37851.33 | E28: 7288.67 | F28: 0.1925604728
A29: 0702020128 | B29: Rimborsi spese personale del ruolo sanitario dirigenza medica | C29: 0 | D29: 0 | E29: 0 | F29: 0
A30: 0702020129 | B30: Rimborsi spese personale del ruolo sanitario dirigenza non medica | C30: 0 | D30: 0 | E30: 0 | F30: 0
A31: 0702020130 | B31: Rimborsi spese personale del ruolo sanitario comparto | C31: 0 | D31: 41.6 | E31: -41.6
A32: 0702020131 | B32: Rimborsi spese personale del ruolo professionale dirigenza | C32: 0 | D32: 0 | E32: 0 | F32: 0
A33: 0702020132 | B33: Rimborsi spese personale del ruolo professionale comparto | C33: 0 | D33: 0 | E33: 0 | F33: 0
A34: 0702020133 | B34: Rimborsi spese personale del ruolo tecnico dirigenza | C34: 0 | D34: 0 | E34: 0 | F34: 0
A35: 0702020134 | B35: Rimborsi spese personale del ruolo tecnico comparto | C35: 0 | D35: 0 | E35: 0 | F35: 0
A36: 0702020135 | B36: Rimborsi spese personale del ruolo amministrativo dirigenza | C36: 0 | D36: 0 | E36: 0 | F36: 0
A37: 0702020136 | B37: Rimborsi spese personale del ruolo amministrativo comparto | C37: 0 | D37: 0 | E37: 0 | F37: 0
B38: CONSULENZE, COLLABORAZIONI, INTERINALE, ALTRE PRESTAZIONI DI LAVORO NON SANITARIE | C38: =SUM(C39:C41) -> 592002.4 | D38: =SUM(D39:D41) -> 649624.9 | E38: -57622.5 | F38: -0.08870118741
A39: BA1760 | B39: Consulenze non sanitarie da Aziende sanitarie pubbliche della Regione | C39: =SUMIF('00 CE'!$B:$B,'Tab 62'!$A39,'00 CE'!G:G) -> 0 | D39: =SUMIF('00 CE'!$B:$B,'Tab 62'!$A39,'00 CE'!F:F) -> 0 | E39: =C39-D39 -> 0 | F39: 0
A40: BA1770 | B40: Consulenze non sanitarie da Terzi - Altri soggetti pubblici | C40: =SUMIF('00 CE'!$B:$B,'Tab 62'!$A40,'00 CE'!G:G) -> 0 | D40: =SUMIF('00 CE'!$B:$B,'Tab 62'!$A40,'00 CE'!F:F) -> 0 | E40: =C40-D40 -> 0 | F40: 0
A41: BA1780 | B41: Consulenze, Collaborazioni, Interinale e altre prestazioni di lavoro non sanitarie da privato | C41: =SUMIF('00 CE'!$B:$B,'Tab 62'!$A41,'00 CE'!G:G) -> 592002.4 | D41: =SUMIF('00 CE'!$B:$B,'Tab 62'!$A41,'00 CE'!F:F) -> 649624.9 | E41: -57622.5 | F41: -0.08870118741
